{"text_format":"3","workbook":"xlsx","n_sheets":19,"sheets":["достижения инд. детские","достижения командные","поощрения ПДО","конкурсы программ, метод разраб","НПК","семинары","участие в НПК, семин без выступ","стаж площадки","публикации","проф конкурсы","конкурсы испол мастерства","жюри","орган конк меропр","орган мас меропр","участ в меропр","метод неделя","откр зан","КПК","награды"],"read":"whole","date_system":"1900"}

{"sheet":"достижения инд. детские","index":0,"n_rows":768,"n_cols":11,"rows_kept":768,"merged":[[1,0,1,9],[4,0,4,9],[35,0,35,9],[178,0,178,9],[527,0,527,9],[588,0,588,9],[723,0,723,9]]}
[]
["Сведения о результативности учащихся МБУДО \"Центр детского творчества\" Вахитовского района г. Казани\nМБУДО \"Центр детского творчества\" Вахитовского района г. Казани за 2024-2025 учебный год "]
[]
["направленность (художественная, физкультурно-спортивная и т.д.)","Фамилия, имя, отчество обучающегося (полностью) \n","дата рождения (2006)","объединение","Фамилия, инициалы педагога","Название мероприятия (в соответствии с Положением)","дата проведения мероприятия (месяц, год)","Место проведения мероприятия","Ведомство - организатор мероприятия (УО ИК МО, Отдел УО ИК МО по Вах. И Прив. р-нам, МОиН РТ и т.д.) ","результат"]
["районный уровень"]
["художественная","Ковалева Ангелина Юрьевна","2011","Завиток","Егорова Е.Е.","Районный конкурс-выставка декоративно-прикладных изделий \"Сувениры России\"","апрель, 2025","МБУДО \"ЦВР\" Приволжского района","Отдел УО ИКМО по Вах. и Прив. районам","1 место",1]
["художественная","Давидова Зилия Фанисовна","2012","Завиток","Егорова Е.Е.","Районный конкурс-выставка декоративно-прикладных изделий \"Сувениры России\"","апрель, 2025","МБУДО \"ЦВР\" Приволжского района","Отдел УО ИКМО по Вах. и Прив. районам","2 место",1]
["художественная","Касимова Милана Фархадовна","2013","Завиток","Егорова Е.Е.","Районный конкурс-выставка декоративно-прикладных изделий \"Сувениры России\"","апрель, 2025","МБУДО \"ЦВР\" Приволжского района","Отдел УО ИКМО по Вах. и Прив. районам","2 место",1]
["художественная ","Суханов Максим Андреевич","08.12.2015","Адымнар","Суханова М.В.","Районный конкурс \"Мама-ангел на Земле\", посвященного Году семьи и Дню матери","ноябрь, 2024","МБУДО \"ЦДТ\" Вах-го р-на","Отдел УО ИК МО по Вах. И Прив. р-нам","2 место",1]
["художественная ","Минсафина Айсылу Маратовна","2007","Унбэр","Минсафина Р.Р.","Районный конкурс \"Мама-ангел на Земле\", посвященного Году семьи и Дню матери","ноябрь, 2024","МБУДО \"ЦДТ\" Вах-го р-на","Отдел УО ИК МО по Вах. И Прив. р-нам","2 место",1]
["художественная ","Минсафина Айсылу Маратовна","2007","Унбэр","Минсафина Р.Р.","Районный конкурс \"Мама-ангел на Земле\", посвященного Году семьи и Дню матери","ноябрь, 2024","МБУДО \"ЦДТ\" Вах-го р-на","Отдел УО ИК МО по Вах. И Прив. р-нам","2 место",1]
["художественная ","Зарипова Регина","2013","шк 13","Фоменко Л.М.","Конкурс творческих работ \"Творчество без границ\"","апрель, 2025","МБУДО \"ЦДТ\" Вах-го р-на","Отдел УО ИК МО по Вах. И Прив. р-нам","1 место",1]
["художественная ","Изместьева Милана","2010","шк 51","Фоменко Л.М.","Конкурс творческих работ \"Творчество без границ\"","апрель, 2025","МБУДО \"ЦДТ\" Вах-го р-на","Отдел УО ИК МО по Вах. И Прив. р-нам","1 место",1]
["художественная ","Калита Диана","2012","шк 51","Фоменко Л.М.","Конкурс творческих работ \"Творчество без границ\"","апрель, 2025","МБУДО \"ЦДТ\" Вах-го р-на","Отдел УО ИК МО по Вах. И Прив. р-нам","1 место",1]
["художественная ","Касимова Диляра","2012","шк 13","Фоменко Л.М.","Конкурс творческих работ \"Творчество без границ\"","апрель, 2025","МБУДО \"ЦДТ\" Вах-го р-на","Отдел УО ИК МО по Вах. И Прив. р-нам","1 место",1]
["художественная ","Лаврентьев Ярослав","2012","шк 14","Фоменко Л.М.","Конкурс творческих работ \"Творчество без границ\"","апрель, 2025","МБУДО \"ЦДТ\" Вах-го р-на","Отдел УО ИК МО по Вах. И Прив. р-нам","3 место",1]
["художественная ","Ларина Марианна","2010","шк 51","Фоменко Л.М.","Конкурс творческих работ \"Творчество без границ\"","апрель, 2025","МБУДО \"ЦДТ\" Вах-го р-на","Отдел УО ИК МО по Вах. И Прив. р-нам","3 место",1]
["художественная ","Махнина София","2010","шк 13","Фоменко Л.М.","Конкурс творческих работ \"Творчество без границ\"","апрель, 2025","МБУДО \"ЦДТ\" Вах-го р-на","Отдел УО ИК МО по Вах. И Прив. р-нам","1 место",1]
["художественная ","Моисеева Анна","2010","шк 51","Фоменко Л.М.","Конкурс творческих работ \"Творчество без границ\"","апрель, 2025","МБУДО \"ЦДТ\" Вах-го р-на","Отдел УО ИК МО по Вах. И Прив. р-нам","1 место",1]
["художественная ","Петрова Ксения","2010","шк 51","Фоменко Л.М.","Конкурс творческих работ \"Творчество без границ\"","апрель, 2025","МБУДО \"ЦДТ\" Вах-го р-на","Отдел УО ИК МО по Вах. И Прив. р-нам","1 место",1]
["художественная ","Сосновская Анастасия","2012","шк 14","Фоменко Л.М.","Конкурс творческих работ \"Творчество без границ\"","апрель, 2025","МБУДО \"ЦДТ\" Вах-го р-на","Отдел УО ИК МО по Вах. И Прив. р-нам","2 место",1]
["художественная ","Суханов Максим Андреевич","2015","Адымнар","Фоменко Л.М.","Конкурс творческих работ \"Творчество без границ\"","апрель, 2025","МБУДО \"ЦДТ\" Вах-го р-на","Отдел УО ИК МО по Вах. И Прив. р-нам","2 место",1]
["художественная ","Суханова Ксения","2011","шк 49","Фоменко Л.М.","Конкурс творческих работ \"Творчество без границ\"","апрель, 2025","МБУДО \"ЦДТ\" Вах-го р-на","Отдел УО ИК МО по Вах. И Прив. р-нам","2 место",1]
["художественная ","Суханова Ксения","2011","шк 49","Фоменко Л.М.","Конкурс творческих работ \"Творчество без границ\"","апрель, 2025","МБУДО \"ЦДТ\" Вах-го р-на","Отдел УО ИК МО по Вах. И Прив. р-нам","1 место",1]
["художественная ","Суханова Ксения","2011","шк 49","Фоменко Л.М.","Конкурс творческих работ \"Творчество без границ\"","апрель, 2025","МБУДО \"ЦДТ\" Вах-го р-на","Отдел УО ИК МО по Вах. И Прив. р-нам","1 место",1]
["художественная ","Суханова Ксения","2011","шк 49","Фоменко Л.М.","Конкурс творческих работ \"Творчество без границ\"","апрель, 2025","МБУДО \"ЦДТ\" Вах-го р-на","Отдел УО ИК МО по Вах. И Прив. р-нам","2 место",1]
["художественная ","Трифонова Алисия","2008","лиц 5","Фоменко Л.М.","Конкурс творческих работ \"Творчество без границ\"","апрель, 2025","МБУДО \"ЦДТ\" Вах-го р-на","Отдел УО ИК МО по Вах. И Прив. р-нам","1 место",1]
["художественная ","Трифонова Алисия","2008","лиц 5","Фоменко Л.М.","Конкурс творческих работ \"Творчество без границ\"","апрель, 2025","МБУДО \"ЦДТ\" Вах-го р-на","Отдел УО ИК МО по Вах. И Прив. р-нам","1 место",1]
["художественная ","Трифонова Ариана","2008","лиц 5","Фоменко Л.М.","Конкурс творческих работ \"Творчество без границ\"","апрель, 2025","МБУДО \"ЦДТ\" Вах-го р-на","Отдел УО ИК МО по Вах. И Прив. р-нам","1 место",1]
["художественная ","Трифонова Ариана","2008","лиц 5","Фоменко Л.М.","Конкурс творческих работ \"Творчество без границ\"","апрель, 2025","МБУДО \"ЦДТ\" Вах-го р-на","Отдел УО ИК МО по Вах. И Прив. р-нам","1 место",1]
["художественная ","Шакирова Самира","2013","шк 13","Фоменко Л.М.","Конкурс творческих работ \"Творчество без границ\"","апрель, 2025","МБУДО \"ЦДТ\" Вах-го р-на","Отдел УО ИК МО по Вах. И Прив. р-нам","1 место",1]
["художественная ","Шмельцер Кира","2010","шк 51","Фоменко Л.М.","Конкурс творческих работ \"Творчество без границ\"","апрель, 2025","МБУДО \"ЦДТ\" Вах-го р-на","Отдел УО ИК МО по Вах. И Прив. р-нам","2 место",1]
["художественная ","Абдуразакова Мехрона","2010","шк 51","Фоменко Л.М.","Конкурс творческих работ \"Творчество без границ\"","апрель, 2025","МБУДО \"ЦДТ\" Вах-го р-на","Отдел УО ИК МО по Вах. И Прив. р-нам","1 место",1]
["художественная ","Архиреева Олеся","2013","шк 14","Фоменко Л.М.","Конкурс творческих работ \"Творчество без границ\"","апрель, 2025","МБУДО \"ЦДТ\" Вах-го р-на","Отдел УО ИК МО по Вах. И Прив. р-нам","2 место",1]
["художественная ","Камалов Руслан Ильфатович","2013","Театр эстрады, сатиры и юмора \"ЕрашОк\"","Гордеева И.В.","\"Мама - ангел на земле\"","ноябрь, 2024","МБУДО \"ЦДТ\" Вах-го р-на","ОУ ИКМО г. Казани по Вахитовкому и Приволжскому районам","Лауреат III степени",1]
["городской уровень",{"$nulls":9},{"$f":"SUM(K6:K35)","v":30}]
["художественная","Абубакирова Алина Булатовна",2014,"Озорные краски","Гиздатуллина К.М.","городской конкурс изобрзительного и декоратвно-прикладного творчества \"Новый год в сказку добрую зовет\"","декабрь, 2024","МБУДО \"ЦДТ\" Вах-го р-на","УО ИК МО","Дипломант III степени",1]
["художественная","Гилазетдинова Раиля Ильнуровна",2014,"Озорные краски","Гиздатуллина К.М.","городской конкурс изобрзительного и декоратвно-прикладного творчества \"Новый год в сказку добрую зовет\"","декабрь, 2024","МБУДО \"ЦДТ\" Вах-го р-на","УО ИК МО","Дипломант II степени",1]
["художественная","Давидова Алия Фанисовна","2014","Завиток","Егорова Е.Е.","городской конкурс изобрзительного и декоратвно-прикладного творчества \"Новый год в сказку добрую зовет\"","декабрь, 2024","МБУДО \"ЦДТ\" Вах-го р-на","УО ИК МО","Лауреат III степени",1]
["художественная","Галимзянова Зарина Руслановна","2014","Завиток","Егорова Е.Е.","городской конкурс изобрзительного и декоратвно-прикладного творчества \"Новый год в сказку добрую зовет\"","декабрь, 2024","МБУДО \"ЦДТ\" Вах-го р-на","УО ИК МО","Лауреат III степени",1]
["художественная","Гайнутдинова Камиля Рустемовна","2014","Завиток","Егорова Е.Е.","городской конкурс изобрзительного и декоратвно-прикладного творчества \"Новый год в сказку добрую зовет\"","декабрь, 2024","МБУДО \"ЦДТ\" Вах-го р-на","УО ИК МО","Дипломант II степени",1]
["художественная","Мочалова Аделина Рустамовна","2015","Завиток","Егорова Е.Е.","городской конкурс изобрзительного и декоратвно-прикладного творчества \"Новый год в сказку добрую зовет\"","декабрь, 2024","МБУДО \"ЦДТ\" Вах-го р-на","УО ИК МО","Дипломант I степени",1]
["художественная","Насыбуллова Лейла Рамилевна","2016","Завиток","Егорова Е.Е.","городской конкурс изобрзительного и декоратвно-прикладного творчества \"Новый год в сказку добрую зовет\"","декабрь, 2024","МБУДО \"ЦДТ\" Вах-го р-на","УО ИК МО","Дипломант III степени",1]
["художественная","Хабибрахманов Эмиль Алмазович",2015,"Юный дизайнер","Зеленцов Д.А.","городской конкурс изобрзительного и декоратвно-прикладного творчества \"Новый год в сказку добрую зовет\"","декабрь, 2024","МБУДО \"ЦДТ\" Вах-го р-на","УО ИК МО","Лауреат III степени",1]
["художественная","Панкратова Злата Романовна","2013","Юный дизайнер","Зеленцов Д.А.","городской конкурс изобрзительного и декоратвно-прикладного творчества \"Новый год в сказку добрую зовет\"","декабрь, 2024","МБУДО \"ЦДТ\" Вах-го р-на","УО ИК МО","Лауреат III степени",1]
["художественная","Уйбекова Диляра Дамировна","2014","Юный дизайнер","Зеленцов Д.А.","городской конкурс изобрзительного и декоратвно-прикладного творчества \"Новый год в сказку добрую зовет\"","декабрь, 2024","МБУДО \"ЦДТ\" Вах-го р-на","УО ИК МО","Лауреат III степени",1]
["художественная","Хисматуллина Залина Айратовна","2013","Юный дизайнер","Зеленцов Д.А.","городской конкурс изобрзительного и декоратвно-прикладного творчества \"Новый год в сказку добрую зовет\"","декабрь, 2024","МБУДО \"ЦДТ\" Вах-го р-на","УО ИК МО","Лауреат III степени",1]
["художественная","Сафина Ралина Раилевна","2012","Юный дизайнер","Зеленцов Д.А.","городской конкурс изобрзительного и декоратвно-прикладного творчества \"Новый год в сказку добрую зовет\"","декабрь, 2024","МБУДО \"ЦДТ\" Вах-го р-на","УО ИК МО","Дипломант III степени",1]
["художественная","Гирфанова Софина Альбертовна","2012","Юный дизайнер","Зеленцов Д.А.","городской конкурс изобрзительного и декоратвно-прикладного творчества \"Новый год в сказку добрую зовет\"","декабрь, 2024","МБУДО \"ЦДТ\" Вах-го р-на","УО ИК МО","Лауреат III степени",1]
["художественная","Усманов Хасан-Али","2014","Юный дизайнер","Зеленцов Д.А.","городской конкурс изобрзительного и декоратвно-прикладного творчества \"Новый год в сказку добрую зовет\"","декабрь, 2024","МБУДО \"ЦДТ\" Вах-го р-на","УО ИК МО","Дипломант II степени",1]
["художественная","Зиятдинова Самира Ранифовна","2011","Юный дизайнер","Зеленцов Д.А.","городской конкурс изобрзительного и декоратвно-прикладного творчества \"Новый год в сказку добрую зовет\"","декабрь, 2024","МБУДО \"ЦДТ\" Вах-го р-на","УО ИК МО","Дипломант I степени",1]
["художественная","Воронцова Злата Валерьевна","2013","Мастерица","Ионова Е.В.","городской конкурс изобрзительного и декоратвно-прикладного творчества \"Новый год в сказку добрую зовет\"","декабрь, 2024","МБУДО \"ЦДТ\" Вах-го р-на","УО ИК МО","Лауреат I степени",1]
["художественная","Фатхутдинова Латифа Фаруховна","2017","Созвездие","Сергеева М.В.","городской конкурс изобрзительного и декоратвно-прикладного творчества \"Новый год в сказку добрую зовет\"","декабрь, 2024","МБУДО \"ЦДТ\" Вах-го р-на","УО ИК МО","Лауреат II степени",1]
["художественная","Хисматуллина Эмилия Радиковна","2017","Созвездие","Сергеева М.В.","городской конкурс изобрзительного и декоратвно-прикладного творчества \"Новый год в сказку добрую зовет\"","декабрь, 2024","МБУДО \"ЦДТ\" Вах-го р-на","УО ИК МО","Лауреат III степени",1]
["художественная","Исрафилова Сабина Ренатовна","2017","Созвездие","Сергеева М.В.","городской конкурс изобрзительного и декоратвно-прикладного творчества \"Новый год в сказку добрую зовет\"","декабрь, 2024","МБУДО \"ЦДТ\" Вах-го р-на","УО ИК МО","Дипломант I степени",1]
["художественная","Камалтдинова Карина Руслановна","2016","Созвездие","Сергеева М.В.","городской конкурс изобрзительного и декоратвно-прикладного творчества \"Новый год в сказку добрую зовет\"","декабрь, 2024","МБУДО \"ЦДТ\" Вах-го р-на","УО ИК МО","Дипломант I степени",1]
["художественная","Батт Айрат Андреевич","2014","Созвездие","Сергеева М.В.","городской конкурс изобрзительного и декоратвно-прикладного творчества \"Новый год в сказку добрую зовет\"","декабрь, 2024","МБУДО \"ЦДТ\" Вах-го р-на","УО ИК МО","Лауреат III степени",1]
["художественная","Каюмов Ранэль Ильдарович","2017","Созвездие","Сергеева М.В.","городской конкурс изобрзительного и декоратвно-прикладного творчества \"Новый год в сказку добрую зовет\"","декабрь, 2024","МБУДО \"ЦДТ\" Вах-го р-на","УО ИК МО","Дипломант III степени",1]
["художественная","Каюмов Ранэль Ильдарович","2017","Созвездие","Сергеева М.В.","городской конкурс изобрзительного и декоратвно-прикладного творчества \"Новый год в сказку добрую зовет\"","декабрь, 2024","МБУДО \"ЦДТ\" Вах-го р-на","УО ИК МО","Лауреат I степени",1]
["художественная","Давлетшин Самир Русланович","2016","Созвездие","Сергеева М.В.","городской конкурс изобрзительного и декоратвно-прикладного творчества \"Новый год в сказку добрую зовет\"","декабрь, 2024","МБУДО \"ЦДТ\" Вах-го р-на","УО ИК МО","Лауреат I степени",1]
["художественная","Маннапов Раиль Рустамович","2014","Созвездие","Сергеева М.В.","городской конкурс изобрзительного и декоратвно-прикладного творчества \"Новый год в сказку добрую зовет\"","декабрь, 2024","МБУДО \"ЦДТ\" Вах-го р-на","УО ИК МО","Лауреат I степени",1]
["художественная","Муфтахова Динара Маратовна","2018","Созвездие","Сергеева М.В.","городской конкурс изобрзительного и декоратвно-прикладного творчества \"Новый год в сказку добрую зовет\"","декабрь, 2024","МБУДО \"ЦДТ\" Вах-го р-на","УО ИК МО","Дипломант III степени",1]
["художественная","Алиева Мелек Низамиевна","2017","Созвездие","Сергеева М.В.","городской конкурс изобрзительного и декоратвно-прикладного творчества \"Новый год в сказку добрую зовет\"","декабрь, 2024","МБУДО \"ЦДТ\" Вах-го р-на","УО ИК МО","Дипломант II степени",1]
["художественная","Бадрутдинова Ясмина Рамисовна","2017","Созвездие","Сергеева М.В.","городской конкурс изобрзительного и декоратвно-прикладного творчества \"Новый год в сказку добрую зовет\"","декабрь, 2024","МБУДО \"ЦДТ\" Вах-го р-на","УО ИК МО","Лауреат III степени",1]
["художественная","Васильева Амелия Руслановна","2017","Созвездие","Сергеева М.В.","городской конкурс изобрзительного и декоратвно-прикладного творчества \"Новый год в сказку добрую зовет\"","декабрь, 2024","МБУДО \"ЦДТ\" Вах-го р-на","УО ИК МО","Лауреат II степени",1]
["художественная","Давлетшин Самир Русланович","2016","Созвездие","Сергеева М.В.","городской конкурс изобрзительного и декоратвно-прикладного творчества \"Новый год в сказку добрую зовет\"","декабрь, 2024","МБУДО \"ЦДТ\" Вах-го р-на","УО ИК МО","Лауреат I степени",1]
["художественная","Гилязов Айнур Айратович","2015","Палитра","Антипова И.С.","городской конкурс изобрзительного и декоратвно-прикладного творчества \"Новый год в сказку добрую зовет\"","декабрь, 2024","МБУДО \"ЦДТ\" Вах-го р-на","УО ИК МО","Лауреат I степени",1]
["художественная","Зигангирова Ильвина Маратовна","2016","Палитра","Антипова И.С.","городской конкурс изобрзительного и декоратвно-прикладного творчества \"Новый год в сказку добрую зовет\"","декабрь, 2024","МБУДО \"ЦДТ\" Вах-го р-на","УО ИК МО","Дипломант III степени",1]
["художественная","Иксанова Амелия Руслановна","2015","Палитра","Антипова И.С.","городской конкурс изобрзительного и декоратвно-прикладного творчества \"Новый год в сказку добрую зовет\"","декабрь, 2024","МБУДО \"ЦДТ\" Вах-го р-на","УО ИК МО","Дипломант I степени",1]
["художественная","Нагимова Камила Венеровна","2016","Палитра","Антипова И.С.","городской конкурс изобрзительного и декоратвно-прикладного творчества \"Новый год в сказку добрую зовет\"","декабрь, 2024","МБУДО \"ЦДТ\" Вах-го р-на","УО ИК МО","Лауреат II степени",1]
["художественная","Аскарова Сафия Айратовна","2016","Палитра","Антипова И.С.","городской конкурс изобрзительного и декоратвно-прикладного творчества \"Новый год в сказку добрую зовет\"","декабрь, 2024","МБУДО \"ЦДТ\" Вах-го р-на","УО ИК МО","Лауреат II степени",1]
["художественная","Хафизова Эльвина Дамировна","2015","Палитра","Антипова И.С.","городской конкурс изобрзительного и декоратвно-прикладного творчества \"Новый год в сказку добрую зовет\"","декабрь, 2024","МБУДО \"ЦДТ\" Вах-го р-на","УО ИК МО","Дипломант I степени",1]
["художественная","Галияхметова Камиля Рамзилевна","2017","Палитра","Антипова И.С.","городской конкурс изобрзительного и декоратвно-прикладного творчества \"Новый год в сказку добрую зовет\"","декабрь, 2024","МБУДО \"ЦДТ\" Вах-го р-на","УО ИК МО","Дипломант II степени",1]
["художественная","Сиразутдинова Карина Ильдаровна","2016","Палитра","Антипова И.С.","городской конкурс изобрзительного и декоратвно-прикладного творчества \"Новый год в сказку добрую зовет\"","декабрь, 2024","МБУДО \"ЦДТ\" Вах-го р-на","УО ИК МО","Дипломант II степени",1]
["художественная","Хусаинова Камиля Рустемовна","2015","Палитра","Антипова И.С.","городской конкурс изобрзительного и декоратвно-прикладного творчества \"Новый год в сказку добрую зовет\"","декабрь, 2024","МБУДО \"ЦДТ\" Вах-го р-на","УО ИК МО","Дипломант I степени",1]
["художественная","Сыроварова Мария Александровна","2013","Радуга творчества","Быстрова Л.М.","городской конкурс изобрзительного и декоратвно-прикладного творчества \"Новый год в сказку добрую зовет\"","декабрь, 2024","МБУДО \"ЦДТ\" Вах-го р-на","УО ИК МО","Лауреат II степени",1]
["художественная","Галимзянов Анвар Ринатович","2016","Радуга творчества","Быстрова Л.М.","городской конкурс изобрзительного и декоратвно-прикладного творчества \"Новый год в сказку добрую зовет\"","декабрь, 2024","МБУДО \"ЦДТ\" Вах-го р-на","УО ИК МО","Дипломант II степени",1]
["художественная","Тагирова Айя Линаровна","2016","Радуга творчества","Быстрова Л.М.","городской конкурс изобрзительного и декоратвно-прикладного творчества \"Новый год в сказку добрую зовет\"","декабрь, 2024","МБУДО \"ЦДТ\" Вах-го р-на","УО ИК МО","Дипломант III степени",1]
["художественная","Чернышова Арина Константиновна","2016","Творческая мастерская","Вафина Л.А.","городской конкурс изобрзительного и декоратвно-прикладного творчества \"Новый год в сказку добрую зовет\"","декабрь, 2024","МБУДО \"ЦДТ\" Вах-го р-на","УО ИК МО","Лауреат II степени",1]
["художественная","Акбарова Камила Сардоровна","2017","Творческая мастерская","Вафина Л.А.","городской конкурс изобрзительного и декоратвно-прикладного творчества \"Новый год в сказку добрую зовет\"","декабрь, 2024","МБУДО \"ЦДТ\" Вах-го р-на","УО ИК МО","Лауреат II степени",1]
["художественная","Мирзаева Нурай Ширхановна","2017","Творческая мастерская","Вафина Л.А.","городской конкурс изобрзительного и декоратвно-прикладного творчества \"Новый год в сказку добрую зовет\"","декабрь, 2024","МБУДО \"ЦДТ\" Вах-го р-на","УО ИК МО","Лауреат II степени",1]
["художественная","Насыбуллова Лейла Рамилевна","2016","Творческая мастерская","Вафина Л.А.","городской конкурс изобрзительного и декоратвно-прикладного творчества \"Новый год в сказку добрую зовет\"","декабрь, 2024","МБУДО \"ЦДТ\" Вах-го р-на","УО ИК МО","Лауреат III степени",1]
["художественная","Хаджибаева Марьям Маруфьъжоновна","2016","Творческая мастерская","Вафина Л.А.","городской конкурс изобрзительного и декоратвно-прикладного творчества \"Новый год в сказку добрую зовет\"","декабрь, 2024","МБУДО \"ЦДТ\" Вах-го р-на","УО ИК МО","Дипломант II степени",1]
["художественная","Лямова Яна Дмитриевна","2015","Рукоделие","Хабибуллина Ю.А.","городской конкурс изобрзительного и декоратвно-прикладного творчества \"Новый год в сказку добрую зовет\"","декабрь, 2024","МБУДО \"ЦДТ\" Вах-го р-на","УО ИК МО","Дипломант I степени",1]
["художественная","Майков Мирон Евгеньевич","2015","Рукоделие","Хабибуллина Ю.А.","городской конкурс изобрзительного и декоратвно-прикладного творчества \"Новый год в сказку добрую зовет\"","декабрь, 2024","МБУДО \"ЦДТ\" Вах-го р-на","УО ИК МО","Дипломант II степени",1]
["художественная","Ларина Доминика Александровна","2015","Рукоделие","Хабибуллина Ю.А.","городской конкурс изобрзительного и декоратвно-прикладного творчества \"Новый год в сказку добрую зовет\"","декабрь, 2024","МБУДО \"ЦДТ\" Вах-го р-на","УО ИК МО","Дипломант I степени",1]
["художественная","Мерзлякова Каролина Игоревна","2015","Рукоделие","Хабибуллина Ю.А.","городской конкурс изобрзительного и декоратвно-прикладного творчества \"Новый год в сказку добрую зовет\"","декабрь, 2024","МБУДО \"ЦДТ\" Вах-го р-на","УО ИК МО","Лауреат II степени",1]
["художественная","Гирфанова Софина Альбертовна","2012","Юный дизайнер","Зеленцов Д.А.","творческий конкурс, в честь 85 летия Института языка, литературы и искусства им. Г.Ибрагимова","декабрь, 2024","Академия наук РТ","Академия наук РТ","Грамота",1]
["художественная","Галишникова Лейла Радионовна","2011","Завиток","Егорова Е.Е.","Городской конкурс декоративно-прикладного творчества \"Вдохновение\"","декабрь, 2024","МБУДО \"ЦДТ \"Азино\"","УО ИК МО","Лауреат I степени",1]
["художественная","Ганиева Камилла Радиковна","2009","Завиток","Егорова Е.Е.","Городской конкурс декоративно-прикладного творчества \"Вдохновение\"","декабрь, 2024","МБУДО \"ЦДТ \"Азино\"","УО ИК МО","Лауреат I степени",1]
["художественная","Ковалева Ангелина Юрьевна","2011","Завиток","Егорова Е.Е.","Городской конкурс декоративно-прикладного творчества \"Вдохновение\"","декабрь, 2024","МБУДО \"ЦДТ \"Азино\"","УО ИК МО","Лауреат II степени",1]
["художественная","Карасева Елизавета Павловна","2012","Радуга творчества","Быстрова Л.М.","Городской конкурс \"Любимый питомец нашей семьи\"","декабрь, 2024","МБУДО ДПЦ \"Молодость\"","УО ИК МО","Диплом за 2 место",1]
["художественная","Галимзянова Зарина Руслановна","2014","Завиток","Егорова Е.Е.","Городской конкурс \"Любимый питомец нашей семьи\"","декабрь, 2024","МБУДО ДПЦ \"Молодость\"","УО ИК МО","Диплом за 2 место",1]
["художественная","Бабаев Мухаммадбагир","2015","шк 51","Фоменко Л.М.","Зональный этап Республиканского конкурса семейного творчества \"Калейдоскоп\"","май, 2025","РЦВР","РЦВР","2 место",1]
["художественная","Богатова Виолетта","2015","гимн 28","Фоменко Л.М.","Зональный этап Республиканского конкурса семейного творчества \"Калейдоскоп\"","май, 2025","РЦВР","РЦВР","1 место",1]
["художественная","Галиуллин Булат","2012","шк 13","Фоменко Л.М.","Зональный этап Республиканского конкурса семейного творчества \"Калейдоскоп\"","май, 2025","РЦВР","РЦВР","2 место",1]
["художественная","Гафаров Магомет","2010","шк 13","Фоменко Л.М.","Зональный этап Республиканского конкурса семейного творчества \"Калейдоскоп\"","май, 2025","РЦВР","РЦВР","2 место",1]
["художественная","Гребнев Илья","2013","шк 14","Фоменко Л.М.","Зональный этап Республиканского конкурса семейного творчества \"Калейдоскоп\"","май, 2025","РЦВР","РЦВР","1 место",1]
["художественная","Каллаур Евдокия","2012","шк 13","Фоменко Л.М.","Зональный этап Республиканского конкурса семейного творчества \"Калейдоскоп\"","май, 2025","РЦВР","РЦВР","1 место",1]
["художественная","Суханова Ксения","2011","Шк 49","Фоменко Л.М.","Зональный этап Республиканского конкурса семейного творчества \"Калейдоскоп\"","май, 2025","РЦВР","РЦВР","2 место",1]
["художественная","Суханова Ксения","2011","Шк 49","Фоменко Л.М.","Зональный этап Республиканского конкурса семейного творчества \"Калейдоскоп\"","май, 2025","РЦВР","РЦВР","2 место",1]
["художественная","Фаттахова Камилла","2011","шк 13","Фоменко Л.М.","Зональный этап Республиканского конкурса семейного творчества \"Калейдоскоп\"","май, 2025","РЦВР","РЦВР","3 место",1]
["художественная","Фатыхова Камилла","2011","шк 98","Фоменко Л.М.","Зональный этап Республиканского конкурса семейного творчества \"Калейдоскоп\"","май, 2025","РЦВР","РЦВР","3 место",1]
["художественная","Хураськин Ярослав","2011","шк 51","Фоменко Л.М.","Зональный этап Республиканского конкурса семейного творчества \"Калейдоскоп\"","май, 2025","РЦВР","РЦВР","1 место",1]
["художественная","Хуснутдинов Тимур","2011","шк 13","Фоменко Л.М.","Зональный этап Республиканского конкурса семейного творчества \"Калейдоскоп\"","май, 2025","РЦВР","РЦВР","2 место",1]
["художественная","Шмельцер Кира","2011","шк 51","Фоменко Л.М.","Зональный этап Республиканского конкурса семейного творчества \"Калейдоскоп\"","май, 2025","РЦВР","РЦВР","1 место",1]
["художественная","Бяулова Дарья","2012","лиц 116","Фоменко Л.М.","Зональный этап Республиканского конкурса семейного творчества \"Калейдоскоп\"","май, 2025","РЦВР","РЦВР","1 место",1]
["художественная","Кочина Анастасия","2008","КСК","Фоменко Л.М.","Зональный этап Республиканского конкурса семейного творчества \"Калейдоскоп\"","май, 2025","РЦВР","РЦВР","1 место",1]
["художественная","Бабарыкина Анастасия","2010","шк 13","Фоменко Л.М.","Зональный этап Республиканского конкурса реализованных социальных проектов \"Моя инициатива\"","май, 2025","РЦВР","РЦВР","2 место",1]
["художественная","Зайнуллин Карим","2011","шк 13","Фоменко Л.М.","Зональный этап Республиканского конкурса реализованных социальных проектов \"Моя инициатива\"","май, 2025","РЦВР","РЦВР","2 место",1]
["художественная","Литвиненко Доминика","2010","шк 14","Фоменко Л.М.","Зональный этап Республиканского конкурса реализованных социальных проектов \"Моя инициатива\"","май, 2025","РЦВР","РЦВР","3 место",1]
["художественная","Модина Влада","2012","шк 14","Фоменко Л.М.","Зональный этап Республиканского конкурса реализованных социальных проектов \"Моя инициатива\"","май, 2025","РЦВР","РЦВР","3 место",1]
["художественная","Стахова Диана","2011","шк 12","Фоменко Л.М.","Зональный этап Республиканского конкурса реализованных социальных проектов \"Моя инициатива\"","май, 2025","РЦВР","РЦВР","2 место",1]
["художественная","Тимаева Елена","2010","лиц Лобачевского","Фоменко Л.М.","Зональный этап Республиканского конкурса реализованных социальных проектов \"Моя инициатива\"","май, 2025","РЦВР","РЦВР","2 место",1]
["художественная","Фаттахова Камилла","2011","шк 13","Фоменко Л.М.","Зональный этап Республиканского конкурса реализованных социальных проектов \"Моя инициатива\"","май, 2025","РЦВР","РЦВР","2 место",1]
["художественная","Халилова Хатиджа","2012","шк 13","Фоменко Л.М.","Зональный этап Республиканского конкурса реализованных социальных проектов \"Моя инициатива\"","май, 2025","РЦВР","РЦВР","2 место",1]
["художественная","Шакирова Алина","2010","гимн 27","Фоменко Л.М.","Зональный этап Республиканского конкурса реализованных социальных проектов \"Моя инициатива\"","май, 2025","РЦВР","РЦВР","2 место",1]
["художественная","Бяулова Дарья","2012","лиц 116","Фоменко Л.М.","Зональный этап Республиканского конкурса реализованных социальных проектов \"Моя инициатива\"","май, 2025","РЦВР","РЦВР","2 место",1]
["художественная","Готунок Мария","2012","лиц 116","Фоменко Л.М.","Зональный этап Республиканского конкурса реализованных социальных проектов \"Моя инициатива\"","май, 2025","РЦВР","РЦВР","1 место",1]
["художественная","Дергунова Ева","2011","лиц 116","Фоменко Л.М.","Зональный этап Республиканского конкурса реализованных социальных проектов \"Моя инициатива\"","май, 2025","РЦВР","РЦВР","1 место",1]
["художественная","Пантелеева Регина","2011","шк 13","Фоменко Л.М.","Зональный этап Республиканского конкурса реализованных социальных проектов \"Моя инициатива\"","май, 2025","РЦВР","РЦВР","3 место",1]
["художественная","Смакотина Виктория","2010","шк 13","Фоменко Л.М.","Зональный этап Республиканского конкурса реализованных социальных проектов \"Моя инициатива\"","май, 2025","РЦВР","РЦВР","3 место",1]
["художественная","Фатыхова Камилла","2011","шк 98","Фоменко Л.М.","Зональный этап Республиканского конкурса реализованных социальных проектов \"Моя инициатива\"","май, 2025","РЦВР","РЦВР","2 место",1]
["физкультурно-спортивная","Борисова Анна","2014","Спортивные игры","Абдуллаева Д.Х.","Городской конкурс изобразительного и декоративно-прикладного творчества \"Новый год в сказку добрую зовет\"","январь, 2025","ЦДТ","УО ИКМО г. Казани","3 место",1]
["физкультурно-спортивная","Митько Михаил","2014","Спортивные игры","Абдуллаева Д.Х.","Городской конкурс изобразительного и декоративно-прикладного творчества \"Новый год в сказку добрую зовет\"","январь, 2025","ЦДТ","УО ИКМО г. Казани","1 место",1]
["физкультурно-спортивная","Малов Вадим","2014","Спортивные игры","Шигапова Л.А.","Городской конкурс изобразительного и декоративно-прикладного творчества \"Новый год в сказку добрую зовет\"","январь, 2025","ЦДТ","УО ИКМО г. Казани","2 место",1]
["физкультурно-спортивная","Фахартымов Радмир ","2014","Спортивные игры","Шигапова Л.А.","Городской конкурс изобразительного и декоративно-прикладного творчества \"Новый год в сказку добрую зовет\"","январь, 2025","ЦДТ","УО ИКМО г. Казани","1 место",1]
["физкультурно-спортивная","Гильманшин Артем","2014","Спортивные игры","Шигапова Л.А.","Городской конкурс изобразительного и декоративно-прикладного творчества \"Новый год в сказку добрую зовет\"","январь, 2025","ЦДТ","УО ИКМО г. Казани","Лауреат 1 степени",1]
["физкультурно-спортивная","Сафаров Мансур","2014","Спортивные игры","Шигапова Л.А.","Городской конкурс изобразительного и декоративно-прикладного творчества \"Новый год в сказку добрую зовет\"","январь, 2025","ЦДТ","УО ИКМО г. Казани","Дипломант 3 степени",1]
["физкультурно-спортивная","Хакимуллин Данияр ","2014","Спортивные игры","Шигапова Л.А.","Городской конкурс изобразительного и декоративно-прикладного творчества \"Новый год в сказку добрую зовет\"","январь, 2025","ЦДТ","УО ИКМО г. Казани","Лауреат 3 степени",1]
["физкультурно-спортивная","Шакиров Тамерлан ","2014","Спортивные игры","Шигапова Л.А.","Городской конкурс изобразительного и декоративно-прикладного творчества \"Новый год в сказку добрую зовет\"","январь, 2025","ЦДТ","УО ИКМО г. Казани","Лауреат 3 степени",1]
["художественная","Хаертдинов Мурат Наилевич","2011","Театр эстрады, сатиры и юмора \"ЕрашОк\"","Гордеева И.В.","Республиканский творческий конкурс \"В созвездии А.С. Пушкина и Г. Тукая\"","апрель, 2025","г. Казань","УО ИКМО г. Казани","Лауреат I степени",1]
[" художественная"," Фатхуддинова Латифа Фаруховна"," 12.07.2017"," Занимательная экология"," Салимуллина А,М.","Городской конкурс изобразительного и декоративно-прикладного творчества \"Новый год-в сказку добрую зовет\""," 15.01.2025"," МБОУ «ЦДТ» Вахитовского района г.Казани"," Управление образования исполнительного комитета г.Казани"," Лауреат 2 степени",1]
[" художественная"," Алиева Мелек Низамиевна"," 10.11.2017"," Занимательная экология"," Салимуллина А,М.","Городской конкурс изобразительного и декоративно-прикладного творчества \"Новый год-в сказку добрую зовет\""," 15.01.2025","МБОУ «ЦДТ» Вахитовского района г.Казани"," Управление образования исполнительного комитета г.Казани"," Дипломант 2 степени",1]
["художественная","Каюмов РанельЛенарович","2017-02-28"," Занимательная экология"," Салимуллина А,М.","Городской конкурс изобразительного и декоративно-прикладного творчества \"Новый год-в сказку добрую зовет\""," 15.01.2025","МБОУ «ЦДТ» Вахитовского района г.Казани"," Управление образования исполнительного комитета г.Казани","Лауреат 1 степени",1]
["художественная","Бадрутдинова Ясмина Рамисовна","2017-04-27"," Занимательная экология"," Салимуллина А,М.","Городской конкурс изобразительного и декоративно-прикладного творчества \"Новый год-в сказку добрую зовет\""," 15.01.2025","МБОУ «ЦДТ» Вахитовского района г.Казани"," Управление образования исполнительного комитета г.Казани","Лауреат 2 степени",1]
["художественная","Муфтахова Динара Маратовна","2018-01-08"," Занимательная экология"," Салимуллина А,М.","Городской конкурс изобразительного и декоративно-прикладного творчества \"Новый год-в сказку добрую зовет\""," 15.01.2025","МБОУ «ЦДТ» Вахитовского района г.Казани"," Управление образования исполнительного комитета г.Казани","Дипломант 3 степени",1]
["художественная","Каюмов Ранель Ленарович","2017-02-28"," Занимательная экология"," Салимуллина А,М.","Городской конкурс изобразительного и декоративно-прикладного творчества \"Новый год-в сказку добрую зовет\""," 15.01.2025","МБОУ «ЦДТ» Вахитовского района г.Казани"," Управление образования исполнительного комитета г.Казани","Лауреат 3 степени",1]
["художественная","Закирова Амира","2017-10-31","Живое слово","Шайдуллина Р.Х.","Городской конкурс изобразительного и декоративно-прикладного творчества \"Новый год-в сказку добрую зовет\""," 15.01.2025","МБОУ «ЦДТ» Вахитовского района г.Казани"," Управление образования исполнительного комитета г.Казани","Дипломант 3 степени",1]
["художественная","Тухбатуллина  Сафина Дамировна",null,"Живое слово","Шайдуллина Р.Х.","Городской конкурс изобразительного и декоративно-прикладного творчества \"Новый год-в сказку добрую зовет\""," 15.01.2025","МБОУ «ЦДТ» Вахитовского района г.Казани"," Управление образования исполнительного комитета г.Казани","участие",1]
["художественная","Майкова Арина","2017-10-02","Живое слово","Шайдуллина Р.Х.","Городской конкурс изобразительного и декоративно-прикладного творчества \"Новый год-в сказку добрую зовет\""," 15.01.2025","МБОУ «ЦДТ» Вахитовского района г.Казани"," Управление образования исполнительного комитета г.Казани","Дипломант 2 степени",1]
["художественная","Хабибуллин Ильзат Ильнарович","2017-02-13","Живое слово","Шайдуллина Р.Х.","Городской конкурс изобразительного и декоративно-прикладного творчества \"Новый год-в сказку добрую зовет\""," 15.01.2025","МБОУ «ЦДТ» Вахитовского района г.Казани"," Управление образования исполнительного комитета г.Казани","Дипломант 2 степени",1]
["художественная","Ромодановская Алана","2017-11-14","Живое слово","Шайдуллина Р.Х.","Городской конкурс изобразительного и декоративно-прикладного творчества \"Новый год-в сказку добрую зовет\""," 15.01.2025","МБОУ «ЦДТ» Вахитовского района г.Казани"," Управление образования исполнительного комитета г.Казани","участие",1]
["художественная","Анисимов Мирон Александрович","24.04.2014","Театр-студия \"Ровесник\"","Андреева М.Ю.","7 Городской конкурс театррального искусства среди обучающихся образовательных учреждений и учреждений дополн ительного образования \"Стихия\"","декабрь, 2024","МБУДО \"ЦДТ \"Детская академия\" Советского района г.Казани","УО ИКМО г.Казани","2 место",1]
["художественная","Перова Ксения Андреевна",null,"Театр-студия \"Ровесник\"","Андреева М.Ю.","7 Городской конкурс театррального искусства среди обучающихся образовательных учреждений и учреждений дополн ительного образования \"Стихия\"","декабрь, 2024","МБУДО \"ЦДТ \"Детская академия\" Советского района г.Казани","УО ИКМО г.Казани","1 место",1]
["художественная","Захарова Анастасия ",null,"Театр-студия \"Ровесник\"","Андреева М.Ю.","7 Городской конкурс театррального искусства среди обучающихся образовательных учреждений и учреждений дополн ительного образования \"Стихия\"","декабрь, 2024","МБУДО \"ЦДТ \"Детская академия\" Советского района г.Казани","УО ИКМО г.Казани","2 место",1]
["художественная","Анисимова Кира Александровна","21.06.2010","Театр-студия \"Ровесник\"","Андреева М.Ю.","7 Городской конкурс театррального искусства среди обучающихся образовательных учреждений и учреждений дополн ительного образования \"Стихия\"","декабрь, 2024","МБУДО \"ЦДТ \"Детская академия\" Советского района г.Казани","УО ИКМО г.Казани","2 место",1]
["художественная","Маслова Вероника","07.12.2011","Театр-студия \"Ровесник\"","Андреева М.Ю.","7 Городской конкурс театррального искусства среди обучающихся образовательных учреждений и учреждений дополн ительного образования \"Стихия\"","декабрь, 2024","МБУДО \"ЦДТ \"Детская академия\" Советского района г.Казани","УО ИКМО г.Казани","1 место",1]
["социально-гуманитарная","Закиров Артур Олегович",2009,"В мире знаний и творчества","Бердникова Марина Григорьевна","Городской конкурс изобразительного и декоративно -прикладного творчества «Новый год в сказку добрую зовёт»"," январь, 2025","МБУДО \"Центр детского творчества\" Вахитовского района           г. Казань","УО ИК МО г. Казани","Дипломант I  степени",1]
["социально-гуманитарная","Ираклеев Всеволод Леонидович",2016,"В мире знаний и творчества\"","Бердникова Марина Григорьевна","Городской конкурс изобразительного и декоративно -прикладного творчества «Новый год в сказку добрую зовёт»"," январь, 2025","МБУДО \"Центр детского творчества\" Вахитовского района           г. Казань","УО ИК МО г. Казани","Лауреат  II степени",1]
["социально-гуманитарная","Жаворонков Владимир Игоревич ",2016,"В мире знаний и творчества"," Бердникова Марина Григорьевна","Городской конкурс изобразительного и декоративно -прикладного творчества «Новый год в сказку добрую зовёт»"," январь, 2025","МБУДО \"Центр детского творчества\" Вахитовского района           г. Казань","УО ИК МО г. Казани","Лауреат  I степени",1]
["социально-гуманитарная","Чепиков Максим Михайлович",2015,"В мире знаний и творчества\"","Бердникова Марина Григорьевна","Городской конкурс изобразительного и декоративно -прикладного творчества «Новый год в сказку добрую зовёт»"," январь, 2025","МБУДО \"Центр детского творчества\" Вахитовского района           г. Казань","УО ИК МО г. Казани","Лауреат  II степени",1]
["социально-гуманитарная","Альбеков Алан Альбертович",2014,"В мире знаний и творчества\"","Бердникова Марина Григорьевна","Городской конкурс изобразительного и декоративно -прикладного творчества «Новый год в сказку добрую зовёт»"," январь, 2025","МБУДО \"Центр детского творчества\" Вахитовского района           г. Казань","УО ИК МО г. Казани","Дипломант III  степени",1]
["социально-гуманитарная","Хасанов Артем Алексеевич",2012,"В мире знаний и творчества\"","Бердникова Марина Григорьевна","Городской конкурс изобразительного и декоративно -прикладного творчества «Новый год в сказку добрую зовёт»"," январь, 2025","МБУДО \"Центр детского творчества\" Вахитовского района           г. Казань","УО ИК МО г. Казани","Дипломант I  степени",1]
["социально-гуманитарная","Садретдинов Ислам Ринатович",2012,"Декор","Иванова Светлана Викторовна","Городской конкурс изобразительного и декоративно -прикладного творчества «Новый год в сказку добрую зовёт»"," январь, 2025","МБУДО \"Центр детского творчества\" Вахитовского района           г. Казань","УО ИК МО г. Казани","Лауреат  II степени",1]
["социально-гуманитарная","Ким Радмир Артурович","2011  ","Декор","Иванова Светлана Викторовна","Городской конкурс изобразительного и декоративно -прикладного творчества «Новый год в сказку добрую зовёт»"," январь, 2025","МБУДО \"Центр детского творчества\" Вахитовского района           г. Казань","УО ИК МО г. Казани","Лауреат  II степени",1]
["социально-гуманитарная","Титов Михаил Ильич",2013,"Декор","Иванова Светлана Викторовна","Городской конкурс изобразительного и декоративно -прикладного творчества «Новый год в сказку добрую зовёт»"," январь, 2025","МБУДО \"Центр детского творчества\" Вахитовского района           г. Казань","УО ИК МО г. Казани","Лауреат  I степени",1]
["социально-гуманитарная","Ким Радмир Артурович","2011  ","Декор","Иванова Светлана Викторовна","Городской конкурс изобразительного и декоративно -прикладного творчества «Новый год в сказку добрую зовёт»"," январь, 2025","МБУДО \"Центр детского творчества\" Вахитовского района           г. Казань","УО ИК МО г. Казани","Лауреат  II степени",1]
["социально-гуманитарная","Титов Михаил Ильич",2013,"Декор","Иванова Светлана Викторовна","Городской конкурс изобразительного и декоративно -прикладного творчества «Новый год в сказку добрую зовёт»"," январь, 2025","МБУДО \"Центр детского творчества\" Вахитовского района           г. Казань","УО ИК МО г. Казани","Лауреат  III степени",1]
["социально-гуманитарная","Биктимиров Динар Эдуардович","2007","Декоративно-прикладное искусство","Корсакова Ирина Валерьевна","Городской конкурс изобразительного и декоративно -прикладного творчества «Новый год в сказку добрую зовёт»"," январь, 2025","МБУДО \"Центр детского творчества\" Вахитовского района           г. Казань","УО ИК МО г. Казани","Дипломант III  степени",1]
["социально-гуманитарная","Гильмутдинов Айдар Винирович","2007","Декоративно-прикладное искусство","Корсакова Ирина Валерьевна","Городской конкурс изобразительного и декоративно -прикладного творчества «Новый год в сказку добрую зовёт»"," январь, 2025","МБУДО \"Центр детского творчества\" Вахитовского района           г. Казань","УО ИК МО г. Казани","Дипломант III  степени",1]
["социально-гуманитарная","Самигуллин Артур Александрович",2007,"Декоративно-прикладное искусство","Корсакова Ирина Валерьевна","Городской конкурс изобразительного и декоративно -прикладного творчества «Новый год в сказку добрую зовёт»"," январь, 2025","МБУДО \"Центр детского творчества\" Вахитовского района           г. Казань","УО ИК МО г. Казани","Дипломант III  степени",1]
["социально-гуманитарная","Григорчук Егор Олегович",2008,"Рукоделие. Терапия творчеством","Шигапова Гузель Равхатовна","Городской конкурс изобразительного и декоративно -прикладного творчества «Новый год в сказку добрую зовёт»"," январь, 2025","МБУДО \"Центр детского творчества\" Вахитовского района           г. Казань","УО ИК МО г. Казани","Лауреат  I степени",1]
["социально-гуманитарная","Григорчук Глеб Олегович",2008,"Рукоделие. Терапия творчеством","Шигапова Гузель Равхатовна","Городской конкурс изобразительного и декоративно -прикладного творчества «Новый год в сказку добрую зовёт»"," январь, 2025","МБУДО \"Центр детского творчества\" Вахитовского района           г. Казань","УО ИК МО г. Казани","Лауреат  I степени",1]
["социально-гуманитарная","Белякова Мария Сергеевна",2007,"Рукоделие. Терапия творчеством","Шигапова Гузель Равхатовна","Городской конкурс изобразительного и декоративно -прикладного творчества «Новый год в сказку добрую зовёт»"," январь, 2025","МБУДО \"Центр детского творчества\" Вахитовского района           г. Казань","УО ИК МО г. Казани","Лауреат  II степени",1]
["социально-гуманитарная","Сафаров Марсель Руделевич",2008,"Рукоделие. Терапия творчеством","Шигапова Гузель Равхатовна","Городской конкурс изобразительного и декоративно -прикладного творчества «Новый год в сказку добрую зовёт»"," январь, 2025","МБУДО \"Центр детского творчества\" Вахитовского района           г. Казань","УО ИК МО г. Казани","Лауреат  I степени",1]
["социально-гуманитарная","Бирюкова Ирина Вячеславовна  ",2008,"Рукоделие. Терапия творчеством","Шигапова Гузель Равхатовна","Городской конкурс изобразительного и декоративно -прикладного творчества «Новый год в сказку добрую зовёт»"," январь, 2025","МБУДО \"Центр детского творчества\" Вахитовского района           г. Казань","УО ИК МО г. Казани","Лауреат  I степени",1]
["социально-гуманитарная","Гилязов Саитгарай Алексеевич",2008,"Оригами","Шашина Татьяна Борисовна","Городской конкурс изобразительного и декоративно -прикладного творчества «Новый год в сказку добрую зовёт»"," январь, 2025","МБУДО \"Центр детского творчества\" Вахитовского района           г. Казань","УО ИК МО г. Казани","Дипломант III  степени",1]
["социально-гуманитарная","Сафин Рамазан Рустемович",2013,"Оригами","Шашина Татьяна Борисовна","Городской конкурс изобразительного и декоративно -прикладного творчества «Новый год в сказку добрую зовёт»"," январь, 2025","МБУДО \"Центр детского творчества\" Вахитовского района           г. Казань","УО ИК МО г. Казани","Лауреат  II степени",1]
["социально-гуманитарная","Евграфов Максим Михайлович",2012,"Оригами","Шашина Татьяна Борисовна","Городской конкурс изобразительного и декоративно -прикладного творчества «Новый год в сказку добрую зовёт»"," январь, 2025","МБУДО \"Центр детского творчества\" Вахитовского района           г. Казань","УО ИК МО г. Казани","Дипломант III  степени",1]
["социально-гуманитарная","Даутов Ризван Рамзанович","2009","Оригами","Шашина Татьяна Борисовна","Городской конкурс изобразительного и декоративно -прикладного творчества «Новый год в сказку добрую зовёт»"," январь, 2025","МБУДО \"Центр детского творчества\" Вахитовского района           г. Казань","УО ИК МО г. Казани","Лауреат  II степени",1]
["социально-гуманитарная","Сирунян Рубен Артакович",2015,"Английский, играя","Буянова Людмила Сергеевна","Городской конкурс изобразительного и декоративно -прикладного творчества «Новый год в сказку добрую зовёт»"," январь, 2025","МБУДО \"Центр детского творчества\" Вахитовского района           г. Казань","УО ИК МО г. Казани","участие",1]
["социально-гуманитарная","Борисов Илья Дмитриевич",2015,"Английский, играя","Буянова Людмила Сергеевна","Городской конкурс изобразительного и декоративно -прикладного творчества «Новый год в сказку добрую зовёт»"," январь, 2025","МБУДО \"Центр детского творчества\" Вахитовского района           г. Казань","УО ИК МО г. Казани","участие",1]
["социально-гуманитарная","Кислухина Ульяна Гртгорьевна",2015,"Английский, играя","Буянова Людмила Сергеевна","Городской конкурс изобразительного и декоративно -прикладного творчества «Новый год в сказку добрую зовёт»"," январь, 2025","МБУДО \"Центр детского творчества\" Вахитовского района           г. Казань","УО ИК МО г. Казани","участие",1]
["социально-гуманитарная","Хасанова Индира Рамильевна",2015,"Английский, играя","Мансурова Тамара Иркиновна","Городской конкурс изобразительного и декоративно -прикладного творчества «Новый год в сказку добрую зовёт»"," январь, 2025","МБУДО \"Центр детского творчества\" Вахитовского района           г. Казань","УО ИК МО г. Казани","Дипломант II  степени",1]
["социально-гуманитарная"," Жаворонков Владимир Игоревич "," 2009"," В мире знаний и творчества"," Бердникова Марина Григорьевна","Городской конкурс \"Мое Отечество\"","январь,2025","МБУДО \"Центр детского творчества\" Вахитовского района           г. Казань","ЧУВО \"Российский исламский институт\"","Диплом 2 место",1]
["социально-гуманитарная","Закиров Артур Олегович"," 2009"," В мире знаний и творчества"," Бердникова Марина Григорьевна","Городской конкурс \"Мое Отечество\"","январь,2025","МБУДО \"Центр детского творчества\" Вахитовского района           г. Казань","ЧУВО \"Российский исламский институт\"","Диплом за участие",1]
["социально-гуманитарная","Жаворонков Владимир Игоревич ",2009," В мире знаний и творчества"," Бердникова Марина Григорьевна","II Городской конкурс цифровых проектов \"It сегодня и завтра\"","декабрь,2024","ГЦДТТ им. В. П. \nЧкалова","УО ИК МО г. Казани","Диплом I степени",1]
["республиканский уровень",{"$nulls":9},{"$f":"SUM(K37:K178)","v":142}]
["художественная","Соловьева Анна Александровна","2015","Театр эстрады, сатиры и юмора \"ЕрашОк\"","Гордеева И.В.","Республиканский конкурс-фестиваль \"Патриоты России\"","ноябрь, 2024","г. Казань","РО Всероссийского военно-патриотического днтско-юношеского общественного движения \"ЮНАРМИЯ\" РТ","Лауреат Гран-При",1]
["художественная","Соловьева Анна Александровна","2015","Театр эстрады, сатиры и юмора \"ЕрашОк\"","Гордеева И.В.","Республиканский конкурс-фестиваль \"Патриоты России\"","ноябрь, 2024","г. Казань","РО Всероссийского военно-патриотического днтско-юношеского общественного движения \"ЮНАРМИЯ\" РТ","Лауреат II степени",1]
["художественная","Рыбина Амелия Витальевна","2013","Театр эстрады, сатиры и юмора \"ЕрашОк\"","Гордеева И.В.","Республиканский конкурс-фестиваль \"Патриоты России\"","ноябрь, 2024","г. Казань","РО Всероссийского военно-патриотического днтско-юношеского общественного движения \"ЮНАРМИЯ\" РТ","Лауреат II степени",1]
["художественная","Яхонт Матвей Николаевич","2010","Театр эстрады, сатиры и юмора \"ЕрашОк\"","Гордеева И.В.","Республиканский конкурс-фестиваль \"Патриоты России\"","ноябрь, 2024","г. Казань","РО Всероссийского военно-патриотического днтско-юношеского общественного движения \"ЮНАРМИЯ\" РТ","Гран-При",1]
["художественная","Галимзянова Зарина Руслановна","2014","Завиток","Егорова Е.Е.","Республиканский экологический конкурс детского и юношеского творчества \"На планете голубой\"","декабрь, 2024","ЦДТ Вахитовского района","ГАОУ \"РОЦ\" МОиН РТ","Лауреат 3 степени",1]
["художественная","Ковалева Ангелина Юрьевна","2011","Завиток","Егорова Е.Е.","Республиканский экологический конкурс детского и юношеского творчества \"На планете голубой\"","декабрь, 2024","ЦДТ Вахитовского района","ГАОУ \"РОЦ\" МОиН РТ","Лауреат 2 степени",1]
["художественная","Каримова Диля Радиковна","2013","Мастерица","Ионова Е.В.","Республиканский экологический конкурс детского и юношеского творчества \"На планете голубой\"","декабрь, 2024","ЦДТ Вахитовского района","ГАОУ \"РОЦ\" МОиН РТ","Лауреат 1 степени",1]
["художественная","Гиясова Ойиша Насибуллоевна","2010","Мастерица","Ионова Е.В.","Республиканский экологический конкурс детского и юношеского творчества \"На планете голубой\"","декабрь, 2024","ЦДТ Вахитовского района","ГАОУ \"РОЦ\" МОиН РТ","Лауреат 2 степени",1]
["художественная","Воронцова Злата Валерьевна","2013","Мастерица","Ионова Е.В.","Республиканский экологический конкурс детского и юношеского творчества \"На планете голубой\"","декабрь, 2024","ЦДТ Вахитовского района","ГАОУ \"РОЦ\" МОиН РТ","Лауреат 2 степени",1]
["художественная","Юдина Ксения Антоновна","2010","Мастерица","Ионова Е.В.","Республиканский экологический конкурс детского и юношеского творчества \"На планете голубой\"","декабрь, 2024","ЦДТ Вахитовского района","ГАОУ \"РОЦ\" МОиН РТ","Лауреат 1 степени",1]
["художественная","Иминова Ойша Толибжоновна","2014","Мастерица","Ионова Е.В.","Республиканский экологический конкурс детского и юношеского творчества \"На планете голубой\"","декабрь, 2024","ЦДТ Вахитовского района","ГАОУ \"РОЦ\" МОиН РТ","Дипломант 1 степени",1]
["художественная","Чермакова Дина Айдаровна","2014","Мастерица","Ионова Е.В.","Республиканский экологический конкурс детского и юношеского творчества \"На планете голубой\"","декабрь, 2024","ЦДТ Вахитовского района","ГАОУ \"РОЦ\" МОиН РТ","Лауреат 3 степени",1]
["художественная","Абзалова Ясмина Азатовна","2014","Мастерица","Ионова Е.В.","Республиканский экологический конкурс детского и юношеского творчества \"На планете голубой\"","декабрь, 2024","ЦДТ Вахитовского района","ГАОУ \"РОЦ\" МОиН РТ","Лауреат 2 степени",1]
["художественная","Аглиуллина Эмилия Маратовна","2015","Озорные краски","Гиздатуллина К.М.","Республиканский экологический конкурс детского и юношеского творчества \"На планете голубой\"","декабрь, 2024","ЦДТ Вахитовского района","ГАОУ \"РОЦ\" МОиН РТ","Лауреат 2 степени",1]
["художественная","Лебедева Мила Витальевна","2016","Озорные краски","Гиздатуллина К.М.","Республиканский экологический конкурс детского и юношеского творчества \"На планете голубой\"","декабрь, 2024","ЦДТ Вахитовского района","ГАОУ \"РОЦ\" МОиН РТ","Лауреат 3 степени",1]
["художественная","Абубакирова Алина Булатовна","2014","Озорные краски","Гиздатуллина К.М.","Республиканский экологический конкурс детского и юношеского творчества \"На планете голубой\"","декабрь, 2024","ЦДТ Вахитовского района","ГАОУ \"РОЦ\" МОиН РТ","Лауреат 2 степени",1]
["художественная","Сугаюнова Амина Гаделевна","2015","Озорные краски","Гиздатуллина К.М.","Республиканский экологический конкурс детского и юношеского творчества \"На планете голубой\"","декабрь, 2024","ЦДТ Вахитовского района","ГАОУ \"РОЦ\" МОиН РТ","Дипломант 1 степени",1]
["художественная","Сулейманова Малика Ильфатовна","2014","Озорные краски","Гиздатуллина К.М.","Республиканский экологический конкурс детского и юношеского творчества \"На планете голубой\"","декабрь, 2024","ЦДТ Вахитовского района","ГАОУ \"РОЦ\" МОиН РТ","Лауреат 3 степени",1]
["художественная","Зиганшина Ясмина Ильназовна","2015","Озорные краски","Гиздатуллина К.М.","Республиканский экологический конкурс детского и юношеского творчества \"На планете голубой\"","декабрь, 2024","ЦДТ Вахитовского района","ГАОУ \"РОЦ\" МОиН РТ","Лауреат 2 степени",1]
["художественная","Гайнутдинов Карим Рустемович","2017","Озорные краски","Гиздатуллина К.М.","Республиканский экологический конкурс детского и юношеского творчества \"На планете голубой\"","декабрь, 2024","ЦДТ Вахитовского района","ГАОУ \"РОЦ\" МОиН РТ","Дипломант 3 степени",1]
["художественная","Косых Родион Евгеньевич","2015","Созвездие","Сергеева М.В.","Республиканский экологический конкурс детского и юношеского творчества \"На планете голубой\"","декабрь, 2024","ЦДТ Вахитовского района","ГАОУ \"РОЦ\" МОиН РТ","Лауреат 1 степени",1]
["художественная","Умарова Рушанна Равшановна","2010","Созвездие","Сергеева М.В.","Республиканский экологический конкурс детского и юношеского творчества \"На планете голубой\"","декабрь, 2024","ЦДТ Вахитовского района","ГАОУ \"РОЦ\" МОиН РТ","Лауреат 3 степени",1]
["художественная","Кузнецова Виктория Дмитриевна","2014","Созвездие","Сергеева М.В.","Республиканский экологический конкурс детского и юношеского творчества \"На планете голубой\"","декабрь, 2024","ЦДТ Вахитовского района","ГАОУ \"РОЦ\" МОиН РТ","Лауреат 2 степени",1]
["художественная","Сыроварова Мария Александровна","2013","Радуга творчества","Быстрова Л.М.","Республиканский экологический конкурс детского и юношеского творчества \"На планете голубой\"","декабрь, 2024","ЦДТ Вахитовского района","ГАОУ \"РОЦ\" МОиН РТ","Лауреат 1 степени",1]
["художественная","Карасева Елизавета Павловна","2012","Радуга творчества","Быстрова Л.М.","Республиканский экологический конкурс детского и юношеского творчества \"На планете голубой\"","декабрь, 2024","ЦДТ Вахитовского района","ГАОУ \"РОЦ\" МОиН РТ","Лауреат 1 степени",1]
["художественная","Карасева Вера Павловна","2010","Радуга творчества","Быстрова Л.М.","Республиканский экологический конкурс детского и юношеского творчества \"На планете голубой\"","декабрь, 2024","ЦДТ Вахитовского района","ГАОУ \"РОЦ\" МОиН РТ","Лауреат 1 степени",1]
["художественная","Хазиева Малика Анисовна","2016","Палитра","Антипова И.С.","Республиканский экологический конкурс детского и юношеского творчества \"На планете голубой\"","декабрь, 2024","ЦДТ Вахитовского района","ГАОУ \"РОЦ\" МОиН РТ","Дипломант 1 степени",1]
["художественная","Хафизова Эльвина Дамировна","2015","Палитра","Антипова И.С.","Республиканский экологический конкурс детского и юношеского творчества \"На планете голубой\"","декабрь, 2024","ЦДТ Вахитовского района","ГАОУ \"РОЦ\" МОиН РТ","Лауреат 1 степени",1]
["художественная","Шакирова Амиля Ильназовна","2017","Палитра","Антипова И.С.","Республиканский экологический конкурс детского и юношеского творчества \"На планете голубой\"","декабрь, 2024","ЦДТ Вахитовского района","ГАОУ \"РОЦ\" МОиН РТ","Дипломант 3 степени",1]
["художественная","Иксанова Амелия Руслановна","2015","Палитра","Антипова И.С.","Республиканский экологический конкурс детского и юношеского творчества \"На планете голубой\"","декабрь, 2024","ЦДТ Вахитовского района","ГАОУ \"РОЦ\" МОиН РТ","Дипломант 3 степени",1]
["художественная","Хусаенова Камиля Рустемовна","2015","Палитра","Антипова И.С.","Республиканский экологический конкурс детского и юношеского творчества \"На планете голубой\"","декабрь, 2024","ЦДТ Вахитовского района","ГАОУ \"РОЦ\" МОиН РТ","Лауреат 1 степени",1]
["художественная","Арапов Мирон Романович","2016","Палитра","Антипова И.С.","Республиканский экологический конкурс детского и юношеского творчества \"На планете голубой\"","декабрь, 2024","ЦДТ Вахитовского района","ГАОУ \"РОЦ\" МОиН РТ","Дипломант 1 степени",1]
["художественная","Хузина Малика Ильфатовна","2016","Палитра","Антипова И.С.","Республиканский экологический конкурс детского и юношеского творчества \"На планете голубой\"","декабрь, 2024","ЦДТ Вахитовского района","ГАОУ \"РОЦ\" МОиН РТ","Дипломант 2 степени",1]
["художественная","Нагимова Камилла Венеровна","2016","Палитра","Антипова И.С.","Республиканский экологический конкурс детского и юношеского творчества \"На планете голубой\"","декабрь, 2024","ЦДТ Вахитовского района","ГАОУ \"РОЦ\" МОиН РТ","Дипломант 2 степени",1]
["художественная","Артамонова Кира Сергеевна","2017","Палитра","Антипова И.С.","Республиканский экологический конкурс детского и юношеского творчества \"На планете голубой\"","декабрь, 2024","ЦДТ Вахитовского района","ГАОУ \"РОЦ\" МОиН РТ","Дипломант 1 степени",1]
["художественная","Арсланова Хадия Робертовна","2017","Палитра","Антипова И.С.","Республиканский экологический конкурс детского и юношеского творчества \"На планете голубой\"","декабрь, 2024","ЦДТ Вахитовского района","ГАОУ \"РОЦ\" МОиН РТ","Дипломант 2 степени",1]
["художественная","Нагимова Лия Рустемовна","2017","Палитра","Антипова И.С.","Республиканский экологический конкурс детского и юношеского творчества \"На планете голубой\"","декабрь, 2024","ЦДТ Вахитовского района","ГАОУ \"РОЦ\" МОиН РТ","Лауреат 1 степени",1]
["художественная","Гилязов Айнур Айратович","2015","Палитра","Антипова И.С.","Республиканский экологический конкурс детского и юношеского творчества \"На планете голубой\"","декабрь, 2024","ЦДТ Вахитовского района","ГАОУ \"РОЦ\" МОиН РТ","Дипломант 3 степени",1]
["художественная","Сиразутдинова Карина Ильдаровна","2016","Палитра","Антипова И.С.","Республиканский экологический конкурс детского и юношеского творчества \"На планете голубой\"","декабрь, 2024","ЦДТ Вахитовского района","ГАОУ \"РОЦ\" МОиН РТ","Лауреат 2 степени",1]
["художественная","Зайнуллина Зарина Ранилевна","2016","Палитра","Антипова И.С.","Республиканский экологический конкурс детского и юношеского творчества \"На планете голубой\"","декабрь, 2024","ЦДТ Вахитовского района","ГАОУ \"РОЦ\" МОиН РТ","Лауреат 1 степени",1]
["художественная","Низамутдинова Азалия Аделевна","2015","Палитра","Антипова И.С.","Республиканский экологический конкурс детского и юношеского творчества \"На планете голубой\"","декабрь, 2024","ЦДТ Вахитовского района","ГАОУ \"РОЦ\" МОиН РТ","Дипломант 3 степени",1]
["художественная","Хабибрахманов Эмиль Алмазович","2015","Юный дизайнер","Зеленцов Д.А.","Республиканский экологический конкурс детского и юношеского творчества \"На планете голубой\"","декабрь, 2023","ЦДТ Вахитовского района","ГАОУ \"РОЦ\" МОиН РТ","Лауреат 2 степени",1]
["художественная","Гирфанова Софина Альбертовна","2015","Юный дизайнер","Зеленцов Д.А.","Республиканский экологический конкурс детского и юношеского творчества \"На планете голубой\"","декабрь, 2023","ЦДТ Вахитовского района","ГАОУ \"РОЦ\" МОиН РТ","Лауреат 3 степени",1]
["художественная","Хисматуллина Залина Айратовна","2013","Юный дизайнер","Зеленцов Д.А.","Республиканский экологический конкурс детского и юношеского творчества \"На планете голубой\"","декабрь, 2023","ЦДТ Вахитовского района","ГАОУ \"РОЦ\" МОиН РТ","Дипломант 1 степени",1]
["художественная","Усманов Хасан-Али Ниязович","2014","Юный дизайнер","Зеленцов Д.А.","Республиканский экологический конкурс детского и юношеского творчества \"На планете голубой\"","декабрь, 2024","ЦДТ Вахитовского района","ГАОУ \"РОЦ\" МОиН РТ","Дипломант 2 степени",1]
["художественная","Бадретдинова Самира Тимуровна","2010","Юный дизайнер","Зеленцов Д.А.","Республиканский экологический конкурс детского и юношеского творчества \"На планете голубой\"","декабрь, 2024","ЦДТ Вахитовского района","ГАОУ \"РОЦ\" МОиН РТ","Дипломант 3 степени",1]
["художественная","Чернышова Арина Константиновна","2016","Творческая мастерская","Вафина Л.А.","Республиканский экологический конкурс детского и юношеского творчества \"На планете голубой\"","декабрь, 2024","ЦДТ Вахитовского района","ГАОУ \"РОЦ\" МОиН РТ","Лауреат 2 степени",1]
["художественная","Насыбуллова Лейла Рамилевна","2016","Творческая мастерская","Вафина Л.А.","Республиканский экологический конкурс детского и юношеского творчества \"На планете голубой\"","декабрь, 2024","ЦДТ Вахитовского района","ГАОУ \"РОЦ\" МОиН РТ","Лауреат 1 степени",1]
["художественная","Садыков Рафаэль Маратович","2016","Рукоделие","Хабибуллина Ю.А.","Республиканский экологический конкурс детского и юношеского творчества \"На планете голубой\"","декабрь, 2024","ЦДТ Вахитовского района","ГАОУ \"РОЦ\" МОиН РТ","Лауреат 1 степени",1]
["художественная","Иващенко Матвей Максимович","2015","Рукоделие","Хабибуллина Ю.А.","Республиканский экологический конкурс детского и юношеского творчества \"На планете голубой\"","декабрь, 2024","ЦДТ Вахитовского района","ГАОУ \"РОЦ\" МОиН РТ","Дипломант 3 степени",1]
["художественная","Ларина Доминика Александровна","2015","Рукоделие","Хабибуллина Ю.А.","Республиканский экологический конкурс детского и юношеского творчества \"На планете голубой\"","декабрь, 2024","ЦДТ Вахитовского района","ГАОУ \"РОЦ\" МОиН РТ","Лауреат 3 степени",1]
["художественная","Майков Мирон Евгеньевич","2015","Рукоделие","Хабибуллина Ю.А.","Республиканский экологический конкурс детского и юношеского творчества \"На планете голубой\"","декабрь, 2024","ЦДТ Вахитовского района","ГАОУ \"РОЦ\" МОиН РТ","Дипломант 3 степени",1]
["художественная","Логинова Софья Андреевна","2015","Рукоделие","Хабибуллина Ю.А.","Республиканский экологический конкурс детского и юношеского творчества \"На планете голубой\"","декабрь, 2024","ЦДТ Вахитовского района","ГАОУ \"РОЦ\" МОиН РТ","Лауреат 3 степени",1]
["художественная","Лямова Яна Дмитриевна","2015","Рукоделие","Хабибуллина Ю.А.","Республиканский экологический конкурс детского и юношеского творчества \"На планете голубой\"","декабрь, 2024","ЦДТ Вахитовского района","ГАОУ \"РОЦ\" МОиН РТ","Дипломант 2 степени",1]
["художественная","Камалетдинов Аскар Русланович","2017","Созвездие","Сергеева М.В."," Республиканский конкурс изобразительного и декоративно-прикладного творчества \"Чудеса из ларца\"","апрель, 2025","ЦДТ Вахитовского района","ГАОУ \"РОЦ\" МОиН РТ","Лауреат 1 степени",1]
["художественная","Тихонов Дмитрий Александрович","2016","Созвездие","Сергеева М.В."," Республиканский конкурс изобразительного и декоративно-прикладного творчества \"Чудеса из ларца\"","апрель, 2025","ЦДТ Вахитовского района","ГАОУ \"РОЦ\" МОиН РТ","Лауреат 2 степени",1]
["художественная","Кузнецова Виктория Дмитриевна","2014","Созвездие","Сергеева М.В."," Республиканский конкурс изобразительного и декоративно-прикладного творчества \"Чудеса из ларца\"","апрель, 2025","ЦДТ Вахитовского района","ГАОУ \"РОЦ\" МОиН РТ","Дипломант 3 степени",1]
["художественная","Бунтина Виктория Артемовна","2014","Созвездие","Сергеева М.В."," Республиканский конкурс изобразительного и декоративно-прикладного творчества \"Чудеса из ларца\"","апрель, 2025","ЦДТ Вахитовского района","ГАОУ \"РОЦ\" МОиН РТ","Лауреат 1 степени",1]
["художественная","Умарова Рушанна Равшановна","2010","Созвездие","Сергеева М.В."," Республиканский конкурс изобразительного и декоративно-прикладного творчества \"Чудеса из ларца\"","апрель, 2025","ЦДТ Вахитовского района","ГАОУ \"РОЦ\" МОиН РТ","Лауреат 1 степени",1]
["художественная","Косых Родион Евгеньевич","2015","Созвездие","Сергеева М.В."," Республиканский конкурс изобразительного и декоративно-прикладного творчества \"Чудеса из ларца\"","апрель, 2025","ЦДТ Вахитовского района","ГАОУ \"РОЦ\" МОиН РТ","Лауреат 2 степени",1]
["художественная","Хуснуллин Марсель Булатович","2014","Созвездие","Сергеева М.В."," Республиканский конкурс изобразительного и декоративно-прикладного творчества \"Чудеса из ларца\"","апрель, 2025","ЦДТ Вахитовского района","ГАОУ \"РОЦ\" МОиН РТ","Лауреат 2 степени",1]
["художественная","Хусаенова Камиля Рустемовна","2015","Палитра","Антипова И.С."," Республиканский конкурс изобразительного и декоративно-прикладного творчества \"Чудеса из ларца\"","апрель, 2025","ЦДТ Вахитовского района","ГАОУ \"РОЦ\" МОиН РТ","Лауреат 2 степени",1]
["художественная","Николаев Радмир Юрьевич","2016","Палитра","Антипова И.С."," Республиканский конкурс изобразительного и декоративно-прикладного творчества \"Чудеса из ларца\"","апрель, 2025","ЦДТ Вахитовского района","ГАОУ \"РОЦ\" МОиН РТ","Лауреат 2 степени",1]
["художественная","Нагимова Камилла Венеровна","2016","Палитра","Антипова И.С."," Республиканский конкурс изобразительного и декоративно-прикладного творчества \"Чудеса из ларца\"","апрель, 2025","ЦДТ Вахитовского района","ГАОУ \"РОЦ\" МОиН РТ","Лауреат 3 степени",1]
["художественная","Сиразутдинова Карина Ильдаровна","2016","Палитра","Антипова И.С."," Республиканский конкурс изобразительного и декоративно-прикладного творчества \"Чудеса из ларца\"","апрель, 2025","ЦДТ Вахитовского района","ГАОУ \"РОЦ\" МОиН РТ","Дипломант 1 степени",1]
["художественная","Хабибрахманов Эмиль Алмазович","2015","Юный дизайнер","Зеленцов Д.А."," Республиканский конкурс изобразительного и декоративно-прикладного творчества \"Чудеса из ларца\"","апрель, 2025","ЦДТ Вахитовского района","ГАОУ \"РОЦ\" МОиН РТ","Лауреат 1 степени",1]
["художественная","Уйбекова Диляра Дамировна","2014","Юный дизайнер","Зеленцов Д.А."," Республиканский конкурс изобразительного и декоративно-прикладного творчества \"Чудеса из ларца\"","апрель, 2025","ЦДТ Вахитовского района","ГАОУ \"РОЦ\" МОиН РТ","Дипломант 3 степени",1]
["художественная","Панкратова Злата Романовна","2013","Юный дизайнер","Зеленцов Д.А."," Республиканский конкурс изобразительного и декоративно-прикладного творчества \"Чудеса из ларца\"","апрель, 2025","ЦДТ Вахитовского района","ГАОУ \"РОЦ\" МОиН РТ","Лауреат 3 степени",1]
["художественная","Хисматуллина Залина Айратовна","2013","Юный дизайнер","Зеленцов Д.А."," Республиканский конкурс изобразительного и декоративно-прикладного творчества \"Чудеса из ларца\"","апрель, 2025","ЦДТ Вахитовского района","ГАОУ \"РОЦ\" МОиН РТ","Дипломант 3 степени",1]
["художественная","Исмагилов Камиль Айдарович","2013","Юный дизайнер","Зеленцов Д.А."," Республиканский конкурс изобразительного и декоративно-прикладного творчества \"Чудеса из ларца\"","апрель, 2025","ЦДТ Вахитовского района","ГАОУ \"РОЦ\" МОиН РТ","Дипломант 3 степени",1]
["художественная","Уйбекова Диляра Дамировна","2014","Юный дизайнер","Зеленцов Д.А."," Республиканский конкурс изобразительного и декоративно-прикладного творчества \"Чудеса из ларца\"","апрель, 2025","ЦДТ Вахитовского района","ГАОУ \"РОЦ\" МОиН РТ","Дипломант 3 степени",1]
["художественная","Усманов Хасан-Али Ниязович","2014","Юный дизайнер","Зеленцов Д.А."," Республиканский конкурс изобразительного и декоративно-прикладного творчества \"Чудеса из ларца\"","апрель, 2025","ЦДТ Вахитовского района","ГАОУ \"РОЦ\" МОиН РТ","Дипломант 3 степени",1]
["художественная","Хисматуллина Залина Айратовна","2013","Юный дизайнер","Зеленцов Д.А."," Республиканский конкурс изобразительного и декоративно-прикладного творчества \"Чудеса из ларца\"","апрель, 2025","ЦДТ Вахитовского района","ГАОУ \"РОЦ\" МОиН РТ","Лауреат 3 степени",1]
["художественная","Бадретдинова Самира Тимуровна","2010","Юный дизайнер","Зеленцов Д.А."," Республиканский конкурс изобразительного и декоративно-прикладного творчества \"Чудеса из ларца\"","апрель, 2025","ЦДТ Вахитовского района","ГАОУ \"РОЦ\" МОиН РТ","Лауреат 3 степени",1]
["художественная","Панкратова Злата Романовна","2013","Юный дизайнер","Зеленцов Д.А."," Республиканский конкурс изобразительного и декоративно-прикладного творчества \"Чудеса из ларца\"","апрель, 2025","ЦДТ Вахитовского района","ГАОУ \"РОЦ\" МОиН РТ","Лауреат 3 степени",1]
["художественная","Рахматуллин Малик Маратович","2011","Юный дизайнер","Зеленцов Д.А."," Республиканский конкурс изобразительного и декоративно-прикладного творчества \"Чудеса из ларца\"","апрель, 2025","ЦДТ Вахитовского района","ГАОУ \"РОЦ\" МОиН РТ","Дипломант 3 степени",1]
["художественная","Хабибрахманов Эмиль Алмазович","2015","Юный дизайнер","Зеленцов Д.А."," Республиканский конкурс изобразительного и декоративно-прикладного творчества \"Чудеса из ларца\"","апрель, 2025","ЦДТ Вахитовского района","ГАОУ \"РОЦ\" МОиН РТ","Лауреат 1 степени",1]
["художественная","Хисматуллина Залина Айратовна","2013","Юный дизайнер","Зеленцов Д.А."," Республиканский конкурс изобразительного и декоративно-прикладного творчества \"Чудеса из ларца\"","апрель, 2025","ЦДТ Вахитовского района","ГАОУ \"РОЦ\" МОиН РТ","Лауреат 2 степен в номинации Сюжетная картина",1]
["художественная","Зиятдинова Самира Ранифовна","2011","Юный дизайнер","Зеленцов Д.А."," Республиканский конкурс изобразительного и декоративно-прикладного творчества \"Чудеса из ларца\"","апрель, 2025","ЦДТ Вахитовского района","ГАОУ \"РОЦ\" МОиН РТ","Лауреат 3 степени",1]
["художественная","Уйбекова Диляра Дамировна","2014","Юный дизайнер","Зеленцов Д.А."," Республиканский конкурс изобразительного и декоративно-прикладного творчества \"Чудеса из ларца\"","апрель, 2025","ЦДТ Вахитовского района","ГАОУ \"РОЦ\" МОиН РТ","Дипломант 1 степени",1]
["художественная","Гирфанова Амина Рустамовна","2014","Юный дизайнер","Зеленцов Д.А."," Республиканский конкурс изобразительного и декоративно-прикладного творчества \"Чудеса из ларца\"","апрель, 2025","ЦДТ Вахитовского района","ГАОУ \"РОЦ\" МОиН РТ","Дипломант 2 степени",1]
["художественная","Сугаюнова Амина Гаделевна","2015","Юный дизайнер","Зеленцов Д.А."," Республиканский конкурс изобразительного и декоративно-прикладного творчества \"Чудеса из ларца\"","апрель, 2025","ЦДТ Вахитовского района","ГАОУ \"РОЦ\" МОиН РТ","Дипломант 3 степени",1]
["художественная","Хабибрахманов Эмиль Алмазович","2015","Юный дизайнер","Зеленцов Д.А."," Республиканский конкурс изобразительного и декоративно-прикладного творчества \"Чудеса из ларца\"","апрель, 2025","ЦДТ Вахитовского района","ГАОУ \"РОЦ\" МОиН РТ","Дипломант 2 степени",1]
["художественная","Сафина Ралина Раилевна","2012","Юный дизайнер","Зеленцов Д.А."," Республиканский конкурс изобразительного и декоративно-прикладного творчества \"Чудеса из ларца\"","апрель, 2025","ЦДТ Вахитовского района","ГАОУ \"РОЦ\" МОиН РТ","Лауреат 3 степени",1]
["художественная","Сугаюнова Амина Гаделевна","2015","Юный дизайнер","Зеленцов Д.А."," Республиканский конкурс изобразительного и декоративно-прикладного творчества \"Чудеса из ларца\"","апрель, 2025","ЦДТ Вахитовского района","ГАОУ \"РОЦ\" МОиН РТ","Лауреат 3 степени",1]
["художественная","Уйбекова Диляра Дамировна","2014","Юный дизайнер","Зеленцов Д.А."," Республиканский конкурс изобразительного и декоративно-прикладного творчества \"Чудеса из ларца\"","апрель, 2025","ЦДТ Вахитовского района","ГАОУ \"РОЦ\" МОиН РТ","Дипломант 2 степени",1]
["художественная","Хазмутдинов Билал Тагирович","2014","Юный дизайнер","Зеленцов Д.А."," Республиканский конкурс изобразительного и декоративно-прикладного творчества \"Чудеса из ларца\"","апрель, 2025","ЦДТ Вахитовского района","ГАОУ \"РОЦ\" МОиН РТ","Дипломант 3 степени",1]
["художественная","Наумова Сафина Эдуардовна","2011","Юный дизайнер","Зеленцов Д.А."," Республиканский конкурс изобразительного и декоративно-прикладного творчества \"Чудеса из ларца\"","апрель, 2025","ЦДТ Вахитовского района","ГАОУ \"РОЦ\" МОиН РТ","Дипломант 3 степени",1]
["художественная","Рахматуллин Малик Маратович","2011","Юный дизайнер","Зеленцов Д.А."," Республиканский конкурс изобразительного и декоративно-прикладного творчества \"Чудеса из ларца\"","апрель, 2025","ЦДТ Вахитовского района","ГАОУ \"РОЦ\" МОиН РТ","Дипломант 3 степени",1]
["художественная","Аглиуллина Эмилия Маратовна","2015","Озорные краски","Гиздатуллина К.М."," Республиканский конкурс изобразительного и декоративно-прикладного творчества \"Чудеса из ларца\"","апрель, 2025","ЦДТ Вахитовского района","ГАОУ \"РОЦ\" МОиН РТ","Лауреат 2 степени",1]
["художественная","Камалова Капитолина Аликовна","2015","Озорные краски","Гиздатуллина К.М."," Республиканский конкурс изобразительного и декоративно-прикладного творчества \"Чудеса из ларца\"","апрель, 2025","ЦДТ Вахитовского района","ГАОУ \"РОЦ\" МОиН РТ","Лауреат 1 степени",1]
["художественная","Даминова Азалия Рустемовна","2014","Озорные краски","Гиздатуллина К.М."," Республиканский конкурс изобразительного и декоративно-прикладного творчества \"Чудеса из ларца\"","апрель, 2025","ЦДТ Вахитовского района","ГАОУ \"РОЦ\" МОиН РТ","Дипломант 2 степени",1]
["художественная","Тимербаева Марьям Радиковна","2015","Озорные краски","Гиздатуллина К.М."," Республиканский конкурс изобразительного и декоративно-прикладного творчества \"Чудеса из ларца\"","апрель, 2025","ЦДТ Вахитовского района","ГАОУ \"РОЦ\" МОиН РТ","Лауреат 2 степени",1]
["художественная","Гилазетдинова Раиля Ильнуровна","2014","Озорные краски","Гиздатуллина К.М."," Республиканский конкурс изобразительного и декоративно-прикладного творчества \"Чудеса из ларца\"","апрель, 2025","ЦДТ Вахитовского района","ГАОУ \"РОЦ\" МОиН РТ","Дипломант 2 степени",1]
["художественная","Мочалова Аделина Рустамовна","2015","Завиток","Егорова Е.Е."," Республиканский конкурс изобразительного и декоративно-прикладного творчества \"Чудеса из ларца\"","апрель, 2025","ЦДТ Вахитовского района","ГАОУ \"РОЦ\" МОиН РТ","Лауреат 2 степени",1]
["художественная","Насыбуллова Лейла Рамилевна","2016","Завиток","Егорова Е.Е."," Республиканский конкурс изобразительного и декоративно-прикладного творчества \"Чудеса из ларца\"","апрель, 2025","ЦДТ Вахитовского района","ГАОУ \"РОЦ\" МОиН РТ","Дипломант 1 степени",1]
["художественная","Касимова Милана Эмилевна","2013","Завиток","Егорова Е.Е."," Республиканский конкурс изобразительного и декоративно-прикладного творчества \"Чудеса из ларца\"","апрель, 2025","ЦДТ Вахитовского района","ГАОУ \"РОЦ\" МОиН РТ","Лауреат 2 степени",1]
["художественная","Ковалева Ангелина Юрьевна","2011","Завиток","Егорова Е.Е."," Республиканский конкурс изобразительного и декоративно-прикладного творчества \"Чудеса из ларца\"","апрель, 2025","ЦДТ Вахитовского района","ГАОУ \"РОЦ\" МОиН РТ","Лауреат 2 степени",1]
["художественная","Давидова Зилия Фанисовна","2012","Завиток","Егорова Е.Е."," Республиканский конкурс изобразительного и декоративно-прикладного творчества \"Чудеса из ларца\"","апрель, 2025","ЦДТ Вахитовского района","ГАОУ \"РОЦ\" МОиН РТ","Дипломант 1 степени",1]
["художественная","Касимова Милана Эмилевна","2013","Завиток","Егорова Е.Е."," Республиканский конкурс изобразительного и декоративно-прикладного творчества \"Чудеса из ларца\"","апрель, 2025","ЦДТ Вахитовского района","ГАОУ \"РОЦ\" МОиН РТ","Дипломант 2 степени",1]
["художественная","Садыков Рафаэль Маратович","2015","Рукоделие","Хабибуллина Ю.А."," Республиканский конкурс изобразительного и декоративно-прикладного творчества \"Чудеса из ларца\"","апрель, 2025","ЦДТ Вахитовского района","ГАОУ \"РОЦ\" МОиН РТ","Лауреат 1 степени",1]
["художественная","Ларина Доминика Александровна","2015","Рукоделие","Хабибуллина Ю.А."," Республиканский конкурс изобразительного и декоративно-прикладного творчества \"Чудеса из ларца\"","апрель, 2025","ЦДТ Вахитовского района","ГАОУ \"РОЦ\" МОиН РТ","Дипломант 3 степени",1]
["художественная","Галиакберова Ева Артуровна","2015","Рукоделие","Хабибуллина Ю.А."," Республиканский конкурс изобразительного и декоративно-прикладного творчества \"Чудеса из ларца\"","апрель, 2025","ЦДТ Вахитовского района","ГАОУ \"РОЦ\" МОиН РТ","Дипломант 2 степени",1]
["художественная","Егорова Ульяна Алексеевна","2015","Рукоделие","Хабибуллина Ю.А."," Республиканский конкурс изобразительного и декоративно-прикладного творчества \"Чудеса из ларца\"","апрель, 2025","ЦДТ Вахитовского района","ГАОУ \"РОЦ\" МОиН РТ","Лауреат 3 степени",1]
["художественная","Тимофеева Азалия Игоревна","2016","Радуга творчества","Быстрова Л.М."," Республиканский конкурс изобразительного и декоративно-прикладного творчества \"Чудеса из ларца\"","апрель, 2025","ЦДТ Вахитовского района","ГАОУ \"РОЦ\" МОиН РТ","Лауреат 1 степени",1]
["художественная","Каримова Диля Радиковна","2013","Мастерица","Ионова Е.В.","VI республиканский конкурс изобразительного и декоративно-прикладного творчества \"Чудеса из ларца\"","март, 2024","ЦДТ Вахитовского района","ГАОУ \"РОЦ\" МОиН РТ","Лауреат 1 степени",1]
["художественная","Хайруллина Ильвина Альбертовна","2013","Мастерица","Ионова Е.В.","VI республиканский конкурс изобразительного и декоративно-прикладного творчества \"Чудеса из ларца\"","март, 2024","ЦДТ Вахитовского района","ГАОУ \"РОЦ\" МОиН РТ","Лауреат 2 степени",1]
["художественная","Яруллин Алан Ленарович","2015","Палитра","Антипова И.С."," Республиканский конкурс изобразительного и декоративно-прикладного творчества \"Чудеса из ларца\"","апрель, 2025","ЦДТ Вахитовского района","ГАОУ \"РОЦ\" МОиН РТ","Лауреат 1 степени",1]
["художественная","Бадретдинова Самира Тимуровна","2010","Юный дизайнер","Зеленцов Д.А.","Республиканский фестиваль-конкурс \"Браво-2025. Одна на всех Великая победа\"","март, 2025","ЦДТ Вахитовского района","ГАОУ \"РОЦ\" МОиН РТ","Дипломант 1 степени",1]
["художественная","Панкратова Злата Романовна","2013","Юный дизайнер","Зеленцов Д.А.","Республиканский фестиваль-конкурс \"Браво-2025. Одна на всех Великая победа\"","март, 2025","ЦДТ Вахитовского района","ГАОУ \"РОЦ\" МОиН РТ","Дипломант 1 степени",1]
["художественная","Рахматуллин Малик Маратович","2011","Юный дизайнер","Зеленцов Д.А.","Республиканский фестиваль-конкурс \"Браво-2025. Одна на всех Великая победа\"","март, 2025","ЦДТ Вахитовского района","ГАОУ \"РОЦ\" МОиН РТ","Лауреат 3 степени",1]
["художественная","Сугаюнова Амина Гаделевна","2015","Юный дизайнер","Зеленцов Д.А.","Республиканский фестиваль-конкурс \"Браво-2025. Одна на всех Великая победа\"","март, 2025","ЦДТ Вахитовского района","ГАОУ \"РОЦ\" МОиН РТ","Лауреат 3 степени",1]
["художественная","Уйбекова Диляра Дамировна","2014","Юный дизайнер","Зеленцов Д.А.","Республиканский фестиваль-конкурс \"Браво-2025. Одна на всех Великая победа\"","март, 2025","ЦДТ Вахитовского района","ГАОУ \"РОЦ\" МОиН РТ","Дипломант 1 степени",1]
["художественная","Усманов Хасан-Али Ниязович","2014","Юный дизайнер","Зеленцов Д.А.","Республиканский фестиваль-конкурс \"Браво-2025. Одна на всех Великая победа\"","март, 2025","ЦДТ Вахитовского района","ГАОУ \"РОЦ\" МОиН РТ","Лауреат 2 степени",1]
["художественная","Хабибрахманов Эмиль Алмазович","2015","Юный дизайнер","Зеленцов Д.А.","Республиканский фестиваль-конкурс \"Браво-2025. Одна на всех Великая победа\"","март, 2025","ЦДТ Вахитовского района","ГАОУ \"РОЦ\" МОиН РТ","Дипломант 1 степени",1]
["художественная","Карасева Елизавета Павловна","2012","Радуга творчества","Быстрова Л.М.","Республиканский фестиваль-конкурс \"Браво-2025. Одна на всех Великая победа\"","март, 2025","ЦДТ Вахитовского района","ГАОУ \"РОЦ\" МОиН РТ","Лауреат 1 степени",1]
["художественная","Умарова Рушанна Равшановна","2010","Созвездие","Сергеева М.В.","Республиканский фестиваль-конкурс \"Браво-2025. Одна на всех Великая победа\"","март, 2025","ЦДТ Вахитовского района","ГАОУ \"РОЦ\" МОиН РТ","Лауреат 2 степени",1]
["художественная","Сиразутдинова Карина Ильдаровна","2016","Палитра","Антипова И.С.","Республиканский фестиваль-конкурс \"Браво-2025. Одна на всех Великая победа\"","март, 2025","ЦДТ Вахитовского района","ГАОУ \"РОЦ\" МОиН РТ","Лауреат 3 степени",1]
["художественная","Майков Мирон Евгеньевич","2015","Рукоделие","Хабибуллина Ю.А.","Республиканский фестиваль-конкурс \"Браво-2025. Одна на всех Великая победа\"","март, 2025","ЦДТ Вахитовского района","ГАОУ \"РОЦ\" МОиН РТ","Лауреат 3 степени",1]
["художественная","Каримова Диля Радиковна","2013","Мастерица","Ионова Е.В.","Республиканский фестиваль-конкурс \"Браво-2025. Одна на всех Великая победа\"","март, 2025","ЦДТ Вахитовского района","ГАОУ \"РОЦ\" МОиН РТ","Лауреат 2 степени",1]
["художественная","Мийзаева Сумайя Шайлообековна","2013","Мастерица","Ионова Е.В.","Республиканский фестиваль-конкурс \"Браво-2025. Одна на всех Великая победа\"","март, 2025","ЦДТ Вахитовского района","ГАОУ \"РОЦ\" МОиН РТ","Лауреат 2 степени",1]
["художественная","Исмагилов Камиль Айдарович","2013","Юный дизайнер","Зеленцов Д.А.","Республиканский фестиваль-конкурс \"Браво-2025. Одна на всех Великая победа\"","март, 2025","ЦДТ Вахитовского района","ГАОУ \"РОЦ\" МОиН РТ","Дипломант 1 степени",1]
["художественная","Санталов Михаил","2012","Вокальное искусство","Сафина А.И.","Республиканский заочный фестиваль детского творчества детей с ограниченными возможностями здоровья \"Весенняя капель - 2025\"","18.04.2025","ЦДТ","ГАОУ \"РОЦ\"","лауреат 2 степени",1]
["художественная","Суханов Максим","08.12.2015","Адымнар","Суханова М.В.","Республиканский конкурс изобразительного и декоративно-прикладного творчества \"Чудеса из ларца\"","17.04.2025","ЦДТ","ГАОУ \"РОЦ\"","дипломант 1 степени",1]
["художественная","Суханов Максим","08.12.2015","Адымнар","Суханова М.В.","Республиканский конкурс изобразительного и декоративно-прикладного творчества \"Чудеса из ларца\"","17.04.2025","ЦДТ","ГАОУ \"РОЦ\"","дипломант 1 степени",1]
["художественная","Суханова Ксения","09.02.2011","шк 49","Суханова М.В.","Республиканский конкурс изобразительного и декоративно-прикладного творчества \"Чудеса из ларца\"","17.04.2025","ЦДТ","ГАОУ \"РОЦ\"","1 место",1]
["художественная","Суханова Ксения","09.02.2011","шк 49","Суханова М.В.","Республиканский конкурс изобразительного и декоративно-прикладного творчества \"Чудеса из ларца\"","17.04.2025","ЦДТ","ГАОУ \"РОЦ\"","2 место",1]
["художественная","Суханова Ксения","09.02.2011","шк 49","Суханова М.В.","Республиканский конкурс изобразительного и декоративно-прикладного творчества \"Чудеса из ларца\"","17.04.2025","ЦДТ","ГАОУ \"РОЦ\"","1 место",1]
["художественная","Абдуразакова Мехрона","2010","шк 51","Фоменко Л.М.","Республиканский конкурс семейного творчества \"Творчество без границ\"","май, 2025","РЦВР","РЦВР","1 место",1]
["художественная","Абубекярова Азалия",2011,"лиц 116","Фоменко Л.М.","Республиканский конкурс семейного творчества \"Творчество без границ\"","май, 2025","РЦВР","РЦВР","2 место",1]
["художественная","Архиреева Олеся","2013","шк 14","Фоменко Л.М.","Республиканский конкурс семейного творчества \"Творчество без границ\"","май, 2025","РЦВР","РЦВР","2 место",1]
["художественная","Григорчук Глеб","2010","ЦДТ","Фоменко Л.М.","Республиканский конкурс семейного творчества \"Творчество без границ\"","май, 2025","РЦВР","РЦВР","1 место",1]
["художественная","Григорчук Егор","2010","ЦДТ","Фоменко Л.М.","Республиканский конкурс семейного творчества \"Творчество без границ\"","май, 2025","РЦВР","РЦВР","1 место",1]
["художественная","Зарипова Регина","2013","шк 13","Фоменко Л.М.","Республиканский конкурс семейного творчества \"Творчество без границ\"","май, 2025","РЦВР","РЦВР","1 место",1]
["художественная","Изместьева Милана","2010","шк 51","Фоменко Л.М.","Республиканский конкурс семейного творчества \"Творчество без границ\"","май, 2025","РЦВР","РЦВР","2 место",1]
["художественная","Калита Диана","2012","шк 51","Фоменко Л.М.","Республиканский конкурс семейного творчества \"Творчество без границ\"","май, 2025","РЦВР","РЦВР","1 место",1]
["художественная","Касимова Диляра","2012","шк 13","Фоменко Л.М.","Республиканский конкурс семейного творчества \"Творчество без границ\"","май, 2025","РЦВР","РЦВР","1 место",1]
["художественная","Лаврентьев Ярослав","2012","шк 14","Фоменко Л.М.","Республиканский конкурс семейного творчества \"Творчество без границ\"","май, 2025","РЦВР","РЦВР","3 место",1]
["художественная","Ларина Марианна","2010","шк 51","Фоменко Л.М.","Республиканский конкурс семейного творчества \"Творчество без границ\"","май, 2025","РЦВР","РЦВР","3 место",1]
["художественная","Махнина София","2010","шк 13","Фоменко Л.М.","Республиканский конкурс семейного творчества \"Творчество без границ\"","май, 2025","РЦВР","РЦВР","1 место",1]
["художественная","Моисеева Анна","2010","шк 51","Фоменко Л.М.","Республиканский конкурс семейного творчества \"Творчество без границ\"","май, 2025","РЦВР","РЦВР","2 место",1]
["художественная","Петрова Ксения","2010","шк 51","Фоменко Л.М.","Республиканский конкурс семейного творчества \"Творчество без границ\"","май, 2025","РЦВР","РЦВР","2 место",1]
["художественная","Сморкалова Кира","2010","лиц 116","Фоменко Л.М.","Республиканский конкурс семейного творчества \"Творчество без границ\"","май, 2025","РЦВР","РЦВР","2 место",1]
["художественная","Суханов Максим","2015","Адымнар","Фоменко Л.М.","Республиканский конкурс семейного творчества \"Творчество без границ\"","май, 2025","РЦВР","РЦВР","1 место",1]
["художественная","Суханова Ксения","2011","шк 49","Фоменко Л.М.","Республиканский конкурс семейного творчества \"Творчество без границ\"","май, 2025","РЦВР","РЦВР","2 место",1]
["художественная","Суханова Ксения","2011","шк 49","Фоменко Л.М.","Республиканский конкурс семейного творчества \"Творчество без границ\"","май, 2025","РЦВР","РЦВР","2 место",1]
["художественная","Суханова Ксения","2011","шк 49","Фоменко Л.М.","Республиканский конкурс семейного творчества \"Творчество без границ\"","май, 2025","РЦВР","РЦВР","3 место",1]
["художественная","Трифонова Алисия","2008","лиц 5","Фоменко Л.М.","Республиканский конкурс семейного творчества \"Творчество без границ\"","май, 2025","РЦВР","РЦВР","1 место",1]
["художественная","Трифонова Алисия","2008","лиц 5","Фоменко Л.М.","Республиканский конкурс семейного творчества \"Творчество без границ\"","май, 2025","РЦВР","РЦВР","1 место",1]
["художественная","Трифонова Ариана","2008","лиц 5","Фоменко Л.М.","Республиканский конкурс семейного творчества \"Творчество без границ\"","май, 2025","РЦВР","РЦВР","1 место",1]
["художественная","Трифонова Ариана","2008","лиц 5","Фоменко Л.М.","Республиканский конкурс семейного творчества \"Творчество без границ\"","май, 2025","РЦВР","РЦВР","1 место",1]
["художественная","Шакирова Самира","2013","шк 13","Фоменко Л.М.","Республиканский конкурс семейного творчества \"Творчество без границ\"","май, 2025","РЦВР","РЦВР","1 место",1]
["художественная","Шмельцер Кира","2010","шк 51","Фоменко Л.М.","Республиканский конкурс семейного творчества \"Творчество без границ\"","май, 2025","РЦВР","РЦВР","2 место",1]
["художественная","Сосновская Анастасия","2012","шк 14","Фоменко Л.М.","Республиканский конкурс семейного творчества \"Творчество без границ\"","май, 2025","РЦВР","РЦВР","2 место",1]
["физкультурно-спортивная","Сафиуллин Ранэль Риназович","2007","Карате","Файзуллин Э.З.","Спортивный разряд \"Кандидат в мастера спорта\" Киокусинкай","сентябрь, 2024","г.Казань","Министерство Спрта РТ","КМС",1]
["физкультурно-спортивная","Сафин Эмиль Гарикович","2007","Карате","Файзуллин Э.З.","Спортивный разряд \"Кандидат в мастера спорта\" Киокусинкай","сентябрь, 2024","г.Казань","Министерство Спрта РТ","КМС",1]
["физкультурно-спортивная","Зарипова Иркя Римовна","2007","Карате","Деваева Е.С.","Республиканские соревнования по киокусинкай, посвященные Дню матери","ноябрь, 2024","г. Бавлы","Федерация Кёкусин-кан  каратэ-до России","1 место",1]
["физкультурно-спортивная","Папулов Марк Александрович","2013","Карате","Деваева Е.С.","Республиканские соревнования по киокусинкай, посвященные Дню матери","ноябрь, 2024","г. Бавлы","Федерация Кёкусин-кан  каратэ-до России","2 место",1]
["физкультурно-спортивная","Исхаков Айзат Ильсурович","2010","Карате","Деваева Е.С.","Республиканские соревнования по киокусинкай, посвященные Дню матери","ноябрь, 2024","г. Бавлы","Федерация Кёкусин-кан  каратэ-до России","3 место",1]
["физкультурно-спортивная","Исхаков Айзат Ильсурович","2010","Карате","Деваева Е.С.","Республиканские соревнования по киокусинкай, посвященные Дню матери","ноябрь, 2024","г. Бавлы","Федерация Кёкусин-кан  каратэ-до России","3 место, кобудо",1]
["физкультурно-спортивная","Галимова Марьям","2014","Спортивные игры","Шигапова Л.А.","Республиканский экологический конкурс детского и юношеского творчества \"На планете голубой\"","ноябрь, 2024","г. Казань","ГАОУ \"Республиканский олимпиадный центр\"","2 место",1]
["физкультурно-спортивная","Варданян Эмилия Гариковна","2011","Карате","Файзуллин Э.З.","Республиканский турнир по кёкусин-кан каратэ","декабрь, 2024","г. Кукмор","Федерация Кёкусин-кан  каратэ-до России","1 место",1]
["физкультурно-спортивная","Афанасьев Макар Евгеньевич ","2013","Карате","Файзуллин Э.З.","Республиканский турнир по кёкусин-кан каратэ","декабрь, 2024","г. Кукмор","Федерация Кёкусин-кан  каратэ-до России","2 место",1]
["физкультурно-спортивная","Евстегнеев Евгений ",null,"Карате","Файзуллин Э.З.","Республиканский турнир по кёкусин-кан каратэ","декабрь, 2024","г. Кукмор","Федерация Кёкусин-кан  каратэ-до России","2 место",1]
["физкультурно-спортивная","Ахметзянов Аяз Алмазович","2012","Карате","Файзуллин Э.З.","Республиканский турнир по кёкусин-кан каратэ","декабрь, 2024","г. Кукмор","Федерация Кёкусин-кан  каратэ-до России","1 место",1]
["физкультурно-спортивная","Лях Ярослав Русланович","2012","Карате","Файзуллин Э.З.","Республиканский турнир по кёкусин-кан каратэ","декабрь, 2024","г. Кукмор","Федерация Кёкусин-кан  каратэ-до России","2 место",1]
["физкультурно-спортивная","Хорошавин Илья Владимирович ","2013","Карате","Файзуллин Э.З.","Республиканский турнир по кёкусин-кан каратэ","декабрь, 2024","г. Кукмор","Федерация Кёкусин-кан  каратэ-до России","2 место",1]
["физкультурно-спортивная","Ойгур Арина","2014","Карате","Файзуллин Э.З.","Республиканский турнир по кёкусин-кан каратэ","декабрь, 2024","г. Кукмор","Федерация Кёкусин-кан  каратэ-до России","3 место",1]
["физкультурно-спортивная","Варданян Арсен Гарикович","2015","Карате","Файзуллин Э.З.","Республиканский турнир по кёкусин-кан каратэ","декабрь, 2024","г. Кукмор","Федерация Кёкусин-кан  каратэ-до России","3 место",1]
["физкультурно-спортивная","Уразбаев Аскар ",null,"Карате","Файзуллин Э.З.","Республиканский турнир по кёкусин-кан каратэ","декабрь, 2024","г. Кукмор","Федерация Кёкусин-кан  каратэ-до России","2 место",1]
["физкультурно-спортивная","Гафиатуллин Нурислам Ильнурович","2011","Карате","Файзуллин Э.З.","Республиканский турнир по кёкусин-кан каратэ","декабрь, 2024","г. Кукмор","Федерация Кёкусин-кан  каратэ-до России","1 место",1]
["физкультурно-спортивная","Азизов Кирилл Камильевич","2010","Карате","Файзуллин Э.З.","Чемпионат и Первенство Республики Татарстан по карате киокусинкай","февраль, 2025","г. Лениногорск","Федерация Кёкусин-кан  каратэ-до России","1 место ката-группа",1]
["физкультурно-спортивная","Алмакаев Ринат Вадимович","2014","Карате","Файзуллин Э.З.","Чемпионат и Первенство Республики Татарстан по карате киокусинкай","февраль, 2025","г. Лениногорск","Федерация Кёкусин-кан  каратэ-до России","1 место ката-группа",1]
["физкультурно-спортивная","Афанасьев Степан Евгениевич","2010","Карате","Файзуллин Э.З.","Чемпионат и Первенство Республики Татарстан по карате киокусинкай","февраль, 2025","г. Лениногорск","Федерация Кёкусин-кан  каратэ-до России","2 место кумитэ",1]
["физкультурно-спортивная","Афанасьев Макар Евгениевич","2012","Карате","Файзуллин Э.З.","Чемпионат и Первенство Республики Татарстан по карате киокусинкай","февраль, 2025","г. Лениногорск","Федерация Кёкусин-кан  каратэ-до России","1 место ката-группа",1]
["физкультурно-спортивная","Ахметзянов Аяз Алмазович","2012","Карате","Файзуллин Э.З.","Чемпионат и Первенство Республики Татарстан по карате киокусинкай","февраль, 2025","г. Лениногорск","Федерация Кёкусин-кан  каратэ-до России","3 место ката -группа",1]
["физкультурно-спортивная","Ахметзянов Аяз Алмазович","2012","Карате","Файзуллин Э.З.","Чемпионат и Первенство Республики Татарстан по карате киокусинкай","февраль, 2025","г. Лениногорск","Федерация Кёкусин-кан  каратэ-до России","1 место кумитэ",1]
["физкультурно-спортивная","Бегляров Ариз Мубаризович","2009","Карате","Файзуллин Э.З.","Чемпионат и Первенство Республики Татарстан по карате киокусинкай","февраль, 2025","г. Лениногорск","Федерация Кёкусин-кан  каратэ-до России","1 место кумитэ",1]
["физкультурно-спортивная","Бурганов Айнур Рифхатович","2012","Карате","Файзуллин Э.З.","Чемпионат и Первенство Республики Татарстан по карате киокусинкай","февраль, 2025","г. Лениногорск","Федерация Кёкусин-кан  каратэ-до России","1 место ката -группа",1]
["физкультурно-спортивная","Бурганов Айнур Рифхатович","2012","Карате","Файзуллин Э.З.","Чемпионат и Первенство Республики Татарстан по карате киокусинкай","февраль, 2025","г. Лениногорск","Федерация Кёкусин-кан  каратэ-до России","2 место ката",1]
["физкультурно-спортивная","Варданян Эмилия Гариковна","2011","Карате","Файзуллин Э.З.","Чемпионат и Первенство Республики Татарстан по карате киокусинкай","февраль, 2025","г. Лениногорск","Федерация Кёкусин-кан  каратэ-до России","3 место ката",1]
["физкультурно-спортивная","Варданян Эмилия Гариковна","2011","Карате","Файзуллин Э.З.","Чемпионат и Первенство Республики Татарстан по карате киокусинкай","февраль, 2025","г. Лениногорск","Федерация Кёкусин-кан  каратэ-до России","1 место ката -группа",1]
["физкультурно-спортивная","Варданян Эмилия Гариковна","2011","Карате","Файзуллин Э.З.","Чемпионат и Первенство Республики Татарстан по карате киокусинкай","февраль, 2025","г. Лениногорск","Федерация Кёкусин-кан  каратэ-до России","1 место кумитэ",1]
["физкультурно-спортивная","Евстегнеев Евгений Вячеславович","2011","Карате","Файзуллин Э.З.","Чемпионат и Первенство Республики Татарстан по карате киокусинкай","февраль, 2025","г. Лениногорск","Федерация Кёкусин-кан  каратэ-до России","3 место ката-группа",1]
["физкультурно-спортивная","Евстегнеев Евгений Вячеславович","2011","Карате","Файзуллин Э.З.","Чемпионат и Первенство Республики Татарстан по карате киокусинкай","февраль, 2025","г. Лениногорск","Федерация Кёкусин-кан  каратэ-до России","3 место кумитэ",1]
["физкультурно-спортивная","Крашенинникова Рената Александровна","2007","Карате","Файзуллин Э.З.","Чемпионат и Первенство Республики Татарстан по карате киокусинкай","февраль, 2025","г. Лениногорск","Федерация Кёкусин-кан  каратэ-до России","1 место ката группа",1]
["физкультурно-спортивная","Крашенинникова Рената Александровна","2007","Карате","Файзуллин Э.З.","Чемпионат и Первенство Республики Татарстан по карате киокусинкай","февраль, 2025","г. Лениногорск","Федерация Кёкусин-кан  каратэ-до России","1 место кумитэ",1]
["физкультурно-спортивная","Крашенинникова Рената Александровна","2007","Карате","Файзуллин Э.З.","Чемпионат и Первенство Республики Татарстан по карате киокусинкай","февраль, 2025","г. Лениногорск","Федерация Кёкусин-кан  каратэ-до России","1 место катаэ",1]
["физкультурно-спортивная","Лях Ярослав Русланович","2012","Карате","Файзуллин Э.З.","Чемпионат и Первенство Республики Татарстан по карате киокусинкай","февраль, 2025","г. Лениногорск","Федерация Кёкусин-кан  каратэ-до России","3 место ката",1]
["физкультурно-спортивная","Лях Ярослав Русланович","2012","Карате","Файзуллин Э.З.","Чемпионат и Первенство Республики Татарстан по карате киокусинкай","февраль, 2025","г. Лениногорск","Федерация Кёкусин-кан  каратэ-до России","1 место ката-группа",1]
["физкультурно-спортивная","Мансурова Амина Ринатовна","2008","Карате","Файзуллин Э.З.","Чемпионат и Первенство Республики Татарстан по карате киокусинкай","февраль, 2025","г. Лениногорск","Федерация Кёкусин-кан  каратэ-до России","1 место ката-группа",1]
["физкультурно-спортивная","Мансурова Амина Ринатовна","2008","Карате","Файзуллин Э.З.","Чемпионат и Первенство Республики Татарстан по карате киокусинкай","февраль, 2025","г. Лениногорск","Федерация Кёкусин-кан  каратэ-до России","2 место ката",1]
["физкультурно-спортивная","Немтарева Анастасия Андреевна","2013","Карате","Файзуллин Э.З.","Чемпионат и Первенство Республики Татарстан по карате киокусинкай","февраль, 2025","г. Лениногорск","Федерация Кёкусин-кан  каратэ-до России","3 место кумитэ",1]
["физкультурно-спортивная","Нчена Леон","2014","Карате","Файзуллин Э.З.","Чемпионат и Первенство Республики Татарстан по карате киокусинкай","февраль, 2025","г. Лениногорск","Федерация Кёкусин-кан  каратэ-до России","1 место ката-группа",1]
["физкультурно-спортивная","Нчена Леон","2014","Карате","Файзуллин Э.З.","Чемпионат и Первенство Республики Татарстан по карате киокусинкай","февраль, 2025","г. Лениногорск","Федерация Кёкусин-кан  каратэ-до России","3 место кумитэ",1]
["физкультурно-спортивная","Ойгур Арина","2014","Карате","Файзуллин Э.З.","Чемпионат и Первенство Республики Татарстан по карате киокусинкай","февраль, 2025","г. Лениногорск","Федерация Кёкусин-кан  каратэ-до России","2 место кумитэ",1]
["физкультурно-спортивная","Ойгур Арина","2014","Карате","Файзуллин Э.З.","Чемпионат и Первенство Республики Татарстан по карате киокусинкай","февраль, 2025","г. Лениногорск","Федерация Кёкусин-кан  каратэ-до России","1 место ката-группа",1]
["физкультурно-спортивная","Сафиуллин Ранэль Риназович","2007","Карате","Файзуллин Э.З.","Чемпионат и Первенство Республики Татарстан по карате киокусинкай","февраль, 2025","г. Лениногорск","Федерация Кёкусин-кан  каратэ-до России","2 место ката",1]
["физкультурно-спортивная","Сафиуллин Ранэль Риназович","2007","Карате","Файзуллин Э.З.","Чемпионат и Первенство Республики Татарстан по карате киокусинкай","февраль, 2025","г. Лениногорск","Федерация Кёкусин-кан  каратэ-до России","3 место кумитэ",1]
["физкультурно-спортивная","Хасанова Азалия Рамильевна","2010","Карате","Файзуллин Э.З.","Чемпионат и Первенство Республики Татарстан по карате киокусинкай","февраль, 2025","г. Лениногорск","Федерация Кёкусин-кан  каратэ-до России","1 место ката-группа",1]
["физкультурно-спортивная","Хасанова Азалия Рамильевна","2010","Карате","Файзуллин Э.З.","Чемпионат и Первенство Республики Татарстан по карате киокусинкай","февраль, 2025","г. Лениногорск","Федерация Кёкусин-кан  каратэ-до России","2 место ката",1]
["физкультурно-спортивная","Хасанова Азалия Рамильевна","2010","Карате","Файзуллин Э.З.","Чемпионат и Первенство Республики Татарстан по карате киокусинкай","февраль, 2025","г. Лениногорск","Федерация Кёкусин-кан  каратэ-до России","1 место кумитэ",1]
["физкультурно-спортивная","Хорошавин Илья Владимирович ","2013","Карате","Файзуллин Э.З.","Чемпионат и Первенство Республики Татарстан по карате киокусинкай","февраль, 2025","г. Лениногорск","Федерация Кёкусин-кан  каратэ-до России","1 место кумитэ",1]
["физкультурно-спортивная","Деваев Даниил Евгеньевич","2013","Карате","Деваева Е.С.","Республиканский фестиваль-конкурс \"Браво-2025. Одна на всех Великая Победа, посвященный году 80-летия Победы в Великой Отечественной войне\"","март, 2025","г. Казань","ГАОУ \"Республиканский олимпиадный центр\"","Лауреат 3 степени",1]
["художественная","Деваев Даниил Евгеньевич","2013","Карате","Деваева Е.С.","Ремпубликанский конкурс изобразительного и декоративно-прикладного творчества \"Чудеса из ларца\", Картины-миниатюры","апрель, 2025","г. Казань","ГАОУ \"Республиканский олимпиадный центр\"","Лауреат 3 степени",1]
["художественная","Деваев Даниил Евгеньевич","2013","Карате","Деваева Е.С.","Ремпубликанский конкурс изобразительного и декоративно-прикладного творчества \"Чудеса из ларца\", Сюжетная кар ина","апрель, 2025","г. Казань","ГАОУ \"Республиканский олимпиадный центр\"","Лауреат 2 степени",1]
["художественная","Деваев Даниил Евгеньевич","2013","Карате","Деваева Е.С.","Ремпубликанский конкурс изобразительного и декоративно-прикладного творчества \"Чудеса из ларца\", Книжная миниатюра","апрель, 2025","г. Казань","ГАОУ \"Республиканский олимпиадный центр\"","Дипломант 2 степени",1]
["художественная","Осокина Агата",2016,"Студия спртивно- бального танца \"Фиеста\"","Сафина АлияИльдаровна","Открытый республиканский фестиваль по бальным танцам «Осенний кубок – 2024»","Ноябрь, 2024","Спортшкола № 8 г. Нижнекамск","Творческое объединение танцевальных коллективов «Дэнс-арт» г. Нижнекамск"," 1 места",1]
["художественная","Осокина Агата",2016,"Студия спртивно- бального танца \"Фиеста\"","Сафина АлияИльдаровна","Открытый республиканский фестиваль по бальным танцам «Осенний кубок – 2024»","Ноябрь, 2024","Спортшкола № 8 г. Нижнекамск","Творческое объединение танцевальных коллективов «Дэнс-арт» г. Нижнекамск"," 3 места",1]
["художественная","Осокина Агата",2016,"Студия спртивно- бального танца \"Фиеста\"","Сафина АлияИльдаровна","Открытый республиканский фестиваль по бальным танцам «Осенний кубок – 2024»","Ноябрь, 2024","Спортшкола № 8 г. Нижнекамск","Творческое объединение танцевальных коллективов «Дэнс-арт» г. Нижнекамск","2 места",1]
["художественная","Осокина Агата",2016,"Студия спртивно- бального танца \"Фиеста\"","Сафина АлияИльдаровна","Открытый республиканский фестиваль по бальным танцам «Осенний кубок – 2024»","Ноябрь, 2024","Спортшкола № 8 г. Нижнекамск","Творческое объединение танцевальных коллективов «Дэнс-арт» г. Нижнекамск","6  места",1]
["художественная","Осокина Агата",2016,"Студия спртивно- бального танца \"Фиеста\"","Сафина АлияИльдаровна","Открытый республиканский фестиваль по бальным танцам «Осенний кубок – 2024»","Ноябрь, 2024","Спортшкола № 8 г. Нижнекамск","Творческое объединение танцевальных коллективов «Дэнс-арт» г. Нижнекамск","5 места",1]
["художественная","Исмагилова Зульфия",2010,"Студия спртивно- бального танца \"Фиеста\"","Сафина АлияИльдаровна","Открытый республиканский фестиваль по бальным танцам «Осенний кубок – 2024»","Ноябрь, 2024","Спортшкола № 8 г. Нижнекамск","Творческое объединение танцевальных коллективов «Дэнс-арт» г. Нижнекамск","1  место",1]
["художественная","Замалетдинова Камила",2013,"Студия спртивно- бального танца \"Фиеста\"","Сафина АлияИльдаровна","Открытый республиканский фестиваль по бальным танцам «Осенний кубок – 2024»","Ноябрь, 2024","Спортшкола № 8 г. Нижнекамск","Творческое объединение танцевальных коллективов «Дэнс-арт» г. Нижнекамск","2, места",1]
["художественная","НурдиноваАйгуль",2011,"Студия спртивно- бального танца \"Фиеста\"","Сафина АлияИльдаровна","Открытый республиканский фестиваль по бальным танцам «Метелица – 2025»","Февраль, 2025","ДК г. Лениногорска","МКУ «Управление культуры» ИК МО «ЛМР» РТ, ТСК «Астра» г. Лениногорска","2 места",1]
["художественная","НурдиноваАйгуль",2011,"Студия спртивно- бального танца \"Фиеста\"","Сафина АлияИльдаровна","Открытый республиканский фестиваль по бальным танцам «Метелица – 2025»","Февраль, 2025","ДК г. Лениногорска","МКУ «Управление культуры» ИК МО «ЛМР» РТ, ТСК «Астра» г. Лениногорска"," 1 место",1]
["художественная","ЗамалетдиноваКамила",2013,"Студия спртивно- бального танца \"Фиеста\"","Сафина АлияИльдаровна","Открытый республиканский фестиваль по бальным танцам «Метелица – 2025»","Февраль, 2025","ДК г. Лениногорска","МКУ «Управление культуры» ИК МО «ЛМР» РТ, ТСК «Астра» г. Лениногорска","2  место",1]
["художественная","ЗамалетдиноваКамила",2013,"Студия спртивно- бального танца \"Фиеста\"","Сафина АлияИльдаровна","Открытый республиканский фестиваль по бальным танцам «Метелица – 2025»","Февраль, 2025","ДК г. Лениногорска","МКУ «Управление культуры» ИК МО «ЛМР» РТ, ТСК «Астра» г. Лениногорска","Диплом 3  степени",1]
["художественная","Исмагилова Зульфия",2010,"Студия спртивно- бального танца \"Фиеста\"","Сафина АлияИльдаровна","Открытый республиканский фестиваль по бальным танцам «Метелица – 2025»","Февраль, 2025","ДК г. Лениногорска","МКУ «Управление культуры» ИК МО «ЛМР» РТ, ТСК «Астра» г. Лениногорска","1 место Кубок Латина",1]
["художественная","Исмагилова Зульфия",2010,"Студия спртивно- бального танца \"Фиеста\"","Сафина АлияИльдаровна","Открытый республиканский фестиваль по бальным танцам «Метелица – 2025»","Февраль, 2025","ДК г. Лениногорска","МКУ «Управление культуры» ИК МО «ЛМР» РТ, ТСК «Астра» г. Лениногорска","1 место Кубок Самба",1]
["художественная","Исмагилова Зульфия",2010,"Студия спртивно- бального танца \"Фиеста\"","Сафина АлияИльдаровна","Открытый республиканский фестиваль по бальным танцам «Метелица – 2025»","Февраль, 2025","ДК г. Лениногорска","МКУ «Управление культуры» ИК МО «ЛМР» РТ, ТСК «Астра» г. Лениногорска","1 место Кубок ча-ча-ча",1]
["художественная","Осокина Агата",2016,"Студия спртивно- бального танца \"Фиеста\"","Сафина АлияИльдаровна","Открытый республиканский фестиваль по бальным танцам «Метелица – 2025»","Февраль, 2025","ДК г. Лениногорска","МКУ «Управление культуры» ИК МО «ЛМР» РТ, ТСК «Астра» г. Лениногорска","Участие",1]
["художественная","Осокина Агата",2016,"Студия спртивно- бального танца \"Фиеста\"","Сафина АлияИльдаровна","Открытый республиканский фестиваль по бальным танцам «Метелица – 2025»","Февраль, 2025","ДК г. Лениногорска","МКУ «Управление культуры» ИК МО «ЛМР» РТ, ТСК «Астра» г. Лениногорска"," Диплом 2 степени         3 гм.с.",1]
["художественная","Осокина Агата",2016,"Студия спртивно- бального танца \"Фиеста\"","Сафина АлияИльдаровна","Открытый республиканский фестиваль по бальным танцам «Метелица – 2025»","Февраль, 2025","ДК г. Лениногорска","МКУ «Управление культуры» ИК МО «ЛМР» РТ, ТСК «Астра» г. Лениногорска"," Диплом 2 степени         4 гм.с.",1]
["художественная","Исмагилова Зульфия",2010,"Студия спртивно- бального танца \"Фиеста\"","Сафина АлияИльдаровна","Открытый республиканский фестиваль по бальным танцам «Весенний вальс – 2025»","апрель, 2025","Спортшкола № 8 г. Нижнекамск","Творческое объединение танцевальных коллективов «Дэнс-арт» г. Нижнекамск","1 место, Кубок латина",1]
["художественная","Исмагилова Зульфия",2010,"Студия спртивно- бального танца \"Фиеста\"","Сафина АлияИльдаровна","Открытый республиканский фестиваль по бальным танцам «Весенний вальс – 2025»","апрель, 2025","Спортшкола № 8 г. Нижнекамск","Творческое объединение танцевальных коллективов «Дэнс-арт» г. Нижнекамск","1 место, Кубок сильнейших, 8 танцев",1]
["художественная","Исмагилова Зульфия",2010,"Студия спртивно- бального танца \"Фиеста\"","Сафина АлияИльдаровна","Открытый республиканский фестиваль по бальным танцам «Весенний вальс – 2025»","апрель, 2025","Спортшкола № 8 г. Нижнекамск","Творческое объединение танцевальных коллективов «Дэнс-арт» г. Нижнекамск","1 место, Кубок 6 танцев",1]
["художественная","Исмагилова Зульфия",2010,"Студия спртивно- бального танца \"Фиеста\"","Сафина АлияИльдаровна","Открытый республиканский фестиваль по бальным танцам «Весенний вальс – 2025»","апрель, 2025","Спортшкола № 8 г. Нижнекамск","Творческое объединение танцевальных коллективов «Дэнс-арт» г. Нижнекамск","2 место, Кубок Румба",1]
["художественная","Исмагилова Зульфия",2010,"Студия спртивно- бального танца \"Фиеста\"","Сафина АлияИльдаровна","Открытый республиканский фестиваль по бальным танцам «Весенний вальс – 2025»","апрель, 2025","Спортшкола № 8 г. Нижнекамск","Творческое объединение танцевальных коллективов «Дэнс-арт» г. Нижнекамск","2 место, Кубок сильнейших Латина",1]
["художественная","Исмагилова Зульфия",2010,"Студия спртивно- бального танца \"Фиеста\"","Сафина АлияИльдаровна","Открытый республиканский фестиваль по бальным танцам «Весенний вальс – 2025»","апрель, 2025","Спортшкола № 8 г. Нижнекамск","Творческое объединение танцевальных коллективов «Дэнс-арт» г. Нижнекамск","3 место, Кубок весеннего вальса",1]
["художественная","Санталов Михаил",2013,"Вокальное искусство","Сафина АлияИльдаровна","Республиканский заочный фестиваль детского творчества детей с ограниченными возможностями здоровья «Весенняя капель – 2025»","Апрель, 2025","МБУДО «ЦДТ» Вах. р-на г. Казани","ГАОУ «Республиканский олимпиадный центр, МБУДО «ЦДТ» Вах. р-на г. Казани","Лауреат 2 степени",1]
["художественная","Сафина Камилла Маратовна","2017-09-29","Живое слово","Шайдуллина Р.Х..","Республиканский конкурс изобразительного и декоративно-прикладного творчества «Чудеса из ларца»","17.04. 2025 .","заочно","МО и Н РТ, Республиканский олимпиадный центр","Лауреат 2 степени",1]
["художественная","Сафина Камилла Маратовна","2017-09-29","Живое слово","Шайдуллина Р.Х..","Республиканский конкурс изобразительного и декоративно-прикладного творчества «Чудеса из ларца»","17.04. 2025 .","заочно","МО и Н РТ, Республиканский олимпиадный центр","Лауреат 3 степени",1]
["художественная","Тухбатуллина  Сафина Дамировна","2018-02-26","Живое слово","Шайдуллина Р.Х..","Республиканский конкурс изобразительного и декоративно-прикладного творчества «Чудеса из ларца»","17.04. 2025 .","заочно","МО и Н РТ, Республиканский олимпиадный центр","Дипломант 2 степени",1]
["художественная","Хайруллина Азалия  Рамилевна","2016-07-19","Непоседы","Шайдуллина Р.Х..","Республиканский конкурс изобразительного и декоративно-прикладного творчества «Чудеса из ларца»","17.04. 2025 .","заочно","МО и Н РТ, Республиканский олимпиадный центр","Дипломант 2 степени",1]
["художественная","Хабибуллин Ильзат Ильнарович","2017-02-13","Живое слово","Шайдуллина Р.Х..","Республиканский конкурс изобразительного и декоративно-прикладного творчества «Чудеса из ларца»","17.04. 2025 .","заочно","МО и Н РТ, Республиканский олимпиадный центр","Дипломант 1 степени",1]
["художественная","Минсафина Ясмина Рамилевна","2017-03-13","Живое слово","Шайдуллина Р.Х..","Республиканский конкурс изобразительного и декоративно-прикладного творчества «Чудеса из ларца»","17.04. 2025 .","заочно","МО и Н РТ, Республиканский олимпиадный центр","Дипломант 1 степени",1]
["художественная","Хабибуллин Ильзат Ильнарович","2017-02-13","Живое слово","Шайдуллина Р.Х..","Республиканский конкурс изобразительного и декоративно-прикладного творчества «Чудеса из ларца»","17.04. 2025 .","заочно","МО и Н РТ, Республиканский олимпиадный центр","Дипломант 3 степени",1]
["художественная","Садриева Асель Маратовна","2015-04-28","Непоседы","Минсафина Л.А.","Республиканский конкурс изобразительного и декоративно-прикладного творчества «Чудеса из ларца»","17.04. 2025 .","заочно","МО и Н РТ, Республиканский олимпиадный центр","Лауреат 3 степени",1]
["художественная","Вильданова РаянаАлмазовна","2015-10-28","Непоседы","Минсафина Л.А.","Республиканский конкурс изобразительного и декоративно-прикладного творчества «Чудеса из ларца»","17.04. 2025 .","заочно","МО и Н РТ, Республиканский олимпиадный центр","Дипломант 3 степени",1]
["художественная","Бадретдинова Камилла Робертовна","2015-04-30","Непоседы","Минсафина Л.А.","Республиканский конкурс изобразительного и декоративно-прикладного творчества «Чудеса из ларца»","17.04. 2025 .","заочно","МО и Н РТ, Республиканский олимпиадный центр","Дипломант 3 степени",1]
["художественная","Загидуллина Камила Маратовна","2015-11-26","Непоседы","Минсафина Л.А.","Республиканский конкурс изобразительного и декоративно-прикладного творчества «Чудеса из ларца»","17.04. 2025 .","заочно","МО и Н РТ, Республиканский олимпиадный центр","Лауреат 2 степени",1]
["художественная","Исмагилов Айдар Рустемович","2015-06-06","Непоседы","Минсафина Л.А.","Республиканский конкурс изобразительного и декоративно-прикладного творчества «Чудеса из ларца»","17.04. 2025 .","заочно","МО и Н РТ, Республиканский олимпиадный центр","Лауреат 1 степени",1]
["художественная","Абдеева Алиса Марселевна","2017-02-02","Занимательная экология","Салимуллина А.М.","Республиканский конкурс изобразительного и декоративно-прикладного творчества «Чудеса из ларца»","17.04. 2025 .","заочно","МО и Н РТ, Республиканский олимпиадный центр","Дипломант 2 степени",1]
["художественная","Фатхуддинова Латифа Фаруховна","2017-07-12","Занимательная экология","Салимуллина А.М.","Республиканский конкурс изобразительного и декоративно-прикладного творчества «Чудеса из ларца»","17.04. 2025 .","заочно","МО и Н РТ, Республиканский олимпиадный центр","Лауреат 3 степени",1]
["художественная","Макарова Сафина Руслановна  ","2017-08-04","Занимательная экология","Салимуллина А.М.","Республиканский конкурс изобразительного и декоративно-прикладного творчества «Чудеса из ларца»","17.04. 2025 .","заочно","МО и Н РТ, Республиканский олимпиадный центр","Лауреат 1 степени",1]
["художественная","Алиева Мелек Низамиевна","2017-11-10","Занимательная экология","Салимуллина А.М.","Республиканский конкурс изобразительного и декоративно-прикладного творчества «Чудеса из ларца»","17.04. 2025 .","заочно","МО и Н РТ, Республиканский олимпиадный центр","Дипломант 3 степени",1]
["художественная","Каюмов Ранель Ленарович","2017-02-28","Занимательная экология","Салимуллина А.М.","Республиканский конкурс изобразительного и декоративно-прикладного творчества «Чудеса из ларца»","17.04. 2025 .","заочно","МО и Н РТ, Республиканский олимпиадный центр","Лауреат 1 степени",1]
["художественная","Муфтахова Динара Маратовна","2018-01-08","Занимательная экология","Салимуллина А.М.","Республиканский конкурс изобразительного и декоративно-прикладного творчества «Чудеса из ларца»","17.04. 2025 .","заочно","МО и Н РТ, Республиканский олимпиадный центр","Дипломант 2 степени",1]
["художественная","Генунтегина Виктория Игоревна","2011-06-17"," Театр-студия «Ровесник»","Андреева Мария Юрьевна","XРеспубликанский фестиваль-конкурс «Радужная сцена»","Апрель 2025 г.","ГЭБДЦ","МО и Н РТ, Республиканский олимпиадный центр","Диплом  3 место призер",1]
["художественная","Маслова Веоника Андреевна ",".07.12.2011 "," Театр-студия «Ровесник»","Андреева Мария Юрьевна","XРеспубликанский фестиваль-конкурс «Радужная сцена»","Апрель 2025 г.","ГЭБДЦ","МО и Н РТ, Республиканский олимпиадный центр","Диплом  1 место призер",1]
["художественная","Маслова Веоника Андреевна ",".07.12.2011 "," Театр-студия «Ровесник»","Андреева Мария Юрьевна","XРеспубликанский фестиваль-конкурс «Радужная сцена»","Апрель 2025 г.","ГЭБДЦ","МО и Н РТ, Республиканский олимпиадный центр","Диплом  1 место призер",1]
["художественная","Перова Ксения Андреевна","2014-11-16"," Театр-студия «Ровесник»","Андреева М.Ю.","XI Республиканский фестиваль-конкурс «Радужная сцена»","Апрель 2025 г.","ГЭБДЦ","МО и Н РТ, Республиканский олимпиадный центр","Диплом победителя 3 место",1]
["художественная","Захарова Анастасия Константиновна","2009-11-24"," Театр-студия «Ровесник»","Андреева М.Ю.","XРеспубликанский фестиваль-конкурс «Радужная сцена»","Апрель 2025 г.","ГЭБДЦ","МО и Н РТ, Республиканский олимпиадный центр","Диплом победителя 1 место",1]
["художественная","Захарова Анастасия Константиновна","2009-11-24"," Театр-студия «Ровесник»","Андреева М.Ю.","XРеспубликанский фестиваль-конкурс «Радужная сцена»","Апрель 2025 г.","ГЭБДЦ","МО и Н РТ, Республиканский олимпиадный центр","Диплом победителя 2 место",1]
["художественная","Захарова Анастасия Константиновна","2009-11-24"," Театр-студия «Ровесник»","Андреева М.Ю."," IХ Республиканский фестиваль-конкурс современного эстрадного творчества «Прорыв» в рамках проекта «В ритме жизни!»","Декабрь 2024 г.","заочно"," ГБУДО «Республиканский центр внешкольной работы»","Лауреата 2 степен",1]
["художественная","Перова Ксения Андреевна","2010-06-21"," Театр-студия «Ровесник»","Андреева М.Ю."," IХ Республиканский фестиваль-конкурс современного эстрадного творчества «Прорыв» в рамках проекта «В ритме жизни!»","Декабрь 2024 г.","заочно"," ГБУДО «Республиканский центр внешкольной работы»","Лауреата 3 степен",1]
["художественная","Маслова Веоника Андреевна ",".07.12.2011 "," Театр-студия «Ровесник»","Андреева М.Ю.","IХ Республиканский фестиваль-конкурс современного эстрадного творчества «Прорыв» в рамках проекта «В ритме жизни!»","Декабрь 2024 г.","заочно"," ГБУДО «Республиканский центр внешкольной работы»","Лауреата 3 степен",1]
["художественная","Анисимов Мирон Александрови","2014-04-24"," Театр-студия «Ровесник»","Андреева М.Ю."," Республиканский фестиваль-конкурс «Патриоты России!»"," Ноябрь 2024 г."," заочно","ГБУДО «РЦВР,МБУДО «ГДДТ» им. А, Алиша;","Лауреат 1 степени",1]
["художественная","Анисимова Кира Александровн","2010-06-21"," Театр-студия «Ровесник»","Андреева М.Ю."," Республиканский фестиваль-конкурс «Патриоты России!»"," Ноябрь 2024 г."," заочно","ГБУДО «РЦВР,МБУДО «ГДДТ» им. А, Алиша;","Лауреат 1 степени",1]
["художественная","Маслова Веоника Андреевна ",".07.12.2011 "," Театр-студия «Ровесник»","Андреева М.Ю."," Республиканский фестиваль-конкурс «Патриоты России!»"," Ноябрь 2024 г."," заочно","ГБУДО «РЦВР,МБУДО «ГДДТ» им. А, Алиша;","Лауреат 1 степени",1]
["художественная","Перова Ксения Андреевна",null," Театр-студия «Ровесник»","Андреева М.Ю."," Республиканский фестиваль-конкурс «Патриоты России!»"," Ноябрь 2024 г."," заочно","ГБУДО «РЦВР,МБУДО «ГДДТ» им. А, Алиша;","Лауреат 1 степени",1]
["художественная","Захарова Анастасия ","2009-07-27"," Театр-студия «Ровесник»","Андреева М.Ю."," Республиканский фестиваль-конкурс «Патриоты России!»"," Ноябрь 2024 г."," заочно","ГБУДО «РЦВР,МБУДО «ГДДТ» им. А, Алиша;","Диплом 1 степени",1]
["художественная","Бадрутдинова Ясмина Рамисовна","2017-04-27"," Занимательная экология"," Салимуллина А,М."," Фестиваль-конкурс «Браво-2025.Одна на всех Великая Победа»,посвященный году 80-летия Победы в Великой Отечественной войне."," 07.03.2025","МБОУ «ЦДТ» Вахитовского района г.Казани"," ГОУ «Республиканский олимпиадный центр»"," Дипломант 1 степени",1]
["художественная","Муфтахова Динара Маратовна","2018-01-08"," Занимательная экология"," Салимуллина А,М."," Фестиваль-конкурс «Браво-2025.Одна на всех Великая Победа»,посвященный году 80-летия Победы в Великой Отечественной войне.","2025-03-07","МБОУ «ЦДТ» Вахитовского района г.Казани"," ГОУ «Республиканский олимпиадный центр»"," Дипломант 3 степени",1]
["художественная","Макарова Сафина Руслановна","2017-08-04"," Занимательная экология"," Салимуллина А,М."," Фестиваль-конкурс «Браво-2025.Одна на всех Великая Победа»,посвященный году 80-летия Победы в Великой Отечественной войне.","2025-03-07","МБОУ «ЦДТ» Вахитовского района г.Казани"," ГОУ «Республиканский олимпиадный центр»"," Дипломант 1 степени",1]
["социально-гуманитарная","Белякова Мария Сергеевна",2007,"Рукоделие. Терапия творчеством","Шигапова Гузель Равхатовна","Республиканский конкурс изобразительного и декоративно-прикладного творчества \"Чудеса из ларца»","апрель, 2025","МБУДО \"Центр детского творчества\" Вахитовского района г. Казань","ГАОУ «Республиканский Олимпиадный центр» МОиН РТ ","Лауреат  II степени",1]
["социально-гуманитарная","Сафаров Марсель Руделевич",2008,"Рукоделие. Терапия творчеством","Шигапова Гузель Равхатовна","Республиканский конкурс изобразительного и декоративно-прикладного творчества \"Чудеса из ларца»","апрель, 2025","МБУДО \"Центр детского творчества\" Вахитовского района г. Казань","ГАОУ «Республиканский Олимпиадный центр» МОиН РТ ","Лауреат  II степени",1]
["социально-гуманитарная","Григорчук Егор Олегович",2008,"Швейная мастерская","Шигапова Гузель Равхатовна","Республиканский конкурс изобразительного и декоративно-прикладного творчества \"Чудеса из ларца»","апрель, 2025","МБУДО \"Центр детского творчества\" Вахитовского района г. Казань","ГАОУ «Республиканский Олимпиадный центр» МОиН РТ ","Дипломант I  степени",1]
["социально-гуманитарная","Григорчук Глеб Олегович",2008,"Швейная мастерская","Шигапова Гузель Равхатовна","Республиканский конкурс изобразительного и декоративно-прикладного творчества \"Чудеса из ларца»","апрель, 2025","МБУДО \"Центр детского творчества\" Вахитовского района г. Казань","ГАОУ «Республиканский Олимпиадный центр» МОиН РТ ","Дипломант I  степени",1]
["социально-гуманитарная","Биктимиров Динар Эдуардович","2007","Декоративно-прикладное искусство","Корсакова Ирина Валерьевна","Республиканский конкурс изобразительного и декоративно-прикладного творчества \"Чудеса из ларца»","апрель, 2025","МБУДО \"Центр детского творчества\" Вахитовского района г. Казань","ГАОУ «Республиканский Олимпиадный центр» МОиН РТ ","Лауреат  III степени",1]
["социально-гуманитарная","Биктимиров Динар Эдуардович","2007","Декоративно-прикладное искусство","Корсакова Ирина Валерьевна","Республиканский конкурс изобразительного и декоративно-прикладного творчества \"Чудеса из ларца»","апрель, 2025","МБУДО \"Центр детского творчества\" Вахитовского района г. Казань","ГАОУ «Республиканский Олимпиадный центр» МОиН РТ ","Лауреат  III степени",1]
["социально-гуманитарная","Игнатова Полина Андреевна","2013","Декоративно-прикладное искусство","Корсакова Ирина Валерьевна","Республиканский конкурс изобразительного и декоративно-прикладного творчества \"Чудеса из ларца»","апрель, 2025","МБУДО \"Центр детского творчества\" Вахитовского района г. Казань","ГАОУ «Республиканский Олимпиадный центр» МОиН РТ ","Дипломант II  степени",1]
["социально-гуманитарная","Игнатова Полина Андреевна","2013","Декоративно-прикладное искусство","Корсакова Ирина Валерьевна","Республиканский конкурс изобразительного и декоративно-прикладного творчества \"Чудеса из ларца»","апрель, 2025","МБУДО \"Центр детского творчества\" Вахитовского района г. Казань","ГАОУ «Республиканский Олимпиадный центр» МОиН РТ ","Лауреат  III степени",1]
["социально-гуманитарная","Гильмутдинов Айдар Винирович","2007","Декоративно-прикладное искусство","Корсакова Ирина Валерьевна","Республиканский конкурс изобразительного и декоративно-прикладного творчества \"Чудеса из ларца»","апрель, 2025","МБУДО \"Центр детского творчества\" Вахитовского района г. Казань","ГАОУ «Республиканский Олимпиадный центр» МОиН РТ ","Лауреат  III степени",1]
["социально-гуманитарная","Гильмутдинов Айдар Винирович","2007","Декоративно-прикладное искусство","Корсакова Ирина Валерьевна","Республиканский конкурс изобразительного и декоративно-прикладного творчества \"Чудеса из ларца»","апрель, 2025","МБУДО \"Центр детского творчества\" Вахитовского района г. Казань","ГАОУ «Республиканский Олимпиадный центр» МОиН РТ ","Лауреат  II степени",1]
["социально-гуманитарная","Закиров Артур Олегович"," 2009"," В мире знаний и творчества"," Бердникова Марина Григорьевна","Республиканский конкурс изобразительного и декоративно-прикладного творчества \"Чудеса из ларца»","апрель, 2025","МБУДО \"Центр детского творчества\" Вахитовского района г. Казань","ГАОУ «Республиканский Олимпиадный центр» МОиН РТ ","Лауреат  II степени",1]
["социально-гуманитарная","Ираклеев Всеволод Леонидович",2014," В мире знаний и творчества"," Бердникова Марина Григорьевна","Республиканский конкурс изобразительного и декоративно-прикладного творчества \"Чудеса из ларца»","апрель, 2025","МБУДО \"Центр детского творчества\" Вахитовского района г. Казань","ГАОУ «Республиканский Олимпиадный центр» МОиН РТ ","Лауреат  II степени",1]
["социально-гуманитарная","Хасанов Артем Алексеевич",2012," В мире знаний и творчества"," Бердникова Марина Григорьевна","Республиканский конкурс изобразительного и декоративно-прикладного творчества \"Чудеса из ларца»","апрель, 2025","МБУДО \"Центр детского творчества\" Вахитовского района г. Казань","ГАОУ «Республиканский Олимпиадный центр» МОиН РТ ","Лауреат  III степени",1]
["социально-гуманитарная","Жаворонков Владимир Игоревич ",2012," В мире знаний и творчества"," Бердникова Марина Григорьевна","Республиканский конкурс изобразительного и декоративно-прикладного творчества \"Чудеса из ларца»","апрель, 2025","МБУДО \"Центр детского творчества\" Вахитовского района г. Казань","ГАОУ «Республиканский Олимпиадный центр» МОиН РТ ","Дипломант III  степени",1]
["социально-гуманитарная","Чепиков Максим Михайлович",2006," Волшебный мир компьютера"," Бердникова Марина Григорьевна","Республиканский конкурс изобразительного и декоративно-прикладного творчества \"Чудеса из ларца»","апрель, 2025","МБУДО \"Центр детского творчества\" Вахитовского района г. Казань","ГАОУ «Республиканский Олимпиадный центр» МОиН РТ ","Дипломант I  степени",1]
["социально-гуманитарная","Даудов Ризван Рамзанович","2009","Оригами","Шашина Татьяна Борисовна","Республиканский конкурс изобразительного и декоративно-прикладного творчества \"Чудеса из ларца»","апрель, 2025","МБУДО \"Центр детского творчества\" Вахитовского района г. Казань","ГАОУ «Республиканский Олимпиадный центр» МОиН РТ ","Лауреат  I степени",1]
["социально-гуманитарная","Сафин Рамазан Рустемович",2013,"Оригами","Шашина Татьяна Борисовна","Республиканский конкурс изобразительного и декоративно-прикладного творчества \"Чудеса из ларца»","апрель, 2025","МБУДО \"Центр детского творчества\" Вахитовского района г. Казань","ГАОУ «Республиканский Олимпиадный центр» МОиН РТ ","Дипломант II  степени",1]
["социально-гуманитарная","Евграфов Максим Михайлович","2012","Оригами","Шашина Татьяна Борисовна","Республиканский конкурс изобразительного и декоративно-прикладного творчества \"Чудеса из ларца»","апрель, 2025","МБУДО \"Центр детского творчества\" Вахитовского района г. Казань","ГАОУ «Республиканский Олимпиадный центр» МОиН РТ ","Дипломант I  степени",1]
["социально-гуманитарная","Ким Радмир Артурович","2011 ","Декор","Иванова Светлана Викторовна","Республиканский конкурс изобразительного и декоративно-прикладного творчества \"Чудеса из ларца»","апрель, 2025","МБУДО \"Центр детского творчества\" Вахитовского района г. Казань","ГАОУ «Республиканский Олимпиадный центр» МОиН РТ ","Лауреат  I степени",1]
["социально-гуманитарная","Садретдинов Ислам Ринатович",2012,"Декор","Иванова Светлана Викторовна","Республиканский конкурс изобразительного и декоративно-прикладного творчества \"Чудеса из ларца»","апрель, 2025","МБУДО \"Центр детского творчества\" Вахитовского района г. Казань","ГАОУ «Республиканский Олимпиадный центр» МОиН РТ ","Лауреат  I степени",1]
["социально-гуманитарная","Титов Михаил Ильич",2013,"Декор","Иванова Светлана Викторовна","Республиканский конкурс изобразительного и декоративно-прикладного творчества \"Чудеса из ларца»","апрель, 2025","МБУДО \"Центр детского творчества\" Вахитовского района г. Казань","ГАОУ «Республиканский Олимпиадный центр» МОиН РТ ","Лауреат  I степени",1]
["социально-гуманитарная","Жаворонков Владимир Игоревич ",2012," В мире знаний и творчества","Бердникова Марина Григорьевна","Межрегиональный конкурс изобразительного и декоративно-прикладного творчества \"Удивительный мир\" ","декабрь, 2024","МБУ ДО \"Центр внешкольной работы\" Приволжского района г.Казань","ГБУ ДО \"РЦВР\"","Диплом II место",1]
["социально-гуманитарная","Жаворонков Владимир Игоревич ",2012," В мире знаний и творчества","Бердникова Марина Григорьевна","Межрегиональный конкурс изобразительного и декоративно-прикладного творчества \"Удивительный мир\" ","декабрь, 2024","МБУ ДО \"Центр внешкольной работы\" Приволжского района г.Казань","ГБУ ДО \"РЦВР\"","Диплом III место",1]
["социально-гуманитарная","Бирюкова Ирина Вячеславовна  ",null,"Рукоделие. Терапия творчеством","Шигапова Гузель Равхатовна","Межрегиональный конкурс изобразительного и декоративно-прикладного творчества \"Удивительный мир\" ","декабрь, 2024","МБУ ДО \"Центр внешкольной работы\" Приволжского района г.Казань","ГБУ ДО \"РЦВР\"","Диплом 1 место",1]
["социально-гуманитарная","Жаворонков Владимир Игоревич ",2012," В мире знаний и творчества","Бердникова Марина Григорьевна","Межрегиональный конкурс изобразительного и декоративно-прикладного творчества \"Удивительный мир\" ","декабрь, 2024","МБУ ДО \"Центр внешкольной работы\" Приволжского района г.Казань","ГБУ ДО \"РЦВР\"","Грамота   За творческий подход",1]
["социально-гуманитарная","Ираклеев Всеволод Леонидович",2014," В мире знаний и творчества","Бердникова Марина Григорьевна"," Республиканский экологический конкурс детского и юношеского творчества «На планете голубой»","декабрь, 2024","МБУДО \"Центр детского творчества\" Вахитовского района           г. Казань","ГАОУ «Республиканский Олимпиадный центр» МОиН РТ ","Лауреат  II степени",1]
["социально-гуманитарная","Закиров Артур Олегович"," 2009"," В мире знаний и творчества","Бердникова Марина Григорьевна"," Республиканский экологический конкурс детского и юношеского творчества «На планете голубой»","декабрь, 2024","МБУДО \"Центр детского творчества\" Вахитовского района           г. Казань","ГАОУ «Республиканский Олимпиадный центр» МОиН РТ ","Лауреат  II степени",1]
["социально-гуманитарная","Хасанов Артём Алексеевич",2012," В мире знаний и творчества","Бердникова Марина Григорьевна"," Республиканский экологический конкурс детского и юношеского творчества «На планете голубой»","декабрь, 2024","МБУДО \"Центр детского творчества\" Вахитовского района           г. Казань","ГАОУ «Республиканский Олимпиадный центр» МОиН РТ ","Лауреат  III степени",1]
["социально-гуманитарная","Чепиков Максим Михайлович",2015," В мире знаний и творчества","Бердникова Марина Григорьевна"," Республиканский экологический конкурс детского и юношеского творчества «На планете голубой»","декабрь, 2024","МБУДО \"Центр детского творчества\" Вахитовского района           г. Казань","ГАОУ «Республиканский Олимпиадный центр» МОиН РТ ","Лауреат  III степени",1]
["социально-гуманитарная","Альбеков Алан Альбертович",2014," В мире знаний и творчества","Бердникова Марина Григорьевна"," Республиканский экологический конкурс детского и юношеского творчества «На планете голубой»","декабрь, 2024","МБУДО \"Центр детского творчества\" Вахитовского района           г. Казань","ГАОУ «Республиканский Олимпиадный центр» МОиН РТ ","Лауреат  II степени",1]
["социально-гуманитарная","Ким Радмир Артурович","2011 ","Декор","Иванова Светлана Викторовна"," Республиканский экологический конкурс детского и юношеского творчества «На планете голубой»","декабрь, 2024","МБУДО \"Центр детского творчества\" Вахитовского района           г. Казань","ГАОУ «Республиканский Олимпиадный центр» МОиН РТ ","Лауреат  I степени",1]
["социально-гуманитарная","Титов Михаил Ильич",2013,"Декор","Иванова Светлана Викторовна"," Республиканский экологический конкурс детского и юношеского творчества «На планете голубой»","декабрь, 2024","МБУДО \"Центр детского творчества\" Вахитовского района           г. Казань","ГАОУ «Республиканский Олимпиадный центр» МОиН РТ ","Лауреат  I степени",1]
["социально-гуманитарная","Садретдинов Ислам Ринатович",2012,"Декор","Иванова Светлана Викторовна"," Республиканский экологический конкурс детского и юношеского творчества «На планете голубой»","декабрь, 2024","МБУДО \"Центр детского творчества\" Вахитовского района           г. Казань","ГАОУ «Республиканский Олимпиадный центр» МОиН РТ ","Лауреат  I степени",1]
["социально-гуманитарная","Ким Радмир Артурович","2011 ","Декор","Иванова Светлана Викторовна"," Республиканский экологический конкурс детского и юношеского творчества «На планете голубой»","декабрь, 2024","МБУДО \"Центр детского творчества\" Вахитовского района           г. Казань","ГАОУ «Республиканский Олимпиадный центр» МОиН РТ ","Лауреат  III степени",1]
["социально-гуманитарная","Белякова Мария Сергеевна",2007,"Рукоделие. Терапия творчеством","Шигапова Гузель Равхатовна"," Республиканский экологический конкурс детского и юношеского творчества «На планете голубой»","декабрь, 2024","МБУДО \"Центр детского творчества\" Вахитовского района           г. Казань","ГАОУ «Республиканский Олимпиадный центр» МОиН РТ ","Дипломант  III степени",1]
["социально-гуманитарная","Сафаров Марсель Руделевич",2008,"Рукоделие. Терапия творчеством","Шигапова Гузель Равхатовна"," Республиканский экологический конкурс детского и юношеского творчества «На планете голубой»","декабрь, 2024","МБУДО \"Центр детского творчества\" Вахитовского района           г. Казань","ГАОУ «Республиканский Олимпиадный центр» МОиН РТ ","Дипломант  I степени",1]
["социально-гуманитарная","Григорчук Егор Олегович",2008,"Рукоделие. Терапия творчеством","Шигапова Гузель Равхатовна"," Республиканский экологический конкурс детского и юношеского творчества «На планете голубой»","декабрь, 2024","МБУДО \"Центр детского творчества\" Вахитовского района           г. Казань","ГАОУ «Республиканский Олимпиадный центр» МОиН РТ ","Лауреат  I степени",1]
["социально-гуманитарная","Григорчук Глеб Олегович",2008,"Рукоделие. Терапия творчеством","Шигапова Гузель Равхатовна"," Республиканский экологический конкурс детского и юношеского творчества «На планете голубой»","декабрь, 2024","МБУДО \"Центр детского творчества\" Вахитовского района           г. Казань","ГАОУ «Республиканский Олимпиадный центр» МОиН РТ ","Лауреат  II степени",1]
["социально-гуманитарная","Бирюкова Ирина Вячеславовна  ",2008,"Рукоделие. Терапия творчеством","Шигапова Гузель Равхатовна"," Республиканский экологический конкурс детского и юношеского творчества «На планете голубой»","декабрь, 2024","МБУДО \"Центр детского творчества\" Вахитовского района           г. Казань","ГАОУ «Республиканский Олимпиадный центр» МОиН РТ ","Лауреат  II степени",1]
["социально-гуманитарная","Белякова Мария Сергеевна",2007,"Рукоделие. Терапия творчеством","Шигапова Гузель Равхатовна","Республиканский заочный фестиваль детского творчества детей с ограниченными возможностями«Весенняя капель»","апрель, 2025","МБУДО \"Центр детского творчества\" Вахитовского района           г. Казань","ГАОУ «Республиканский Олимпиадный центр» МОиН РТ ","Лауреат  II степени",1]
["социально-гуманитарная","Сафаров Марсель Руделевич",2008,"Рукоделие. Терапия творчеством","Шигапова Гузель Равхатовна","Республиканский заочный фестиваль детского творчества детей с ограниченными возможностями«Весенняя капель»","апрель, 2025","МБУДО \"Центр детского творчества\" Вахитовского района           г. Казань","ГАОУ «Республиканский Олимпиадный центр» МОиН РТ ","Лауреат  I степени",1]
["социально-гуманитарная","Григорчук Егор Олегович",2008,"Рукоделие. Терапия творчеством","Шигапова Гузель Равхатовна","Республиканский заочный фестиваль детского творчества детей с ограниченными возможностями«Весенняя капель»","апрель, 2025","МБУДО \"Центр детского творчества\" Вахитовского района           г. Казань","ГАОУ «Республиканский Олимпиадный центр» МОиН РТ ","Лауреат  I степени",1]
["социально-гуманитарная","Григорчук Глеб Олегович",2008,"Рукоделие. Терапия творчеством","Шигапова Гузель Равхатовна","Республиканский заочный фестиваль детского творчества детей с ограниченными возможностями«Весенняя капель»","апрель, 2025","МБУДО \"Центр детского творчества\" Вахитовского района           г. Казань","ГАОУ «Республиканский Олимпиадный центр» МОиН РТ ","Лауреат  II степени",1]
["социально-гуманитарная","Бирюкова Ирина Вячеславовна  ",2008,"Рукоделие. Терапия творчеством","Шигапова Гузель Равхатовна","Республиканский заочный фестиваль детского творчества детей с ограниченными возможностями«Весенняя капель»","апрель, 2025","МБУДО \"Центр детского творчества\" Вахитовского района           г. Казань","ГАОУ «Республиканский Олимпиадный центр» МОиН РТ ","Лауреат  II степени",1]
["социально-гуманитарная","Садретдинов Ислам Ринатович",2012,"Декор","Иванова Светлана Викторовна","Республиканский заочный фестиваль детского творчества детей с ограниченными возможностями«Весенняя капель»","апрель, 2025","МБУДО \"Центр детского творчества\" Вахитовского района           г. Казань","ГАОУ «Республиканский Олимпиадный центр» МОиН РТ ","Лауреат  II степени",1]
["социально-гуманитарная","Садретдинов Ислам Ринатович",2012,"Декор","Иванова Светлана Викторовна","Республиканский заочный фестиваль детского творчества детей с ограниченными возможностями«Весенняя капель»","апрель, 2025","МБУДО \"Центр детского творчества\" Вахитовского района           г. Казань","ГАОУ «Республиканский Олимпиадный центр» МОиН РТ ","Лауреат  II степени",1]
["социально-гуманитарная","Ким Радмир Артурович","2011 ","Декор","Иванова Светлана Викторовна","Республиканский заочный фестиваль детского творчества детей с ограниченными возможностями«Весенняя капель»","апрель, 2025","МБУДО \"Центр детского творчества\" Вахитовского района           г. Казань","ГАОУ «Республиканский Олимпиадный центр» МОиН РТ ","Лауреат  I степени",1]
["социально-гуманитарная","Ким Радмир Артурович","2011 ","Декор","Иванова Светлана Викторовна","Республиканский заочный фестиваль детского творчества детей с ограниченными возможностями«Весенняя капель»","апрель, 2025","МБУДО \"Центр детского творчества\" Вахитовского района           г. Казань","ГАОУ «Республиканский Олимпиадный центр» МОиН РТ ","Лауреат  I степени",1]
["социально-гуманитарная","Игнатова Полина Андреевна",2013,"Декоративно-прикладное искусство","Корсакова Ирина Валерьевна","Республиканский заочный фестиваль детского творчества детей с ограниченными возможностями«Весенняя капель»","апрель, 2025","МБУДО \"Центр детского творчества\" Вахитовского района           г. Казань","ГАОУ «Республиканский Олимпиадный центр» МОиН РТ ","Лауреат  I степени",1]
["социально-гуманитарная","Биктимиров Динар Эдуардович","2007","Декоративно-прикладное искусство","Корсакова Ирина Валерьевна","Республиканский заочный фестиваль детского творчества детей с ограниченными возможностями«Весенняя капель»","апрель, 2025","МБУДО \"Центр детского творчества\" Вахитовского района           г. Казань","ГАОУ «Республиканский Олимпиадный центр» МОиН РТ ","Лауреат  I степени",1]
["социально-гуманитарная","Биктимиров Динар Эдуардович","2007","Декоративно-прикладное искусство","Корсакова Ирина Валерьевна","Республиканский заочный фестиваль детского творчества детей с ограниченными возможностями«Весенняя капель»","апрель, 2025","МБУДО \"Центр детского творчества\" Вахитовского района           г. Казань","ГАОУ «Республиканский Олимпиадный центр» МОиН РТ ","Лауреат  II степени",1]
["социально-гуманитарная","Гильмутдинов Айдар Винирович","2009","Декоративно-прикладное искусство","Корсакова Ирина Валерьевна","Республиканский заочный фестиваль детского творчества детей с ограниченными возможностями«Весенняя капель»","апрель, 2025","МБУДО \"Центр детского творчества\" Вахитовского района           г. Казань","ГАОУ «Республиканский Олимпиадный центр» МОиН РТ ","Лауреат  II степени",1]
["социально-гуманитарная","Самигуллин Артур Александрович",2007,"Декоративно-прикладное искусство","Корсакова Ирина Валерьевна","Республиканский заочный фестиваль детского творчества детей с ограниченными возможностями«Весенняя капель»","апрель, 2025","МБУДО \"Центр детского творчества\" Вахитовского района           г. Казань","ГАОУ «Республиканский Олимпиадный центр» МОиН РТ ","Лауреат  III степени",1]
["социально-гуманитарная","Ираклеев Всеволод Леонидович",2014," В мире знаний и творчества","Бердникова Марина Григорьевна","Республиканский заочный фестиваль детского творчества детей с ограниченными возможностями«Весенняя капель»","апрель, 2025","МБУДО \"Центр детского творчества\" Вахитовского района           г. Казань","ГАОУ «Республиканский Олимпиадный центр» МОиН РТ ","Лауреат  II степени",1]
["социально-гуманитарная","Закиров Артур Олегович"," 2009"," В мире знаний и творчества","Бердникова Марина Григорьевна","Республиканский заочный фестиваль детского творчества детей с ограниченными возможностями«Весенняя капель»","апрель, 2025","МБУДО \"Центр детского творчества\" Вахитовского района г. Казань","ГАОУ «Республиканский Олимпиадный центр» МОиН РТ ","Лауреат  III степени",1]
["социально-гуманитарная","Хасанов Артем Алексеевич",2012," В мире знаний и творчества","Бердникова Марина Григорьевна","Республиканский заочный фестиваль детского творчества детей с ограниченными возможностями«Весенняя капель»","апрель, 2025","МБУДО \"Центр детского творчества\" Вахитовского района г. Казань","ГАОУ «Республиканский Олимпиадный центр» МОиН РТ ","Лауреат  II степени",1]
["социально-гуманитарная"," Жаворонков Владимир Игоревич "," 2009"," В мире знаний и творчества","Бердникова Марина Григорьевна","Республиканский заочный фестиваль детского творчества детей с ограниченными возможностями«Весенняя капель»","апрель, 2025","МБУДО \"Центр детского творчества\" Вахитовского района г. Казань","ГАОУ «Республиканский Олимпиадный центр» МОиН РТ ","Лауреат  II степени",1]
["социально-гуманитарная","Альбеков Алан Альбертович",2014," В мире знаний и творчества","Бердникова Марина Григорьевна","Республиканский заочный фестиваль детского творчества детей с ограниченными возможностями«Весенняя капель»","апрель, 2025","МБУДО \"Центр детского творчества\" Вахитовского района г. Казань","ГАОУ «Республиканский Олимпиадный центр» МОиН РТ ","Лауреат  III степени",1]
["социально-гуманитарная"," Жаворонков Владимир Игоревич "," 2009"," В мире знаний и творчества","Бердникова Марина Григорьевна","Республиканский заочный фестиваль детского творчества детей с ограниченными возможностями«Весенняя капель»","апрель, 2025","МБУДО \"Центр детского творчества\" Вахитовского района г. Казань","ГАОУ «Республиканский Олимпиадный центр» МОиН РТ ","Лауреат  II степени",1]
["социально-гуманитарная","Гилязов Саитгарай Алексеевич","2009","Оригами","Шашина Татьяна Борисовна","Республиканский заочный фестиваль детского творчества детей с ограниченными возможностями«Весенняя капель»","апрель, 2025","МБУДО \"Центр детского творчества\" Вахитовского района г. Казань","ГАОУ «Республиканский Олимпиадный центр» МОиН РТ ","Лауреат  II степени",1]
["социально-гуманитарная","Даудов Ризван Рамзанович","2009","Оригами","Шашина Татьяна Борисовна","Республиканский заочный фестиваль детского творчества детей с ограниченными возможностями«Весенняя капель»","апрель, 2025","МБУДО \"Центр детского творчества\" Вахитовского района г. Казань","ГАОУ «Республиканский Олимпиадный центр» МОиН РТ ","Лауреат  II степени",1]
["социально-гуманитарная","Евграфов Максим Михайлович","2009","Оригами","Шашина Татьяна Борисовна","Республиканский заочный фестиваль детского творчества детей с ограниченными возможностями«Весенняя капель»","апрель, 2025","МБУДО \"Центр детского творчества\" Вахитовского района г. Казань","ГАОУ «Республиканский Олимпиадный центр» МОиН РТ ","Лауреат  II степени",1]
["социально-гуманитарная","Сафин Рамазан Рустемович",2013,"Оригами","Шашина Татьяна Борисовна","Республиканский заочный фестиваль детского творчества детей с ограниченными возможностями«Весенняя капель»","апрель, 2025","МБУДО \"Центр детского творчества\" Вахитовского района г. Казань","ГАОУ «Республиканский Олимпиадный центр» МОиН РТ ","Лауреат  I степени",1]
["социально-гуманитарная","Санталов Михаил Александрович",2014,null,"Сафина Алия Ильдаровна","Республиканский заочный фестиваль детского творчества детей с ограниченными возможностями«Весенняя капель»","апрель, 2025","МБУДО \"Центр детского творчества\" Вахитовского района г. Казань","ГАОУ «Республиканский Олимпиадный центр» МОиН РТ ","Лауреат  III степени",1]
["социально-гуманитарная","Биктимиров Динар Эдуардович",2009,"Декоративно-прикладное искусство","Корсакова Ирина Валерьевна","Республиканский фестиваль -конкурс \"Браво 2025. Одна на всех Победа», посвященный году 80-летия Победы в Великой Отеественной войне","март, 2025","МБУДО \"Центр детского творчества\" Вахитовского района г. Казань","ГАОУ «Республиканский Олимпиадный центр» МОиН РТ ","Лауреат  II степени",1]
["социально-гуманитарная","Ираклеев Всеволод Леонидович",2014," В мире знаний и творчества","Бердникова Марина Григорьевна","Республиканский фестиваль -конкурс \"Браво 2025. Одна на всех Победа», посвященный году 80-летия Победы в Великой Отеественной войне","март, 2025","МБУДО \"Центр детского творчества\" Вахитовского района г. Казань","ГАОУ «Республиканский Олимпиадный центр» МОиН РТ ","Лауреат  II степени",1]
["социально-гуманитарная","Закиров Артур Олегович"," 2009"," В мире знаний и творчества","Бердникова Марина Григорьевна","Республиканский фестиваль -конкурс \"Браво 2025. Одна на всех Победа», посвященный году 80-летия Победы в Великой Отеественной войне","март, 2025","МБУДО \"Центр детского творчества\" Вахитовского района г. Казань","ГАОУ «Республиканский Олимпиадный центр» МОиН РТ ","Лауреат  III степени",1]
["социально-гуманитарная","Хасанов Артём Алексеевич",2012," В мире знаний и творчества","Бердникова Марина Григорьевна","Республиканский фестиваль -конкурс \"Браво 2025. Одна на всех Победа», посвященный году 80-летия Победы в Великой Отеественной войне","март, 2025","МБУДО \"Центр детского творчества\" Вахитовского района г. Казань","ГАОУ «Республиканский Олимпиадный центр» МОиН РТ ","Дипломант  I степени",1]
["социально-гуманитарная","Альбеков Алан Альбертович",2014," В мире знаний и творчества","Бердникова Марина Григорьевна","Республиканский фестиваль -конкурс \"Браво 2025. Одна на всех Победа», посвященный году 80-летия Победы в Великой Отеественной войне","март, 2025","МБУДО \"Центр детского творчества\" Вахитовского района г. Казань","ГАОУ «Республиканский Олимпиадный центр» МОиН РТ ","Лауреат  III степени",1]
["социально-гуманитарная","Чепиков Максим Михайлович",2015," В мире знаний и творчества","Бердникова Марина Григорьевна","Республиканский фестиваль -конкурс \"Браво 2025. Одна на всех Победа», посвященный году 80-летия Победы в Великой Отеественной войне","март, 2025","МБУДО \"Центр детского творчества\" Вахитовского района г. Казань","ГАОУ «Республиканский Олимпиадный центр» МОиН РТ ","Лауреат  II степени",1]
["социально-гуманитарная","Коробейник Дина Максимовна","2016","Английский, играя","Мансурова Тамара Иркиновна","Республиканский фестиваль -конкурс \"Браво 2025. Одна на всех Победа», посвященный году 80-летия Победы в Великой Отеественной войне","март, 2025","МБУДО \"Центр детского творчества\" Вахитовского района г. Казань","ГАОУ «Республиканский Олимпиадный центр» МОиН РТ ","Дипломант III  степени",1]
["социально-гуманитарная","Ясавиева Элина Ильхамовна",2014,"Английский, играя","Мансурова Тамара Иркиновна","Республиканский фестиваль -конкурс \"Браво 2025. Одна на всех Победа», посвященный году 80-летия Победы в Великой Отеественной войне","март, 2025","МБУДО \"Центр детского творчества\" Вахитовского района г. Казань","ГАОУ «Республиканский Олимпиадный центр» МОиН РТ ","Дипломант I  степени",1]
["социально-гуманитарная","Гайнутдинов Карим Рустемович","2017","Англиский с нами","Эминова Нафиса Гусмановна","Республиканский фестиваль -конкурс \"Браво 2025. Одна на всех Победа», посвященный году 80-летия Победы в Великой Отеественной войне","март, 2025","МБУДО \"Центр детского творчества\" Вахитовского района г. Казань","ГАОУ «Республиканский Олимпиадный центр» МОиН РТ ","Дипломант III  степени",1]
["социально-гуманитарная","Гайнутдинов Карим Рустемович","2017","Англиский с нами","Эминова Нафиса Гусмановна","Республиканский фестиваль -конкурс \"Браво 2025. Одна на всех Победа», посвященный году 80-летия Победы в Великой Отеественной войне","март, 2025","МБУДО \"Центр детского творчества\" Вахитовского района г. Казань","ГАОУ «Республиканский Олимпиадный центр» МОиН РТ ","Дипломант I  степени",1]
["социально-гуманитарная","Белякова Мария Сергеевна","2008","Рукоделие. Терапия творчеством","Шигапова Гузель Равхатовна","IV Республиканский конкурс детского творчества \"Мгновения осени\"","октябрь, 2024","ГБУ ДО \"РЦВР\"","ГБУ ДО \"РЦВР\"","Лауреат  III степени",1]
["социально-гуманитарная","Сафаров Марсель Руделевич","2007","Рукоделие. Терапия творчеством","Шигапова Гузель Равхатовна","IV Республиканский конкурс детского творчества \"Мгновения осени\"","октябрь, 2024","ГБУ ДО \"РЦВР\"","ГБУ ДО \"РЦВР\"","Лауреат  II степени",1]
["социально-гуманитарная","Белякова Мария Сергеевна","2008","Рукоделие. Терапия творчеством","Шигапова Гузель Равхатовна","XI Республиканский конкурс детского творчества \"Новогодняя сказка\"","декабрь, 2024","ГБУ ДО \"РЦВР\"","ГБУ ДО \"РЦВР\"","Лауреат  III степени",1]
["социально-гуманитарная","Сафаров Марсель Руделевич","2007","Рукоделие. Терапия творчеством","Шигапова Гузель Равхатовна","XI Республиканский конкурс детского творчества \"Новогодняя сказка\"","декабрь, 2024","ГБУ ДО \"РЦВР\"","ГБУ ДО \"РЦВР\"","Лауреат  II степени",1]
["социально-гуманитарная","Белякова Мария Сергеевна","2008","Рукоделие. Терапия творчеством","Шигапова Гузель Равхатовна","VIII  Республиканский конкурс детского творчества \"Таланты Татарстана\"","декабрь, 2024","ГБУ ДО \"РЦВР\"","ГБУ ДО \"РЦВР\"","Лауреат  III степени",1]
["социально-гуманитарная","Григорчук Егор Олегович",2008,"Рукоделие. Терапия творчеством","Шигапова Гузель Равхатовна","Республиканский конкурс семейного творчества \"Творчество без границ\"","апрель, 2025","ГБУ ДО \"РЦВР\"","ГБУ ДО \"РЦВР\"","1 место",1]
["социально-гуманитарная","Григорчук Глеб Олегович",2008,"Рукоделие. Терапия творчеством","Шигапова Гузель Равхатовна","Республиканский конкурс семейного творчества \"Творчество без границ\"","апрель, 2025","ГБУ ДО \"РЦВР\"","ГБУ ДО \"РЦВР\"","1 место",1]
[{"$nulls":10},{"$f":"SUM(K180:K526)","v":347}]
["региональный уровень"]
["физкультурно-спортивная","Хасанова Азалия Рамильевна","2010","Карате","Файзуллин Э.З.","Областные соревнования по киокусинкай \"Юный кайман\"","сентябрь, 2024","г. Сызрань","Самарская региональная общественная организация \"Кёкусин-кан каратэ-до\"","1 место",1]
["физкультурно-спортивная","Хасанова Азалия Рамильевна","2010","Карате","Файзуллин Э.З.","Областные соревнования по киокусинкай \"Юный кайман\"","сентябрь, 2024","г. Сызрань","Самарская региональная общественная организация \"Кёкусин-кан каратэ-до\"","1 место ката",1]
["физкультурно-спортивная","Гамберов Рафаэль Русланович","2012","Карате","Файзуллин Э.З.","Областные соревнования по киокусинкай \"Юный кайман\"","сентябрь, 2024","г. Сызрань","Самарская региональная общественная организация \"Кёкусин-кан каратэ-до\"","2 место",1]
["физкультурно-спортивная","Афанасьев Степан Евгениевич","2010","Карате","Файзуллин Э.З.","Областные соревнования по киокусинкай \"Юный кайман\"","сентябрь, 2024","г. Сызрань","Самарская региональная общественная организация \"Кёкусин-кан каратэ-до\"","3 место",1]
["физкультурно-спортивная","Варданян Эмилия Гариковна","2011","Карате","Файзуллин Э.З.","Областные соревнования по киокусинкай \"Юный кайман\"","сентябрь, 2024","г. Сызрань","Самарская региональная общественная организация \"Кёкусин-кан каратэ-до\"","1 место",1]
["физкультурно-спортивная","Варданян Эмилия Гариковна","2011","Карате","Файзуллин Э.З.","Областные соревнования по киокусинкай \"Юный кайман\"","сентябрь, 2024","г. Сызрань","Самарская региональная общественная организация \"Кёкусин-кан каратэ-до\"","2 место ката",1]
["физкультурно-спортивная","Краснощеков Владислав Олегович","2011","Карате","Файзуллин Э.З.","Областные соревнования по киокусинкай \"Юный кайман\"","сентябрь, 2024","г. Сызрань","Самарская региональная общественная организация \"Кёкусин-кан каратэ-до\"","2 место",1]
["физкультурно-спортивная","Афанасьев Макар Евгениевич","2012","Карате","Файзуллин Э.З.","Областные соревнования по киокусинкай \"Юный кайман\"","сентябрь, 2024","г. Сызрань","Самарская региональная общественная организация \"Кёкусин-кан каратэ-до\"","2 место",1]
["физкультурно-спортивная","Бурганов Айнур Рифхатович","2012","Карате","Файзуллин Э.З.","Областные соревнования по киокусинкай \"Юный кайман\"","сентябрь, 2024","г. Сызрань","Самарская региональная общественная организация \"Кёкусин-кан каратэ-до\"","3 место",1]
["физкультурно-спортивная","Бурганов Айнур Рифхатович","2012","Карате","Файзуллин Э.З.","Областные соревнования по киокусинкай \"Юный кайман\"","сентябрь, 2024","г. Сызрань","Самарская региональная общественная организация \"Кёкусин-кан каратэ-до\"","3 место, ката",1]
["физкультурно-спортивная","Азизова Айша Маратовна","2013","Карате","Файзуллин Э.З.","Областные соревнования по киокусинкай \"Юный кайман\"","сентябрь, 2024","г. Сызрань","Самарская региональная общественная организация \"Кёкусин-кан каратэ-до\"","3 место",1]
["физкультурно-спортивная","Крашенинникова Рената Александровна","2007","Карате","Файзуллин Э.З.","Областные соревнования по киокусинкай \"Юный кайман\"","сентябрь, 2024","г. Сызрань","Самарская региональная общественная организация \"Кёкусин-кан каратэ-до\"","1 место",1]
["физкультурно-спортивная","Мансурова Амина Ринатовна","2008","Карате","Файзуллин Э.З.","Областные соревнования по киокусинкай \"Юный кайман\"","сентябрь, 2024","г. Сызрань","Самарская региональная общественная организация \"Кёкусин-кан каратэ-до\"","2 место",1]
["физкультурно-спортивная","Сафин Эмиль Гарикович","2007","Карате","Файзуллин Э.З.","Областные соревнования по киокусинкай \"Юный кайман\"","сентябрь, 2024","г. Сызрань","Самарская региональная общественная организация \"Кёкусин-кан каратэ-до\"","1 место",1]
["физкультурно-спортивная","Сафин Эмиль Гарикович","2007","Карате","Файзуллин Э.З.","Областные соревнования по киокусинкай \"Юный кайман\"","сентябрь, 2024","г. Сызрань","Самарская региональная общественная организация \"Кёкусин-кан каратэ-до\"","1 место ката",1]
["физкультурно-спортивная","Сафиуллин Ранэль Риназович","2007","Карате","Файзуллин Э.З.","Областные соревнования по киокусинкай \"Юный кайман\"","сентябрь, 2024","г. Сызрань","Самарская региональная общественная организация \"Кёкусин-кан каратэ-до\"","2 место",1]
["физкультурно-спортивная","Варданян Эмилия Гариковна",null,"Карате","Файзуллин Э.З.","Первенство ПФО по киокусинкай ","март, 2025","г. Самара","Министерство Спорта РФ","3 место, ката-группа",1]
["физкультурно-спортивная","Хасанова Азалия Рамильевна",null,"Карате","Файзуллин Э.З.","Первенство ПФО по киокусинкай ","март, 2025","г. Самара","Министерство Спорта РФ","3 место, ката-группа",1]
["физкультурно-спортивная","Хасанова Азалия Рамильевна",null,"Карате","Файзуллин Э.З.","Первенство ПФО по киокусинкай ","март, 2025","г. Самара","Министерство Спорта РФ","2 место кумитэ",1]
["физкультурно-спортивная","Афанасьев Степан Евгениевич",null,"Карате","Файзуллин Э.З.","Первенство ПФО по киокусинкай ","март, 2025","г. Самара","Министерство Спорта РФ","3 место",1]
["физкультурно-спортивная","Крашенинникова Рената Александровна",null,"Карате","Файзуллин Э.З.","Первенство ПФО по киокусинкай ","март, 2025","г. Самара","Министерство Спорта РФ","3 место, ката",1]
["физкультурно-спортивная","Крашенинникова Рената Александровна",null,"Карате","Файзуллин Э.З.","Первенство ПФО по киокусинкай ","март, 2025","г. Самара","Министерство Спорта РФ","3 место, ката-группа",1]
["физкультурно-спортивная","Крашенинникова Рената Александровна",null,"Карате","Файзуллин Э.З.","Первенство ПФО по киокусинкай ","март, 2025","г. Самара","Министерство Спорта РФ","1 место",1]
["физкультурно-спортивная","Крашенинникова Рената Александровна",null,"Карате","Файзуллин Э.З.","Первенство ПФО по киокусинкай ","март, 2025","г. Самара","Министерство Спорта РФ","3 место буки-дзюцу",1]
["физкультурно-спортивная","Мансурова Амина Ринатовна",null,"Карате","Файзуллин Э.З.","Первенство ПФО по киокусинкай ","март, 2025","г. Самара","Министерство Спорта РФ","1 место ката",1]
["физкультурно-спортивная","Мансурова Амина Ринатовна",null,"Карате","Файзуллин Э.З.","Первенство ПФО по киокусинкай ","март, 2025","г. Самара","Министерство Спорта РФ","3 место, ката-группа",1]
["физкультурно-спортивная","Евстигнеев Евгений",null,"Карате","Файзуллин Э.З.","Первенство ПФО по киокусинкай ","март, 2025","г. Самара","Министерство Спорта РФ","3 место",1]
["физкультурно-спортивная","Бурганов Айнур Рифхатович",null,"Карате","Файзуллин Э.З.","Первенство ПФО по киокусинкай ","март, 2025","г. Самара","Министерство Спорта РФ","3 место, ката",1]
["физкультурно-спортивная","Азизов Кирилл Камильевич",null,"Карате","Файзуллин Э.З.","Первенство ПФО по киокусинкай ","март, 2025","г. Самара","Министерство Спорта РФ","3 место, ката-группа",1]
["физкультурно-спортивная","Варданян Эмилия Гариковна",null,"Карате","Файзуллин Э.З.","Первенство ПФО по киокусинкай ","март, 2025","г. Самара","Министерство Спорта РФ","2 место",1]
["физкультурно-спортивная","Афанасьев Степан Евгениевич",null,"Карате","Файзуллин Э.З.","Первенство ПФО по киокусинкай ","март, 2025","г. Самара","Министерство Спорта РФ","3 место",1]
["физкультурно-спортивная","Азизова Айша Маратовна",null,"Карате","Файзуллин Э.З.","Первенство ПФО по киокусинкай ","март, 2025","г. Самара","Министерство Спорта РФ","2 место, кумитэ ",1]
["физкультурно-спортивная","Бегляров Ариз Мубаризович",null,"Карате","Файзуллин Э.З.","Первенство ПФО по киокусинкай ","март, 2025","г. Самара","Министерство Спорта РФ","2 место",1]
["физкультурно-спортивная","Ойгур Арина",null,"Карате","Файзуллин Э.З.","Первенство ПФО по киокусинкай ","март, 2025","г. Самара","Министерство Спорта РФ","1 место",1]
["физкультурно-спортивная","Алмакаев Ринат Вадимович",null,"Карате","Файзуллин Э.З.","Первенство ПФО по киокусинкай ","март, 2025","г. Самара","Министерство Спорта РФ","2 место",1]
["физкультурно-спортивная","Афанасьев Макар",null,"Карате","Файзуллин Э.З.","Межрегиональные соревнования по киокусинкай \"Кубок Казани\"","март, 2025","г. Казань","Федерация Кёкусин-кан  каратэ-до России","1 место",1]
["физкультурно-спортивная","Гамберов Рафаэль Русланович",null,"Карате","Файзуллин Э.З.","Межрегиональные соревнования по киокусинкай \"Кубок Казани\"","март, 2025","г. Казань","Федерация Кёкусин-кан  каратэ-до России","1 место",1]
["физкультурно-спортивная","Лях Ярослав Русланович",null,"Карате","Файзуллин Э.З.","Межрегиональные соревнования по киокусинкай \"Кубок Казани\"","март, 2025","г. Казань","Федерация Кёкусин-кан  каратэ-до России","1 место",1]
["физкультурно-спортивная","Бегляров Ариз Мубаризович",null,"Карате","Файзуллин Э.З.","Межрегиональные соревнования по киокусинкай \"Кубок Казани\"","март, 2025","г. Казань","Федерация Кёкусин-кан  каратэ-до России","1 место",1]
["физкультурно-спортивная","Гафиятуллин Нурмухамед",null,"Карате","Файзуллин Э.З.","Межрегиональные соревнования по киокусинкай \"Кубок Казани\"","март, 2025","г. Казань","Федерация Кёкусин-кан  каратэ-до России","3 место",1]
["физкультурно-спортивная","Хорошавин Илья Владимирович ",null,"Карате","Файзуллин Э.З.","Межрегиональные соревнования по киокусинкай \"Кубок Казани\"","март, 2025","г. Казань","Федерация Кёкусин-кан  каратэ-до России","2 место",1]
["физкультурно-спортивная","Ойгур Арина",null,"Карате","Файзуллин Э.З.","Межрегиональные соревнования по киокусинкай \"Кубок Казани\"","март, 2025","г. Казань","Федерация Кёкусин-кан  каратэ-до России","2 место",1]
["физкультурно-спортивная","Азизова Айша Маратовна",null,"Карате","Файзуллин Э.З.","Межрегиональные соревнования по киокусинкай \"Кубок Казани\"","март, 2025","г. Казань","Федерация Кёкусин-кан  каратэ-до России","3 место",1]
["художественная","Валиахметова Милана Руслановна","2013","Театр эстрады, сатиры и юмора \"ЕрашОк\"","Гордеева И.В.","Межрегиональный фестиваль патриотической песни и стихов \"Нам этот мир завещано беречь\"","февраль 2025","г. Кукмор","УО ИК Кукморского муниципального района РТ","1 место",1]
["художественная","Высоцкая Василиса Евгеньевна","2015","Театр эстрады, сатиры и юмора \"ЕрашОк\"","Гордеева И.В.","Межрегиональный фестиваль патриотической песни и стихов \"Нам этот мир завещано беречь\"","февраль 2025","г. Кукмор","УО ИК Кукморского муниципального района РТ","1 место",1]
["художественная","Камалов Руслан Ильфатович","2013","Театр эстрады, сатиры и юмора \"ЕрашОк\"","Гордеева И.В.","Межрегиональный фестиваль патриотической песни и стихов \"Нам этот мир завещано беречь\"","февраль 2025","г. Кукмор","УО ИК Кукморского муниципального района РТ","1 место",1]
["художественная","Рогов Матвей Сергеевич","2016","Театр эстрады, сатиры и юмора \"ЕрашОк\"","Гордеева И.В.","Межрегиональный фестиваль патриотической песни и стихов \"Нам этот мир завещано беречь\"","февраль 2025","г. Кукмор","УО ИК Кукморского муниципального района РТ","1 место",1]
["художественная","Хертдинов Мурат Наилевич","2011","Театр эстрады, сатиры и юмора \"ЕрашОк\"","Гордеева И.В.","Межрегиональный фестиваль патриотической песни и стихов \"Нам этот мир завещано беречь\"","февраль 2025","г. Кукмор","УО ИК Кукморского муниципального района РТ","1 место",1]
["художественная","Хертдинов Мурат Наилевич","2011","Театр эстрады, сатиры и юмора \"ЕрашОк\"","Гордеева И.В.","Межрегиональный фестиваль патриотической песни и стихов \"Нам этот мир завещано беречь\"","февраль 2025","г. Кукмор","УО ИК Кукморского муниципального района РТ","1 место",1]
["художественная","Волков Дмитрий","2011","Театр эстрады, сатиры и юмора \"ЕрашОк\"","Гордеева И.В.","Межрегиональный конкурс \"Весенний переполох\" в рамках проекта \"В ритме жизни\"","март, 2025","г. Казань","ГБУДО РЦВР","Лауреат 1 степени",1]
["художественная","Высоцкая Василиса","2015","Театр эстрады, сатиры и юмора \"ЕрашОк\"","Гордеева И.В.","Межрегиональный конкурс \"Весенний переполох\" в рамках проекта \"В ритме жизни\"","март, 2025","г. Казань","ГБУДО РЦВР","Лауреат 1 степени",1]
["художественная","Зиннятуллин Данис","2015","Театр эстрады, сатиры и юмора \"ЕрашОк\"","Гордеева И.В.","Межрегиональный конкурс \"Весенний переполох\" в рамках проекта \"В ритме жизни\"","март, 2025","г. Казань","ГБУДО РЦВР","Лауреат 1 степени",1]
["художественная","Рыбина Амелия Витальевна","2013","Театр эстрады, сатиры и юмора \"ЕрашОк\"","Гордеева И.В.","Межрегиональный конкурс \"Весенний переполох\" в рамках проекта \"В ритме жизни\"","март, 2025","г. Казань","ГБУДО РЦВР","Лауреат 2 степени",1]
["художественная","Соловьева Анна Александровна","2015","Театр эстрады, сатиры и юмора \"ЕрашОк\"","Гордеева И.В.","Межрегиональный конкурс \"Весенний переполох\" в рамках проекта \"В ритме жизни\"","март, 2025","г. Казань","ГБУДО РЦВР","Лауреат 1 степени",1]
["художественная","Соловьева Анна Александровна","2015","Театр эстрады, сатиры и юмора \"ЕрашОк\"","Гордеева И.В.","Межрегиональный конкурс \"Весенний переполох\" в рамках проекта \"В ритме жизни\"","март, 2025","г. Казань","ГБУДО РЦВР","Лауреат 2 степени",1]
["художественная","Хаертдинов Мурат","2011","Театр эстрады, сатиры и юмора \"ЕрашОк\"","Гордеева И.В.","Межрегиональный конкурс \"Весенний переполох\" в рамках проекта \"В ритме жизни\"","март, 2025","г. Казань","ГБУДО РЦВР","Лауреат 2 степени",1]
["художественная","Яхонт Матвей Николаевич","2010","Театр эстрады, сатиры и юмора \"ЕрашОк\"","Гордеева И.В.","Межрегиональный конкурс \"Весенний переполох\" в рамках проекта \"В ритме жизни\"","март, 2025","г. Казань","ГБУДО РЦВР","Лауреат 1 степени",1]
["художественная","Галлямова Ясмина","2012","Театр эстрады, сатиры и юмора \"ЕрашОк\"","Гордеева И.В.","Межрегиональный конкурс \"Весенний переполох\" в рамках проекта \"В ритме жизни\"","март, 2025","г. Казань","ГБУДО РЦВР","Лауреат 1 степени",1]
["художественная","Санталов Михаил",null,"Вокальное искусство","Сафина АлияИльдаровна","Межрегиональный конкурс-фестиваль\"Момент \"Арта\"","2025-03-01","ДК им.Ленина","МК РТ","Лавреат 2 степени",1]
["художественная","Маслова Веоника Андреевна ",".07.12.2011 "," Театр-студия «Ровесник»","Андреева Мария Юрьевна","Межрегиональный конкурс в рамках проекта \"В ритме жизни\" \"Весенний переполох\"","февраль 2025 г.","МБУДО \"ДШИ № 15\" Ново-Савиновского  района г.Казани","ГБУДО «РЦВР\"","Лауреат         1 степени",1]
["российский уровень",{"$nulls":9},{"$f":"SUM(K529:K588)","v":60}]
["художественная","Карасева Елизавета Павловна","2012","Радуга творчества","Быстрова Л.М.","III Всероссийский конкурс \"Краски осени\"","ноябрь, 2024","г. Менделеевск","МКУ УО ИКМО г.Менделеевска","Лауреат 1 степени",1]
["художественная","Шайдуллина Эмилия Рустемовна","2015","Радуга творчества","Быстрова Л.М.","III Всероссийский конкурс \"Краски осени\"","ноябрь, 2024","г. Менделеевск","МКУ УО ИКМО г.Менделеевска","Лауреат 1 степени",1]
["художественная","Бирюкова Мария Ильинична","2016","Радуга творчества","Быстрова Л.М.","III Всероссийский конкурс \"Спасибо тебе мама\"","декабрь, 2024","г. Менделеевск","МКУ УО ИКМО г.Менделеевска","Лауреат 1 степени",1]
["художественная","Володягин Дмитрий Сергеевич","2016","Радуга творчества","Быстрова Л.М.","III Всероссийский конкурс \"Спасибо тебе мама\"","декабрь, 2024","г. Менделеевск","МКУ УО ИКМО г.Менделеевска","Лауреат 1 степени",1]
["художественная","Галимзянов Анвар Ринатович","2016","Радуга творчества","Быстрова Л.М.","III Всероссийский конкурс \"Спасибо тебе мама\"","декабрь, 2024","г. Менделеевск","МКУ УО ИКМО г.Менделеевска","Лауреат 1 степени",1]
["художественная","Хайруллин Искандер Радикович ","2014","Радуга творчества","Быстрова Л.М.","III Всероссийский конкурс \"Спасибо тебе мама\"","декабрь, 2024","г. Менделеевск","МКУ УО ИКМО г.Менделеевска","Лауреат 1 степени",1]
["художественная","Самсонова Мария  Андреевна","2011","Мастерица","Ионова Е.В.","III Всероссийский конкурс \"Спасибо тебе мама\"","декабрь, 2024","г. Менделеевск","МКУ УО ИКМО г.Менделеевска","Лауреат 1 степени",1]
["художественная","Бунтина Виктория Артемовна","2014","Созвездие","Сергеева М.В.","III Всероссийский конкурс \"Спасибо тебе мама\"","декабрь, 2024","г. Менделеевск","МКУ УО ИКМО г.Менделеевска","Лауреат 1 степени",1]
["художественная","Кузнецова Виктория Дмитриевна","2014","Созвездие","Сергеева М.В.","III Всероссийский конкурс \"Спасибо тебе мама\"","декабрь, 2024","г. Менделеевск","МКУ УО ИКМО г.Менделеевска","Лауреат 1 степени",1]
["художественная","Бедник Мария Евгеньевна","2016","Радуга творчества","Быстрова Л.М.","III Всероссийский конкурс \"Наши Zащитники\"","февраль 2025","г. Менделеевск","МКУ УО ИКМО г.Менделеевска","Лауреат 1 степени",1]
["художественная","Валиуллина Аделина Ринатовна","2016","Радуга творчества","Быстрова Л.М.","III Всероссийский конкурс \"Наши Zащитники\"","февраль 2025","г. Менделеевск","МКУ УО ИКМО г.Менделеевска","Лауреат 1 степени",1]
["художественная","Валиуллина Эвелина Ринатовна","2014","Радуга творчества","Быстрова Л.М.","III Всероссийский конкурс \"Наши Zащитники\"","февраль 2025","г. Менделеевск","МКУ УО ИКМО г.Менделеевска","Лауреат 1 степени",1]
["художественная","Галиева Камила Маратовна","2016","Радуга творчества","Быстрова Л.М.","III Всероссийский конкурс \"Наши Zащитники\"","февраль 2025","г. Менделеевск","МКУ УО ИКМО г.Менделеевска","Лауреат 1 степени",1]
["художественная","Исмаилова Амина Ахлемановна","2015","Радуга творчества","Быстрова Л.М.","III Всероссийский конкурс \"Наши Zащитники\"","февраль 2025","г. Менделеевск","МКУ УО ИКМО г.Менделеевска","Лауреат 1 степени",1]
["художественная","Мухаметшина Ясмина Тимуровна","2016","Радуга творчества","Быстрова Л.М.","III Всероссийский конкурс \"Наши Zащитники\"","февраль 2025","г. Менделеевск","МКУ УО ИКМО г.Менделеевска","Лауреат 1 степени",1]
["художественная","Салахутдинова Амина Ильнаровна","2015","Радуга творчества","Быстрова Л.М.","III Всероссийский конкурс \"Наши Zащитники\"","февраль 2025","г. Менделеевск","МКУ УО ИКМО г.Менделеевска","Лауреат 1 степени",1]
["художественная","Тюрикова Арина Александровна","2016","Радуга творчества","Быстрова Л.М.","III Всероссийский конкурс \"Наши Zащитники\"","февраль 2025","г. Менделеевск","МКУ УО ИКМО г.Менделеевска","Лауреат 1 степени",1]
["художественная","Сагдиева Ралина Тимуровна","2016","Палитра","Антипова И.С.","III Всероссийский конкурс \"Наши Zащитники\"","февраль 2025","г. Менделеевск","МКУ УО ИКМО г.Менделеевска","Лауреат 1 степени",1]
["художественная","Хусаенова Камиля Рустемовна","2015","Палитра","Антипова И.С.","III Всероссийский конкурс \"Наши Zащитники\"","февраль 2025","г. Менделеевск","МКУ УО ИКМО г.Менделеевска","Лауреат 1 степени",1]
["художественная","Яруллин Алан Ленарович","2015","Палитра","Антипова И.С.","III Всероссийский конкурс \"Наши Zащитники\"","февраль 2025","г. Менделеевск","МКУ УО ИКМО г.Менделеевска","Лауреат 1 степени",1]
["художественная","Сиразутдинова Карина Ильдаровна","2016","Палитра","Антипова И.С.","III Всероссийский конкурс \"Наши Zащитники\"","февраль 2025","г. Менделеевск","МКУ УО ИКМО г.Менделеевска","Лауреат 1 степени",1]
["художественная","Абдуллина Арина Айратовна","2015","Палитра","Антипова И.С.","III Всероссийский конкурс \"Наши Zащитники\"","февраль 2025","г. Менделеевск","МКУ УО ИКМО г.Менделеевска","Лауреат 1 степени",1]
["художественная","Абдуллина Арина Айратовна","2015","Палитра","Антипова И.С.","III Всероссийский конкурс \"Наши Zащитники\"","февраль 2025","г. Менделеевск","МКУ УО ИКМО г.Менделеевска","Лауреат 1 степени в номинации Рисунок",1]
["художественная","Мийзаева Сумайя Шайоолобековна","2013","Мастерица","Ионова Е.В.","III Всероссийский конкурс \"Наши Zащитники\"","февраль 2025","г. Менделеевск","МКУ УО ИКМО г.Менделеевска","Лауреат 1 степени",1]
["художественная","Мухтарова Дилия Рафисовна","2014","Радуга творчества","Быстрова Л.М.","III Всероссийский конкурс \"Новогодний мандарин\"","январь, 2025","г. Менделеевск","МКУ УО ИКМО г.Менделеевска","Лауреат 1 степени",1]
["художественная","Барашкова Ирина Дмитриевна","2016","Радуга творчества","Быстрова Л.М.","III Всероссийский конкурс \"Новогодний мандарин\"","январь, 2025","г. Менделеевск","МКУ УО ИКМО г.Менделеевска","Лауреат 1 степени",1]
["художественная","Баранова Вера Максимовна","2016","Радуга творчества","Быстрова Л.М.","III Всероссийский конкурс \"Новогодний мандарин\"","январь, 2025","г. Менделеевск","МКУ УО ИКМО г.Менделеевска","Лауреат 1 степени",1]
["художественная","Осянина Арина Денисовна","2014","Радуга творчества","Быстрова Л.М.","III Всероссийский конкурс \"Новогодний мандарин\"","январь, 2025","г. Менделеевск","МКУ УО ИКМО г.Менделеевска","Лауреат 1 степени",1]
["художественная","Фомичева Капитолина Юрьевна","2016","Радуга творчества","Быстрова Л.М.","III Всероссийский конкурс \"Новогодний мандарин\"","январь, 2025","г. Менделеевск","МКУ УО ИКМО г.Менделеевска","Лауреат 1 степени",1]
["художественная","Шайдуллина Эмилия Рустемовна","2015","Радуга творчества","Быстрова Л.М.","III Всероссийский конкурс \"Новогодний мандарин\"","январь, 2025","г. Менделеевск","МКУ УО ИКМО г.Менделеевска","Лауреат 1 степени",1]
["художественная","Сыроварова Мария Александровна","2013","Радуга творчества","Быстрова Л.М.","III Всероссийский конкурс \"Новогодний мандарин\"","январь, 2025","г. Менделеевск","МКУ УО ИКМО г.Менделеевска","Лауреат 1 степени",1]
["художественная","Самсонова Мария Андреевна","2011","Мастерица","Ионова Е.В.","III Всероссийский конкурс \"Новогодний мандарин\"","январь, 2025","г. Менделеевск","МКУ УО ИКМО г.Менделеевска","Лауреат 1 степени",1]
["художественная","Каримова Диля Радиковна","2013","Мастерица","Ионова Е.В.","III Всероссийский конкурс \"Новогодний мандарин\"","январь, 2025","г. Менделеевск","МКУ УО ИКМО г.Менделеевска","Лауреат 1 степени",1]
["художественная","Гилязов Айнур Айратович","2015","Палитра","Антипова И.С.","III Всероссийский конкурс \"Новогодний мандарин\"","январь, 2025","г. Менделеевск","МКУ УО ИКМО г.Менделеевска","Лауреат 1 степени",1]
["художественная","Нагимова Камилла Венеровна","2016","Палитра","Антипова И.С.","III Всероссийский конкурс \"Новогодний мандарин\"","январь, 2025","г. Менделеевск","МКУ УО ИКМО г.Менделеевска","Лауреат 1 степени",1]
["художественная","Хафизова Ильвина Дамировна","2015","Палитра","Антипова И.С.","III Всероссийский конкурс \"Новогодний мандарин\"","январь, 2025","г. Менделеевск","МКУ УО ИКМО г.Менделеевска","Лауреат 1 степени",1]
["художественная","Косых Родион Евгеньевич","2015","Созвездие","Сергеева М.В.","III Всероссийский конкурс \"Новогодний мандарин\"","январь, 2025","г. Менделеевск","МКУ УО ИКМО г.Менделеевска","Лауреат 1 степени",1]
["художественная","Кузнецова Виктория Дмитриевна","2014","Созвездие","Сергеева М.В.","III Всероссийский конкурс \"Новогодний мандарин\"","январь, 2025","г. Менделеевск","МКУ УО ИКМО г.Менделеевска","Лауреат 1 степени",1]
["художественная","Умарова Рушана Равшановна","2010","Созвездие","Сергеева М.В.","III Всероссийский конкурс \"Новогодний мандарин\"","январь, 2025","г. Менделеевск","МКУ УО ИКМО г.Менделеевска","Лауреат 1 степени",1]
["художественная","Абдуллина Арина Айратовна","2015","Палитра","Антипова И.С.","III Всероссийский конкурс \"Чудесный день - 8 марта\"","март, 2025","г. Менделеевск","МКУ УО ИКМО г.Менделеевска","Лауреат 1 степени",1]
["художественная","Абдуллина Арина Айратовна","2015","Палитра","Антипова И.С.","III Всероссийский конкурс \"Чудесный день - 8 марта\"","март, 2025","г. Менделеевск","МКУ УО ИКМО г.Менделеевска","Лауреат 2 степени",1]
["художественная","Гилязов Айнур Айратович","2015","Палитра","Антипова И.С.","III Всероссийский конкурс \"Чудесный день - 8 марта\"","март, 2025","г. Менделеевск","МКУ УО ИКМО г.Менделеевска","Лауреат 1 степени",1]
["художественная","Иксанова Амелия Руслановна","2015","Палитра","Антипова И.С.","III Всероссийский конкурс \"Чудесный день - 8 марта\"","март, 2025","г. Менделеевск","МКУ УО ИКМО г.Менделеевска","Лауреат 1 степени",1]
["художественная","Лапа Анастасия Павловна","2016","Палитра","Антипова И.С.","III Всероссийский конкурс \"Чудесный день - 8 марта\"","март, 2025","г. Менделеевск","МКУ УО ИКМО г.Менделеевска","Лауреат 1 степени",1]
["художественная","Нагимова Камилла Венеровна","2016","Палитра","Антипова И.С.","III Всероссийский конкурс \"Чудесный день - 8 марта\"","март, 2025","г. Менделеевск","МКУ УО ИКМО г.Менделеевска","Лауреат 1 степени",1]
["художественная","Николаев Радмир Юрьевич","2016","Палитра","Антипова И.С.","III Всероссийский конкурс \"Чудесный день - 8 марта\"","март, 2025","г. Менделеевск","МКУ УО ИКМО г.Менделеевска","Лауреат 1 степени",1]
["художественная","Хусаенова Камиля Рустемовна","2015","Палитра","Антипова И.С.","III Всероссийский конкурс \"Чудесный день - 8 марта\"","март, 2025","г. Менделеевск","МКУ УО ИКМО г.Менделеевска","Лауреат 1 степени",1]
["художественная","Яруллин Алан Ленарович","2015","Палитра","Антипова И.С.","III Всероссийский конкурс \"Чудесный день - 8 марта\"","март, 2025","г. Менделеевск","МКУ УО ИКМО г.Менделеевска","Лауреат 1 степени",1]
["художественная","Икромжонова Райхона Хуснитдиновна","2015","Мастерица","Ионова Е.В.","III Всероссийский конкурс \"Чудесный день - 8 марта\"","март, 2025","г. Менделеевск","МКУ УО ИКМО г.Менделеевска","Лауреат 1 степени",1]
["художественная","Осянина Арина Денисовна","2014","Радуга творчества","Быстрова Л.М.","III Всероссийский конкурс \"Чудесный день - 8 марта\"","март, 2025","г. Менделеевск","МКУ УО ИКМО г.Менделеевска","Лауреат 1 степени",1]
["художественная","Тагирова Айя Ринатовна","2016","Радуга творчества","Быстрова Л.М.","III Всероссийский конкурс \"Чудесный день - 8 марта\"","март, 2025","г. Менделеевск","МКУ УО ИКМО г.Менделеевска","Лауреат 1 степени",1]
["художественная","Валиуллина Аделина Ринатовна","2016","Радуга творчества","Быстрова Л.М.","III Всероссийский конкурс \"Чудесный день - 8 марта\"","март, 2025","г. Менделеевск","МКУ УО ИКМО г.Менделеевска","Лауреат 1 степени",1]
["художественная","Валиуллина Эвелина Ринатовна","2014","Радуга творчества","Быстрова Л.М.","III Всероссийский конкурс \"Чудесный день - 8 марта\"","март, 2025","г. Менделеевск","МКУ УО ИКМО г.Менделеевска","Лауреат 1 степени",1]
["художественная","Валиуллина Аделина Ринатовна","2016","Радуга творчества","Быстрова Л.М.","II Всероссийский конкурс \"Весна идет! Весне дорогу!\"","апрель, 2025","г. Менделеевск","МКУ УО ИКМО г.Менделеевска","Лауреат 1 степени",1]
["художественная","Валиуллина Эвелина Ринатовна","2014","Радуга творчества","Быстрова Л.М.","II Всероссийский конкурс \"Весна идет! Весне дорогу!\"","апрель, 2025","г. Менделеевск","МКУ УО ИКМО г.Менделеевска","Лауреат 1 степени",1]
["художественная","Володягина Ангелина Сергеевна","2016","Радуга творчества","Быстрова Л.М.","II Всероссийский конкурс \"Весна идет! Весне дорогу!\"","апрель, 2025","г. Менделеевск","МКУ УО ИКМО г.Менделеевска","Лауреат 1 степени",1]
["художественная","Тюрикова Арина Александровна","2014","Радуга творчества","Быстрова Л.М.","II Всероссийский конкурс \"Весна идет! Весне дорогу!\"","апрель, 2025","г. Менделеевск","МКУ УО ИКМО г.Менделеевска","Лауреат 1 степени",1]
["художественная","Гилязов Айнур Айратович","2015","Палитра","Антипова И.С.","II Всероссийский конкурс \"Весна идет! Весне дорогу!\"","апрель, 2025","г. Менделеевск","МКУ УО ИКМО г.Менделеевска","Лауреат 1 степени за фотоработу",1]
["художественная","Гилязов Айнур Айратович","2015","Палитра","Антипова И.С.","II Всероссийский конкурс \"Весна идет! Весне дорогу!\"","апрель, 2025","г. Менделеевск","МКУ УО ИКМО г.Менделеевска","Лауреат 1 степени",1]
["художественная","Зайнуллина Зарина Ранилевна","2016","Палитра","Антипова И.С.","II Всероссийский конкурс \"Весна идет! Весне дорогу!\"","апрель, 2025","г. Менделеевск","МКУ УО ИКМО г.Менделеевска","Лауреат 1 степени",1]
["художественная","Иксанова Амелия Руслановна","2015","Палитра","Антипова И.С.","II Всероссийский конкурс \"Весна идет! Весне дорогу!\"","апрель, 2025","г. Менделеевск","МКУ УО ИКМО г.Менделеевска","Лауреат 1 степени",1]
["художественная","Нагимова Камила Венеровна","2016","Палитра","Антипова И.С.","II Всероссийский конкурс \"Весна идет! Весне дорогу!\"","апрель, 2025","г. Менделеевск","МКУ УО ИКМО г.Менделеевска","Лауреат 1 степени",1]
["художественная","Даминова Азалия Рустемовна","2014","Озорные краски","Гиздатуллина К.М.","II Всероссийский конкурс \"Весна идет! Весне дорогу!\"","апрель, 2025","г. Менделеевск","МКУ УО ИКМО г.Менделеевска","Лауреат 1 степени",1]
["художественная","Иксанова Амелия Руслановна","2015","Озорные краски","Гиздатуллина К.М.","II Всероссийский конкурс \"Весна идет! Весне дорогу!\"","апрель, 2025","г. Менделеевск","МКУ УО ИКМО г.Менделеевска","Лауреат 1 степени",1]
["художественная","Камалова Капитолина Аликовна","2015","Озорные краски","Гиздатуллина К.М.","II Всероссийский конкурс \"Весна идет! Весне дорогу!\"","апрель, 2025","г. Менделеевск","МКУ УО ИКМО г.Менделеевска","Лауреат 1 степени",1]
["художественная","Мочалова Аделина Рустамовна","2015","Озорные краски","Гиздатуллина К.М.","II Всероссийский конкурс \"Весна идет! Весне дорогу!\"","апрель, 2025","г. Менделеевск","МКУ УО ИКМО г.Менделеевска","Лауреат 1 степени",1]
["художественная","Салова Анастасия Ивановна","2016","Озорные краски","Гиздатуллина К.М.","II Всероссийский конкурс \"Весна идет! Весне дорогу!\"","апрель, 2025","г. Менделеевск","МКУ УО ИКМО г.Менделеевска","Лауреат 1 степени",1]
["художественная","Сугаюнова Амина Гаделевна","2015","Озорные краски","Гиздатуллина К.М.","II Всероссийский конкурс \"Весна идет! Весне дорогу!\"","апрель, 2025","г. Менделеевск","МКУ УО ИКМО г.Менделеевска","Лауреат 1 степени",1]
["художественная","Сунгатуллина Эльза Романовна","2014","Озорные краски","Гиздатуллина К.М.","II Всероссийский конкурс \"Весна идет! Весне дорогу!\"","апрель, 2025","г. Менделеевск","МКУ УО ИКМО г.Менделеевска","Лауреат 1 степени",1]
["художественная","Хаертдинова Язиля Ирековна","2016","Озорные краски","Гиздатуллина К.М.","II Всероссийский конкурс \"Весна идет! Весне дорогу!\"","апрель, 2025","г. Менделеевск","МКУ УО ИКМО г.Менделеевска","Лауреат 1 степени",1]
["художественная","Володягин Дмитрий Сергеевич","2016","Радуга творчества","Быстрова Л.М.","IV Всероссийский конкурс \"Эхо Победы\"","май, 2025","г. Менделеевск","МКУ УО ИКМО г.Менделеевска","Лауреат 1 степени",1]
["художественная","Володягина Ангелина Сергеевна","2014","Радуга творчества","Быстрова Л.М.","IV Всероссийский конкурс \"Эхо Победы\"","май, 2025","г. Менделеевск","МКУ УО ИКМО г.Менделеевска","Лауреат 1 степени",1]
["художественная","Сыроварова Мария Александровна","2013","Радуга творчества","Быстрова Л.М.","IV Всероссийский конкурс \"Эхо Победы\"","май, 2025","г. Менделеевск","МКУ УО ИКМО г.Менделеевска","Лауреат 1 степени",1]
["художественная","Хайруллин Искандер Радикович ","2014","Радуга творчества","Быстрова Л.М.","IV Всероссийский конкурс \"Эхо Победы\"","май, 2025","г. Менделеевск","МКУ УО ИКМО г.Менделеевска","Лауреат 1 степени",1]
["художественная","Хусаинова Рамиля Ренатовна","2014","Радуга творчества","Быстрова Л.М.","IV Всероссийский конкурс \"Эхо Победы\"","май, 2025","г. Менделеевск","МКУ УО ИКМО г.Менделеевска","Лауреат 1 степени",1]
["художественная","Гилазетдинова Раиля Ильнуровна","2014","Озорные краски","Гиздатуллина К.М.","IV Всероссийский конкурс \"Эхо Победы\"","май, 2025","г. Менделеевск","МКУ УО ИКМО г.Менделеевска","Лауреат 1 степени в номинации \"Аппликация\"",1]
["художественная","Гилазетдинова Раиля Ильнуровна","2014","Озорные краски","Гиздатуллина К.М.","IV Всероссийский конкурс \"Эхо Победы\"","май, 2025","г. Менделеевск","МКУ УО ИКМО г.Менделеевска","Лауреат 1 степени",1]
["художественная","Даминова Азалия Рустемовна","2014","Озорные краски","Гиздатуллина К.М.","IV Всероссийский конкурс \"Эхо Победы\"","май, 2025","г. Менделеевск","МКУ УО ИКМО г.Менделеевска","Лауреат 1 степени",1]
["художественная","Терентьев Артур Романович","2017","Палитра","Антипова И.С.","IV Всероссийский конкурс \"Эхо Победы\"","май, 2025","г. Менделеевск","МКУ УО ИКМО г.Менделеевска","Лауреат 1 степени",1]
["художественная","Хайдарова Азалия Ровшановна","2017","Палитра","Антипова И.С.","IV Всероссийский конкурс \"Эхо Победы\"","май, 2025","г. Менделеевск","МКУ УО ИКМО г.Менделеевска","Лауреат 1 степени",1]
["художественная","Хайдарова Амалия Ровшановна","2017","Палитра","Антипова И.С.","IV Всероссийский конкурс \"Эхо Победы\"","май, 2025","г. Менделеевск","МКУ УО ИКМО г.Менделеевска","Лауреат 1 степени",1]
["художественная","Ахматханова Рамина Рамисовна","2016","Палитра","Антипова И.С.","IV Всероссийский конкурс \"Эхо Победы\"","май, 2025","г. Менделеевск","МКУ УО ИКМО г.Менделеевска","Лауреат 1 степени",1]
["художественная","Тереньева Алиса Сергеевна","2016","Палитра","Антипова И.С.","IV Всероссийский конкурс \"Эхо Победы\"","май, 2025","г. Менделеевск","МКУ УО ИКМО г.Менделеевска","Лауреат 1 степени",1]
["художественная","Аскарова София Айратовна","2016","Палитра","Антипова И.С.","IV Всероссийский конкурс \"Эхо Победы\"","май, 2025","г. Менделеевск","МКУ УО ИКМО г.Менделеевска","Лауреат 1 степени",1]
["художественная","Хусаенова Камиля Рустемовна","2015","Палитра","Антипова И.С.","IV Всероссийский конкурс \"Эхо Победы\"","май, 2025","г. Менделеевск","МКУ УО ИКМО г.Менделеевска","Лауреат 1 степени",1]
["художественная","Нагимова Камилла Венеровна","2016","Палитра","Антипова И.С.","IV Всероссийский конкурс \"Эхо Победы\"","май, 2025","г. Менделеевск","МКУ УО ИКМО г.Менделеевска","Лауреат 1 степени",1]
["художественная","Ибрагимова Елизавета Эдуардовна","2011","Мастерица","Ионова Е.В.","IV Всероссийский конкурс \"Эхо Победы\"","май, 2025","г. Менделеевск","МКУ УО ИКМО г.Менделеевска","Лауреат 1 степени",1]
["физкультурно-спортивная","Крашенинникова Рената Александровна","2007","Карате","Файзуллин Э.З.","Первенство России по киокусинкай","октябрь, 2024","г.Краснодар","Министерство Спорта РФ","3 место",1]
["физкультурно-спортивная","Хасанова Азалия Рамильевна","2010","Карате","Файзуллин Э.З.","Первенство России по киокусинкай","октябрь, 2024","г.Краснодар","Министерство Спорта РФ","3 место",1]
["физкультурно-спортивная","Крашенинникова Рената Александровна","2007","Карате","Файзуллин Э.З.","Всероссийские соревнования по киокусинкай \"Самарский кайман\"","ноябрь, 2024","г.Сызрань","Министерство Спорта РФ","3 место",1]
["физкультурно-спортивная","Ойгур Арина","2014","Карате","Файзуллин Э.З.","Всероссийские соревнования по киокусинкай \"Самарский кайман\"","ноябрь, 2024","г.Сызрань","Министерство Спорта РФ","3 место",1]
["физкультурно-спортивная","Крашенинникова Рената Александровна","2007","Карате","Файзуллин Э.З.","Всероссийские соревнования по киокусинкай КОБУДО \"Самарский кайман\"","ноябрь, 2024","г.Сызрань","Министерство Спорта РФ","3 место",1]
["физкультурно-спортивная","Крашенинникова Рената Александровна","2007","Карате","Файзуллин Э.З.","Всероссийские соревнования по киокусинкай \"Кубок Сатори\"","февраль, 2025","г. Самара","Министерство Спорта РФ","3 место",1]
["художественная","Рогов Матвей Сергеевич","2016","Театр эстрады, сатиры и юмора \"ЕрашОк\"","Гордеева И.В.","V Всероссийкий патриотический фестиваль детско-юношеского творчества \"Орлята учатся летать\", посвященный 80-летию Великой Победы в Великой Отечественной войне 1941-1945 гг.","ноябрь, 2024",null,"МОиН РТ","Специальный приз ",1]
["художественная","Рогов Матвей Сергеевич","2016","Театр эстрады, сатиры и юмора \"ЕрашОк\"","Гордеева И.В.","V Всероссийкий патриотический фестиваль детско-юношеского творчества \"Орлята учатся летать\", посвященный 80-летию Великой Победы в Великой Отечественной войне 1941-1945 гг.","ноябрь, 2024",null,"МОиН РТ","Лауреат 1 степени",1]
["художественная","Яхонт Матвей Николаевич","2010","Театр эстрады, сатиры и юмора \"ЕрашОк\"","Гордеева И.В.","V Всероссийкий патриотический фестиваль детско-юношеского творчества \"Орлята учатся летать\", посвященный 80-летию Великой Победы в Великой Отечественной войне 1941-1945 гг.","ноябрь, 2024",null,"МОиН РТ","Лауреат I степени",1]
["художественная","Соловьева Анна Александровна","2015","Театр эстрады, сатиры и юмора \"ЕрашОк\"","Гордеева И.В.","V Всероссийкий патриотический фестиваль детско-юношеского творчества \"Орлята учатся летать\", посвященный 80-летию Великой Победы в Великой Отечественной войне 1941-1945 гг.","ноябрь, 2024",null,"МОиН РТ","Лауреат II степени",1]
["художественная","Яхонт Матвей Николаевич","2010","Театр эстрады, сатиры и юмора \"ЕрашОк\"","Гордеева И.В.","Открытый всероссийский фестиваль-конкурс любительских театров \"Альма-матер- 2024\"",{"$nulls":3},"Лауреат \"Лучшая мужская роль второго плана\"",1]
["художественная","Соловьева Анна Александровна","2015","Театр эстрады, сатиры и юмора \"ЕрашОк\"","Гордеева И.В.","Всероссийский фестиваль-конкурс \"Мандарин Арт\", \"Русский дом\"","декабрь, 2024","г.Казань","Творческое объединение \"Happy time\"","Лауреат 1 степени",1]
["художественная","Камалов Руслан Ильфатович","2013","Театр эстрады, сатиры и юмора \"ЕрашОк\"","Гордеева И.В.","Всероссийский фестиваль-конкурс \"Мандарин Арт\", \"О героизме\"","декабрь, 2024","г.Казань","Творческое объединение \"Happy time\"","Лауреат 1 степени",1]
["художественная","Хаертдинов Мурат Наилевич","2011","Театр эстрады, сатиры и юмора \"ЕрашОк\"","Гордеева И.В.","Всероссийский фестиваль-конкурс \"Мандарин Арт\", \"Сердце Земли\"","декабрь, 2024","г.Казань","Творческое объединение \"Happy time\"","Лауреат 1 степени",1]
["художественная","Зиннятуллин Данис ","2015","Театр эстрады, сатиры и юмора \"ЕрашОк\"","Гордеева И.В.","Всероссийский фестиваль-конкурс \"Мандарин Арт\", \"Мама\"","декабрь, 2024","г.Казань","Творческое объединение \"Happy time\"","Лауреат 1 степени",1]
["художественная","Волков Дмитрий Евгеньевич ","2011","Театр эстрады, сатиры и юмора \"ЕрашОк\"","Гордеева И.В.","Всероссийский фестиваль-конкурс \"Мандарин Арт\", \"Детский ботинок\"","декабрь, 2024","г.Казань","Творческое объединение \"Happy time\"","Лауреат 1 степени",1]
["художественная","Хитина Дарья Дмитриевна","2015","Театр эстрады, сатиры и юмора \"ЕрашОк\"","Гордеева И.В.","Всероссийский фестиваль-конкурс \"Мандарин Арт\", \"Красная ромашка\"","декабрь, 2024","г.Казань","Творческое объединение \"Happy time\"","Лауреат 1 степени",1]
["художественная","Хаертдинов Мурат Наилевич","2011","Театр эстрады, сатиры и юмора \"ЕрашОк\"","Гордеева И.В.","1 Всероссийский благотворитеельный многожанровый конкурс-фестиваль \"Мы за мир\"","март 225","г.Москва","Всероссийская асоциация учителей-предметников и ПДО  ","Лауреат 1 степени",1]
["художественная","Хаертдинов Мурат Наилевич","2011","Театр эстрады, сатиры и юмора \"ЕрашОк\"","Гордеева И.В.","1 Всероссийский благотворитеельный многожанровый конкурс-фестиваль \"Мы за мир\"","март 225","г.Москва","Всероссийская асоциация учителей-предметников и ПДО  ","Лауреат 2 степени",1]
["художественная","Волков Дмитрий Евгеньевич ","2011","Театр эстрады, сатиры и юмора \"ЕрашОк\"","Гордеева И.В.","1 Всероссийский благотворитеельный многожанровый конкурс-фестиваль \"Мы за мир\"","март 225","г.Москва","Всероссийская асоциация учителей-предметников и ПДО  ","Лауреат 1 степени",1]
["художественная","Высоцкая Василиса","2015","Театр эстрады, сатиры и юмора \"ЕрашОк\"","Гордеева И.В.","Многожанровый конкурс-фестиваль любитеельского художественного творчства на воннопатриотическую тематику \"Память в сердце жива\"","март, 2025","г. Санкт-Петербург","Администрация Колпинского района Санкт-Петербурга, СПб ГБУ КДЦ \"Подвиг\"","Лауреат I степени",1]
["художественная","Рыбина Амелия Витальевна","2013","Театр эстрады, сатиры и юмора \"ЕрашОк\"","Гордеева И.В.","Всероссийский конкурс инструментального, вокального, хореографического, театрального и декоративно-прикладного искусства \"Смуглянка\"","май, 2025","г. Казань","Министерство Культуры РТ","Лауреат 1 степени",1]
["художественная","Галлямова Ясмина","2015","Театр эстрады, сатиры и юмора \"ЕрашОк\"","Гордеева И.В.","Всероссийский конкурс инструментального, вокального, хореографического, театрального и декоративно-прикладного искусства \"Смуглянка\"","май, 2025","г. Казань","Министерство Культуры РТ","Лауреат 1 степени",1]
["художественная","Волков Дмитрий","2011","Театр эстрады, сатиры и юмора \"ЕрашОк\"","Гордеева И.В.","Всероссийский конкурс инструментального, вокального, хореографического, театрального и декоративно-прикладного искусства \"Смуглянка\"","май, 2025","г. Казань","Министерство Культуры РТ","Лауреат II степени",1]
["художественная","Хаертдинов Мурат","2011","Театр эстрады, сатиры и юмора \"ЕрашОк\"","Гордеева И.В.","Всероссийский конкурс инструментального, вокального, хореографического, театрального и декоративно-прикладного искусства \"Смуглянка\"","май, 2025","г. Казань","Министерство Культуры РТ","Лауреат II степени",1]
["художественная","Васильева Софья","2013","Театр эстрады, сатиры и юмора \"ЕрашОк\"","Гордеева И.В.","Всероссийский конкурс инструментального, вокального, хореографического, театрального и декоративно-прикладного искусства \"Смуглянка\"","май, 2025","г. Казань","Министерство Культуры РТ","Лауреат II степени",1]
["художественная","Соловьева Анна Александровна","2015","Театр эстрады, сатиры и юмора \"ЕрашОк\"","Гордеева И.В.","Всероссийский конкурс инструментального, вокального, хореографического, театрального и декоративно-прикладного искусства \"Смуглянка\"","май, 2025","г. Казань","Министерство Культуры РТ","Гран-При",1]
["художественная","Зиннятуллин Данис","2015","Театр эстрады, сатиры и юмора \"ЕрашОк\"","Гордеева И.В.","Всероссийский конкурс инструментального, вокального, хореографического, театрального и декоративно-прикладного искусства \"Смуглянка\"","май, 2025","г. Казань","Министерство Культуры РТ","Лауреат 1 степени",1]
["художественная","Тухфатуллина Рамина","2015","Театр эстрады, сатиры и юмора \"ЕрашОк\"","Гордеева И.В.","Всероссийский конкурс инструментального, вокального, хореографического, театрального и декоративно-прикладного искусства \"Смуглянка\"","май, 2025","г. Казань","Министерство Культуры РТ","Лауреат II степени",1]
["художественная","Хитина Дарья Дмитриевна","2015","Театр эстрады, сатиры и юмора \"ЕрашОк\"","Гордеева И.В.","Всероссийский конкурс инструментального, вокального, хореографического, театрального и декоративно-прикладного искусства \"Смуглянка\"","май, 2025","г. Казань","Министерство Культуры РТ","Лауреат 1 степени",1]
["художественная","Исхакова Мадина","2015","Театр эстрады, сатиры и юмора \"ЕрашОк\"","Гордеева И.В.","Всероссийский конкурс инструментального, вокального, хореографического, театрального и декоративно-прикладного искусства \"Смуглянка\"","май, 2025","г. Казань","Министерство Культуры РТ","Лауреат II степени",1]
["художественная","Рогов Матвей Сергеевич","2016","Театр эстрады, сатиры и юмора \"ЕрашОк\"","Гордеева И.В.","Всероссийский конкурс инструментального, вокального, хореографического, театрального и декоративно-прикладного искусства \"Смуглянка\"","май, 2025","г. Казань","Министерство Культуры РТ","Лауреат II степени",1]
["художественная","Яхонт Матвей Николаевич","2010","Театр эстрады, сатиры и юмора \"ЕрашОк\"","Гордеева И.В.","Всероссийский конкурс инструментального, вокального, хореографического, театрального и декоративно-прикладного искусства \"Смуглянка\"","май, 2025","г. Казань","Министерство Культуры РТ","Лауреат 1 степени",1]
["художественная","Шамбарова Дарья ","2011","Театр эстрады, сатиры и юмора \"ЕрашОк\"","Гордеева И.В.","Всероссийский конкурс инструментального, вокального, хореографического, театрального и декоративно-прикладного искусства \"Смуглянка\"","май, 2025","г. Казань","Министерство Культуры РТ","Лауреат 1 степени",1]
["художественная","Кораблева Ясмина","2015","Театр эстрады, сатиры и юмора \"ЕрашОк\"","Гордеева И.В.","Всероссийский конкурс инструментального, вокального, хореографического, театрального и декоративно-прикладного искусства \"Смуглянка\"","май, 2025","г. Казань","Министерство Культуры РТ","Лауреат 1 степени",1]
["художественная","Камалов Руслан Ильфатович","2013","Театр эстрады, сатиры и юмора \"ЕрашОк\"","Гордеева И.В.","Всероссийский конкурс инструментального, вокального, хореографического, театрального и декоративно-прикладного искусства \"Смуглянка\"","май, 2025","г. Казань","Министерство Культуры РТ","Лауреат 1 степени",1]
["художественная","Шигенина Полина",null,"Театр эстрады, сатиры и юмора \"ЕрашОк\"","Гордеева И.В.","Всероссийский конкурс инструментального, вокального, хореографического, театрального и декоративно-прикладного искусства \"Смуглянка\"","май, 2025","г. Казань","Министерство Культуры РТ","Лауреат II степени",1]
["художественная","Соловьева Анна Александровна",null,"Театр эстрады, сатиры и юмора \"ЕрашОк\"","Гордеева И.В.","Всероссийский нравственно-патриотический конкурс \"Память о Победе: читаем стихи и прозу о войне 1941-1945 годов\"","май, 2025","г. Москва","АНО \"Научно-образовательный центр педагогических проектов\" ","1 место",1]
["художественная","Санталов Михаил",2013,"Вокальное искусство","Сафина АлияИльдаровна","IIIBcepoccийский конкурс инструментального, вокального, хореографического и театрального искусства в рамках благотворительного проекта SFORZANDO «Музыка в каждом сердце»","Февраль, 2025","ДК ЛЕНИНА","МК РТ, УК ИКМО г. Казани","Лауреат 3 степени",1]
["художественная","Санталов Михаил",2013,"Вокальное искусство","Сафина АлияИльдаровна"," Всероссийский культурно-благотворительный фестиваль детского творчества «Добрая волна»","Декабрь, 2024 "," КЦ «Московский»","Президентский фонд культурных инициатив, Мэрия г. Казани"," участие",1]
["художественная","Анисимов Мирон Александрови","2014-04-24"," Театр-студия «Ровесник»","Андреева М.Ю.","V Всероссийский детско-юношеский фестиваль-конкурс патриотической и комсомольской песни и художественного слова «Орлята учатся летать»","Ноябрь 2024 г.","Казанский театр кукол «Экият»","МО и Н РТ, Региональная общественная организация «Объединение ветеранов комсомола РТ»,Всероссийское общественное движение «Балакиревский союз», МБУДО «Детская школа искусств им. М.А.Балакирева» Вахитовского района г.Казани","Лауреат 3 cстепени",1]
["художественная","Перова Ксения Андреевна","2014-11-16"," Театр-студия «Ровесник»","Андреева М.Ю.","V Всероссийский детско-юношеский фестиваль-конкурс патриотической и комсомольской песни и художественного слова «Орлята учатся летать»","Ноябрь 2024 г.","Казанский театр кукол «Экият»","МО и Н РТ, Региональная общественная организация «Объединение ветеранов комсомола РТ»,Всероссийское общественное движение «Балакиревский союз», МБУДО «Детская школа искусств им. М.А.Балакирева» Вахитовского района г.Казани","Лауреат 3 cстепени",1]
["художественная","Захарова Анастасия Константиновна","2009-11-24"," Театр-студия «Ровесник»","Андреева М.Ю.","V Всероссийский детско-юношеский фестиваль-конкурс патриотической и комсомольской песни и художественного слова «Орлята учатся летать»","Ноябрь 2024 г.","Казанский театр кукол «Экият»","МО и Н РТ, Региональная общественная организация «Объединение ветеранов комсомола РТ»,Всероссийское общественное движение «Балакиревский союз», МБУДО «Детская школа искусств им. М.А.Балакирева» Вахитовского района г.Казани","Лауреат 3cстепени",1]
["художественная","Маслова Веоника Андреевна ",".07.12.2011 "," Театр-студия «Ровесник»","Андреева Мария Юрьевна","V Всероссийский детско-юношеский фестиваль-конкурс патриотической и комсомольской песни и художественного слова «Орлята учатся летать»","Ноябрь 2024 г.",null,"МО и Н РТ, Региональная общественная организация «Объединение ветеранов комсомола РТ»,Всероссийское общественное движение «Балакиревский союз», МБУДО «Детская школа искусств им. М.А.Балакирева» Вахитовского района г.Казани","Лауреат 2 cстепени",1]
["художественная","Анисимова Кира Александровн","2010-06-21"," Театр-студия «Ровесник»","Андреева М.Ю.","V Всероссийский детско-юношеский фестиваль-конкурс патриотической и комсомольской песни и художественного слова «Орлята учатся летать»","Ноябрь 2024 г.","Казанский театр кукол «Экият»","МО и Н РТ, Региональная общественная организация «Объединение ветеранов комсомола РТ»,Всероссийское общественное движение «Балакиревский союз», МБУДО «Детская школа искусств им. М.А.Балакирева» Вахитовского района г.Казани","Лауреат 2 cстепени",1]
["художественная","Дмитриева Мария","2013-09-10","Театр Арт","Хасанова Л.Р.","Всероссийский конкурс инструментального, вокального, хореографического и татрального  декоративно-прикладного искусства \"Смуглянка\"","апрель. 2025","ДК им.Ленина","МК РТ","Лауреат 2 степени",1]
["социально-гуманитарная","Григорчук Егор Олегович",2008,"Рукоделие. Терапия творчеством","Шигапова Гузель Равхатовна","Всероссийский открытый детский эколого-кинологический фестиваль \"Наши четвероногие друзья\"","декабрь, 2024","МБУДО \"Центр внешкольной работы\" Приволжского района г.Казани","\"Татарский республиканский совет Всероссийского общества охраны природы\" (Российская кинологическая федерация)","1 место",1]
["международный уровень",{"$nulls":9},{"$f":"SUM(K590:K723)","v":134}]
["физкультурно-спортивная","Азизов Кирилл Камильевич",null,"Карате","Файзуллин Э.З.","Международные соревнования по киокусинкай \"Кубок Наций\"","март, 2025","г. Москва","Федерация Кёкусин-кан  каратэ-до России","1 место",1]
["физкультурно-спортивная","Гафиатуллин Нурислам Ильнурович",null,"Карате","Файзуллин Э.З.","Международные соревнования по киокусинкай \"Кубок Наций\"","март, 2025","г. Москва","Федерация Кёкусин-кан  каратэ-до России","3 место",1]
["художественная","Рыбина Амелия Витальевна","2013","Театр эстрады, сатиры и юмора \"ЕрашОк\"","Гордеева И.В.","Международный фестиваль-конкурс \"Жар-Птица России\"","сентябрь, 2024","г.Москва","Министерство Культуры РФ","Гран При",1]
["художественная","Рыбина Амелия Витальевна","2013","Театр эстрады, сатиры и юмора \"ЕрашОк\"","Гордеева И.В.","Девятый международный конкурс, проходящий в формате ФМВДК \"Таланты России\"","октябрь, 2024","г.Санкт-Петербург","ТО ФМВДК \"Таланты России\"","Лауреат 1 степени",1]
["художественная","Рыбина Амелия Витальевна","2013","Театр эстрады, сатиры и юмора \"ЕрашОк\"","Гордеева И.В.","Международный конкурс-фестиваль \"Осенние творческие игры\"","ноябрь, 2024","г. Москва","Благотворительный фонд поддержки и сопровождения одаренных детей \"Ингениум\"","Лауреат II степени",1]
["художественная","Хаертдинов Мурат Наилевич","2011","Театр эстрады, сатиры и юмора \"ЕрашОк\"","Гордеева И.В.","Международный фестиваль-конкурс искусства и творчества \"Симфония творчества\"","декабрь, 2024","г.Санкт-Петербург","Творческая лаборатория \"Колибри\"","Лауреат 1 степени",1]
["художественная","Зиннятуллин Данис","2015","Театр эстрады, сатиры и юмора \"ЕрашОк\"","Гордеева И.В.","Международный фестиваль искусств \"Звездный путь\"","ноябрь, 2024","г.Санкт-Петербург","Международный Арт-Центр \"Твое искусство\"","Лауреат 1 степени",1]
["художественная","Высоцкая Василиса Евгеньевна","2015","Театр эстрады, сатиры и юмора \"ЕрашОк\"","Гордеева И.В.","Международный литературный конкурс \"Джалиловские чтения\"","март, 2025","г. Казань","Министерство Культуры РФ","2 место",1]
["художественная","Волков Дмитрий Евгеньевич","2011","Театр эстрады, сатиры и юмора \"ЕрашОк\"","Гордеева И.В.","2 Петербургский Международный конкурс \"Калейдоскоп национальных культур\"","апрель, 2025","г.Снкт-Петербург","Министерство Культуры РФ, Министерство Просвещения РФ","2 место",1]
["художественная","Волков Дмитрий Евгеньевич","2011","Театр эстрады, сатиры и юмора \"ЕрашОк\"","Гордеева И.В.","2 Петербургский Международный конкурс \"Калейдоскоп национальных культур\"","апрель, 2025","г.Снкт-Петербург","Министерство Культуры РФ, Министерство Просвещения РФ","Золотая медаль 2 место",1]
["художественная","Хаертдинов Мурат Наилевич","2011","Театр эстрады, сатиры и юмора \"ЕрашОк\"","Гордеева И.В.","2 Петербургский Международный конкурс \"Калейдоскоп национальных культур\"","апрель, 2025","г.Снкт-Петербург","Министерство Культуры РФ, Министерство Просвещения РФ","3 место",1]
["художественная","Хаертдинов Мурат Наилевич","2011","Театр эстрады, сатиры и юмора \"ЕрашОк\"","Гордеева И.В.","2 Петербургский Международный конкурс \"Калейдоскоп национальных культур\"","апрель, 2025","г.Снкт-Петербург","Министерство Культуры РФ, Министерство Просвещения РФ","Золотая медаль3 место",1]
["художественная","Маслова Веоника Андреевна ",".07.12.2011 "," Театр-студия «Ровесник»","Андреева Мария Юрьевна","6 Международный конкурс-фестиваль детского творчества «ArtFest-Казань»","16 марта 2025 г.","ДК «Юность» г. Казань","Концертно-фестивальный центр «АРТФЕСТ»","Лауреат 1 степени",1]
["художественная","Захарова Анастасия Константиновна","2009-11-24"," Театр-студия «Ровесник»","Андреева Мария Юрьевна","6 Международный конкурс-фестиваль детского творчества «ArtFest-Казань»","16 марта 2025 г.","ДК «Юность» г. Казань","Концертно-фестивальный центр «АРТФЕСТ»","Лауреат 1 степени",1]
["художественная","Перова Ксения Андреевна","2014-11-16"," Театр-студия «Ровесник»","Андреева Мария Юрьевна","6 Международный конкурс-фестиваль детского творчества «ArtFest-Казань»","16 марта 2025 г.","ДК «Юность» г. Казань","Концертно-фестивальный центр «АРТФЕСТ»","Лауреат 1 степени",1]
["художественная","Маслова Веоника Андреевна ",".07.12.2011 "," Театр-студия «Ровесник»","Андреева Мария Юрьевна","Международный конкурс-фестиваль \"Ладино Полесье","сентябрь, 2024","г.Москва","МК РФ","Лауреат  3 степени",1]
["художественная","Анисимов Мирон Александрови","2014-04-24"," Театр-студия «Ровесник»","Андреева Мария Юрьевна","Международный конкурс-фестиваль \"Ладино Полесье","сентябрь, 2024","г.Москва","МК РФ","Лауреат  3 степени",1]
["художественная","Зверева София",null,"Театр \"Арт\"","Хасанова Л.Р.","Международный конкурс-фестиваль детского, юношеского и взрослого творчества \"Арт авеню\"","март, 2025","КДК им. Ленина ","Комитет по развитию науки, образования и культуры","Лауреат 1 степени",1]
["художественная","Исмагилова Азалия  Азатовна","2015-06-10","Театр \"Арт\"","Хасанова Л.Р.","Международный конкурс-фестиваль детского, юношеского и взрослого творчества \"Арт авеню\"","март, 2025","КДК им. Ленина ","Комитет по развитию науки, образования и культуры","Лауреат 1 степени",1]
["художественная","Салахов Азамат",null,"Театр \"Арт\"","Хасанова Л.Р.","Международный конкурс-фестиваль детского, юношеского и взрослого творчества \"Арт авеню\"","март, 2025","КДК им. Ленина ","Комитет по развитию науки, образования и культуры","Лауреат 1 степени",1]
["художественная","Салахова Айсылу Ильнуровна","2015-02-06","Театр \"Арт\"","Хасанова Л.Р.","Международный конкурс-фестиваль детского, юношеского и взрослого творчества \"Арт авеню\"","март, 2025","КДК им. Ленина ","Комитет по развитию науки, образования и культуры","Лауреат 1 степени",1]
["художественная","Стрелков Лев Михайлович","2014-07-18","Театр \"Арт\"","Хасанова Л.Р.","Международный конкурс-фестиваль детского, юношеского и взрослого творчества \"Арт авеню\"","март, 2025","КДК им. Ленина ","Комитет по развитию науки, образования и культуры","Лауреат 1 степени",1]
["художественная","Ромодановская Алана Амиловна ","2017-09-02","Живое слово","Шайдуллина Р.Х.","Международный литературный конкурс \"Джалиловские чтения\"","2025"," заочно","МОиН РТ, МК РТ,Всемирный конгресс татар","Диплом     Финалист",1]
["художественная","Хасанов Разиль Ришатович","20.08.2019","Живое слово","Шайдуллина Р.Х.","Международный литературный конкурс \"Джалиловские чтения\"","2025"," заочно","МОиН РТ, МК РТ,Всемирный конгресс татар","Сертификат     Финалист",1]
["художественная","Турна Роберт Эдьдарович","20.08.2019","Живое слово","Шайдуллина Р.Х.","Международный литературный конкурс \"Джалиловские чтения\"","2025"," заочно","МОиН РТ, МК РТ,Всемирный конгресс татар","Сертификат     Финалист",1]
["художественная","Галкин Евгений",null,"Театр \"Арт\"","Хасанова Л.Р.","Международный конкурс-фестиваль \"Шаг на сцену\"","январь,2025"," ДК им.Гайдара","МК РТ","Лауреат 2 степени",1]
["художественная","Карасева Вера Павловна","2011-07-28","Театр \"Арт\"","Хасанова Л.Р.","Международный конкурс-фестиваль \"Шаг на сцену\"","январь,2025"," ДК им.Гайдара","МК РТ","Лауреат 2 степени",1]
["художественная","Карасева Елизавета Павловна","2011-09-28","Театр \"Арт\"","Хасанова Л.Р.","Международный конкурс-фестиваль \"Шаг на сцену\"","январь,2025"," ДК им.Гайдара","МК РТ","Лауреат 2 степени",1]
["художественная","Матвеев  Данила Валерьевич","11.01.2013","Театр \"Арт\"","Хасанова Л.Р.","Международный конкурс-фестиваль \"Шаг на сцену\"","январь,2025"," ДК им.Гайдара","МК РТ","Лауреат 2 степени",1]
["художественная","Халиуллина Камилла Марселевна ","2013-12-31","Театр \"Арт\"","Хасанова Л.Р.","Международный конкурс-фестиваль \"Шаг на сцену\"","январь,2025"," ДК им.Гайдара","МК РТ","Лауреат 2 степени",1]
["художественная","Шарифуллина Эмилия","2015-06-10","Театр \"Арт\"","Хасанова Л.Р.","Международный конкурс-фестиваль \"Шаг на сцену\"","январь,2025"," ДК им.Гайдара","МК РТ","Лауреат 2 степени",1]
["художественная","Каримова Карина","22.07.2013","Театр \"Арт\"","Хасанова Л.Р.","Международный конкурс-фестиваль \"Шаг на сцену\"","январь,2025"," ДК им.Гайдара","МК РТ","Лауреат 2 степени",1]
["художественная","Анисимова Кира Александровна","21.06.2010"," Студия современной хореографии «Мистерия»,","Егорова Е.Е.","Международный конкурс искусства и творчества \"Арт вызов\"","февраль, 2025","ТГТК «Экият» ","МК РТ","Диплом",1]
["художественная","Антонова Анастасия Александровна","28.12.2009"," Студия современной хореографии «Мистерия»,","Егорова Е.Е.","Международный конкурс искусства и творчества \"Арт вызов\"","февраль, 2025","ТГТК «Экият» ","МК РТ","Диплом",1]
["художественная","Арестова Вероника Вячеславовна","23.04.2011"," Студия современной хореографии «Мистерия»,","Егорова Е.Е.","Международный конкурс искусства и творчества \"Арт вызов\"","февраль, 2025","ТГТК «Экият» ","МК РТ","Диплом",1]
["художественная","Варламова Милана Артуровна","25.09.2011"," Студия современной хореографии «Мистерия»,","Егорова Е.Е.","Международный конкурс искусства и творчества \"Арт вызов\"","февраль, 2025","ТГТК «Экият» ","МК РТ","Диплом",1]
["художественная","Надолинская Ксения Дмитриевна","26.08.2009"," Студия современной хореографии «Мистерия»,","Егорова Е.Е.","Международный конкурс искусства и творчества \"Арт вызов\"","февраль, 2025","ТГТК «Экият» ","МК РТ","Диплом",1]
["художественная","Натфуллина Ясмин Дамировна","26.09.2009"," Студия современной хореографии «Мистерия»,","Егорова Е.Е.","Международный конкурс искусства и творчества \"Арт вызов\"","февраль, 2025","ТГТК «Экият» ","МК РТ","Диплом",1]
["художественная","Саубанова Марьям Артуровна","26.11.2011"," Студия современной хореографии «Мистерия»,","Егорова Е.Е.","Международный конкурс искусства и творчества \"Арт вызов\"","февраль, 2025","ТГТК «Экият» ","МК РТ","Диплом",1]
["художественная","Хасанова Алия Рашидовна","26.11.2008"," Студия современной хореографии «Мистерия»,","Егорова Е.Е.","Международный конкурс искусства и творчества \"Арт вызов\"","февраль, 2025","ТГТК «Экият» ","МК РТ","Диплом",1]
["художественная","Муйжеземник Ксения Дмитриевна","16.08.2010"," Студия современной хореографии «Мистерия»,","Егорова Е.Е.","Международный конкурс искусства и творчества \"Арт вызов\"","февраль, 2025","ТГТК «Экият» ","МК РТ","Диплом",1]
["социально-гуманитарная","Григорчук Егор Олегович",2008,"Швейная мастерская","Шигапова Гузель Равхатовна","Медународный  фестиваль \"Детство без границ\"","апрель, 2025","г.Москва","Международный союз детских общественных обединений \"Союз пионерских организаций - Федерация детских организаций СПО-ФДО)","Диплом",1]
["социально-гуманитарная","Григорчук Глеб Олегович",2008,"Швейная мастерская","Шигапова Гузель Равхатовна","Медународный  фестиваль \"Детство без границ\"","апрель, 2025","г.Москва","Международный союз детских общественных обединений \"Союз пионерских организаций - Федерация детских организаций СПО-ФДО)","Диплом",1]
[{"$nulls":10},{"$f":"SUM(K725:K767)","v":43}]

{"sheet":"достижения командные","index":1,"n_rows":144,"n_cols":10,"rows_kept":144,"merged":[[1,0,1,8],[4,0,4,8],[16,0,16,8],[29,0,30,0],[29,1,30,1],[29,2,30,2],[29,3,30,3],[29,4,30,4],[29,5,30,5],[29,6,30,6],[29,7,30,7],[29,8,30,8],[44,0,44,8],[77,0,77,8],[80,0,80,8],[108,0,108,8]]}
[]
["Сведения о результативности учащихся МБУДО \"Центр детского творчества\" Вахитовского района г. Казани за 2024-2025 учебный год "]
[]
["направленность (художественная, физкультурно-спортивная и т.д.)","коллектив объединения (название коллектива и кол-во чел-к)","год рождения (2005-2006)","Фамилия, инициалы педагога","Название мероприятия (в соответствии с Положением)","дата проведения мероприятия (месяц, год)","Место проведения мероприятия","Ведомство - организатор мероприятия (УО ИК МО, Отдел УО ИК МО по Вах. И Прив. р-нам, МОиН РТ и т.д.) ","результат"]
["районный уровень"]
["художественная","«Театр-студия «Ровесник», 20 чел.","2010-2016","Андреева М.Ю."," Конкурс «Мама – ангел на Земле», посвященный Году семьи и Дню матери","2024-11-27","ЦДТ","ОУ ИК МО  г. Казани по Вахитовскому и Приволжскому районам, ЦДТ Вахитовского района","Лауреат 1 степени",1]
["художественная","«Театр-студия «Ровесник», 15 чел.","2017-2018","Андреева М.Ю."," Конкурс «Мама – ангел на Земле», посвященный Году семьи и Дню матери","2024-11-27","ЦДТ","ОУ ИК МО  г. Казани по Вахитовскому и Приволжскому районам, ЦДТ Вахитовского района","Лауреат 2 степени",1]
["художественная","«Театр-студия «Ровесник», 15 чел.","2017-2018","Андреева М.Ю."," Конкурс «Мама – ангел на Земле», посвященный Году семьи и Дню матери","2024-11-27","ЦДТ","ОУ ИК МО  г. Казани по Вахитовскому и Приволжскому районам, ЦДТ Вахитовского района","Лауреат 3 степени",1]
["художественная","Студия современной хореографии «Мистерия», 10 человек","(2008-2011)","Егорова Е.Е.","Районный фестиваль УДО «Наследники Великой Победы»","Февраль,2025","МБОУ лицей №186","УО ИК МО, Отдел УО ИК МО по Вах. и Прив. р-нам,","ожидается",1]
["художественная","«Театр-студия «Ровесник», 20 чел.","2010-2016","Андреева М.Ю.","Районный фестиваль УДО «Наследники Великой Победы»","Февраль,2025","МБОУ лицей №186","УО ИК МО, Отдел УО ИК МО по Вах. и Прив. р-нам,","ожидается",1]
["художественная"," Театр Арт, 15 чел.","2010-2014"," Хасанова Лия Ринатовна"," Конкурс «Мама – ангел на Земле», посвященный Году семьи и Дню матери"," 27.112024"," МБУДО ЦДТ Вахтовского р-на"," Отдел УО ИКМ образования г.кКхани по Вахи.и Приволж-му р-ну."," Лауреат 2 степени",1]
["художественная"," Театр Арт, 15 чел.","2010-2014"," Хасанова Лия Ринатовна"," Конкурс «Мама – ангел на Земле», посвященный Году семьи и Дню матери"," 27.112024"," МБУДО ЦДТ Вахтовского р-на"," Отдел УО ИКМ образования г.кКхани по Вахи.и Приволж-му р-ну."," Лауреат 3 степени",1]
["художественная","Живое слово 25 чел.",2017,"Шайдуллина Р.Х.","Районный конкурс театральных коллективов им.М.Салимжанова","2025-03-15","гимназия № 19","Отдел УО ИК МО по Вах. и Прив. р-нам,"," Лауреат 3 степени",1]
["художественная","Студия современной хореографии «Мистерия», 10 человек"," (2008-2011)","Егорова Е.Е.","Муниципальный этап республиканского детского художественного фестиваля на родного творчества \"Без берге\""," Апреля2025"," МБУДО ДШИ Приволжского района"," УО ИК МО, ","Лауреат 1 степени",1]
["социально-гуманитарная","Григорчук Глеб Олегович      Григорчук Егор Олегович Рукоделие. Терапия творчеством",2008,"Шигапова Гузель Равхатовна","Районный этап XXVII медународного фестиваля \"Детство без границ\"","апрель, 2025","МБУДО \"Центр детского творчества\" Вахитовского района           г. Казань","ОУО ИК МО г.Казани по Ваитовскому и Приволжскому районам","1 место",1]
[{"$nulls":9},{"$f":"SUM(J6:J15)","v":10}]
["городской уровень"]
["художественная"," Ковалева Ангелина, Карамышева Екатерина","2011-2013","Егорова Е.Е.","городской конкурс изобрзительного и декоратвно-прикладного творчества \"Новый год в сказку добрую зовет\"","декабрь, 2024","МБУДО \"ЦДТ\" Вах-го р-на","УО ИК МО","Лауреат 1 степени",1]
["художественная","Студия \"Мастерица\"","2013-2015","Ионова Е.В.","городской конкурс изобрзительного и декоратвно-прикладного творчества \"Новый год в сказку добрую зовет\"","декабрь, 2024","МБУДО \"ЦДТ\" Вах-го р-на","УО ИК МО","Лауреат 3 степени",1]
["художественная","Студия \"Завиток\"","2011-2013","Егорова Е.Е.","Городской конкурс декоративно-прикладного творчества \"Вдохновение\"","декабрь, 2024","МБУДО \"ЦДТ \"Азино\"","УО ИК МО","Лауреат 3 степени",1]
["художественная","Карамышева Ангелина, Галимзянова Зарина, Давидова Зилия","2011-2013","Егорова Е.Е.","Городской конкурс декоративно-прикладного творчества \"Вдохновение\"","декабрь, 2024","МБУДО \"ЦДТ \"Азино\"","УО ИК МО","Дипломант 2 степени",1]
["художественная","Совет обучающихся",null,"Фоменко Л.М.","Городской конкурс видеороликов детских общественных объединений, организаций и школьного ученического самоуправления \"Лидер и его команда\"","декабрь, 2024","МБУДО \"ЦДОД\" Заречье\"","УО ИК МО г. Казани","1 место",1]
["художественная","МБОУ \"Гимназия № 3\" Вахитовского района г. Казани",null,"Фоменко Л.М.","Городской конкурс видеороликов детских общественных объединений, организаций и школьного ученического самоуправления \"Лидер и его команда\"","декабрь, 2024","МБУДО \"ЦДОД\" Заречье\"","УО ИК МО г. Казани","1 место",1]
["художественная","МБОУ \"Лицей № 5\" Вахитовского района г. Казани",null,"Фоменко Л.М.","Городской конкурс видеороликов детских общественных объединений, организаций и школьного ученического самоуправления \"Лидер и его команда\"","декабрь, 2024","МБУДО \"ЦДОД\" Заречье\"","УО ИК МО г. Казани","2 место",1]
["художественная","МБОУ \"Школа № 14\" Вахитовского района г. Казани",null,"Фоменко Л.М.","Городской конкурс видеороликов детских общественных объединений, организаций и школьного ученического самоуправления \"Лидер и его команда\"","декабрь, 2024","МБУДО \"ЦДОД\" Заречье\"","УО ИК МО г. Казани","3 место",1]
["художественная","МБОУ \"Лицей № 5\" Вахитовского района г. Казани",null,"Фоменко Л.М.","Городская квест-игра для активистов детских общественных организаций и органов ученического самоуправления \"АБВГД\" (Активист, Будь Всегда Готов Действовать)","май, 2025","Горьковско-Ометьевский парк","УО ИК МО г. Казани","Гран-При",1]
["художественная","Театр эстрады, сатиры и юмора \"ЕрашОк\", 2 чел.","2013-2015","Гордеева И.В.","XIX городской экологический фестиваль сценического творчества школьников \"Солнечный мост\"","ноябрь, 2024","г. Казань","УО ИКМО г. Казани","1 место",1]
["художественная"," Театр-студия «Ровесник», 2 человека","2010-2014"," Андреева Мария Юрьевна","Литературный видеопроект \"Война в стихах\"","ноябрь, 2024","КМЦ  им.А.Гайдара","МКУ «Комитет по делам детей и молодежи» Исполнительного комитета города Казани","Сертификат",1]
["художественная"," Театр-студия «Ровесник», 20 человек","2010-2014"," Андреева Мария Юрьевна"," Городской конкурс литературно-музыкальных композиций «Неугасима память поколений»"," 07.03.2025 г."," МБУДО ЦВР Авиастроительный  р-он"," Управление образования исполнительного комитета муниципаоьного образования г.Казани","  2 место",1]
[" Художественная"," Театр Арт 12чел,",null," Хасанова Лия Ринатовна"," Городской конкурс литературно-музыкальных композиций «Неугасима память поколений»"," 7.03.2025","МБУДО ЦВР Авиастроительный  р-он"," Управление образования исполнительного комитета муниципаоьного образования г.Казани"," 2 место",1]
[{"$nulls":9},1]
["Художественная"," Театр-студия \"Ровесник\", 16 чел.","2010-2014","Андреева Мария Юрьевна","7 Городской конкурс театррального искусства среди обучающихся образовательных учреждений и учреждений дополн ительного образования \"Стихия\"","декабрь, 2024","МБУДО \"ЦДТ \"Детская академия\" Советского района г.Казани","УО ИКМО г.Казани","2 место",1]
["Художественная"," Театр Арт , 2 группа 12 чел","2010-2014"," Хасанова Лия Ринатовна"," Городской фестиваль-конкурс театральных коллективов «Да здравствует театр!»"," 25 марта 2024 года"," «ЦДОД»Заречье»","УО ИК МО"," Диплом 3 степени , 1 группа",1]
["Художественная"," Театр Арт 2 группа, 12 чел","2010-2014"," Хасанова Лия Ринатовна"," Городской фестиваль-конкурс театральных коллективов «Да здравствует театр!»10-14 лет, постановка на русском языке"," 25 марта 2025 года"," «ЦДОД»Заречье»","УО ИК МО","Сертификат участника",1]
["Художественная"," Театр Арт  1 группа 13 чел","2010-2014"," Хасанова Лия Ринатовна"," Городской фестиваль-конкурс театральных коллективов «Да здравствует театр!»"," 25 марта 2025 года"," «ЦДОД»Заречье»","УО ИК МО","Диплом 3 степени, 2 группа",1]
["Художественная"," Театр-студия \"Ровесник\", 16 чел.","2010-2014","Андреева Мария Юрьевна"," Городской фестиваль-конкурс театральных коллективов «Да здравствует театр!»"," 25 марта 2025 года"," «ЦДОД»Заречье»","УО ИК МО","Диплом лауреата 1степени",1]
["Художественная","Танцевальный коллектив \"Стихия\", 8 чел.","2010-2012","Холмогорцева Ольга Викторовна","Фестиваль национальных культур «Алтын сэгать» (Золотое время)","Декабрь 2024 г.","заочно","Управление образования исполнительного комитета г.Казани","Лауреат 2 степени",1]
["Художественная","Театр-студия «Ровесник», 20 человек","2010-2014","Андреева Мария Юрьевна","Фестиваль национальных культур «Алтын сэгать» (Золотое время)","Декабрь 2024 г.","заочно","Управление образования исполнительного комитета г.Казани","Лауреат 1 степени",1]
["социально-гуманитарная","В мире знаний и творчества                                              Закиров Артур Олегович                     Жаворонков Владимир Игоревич","                                                                                                           2009    2012","Бердникова Марина Григорьевна","Городской конкурс изобразительного и декоративно -прикладного творчества «Новый год в сказку добрую зовёт»"," январь, 2025","МБУДО \"Центр детского творчества\" Вахитовского района           г. Казань","УО ИК МО г. Казани","Дипломанты II  степени",1]
["социально-гуманитарная","В мире знаний и творчества                                              Хасанов Артем Алексеевич                    Альбеков Алан Альбертович","                                                                                                   2012                                                                2014","Бердникова Марина Григорьевна","Городской конкурс изобразительного и декоративно -прикладного творчества «Новый год в сказку добрую зовёт»"," январь, 2025","МБУДО \"Центр детского творчества\" Вахитовского района           г. Казань","УО ИК МО г. Казани","Дипломанты III  степени",1]
["социально-гуманитарная","Декор                                Ким Радмир Артурович                              Садретдинов Ислам Ринатович                  ","               2011                                                  2012                                    ","Иванова Светлана Викторовна","Городской конкурс изобразительного и декоративно -прикладного творчества «Новый год в сказку добрую зовёт»"," январь, 2025","МБУДО \"Центр детского творчества\" Вахитовского района           г. Казань","УО ИК МО г. Казани","Лауреаты  II степени",1]
["социально-гуманитарная","Английский, играя                  Ясавиева Элина Ильхамовна                                 Хакимова Раяна Альмировна                                 Коробейник Владислава Максимовна","2016                         2015                           2015","Мансурова Тамара Иркиновна","Городской конкурс изобразительного и декоративно -прикладного творчества «Новый год в сказку добрую зовёт»"," январь, 2025","МБУДО \"Центр детского творчества\" Вахитовского района           г. Казань","УО ИК МО г. Казани","Дипломанты II  степени",1]
["социально-гуманитарная","Английский с нами               Джамбилова Аделя                Джамбилова Малика       Наврозов Карим                      Матвеев Александр                          Пурис Алена                           Мингазов Тимур                      Махмутов Ранель               Мамедова Асинат                ",null,"Эминова Нафиса Гусмановна","Городской конкурс изобразительного и декоративно -прикладного творчества «Новый год в сказку добрую зовёт»"," январь, 2025","МБУДО \"Центр детского творчества\" Вахитовского района           г. Казань","УО ИК МО г. Казани","Дипломанты III  степени",1]
["социально-гуманитарная","Английский с нами                   Сабитов Айдар                       Косых Родион",null,"Эминова Нафиса Гусмановна","Городской конкурс изобразительного и декоративно -прикладного творчества «Новый год в сказку добрую зовёт»"," январь, 2025","МБУДО \"Центр детского творчества\" Вахитовского района           г. Казань","УО ИК МО г. Казани","Дипломанты III  степени",1]
["республиканский уровень",{"$nulls":8},{"$f":"SUM(J18:J44)","v":27}]
["художественная","Студия \"Завиток\"","2009-2014","Егорова Е.Е.","Республиканский экологический конкурс детского и юношеского творчества \"На планете голубой\"","декабрь, 2024","ЦДТ Вахитовского района","ГАОУ \"РОЦ\" МОиН РТ","Лауреат 2 степени",1]
["художественная","Театр эстрады, сатиры и юмора \"ЕрашОк\", 2 чел.","2013-2015","Гордеева И.В.","Республиканский конкурс современного искусства в рамках проекта \"В ритме Жизни\" \"Прорыв\"","ноябрь, 2024","г. Казань","ГБУДО \"РЦВР\"","Лауреат 1 степени",1]
["художественная","Театр эстрады, сатиры и юмора \"ЕрашОк\", 24 чел.","2013-2015","Гордеева И.В.","Республиканский конкурс-фестиваль \"Патриоты России\"","ноябрь, 2024","г. Казань","РО Всероссийского военно-патриотического днтско-юношеского общественного движения \"ЮНАРМИЯ\" РТ","Лауреат 1 степени",1]
["художественная","Театр эстрады, сатиры и юмора \"ЕрашОк\", 24 чел.","2010-2016","Гордеева И.В.","Республиканский фестиваль-конкурс \"Браво-2025. Одна на всех Великая Победа, посвященный году 80-летия Победы в Великой Отечественной войне\"","март, 2025","г. Казань","ГАОУ \"Республиканский олимпиадный центр\"","Лауреат 1 степени",1]
["художественная","Студия эстрадного танца \"Дежавю\", 16 чел.","2013-2015","Каримова К.Р.","Республиканский фестиваль-конкурс \"Браво-2025. Одна на всех Великая Победа, посвященный году 80-летия Победы в Великой Отечественной войне\"","март, 2025","г. Казань","ГАОУ \"Республиканский олимпиадный центр\"","Лауреат II степени",1]
["художественная","Театр эстрады, сатиры и юмора \"ЕрашОк\", 24 чел.","2010-2016","Гордеева И.В.","8 Республиканский конкурс детского творчества \"На страже Отечества\", посвященный Году Защитника отечества, специальной военной операции","март, 2025","г. Казань","РБУДО РЦВР","Лауреат 1 степени",1]
["художественная","Хусаинов Айнур,    Гавриш Милана","2012, 2013","Сафина АлияИльдаровна","Открытый республиканский фестиваль по бальным танцам «Метелица – 2025»","Февраль, 2025","ДК г. Лениногорска","МКУ «Управление культуры» ИК МО «ЛМР» РТ, ТСК «Астра» г. Лениногорска","2 место",1]
["художественная","Хусаинов Айнур,    Гавриш Милана","2012, 2013","Сафина АлияИльдаровна","Открытый республиканский фестиваль по бальным танцам «Метелица – 2025»","Февраль, 2025","ДК г. Лениногорска","МКУ «Управление культуры» ИК МО «ЛМР» РТ, ТСК «Астра» г. Лениногорска","1  места",1]
["художественная"," Студия спортивно-бального танца «Фиеста», 12"," 2015-2009","   Сафина АлияИльдаровна"," Республиканский экологический конкурс детского и юношеского творчества «На планете голубой»","декабрь, 2024 ","заочно"," ГАОУ «Республиканский Олимпиадный центр» МОиН РТ"," Лауреат 3 степени. Вместе мы",1]
["художественная"," Студия спортивно-бального танца «Фиеста», 12"," 2015-2009","   Сафина АлияИльдаровна"," Республиканский экологический конкурс детского и юношеского творчества «На планете голубой»","декабрь, 2024 ","заочно"," ГАОУ «Республиканский Олимпиадный центр» МОиН РТ"," Лауреат 3 степени, Ягодная история",1]
["художественная"," Театр-студия «Ровесник», Маслова Вероника, Захарова Анастасия"," 2009 -2011 "," Андреева Мария Юрьевна"," Республиканский фестиваль-конкурс «Патриоты России!»"," Ноябрь 2024 г."," заочно","  ГБУДО «РЦВР,МБУДО «ГДДТ» им. А, Алиша;","  Лауреат 1 степени",1]
["художественная"," Театр-студия «Ровесник», 20 человек","2009-2014"," Андреева Мария Юрьевна"," Республиканский фестиваль-конкурс «Браво – 2025». , посвященный 80-летию Победы в Великой Отечественной войне"," Март 2025 г."," ЦДТ Вахитовского района г.Казани"," ГАОУ «Республиканский олимпиадный центр», МБУДО «Центр детского творчества» Вахитовского района","Лауреат 1 степени",1]
["художественная"," Театр - Арт 12 чел","2010-2014"," Хасанова Лия Ринатовна"," Республиканский фестиваль-конкурс «Браво – 2025». , посвященный 80-летию Победы в Великой Отечественной войне"," 07.03.2025"," ЦДТ Вахитовского района г.Казани"," ГАОУ «Республиканский олимпиадный центр», МБУДО «Центр детского творчества» Вахитовского района"," Лауреат 2 степени",1]
["художественная"," Танцевальный коллектив «Стихия»,8 чел","2009-2011"," Холмогорцева Ольга Викторовна"," Республиканский фестиваль-конкурс «Браво – 2025». , посвященный 80-летию Победы в Великой Отечественной войне"," Март 2025 г."," ЦДТ Вахитовского района г.Казани"," ГАОУ «Республиканский олимпиадный центр», МБУДО «Центр детского творчества» Вахитовского района","Лауреат 1 степени",1]
["художественная","Студия современной хореографии «Мистерия», 10 человек","(2008-2011)","Егорова Е.Е."," Зональный этап республиканского конкурса «Без-берге»","2025-05-01","МБОУ \"Гимназия №189\""," УО ИК МО, Отдел УО ИК МО по Вах. и Прив. р-нам","ожидается",1]
["художественная","Студия современной хореографии «Мистерия», 10 человек"," (2008-2011)","Егорова Е.Е."," Республиканский Фестиваль- конкурс- «Браво-25», посвященный 80-летию Победы в Великой Отечественной войне"," Март 2025"," ЦДТ Вахитовского района","ГАОУ«РОЦ»,МОиН РТ,  МБУДО «Центр детского творчества» Вахитовского района"," Лауреат 1 степени",1]
["художественная","Танцевальный коллектив «Стихия»(«Дорогой лотосов»), 8 ","2009-2011","Холмогорцева Ольга Викторовна Кургузова-Холмогорцева Елена Евгеньевна"," Республиканский экологический конкурс детского и юношеского творчества “На планете голубой»"," Ноябрь2024"," ЦДТ Вахитовского района","ГАОУ«РОЦ»МБУ,МОиН РТ "," Лауреат 1 степени",1]
["художественная","Танцевальный коллектив «Стихия»(«Каз канаты» ) 8","2009-2011","Холмогорцева Ольга Викторовна Кургузова-Холмогорцева Елена Евгеньевна"," Республиканский экологический конкурс детского и юношеского творчества “На планете голубой»"," Ноябрь2024"," ЦДТ Вахитовского района","ГАОУ«РОЦ»МБУ,МОиН РТ "," Лауреат 1 степени",1]
["художественная","Танцевальный коллектив «Стихия» 8","2009-2011","Холмогорцева Ольга Викторовна Кургузова-Холмогорцева Елена Евгеньевна"," Республиканский экологический конкурс детского и юношеского творчества “На планете голубой»"," Ноябрь2024"," ЦДТ Вахитовского района","ГАОУ«РОЦ»МБУ,МОиН РТ "," Лауреат 2 степени",1]
["художественная","Студия современной хореографии «Мистерия», 8 человек"," (2008-2011)","Егорова Е.Е."," Республиканский экологический конкурс детского и юношеского творчества “На планете голубой»"," Ноябрь2024"," ЦДТ Вахитовского района","ГАОУ«РОЦ»МБУ,МОиН РТ "," Лауреат 1 степени",1]
["художественная","Захарова Анастасия Константиновна Маслова Вероника Андреевна"," 2009 -2011 ","Андреева М.Ю."," IХ Республиканский фестиваль-конкурс современного эстрадного творчества «Прорыв» в рамках проекта «В ритме жизни!»","Декабрь 2024 г.","заочно"," ГБУДО «Республиканский центр внешкольной работы»","Лауреата 2 степен",1]
["художественная","Студия современной хореографии «Мистерия», 10 человек"," (2008-2011)","Егорова Е.Е.","IX Республиканский конкурс современного искусства «Прорыв»"," Декабрь2024","КЦ им. В.И.Ленина","РЦВР, МБУ «ДШИ №15»"," Лауреат 1 степени",1]
["художественная","Студия современной хореографии «Мистерия»,10 человек"," (2012-2014)","Егорова Е.Е.","IX Республиканский конкурс современного искусства «Прорыв»"," Декабрь2024","КЦ им. В.И.Ленина","РЦВР, МБУ «ДШИ №15»"," Лауреат 1 степени",1]
["художественная","Театр-студия «Ровесник», 15 человек"," 2009 -2015 ","Андреева Мария Юрьевна","XIРеспубликанский фестиваль-конкурс «Радужная сцена» номинация «Чтобы помнили», Номинация «Миниатюра»","Апрель 2025 г.","МБУДО ГЭБЦ ","МО и Н РТ, Республиканский олимпиадный центр"," Лауреат  2 степени",1]
["художественная","Театр-студия «Ровесник», 15 человек"," 2009 -2015 ","Андреева Мария Юрьевна","XIРеспубликанский фестиваль-конкурс «Радужная сцена» номинация Номинация «Спектакль»","Апрель 2025 г.","МБУДО ГЭБЦ ","МО и Н РТ, Республиканский олимпиадный центр"," Лауреат  2 степени",1]
["художественная","Театр-студия «Ровесник», 15 человек"," 2009 -2015 ","Андреева Мария Юрьевна","XIРеспубликанский фестиваль-конкурс «Радужная сцена» номинация «Чтобы помнили»","Апрель 2025 г.","МБУДО ГЭБЦ ","МО и Н РТ, Республиканский олимпиадный центр"," Лауреат 1 степени",1]
["социально-гуманитарная"," В мире знаний и творчества: Жаворонков Владимир Игоревич            Закиров Артур Олегович","                                                                                              2009                              2012"," Бердникова Марина Григорьевна","Республиканский конкурс изобразительного и декоративно-прикладного творчества \"Чудеса из ларца»","апрель, 2025","МБУДО \"Центр детского творчества\" Вахитовского района г. Казань","ГАОУ «Республиканский Олимпиадный центр» МОиН РТ ","Лауреат  III степени",1]
["социально-гуманитарная","Декор                                Ким Радмир Артурович                              Садретдинов Ислам Ринатович","               2011                                                  2012","Иванова Светлана Викторовна"," Республиканский экологический конкурс детского и юношеского творчества «На планете голубой»"," декабрь, 2024 ","МБУДО \"Центр детского творчества\" Вахитовского района           г. Казань","ГАОУ «Республиканский Олимпиадный центр» МОиН РТ ","Лауреат  I степени",1]
["социально-гуманитарная"," В мире знаний и творчества: Жаворонков Владимир Игоревич            Закиров Артур Олегович","                                                                                              2009                              2012"," Бердникова Марина Григорьевна"," Республиканский экологический конкурс детского и юношеского творчества «На планете голубой»"," декабрь, 2024 ","МБУДО \"Центр детского творчества\" Вахитовского района           г. Казань","ГАОУ «Республиканский Олимпиадный центр» МОиН РТ ","Лауреат  II степени",1]
["социально-гуманитарная","Швейная мастерская Григорчук Глеб Олегович      Григорчук Егор Олегович",2008,"Шигапова Гузель Равхатовна","Межрегиональный конкурс изобразительного и декоративно-прикладного творчества \"Удивительный мир\" ","декабрь, 2024","МБУ ДО \"Центр внешкольной работы\" Приволжского района г.Казань","ГБУ ДО \"РЦВР\"","Диплом III место",1]
[{"$nulls":9},{"$f":"SUM(J46:J75)","v":30}]
[]
["региональный уровень"]
["художественная","Театр эстрады, сатиры и юмора \"ЕрашОк\", 2 чел.","2013-2015","Гордеева И.В.","Межрегиональный конкурс \"Весенний переполох\" в рамках проекта \"В ритме жизни\"","март, 2025","г. Казань","ГБУДО РЦВР","Лауреат 1 степени",1]
["художественная","Театр эстрады, сатиры и юмора \"ЕрашОк\", 7 чел.","2010-2016","Гордеева И.В.","Межрегиональный конкурс \"Весенний переполох\" в рамках проекта \"В ритме жизни\"","март, 2025","г. Казань","ГБУДО РЦВР","Лауреат II степени",1]
["российский уровень",{"$nulls":8},2]
["художественная","Камалова Капитолина, Гатиятуллина Самира",2016,"Гиздатуллина К.М.","IV Всероссийский конкурс \"Эхо Победы\"","май, 2025","г. Менделеевск","МКУ УО ИКМО г.Менделеевска","Лауреат 1 степени",1]
["художественная","Театр эстрады, сатиры и юмора \"ЕрашОк\", 24 чел.","2010-2016","Гордеева И.В.","V Всероссийкий патриотический фестиваль детско-юношеского творчества \"Орлята учатся летать\", посвященный 80-летию Великой Победы в Великой Отечественной войне 1941-1945 гг.","ноябрь, 2024","г. Казань","МОиН РТ","Лауреат II степени",1]
["художественная","Театр эстрады, сатиры и юмора \"ЕрашОк\", 10 чел.","2010-2016","Гордеева И.В.","Открытый всероссийский фестиваль-конкурс любительских театров \"Альма-матер- 2024\"","октябрь, 2024","г. Орел","Министерство Культуры РФ","Лауреат III степени",1]
["художественная","Театр эстрады, сатиры и юмора \"ЕрашОк\", 11 чел.","2010-2016","Гордеева И.В.","Открытый всероссийский фестиваль-конкурс любительских театров \"Альма-матер- 2024\"","октябрь, 2024","г. Орел","Министерство Культуры РФ","Лауреат III степени",1]
["художественная","Театр эстрады, сатиры и юмора \"ЕрашОк\", 9 чел.","2010-2016","Гордеева И.В.","Открытый всероссийский фестиваль-конкурс любительских театров \"Альма-матер- 2024\"","октябрь, 2024","г. Орел","Министерство Культуры РФ","Лауреат III степени",1]
["художественная","Театр эстрады, сатиры и юмора \"ЕрашОк\", 30 чел.","2010-2016","Гордеева И.В.","Открытый всероссийский фестиваль-конкурс любительских театров \"Альма-матер- 2024\"","октябрь, 2024","г. Орел","Министерство Культуры РФ","Лауреат III степени",1]
["художественная","Студия танца \"Дежавю\", 30 чел","2014-2016","Каримова К.Р.","Всероссийский фестиваль-конкурс детского творчества \"Барсик\"","октябрь, 2024","г. Казань","Уполномоченный по правам ребенка в РТ","Лауреат 1 степени",1]
["художественная","Студия танца \"Дежавю\", 30 чел","2014-2016","Каримова К.Р.","Национальная премия в области творчества \"Лукоморье\"","ноябрь, 2024","г.Москва","Министерство Культуры РФ","Лауреат 1 степени",1]
["художественная","Театр эстрады, сатиры и юмора \"ЕрашОк\", 24 чел.","2011-2015","Гордеева И.В.","Всероссийский фестиваль-конкурс \"Мандарин Арт\", \"Россию лучше не дразнить\"","декабрь, 2024","г.Казань","Творческое объединение \"Happy time\"","Лауреат 1 степени",1]
["художественная","Театр эстрады, сатиры и юмора \"ЕрашОк\", 24 чел.","2011-2015","Гордеева И.В.","Всероссийский фестиваль-конкурс \"Мандарин Арт\", \"Элли в волшебной стране\"","декабрь, 2024","г.Казань","Творческое объединение \"Happy time\"","Лауреат 1 степени",1]
["художественная","Театр эстрады, сатиры и юмора \"ЕрашОк\", 2 чел.","2013-2015","Гордеева И.В.","Всероссийский фестиваль-конкурс \"Мандарин Арт\", \"Пойду схожу за счастьем на базар\"","декабрь, 2024","г.Казань","Творческое объединение \"Happy time\"","Лауреат 1 степени",1]
["художественная","Студия танца \"Дежавю\", 20 чел","2016-2017","Каримова К.Р.","Всероссийский фестиваль-конкурс \"Добрые традиции\"","март, 2025","г.Казань","Творческое объединение \"Happy time\"","Лауреат 1 степени",1]
["художественная","Студия танца \"Дежавю\", 20 чел","2013-2011","Каримова К.Р.","Всероссийский фестиваль-конкурс \"Добрые традиции\"","март, 2025","г.Казань","Творческое объединение \"Happy time\"","Лауреат 1 степени",1]
["художественная","Театр эстрады, сатиры и юмора \"ЕрашОк\", 24 чел.","2013-2011","Гордеева И.В.","1 Всероссийский благотворитеельный многожанровый конкурс-фестиваль \"Мы за мир\"","март, 2025","г.Москва","Всероссийская асоциация учителей-предметников и ПДО  ","Лауреат 1 степени",1]
["художественная","Театр эстрады, сатиры и юмора \"ЕрашОк\", 24 чел.","2011-2015","Гордеева И.В.","Всероссийский фестиваль театрального творчества \"Беренче театр\" ","апрель, 2025","г. Казань","МОиН РТ","Диплом 1 степени",1]
["художественная","Театр эстрады, сатиры и юмора \"ЕрашОк\", 3 чел.","2011-2015","Гордеева И.В.","Всероссийский конкурс инструментального, вокального, хореографического, театрального и декоративно-прикладного творчества \"Смуглянка\"","май, 2025","г. Казань","Министерство Культуры РТ","Лауреат 1 степени",1]
["художественная","Театр эстрады, сатиры и юмора \"ЕрашОк\", 10 чел.","2011-2015","Гордеева И.В.","Всероссийский конкурс инструментального, вокального, хореографического, театрального и декоративно-прикладного творчества \"Смуглянка\"","май, 2025","г. Казань","Министерство Культуры РТ","Лауреат 1 степени",1]
["художественная","Татр \"Арт\", 15 чел.","2010-2012","Хасанова Лия Ринатовна","III Всероссийский фестиваль театрального творчества \"Беренче театр\""," 26Марта  2025","КГИК","МК РФ,МОиН РТ","Диплом 2 степени, ",1]
["художественная","Татр \"Арт\", 15 чел.","2010-2012","Хасанова Лия Ринатовна","III Всероссийский фестиваль театрального творчества \"Беренче театр\""," 26Марта  2025","КГИК","МК РФ,МОиН РТ","Диплом 1 степени",1]
["художественная","Татр \"Арт\", 15 чел.","2014-2016","Хасанова Лия Ринатовна","Всероссийский  конкурс-фестиваль»Зимние Встречи»"," 15.02.25","заочно","МК РФ,МОиН РТ","Лауреат  2 степени",1]
["художественная","Татр \"Арт\", 11 человек","2014-2016","Хасанова Лия Ринатовна","Всероссийский конкурс инструментального,вокального,хореографического,театрального и декоративно –прикладного искусства «Смуглянка»","2025-05-03","ДК им.Гайдара","МК РФ,МОиН РТ","Лауреат 2 степени",1]
["художественная","Студия современной хореографии «Мистерия», 8 человек"," (2008-2011)","Егорова Е.Е.","V Всероссийский патриотический фестиваль- конкурс детского творчества «Орлята учатся летать»","2024-11-01"," КЦ  «Экият» "," при поддержке МОиН РТ, МО РТ; ГБУ ДО РЦВР","Лауреат 1 степени",1]
["Художественная","Театр Арт 13 чел.","2014-2016","Хасанова Лия Ринатона","Всероссийский  благотворительный многожанровый конкурс фестиваль «Мы Za мир»","2025-02-20","онлайн"," Концертно-фестивальный центр «АртФест» Межрегиональный  центр поддержки иразвития культурных традиций и инноваций Российской Федерации ","Лауреат  1степени",1]
["Художественная","Театр Арт, 12 чел.",null,"Хасанова Лия Ринатона","Всероссийский  благотворительныймногожанровый конкурс фестиваль «Мы Za мир»","2025-02-20","онлайн"," Концертно-фестивальный центр «АртФест» Межрегиональный  центр поддержки иразвития культурных традиций и инноваций Российской Федерации ","Лауереат 2 степени",1]
["Художественная","Танцевальный коллектив «Стихия»",null,"Холмогорцева Ольга Викторовна","Хореографический конкурс-фестиваль «Сказки на Неве»  ","24 ноября 2024","КЦ «Акият»","Спортивно-творческая организация «4 сезона»"," Лауреат 1 степени",1]
["Художественная","Танцевальный коллектив «Стихия»","2009-2011","Холмогорцева Ольга Викторовна"," VIВсероссийский конкурс-фестиваль хореографического искусства «Достучаться до сердца», "," 13 апреля 2025 года",null," «Танцуй жизнь» При поддержке Министерства культуры РФ"," лауреат 2 степени",1]
["Художественная","Театр-студия «Ровесник», 20 человек",null,"Андреева Мария Юрьевна","3 Всероссийский фестиваль театрального творчества «Беренче театр»","Март 2025 г.","Институт культуры","Минкульт. РФ, Минкульт. РТ, МОиН РТ, институт культуры"," Лауреат 2 степени",1]
["международный уровень",{"$nulls":8},1]
["художественная","Театр эстрады, сатиры и юмора \"ЕрашОк\", 24 чел.","2011-2015","Гордеева И.В.","Международный фестиваль-конкурс \"Жар-Птица России\"","сентябрь, 2024","г.Москва","Министерство Культуры РФ","Лауреат 1 степени",1]
["художественная","Театр эстрады, сатиры и юмора \"ЕрашОк\", 24 чел.","2011-2015","Гордеева И.В.","Международный фестиваль-конкурс искусства и творчества \"Вдохновение\" ","октябрь, 2024","г.Санкт-Петербург","Международный Арт-Центр \"Наследие\"","Лауреат III степени",1]
["художественная","Театр эстрады, сатиры и юмора \"ЕрашОк\", 2 чел.","2013-2015","Гордеева И.В.","Международный конкурс искусств \"Перспектива - Арт\"","ноябрь, 2024","г.Москва","Международный фестивальный центр \"Ритм\"","Лауреат 1 степени",1]
["художественная","Студия танца \"Дежавю\"","2014-2016","Каримова К.Р.","Международный конкурс-фестиваль \"Синергия России\"","ноябрь, 2024","г.Москва","Министерство Культуры РФ","Лауреат 1 степени",1]
["художественная","Театр эстрады, сатиры и юмора \"ЕрашОк\", 2 чел.","2013-2015","Гордеева И.В.","Международный конкурс искусств \"В ритме времени\"","ноябрь, 2024","г.Москва","Международный фестивальный центр \"Ритм\"","Лауреат 1 степени",1]
["художественная","Театр эстрады, сатиры и юмора \"ЕрашОк\", 24 чел.","2011-2015","Гордеева И.В."," Международный конкурс современного искусства \"Казань Stars-Зажечь звезду\"","ноябрь, 2024","г. Казань","ГБУ \"Культурный центр имени А.С. Пушкина\" г. Казани\"","Лауреат III степени",1]
["художественная","Театр эстрады, сатиры и юмора \"ЕрашОк\", 24 чел.","2011-2015","Гордеева И.В.","Международный конкурс-фестиваль \"Осенние творческие игры\"","ноябрь, 2024","г. Москва","Благотворительный фонд поддержки и сопровождения одаренных детей \"Ингениум\"","Лауреат II степени",1]
["художественная","Театр эстрады, сатиры и юмора \"ЕрашОк\", 24 чел.","2011-2015","Гордеева И.В.","Международный фестиваль-конкурс искусства и творчества \"Симфония творчества\", Россию лучше не дразнить","декабрь, 2024","г.Снкт-Петербург","Творческая лаборатория \"Колибри\"","Лауреат II степени",1]
["художественная","Театр эстрады, сатиры и юмора \"ЕрашОк\", 24 чел.","2011-2015","Гордеева И.В.","Международный фестиваль-конкурс искусства и творчества \"Симфония творчества\", Элли","декабрь, 2024","г.Снкт-Петербург","Творческая лаборатория \"Колибри\"","Лауреат II степени",1]
["художественная","Театр эстрады, сатиры и юмора \"ЕрашОк\", 24 чел.","2011-2015","Гордеева И.В.","Международный фестиваль-конкурс искусства и творчества \"Симфония творчества\", Пойду схожу за счастьем","декабрь, 2024","г.Снкт-Петербург","Творческая лаборатория \"Колибри\"","Лауреат II степени",1]
["художественная","Театр эстрады, сатиры и юмора \"ЕрашОк\", 2чел.","2011-2015","Гордеева И.В.","Международный фестиваль-конкурс искусства и творчества \"На олимпе\",Пойду схожу за счастьем ","декабрь, 2024","г. Москва","Министерство Культуры Республики Крым","Лауреат II степени",1]
["художественная","Театр эстрады, сатиры и юмора \"ЕрашОк\", 24 чел.","2011-2015","Гордеева И.В.","Международный фестиваль-конкурс искусства и творчества \"На олимпе\",  Россию лучш н дразнить","декабрь, 2024","г. Москва","Министерство Культуры Республики Крым","Лауреат I степени",1]
["художественная","Театр эстрады, сатиры и юмора \"ЕрашОк\", 2чел.","2011-2015","Гордеева И.В.","Международный Кастинг-конкурс \"Сияние 2025\"","март, 2025","г.Снкт-Петербург","Концертно-продюсерский центр \"Мьюзик Медиа\"","Лауреат  3 степени",1]
["художественная","Театр эстрады, сатиры и юмора \"ЕрашОк\", 17 чел.","2011-2015","Гордеева И.В.","Международный фестиваль-конкурс \"Tatar-Stars\"","май, 2025","г.Казань","Министерство культуры РТ","Лауреат I степени",1]
["художественная","Театр эстрады, сатиры и юмора \"ЕрашОк\", 6 чел.","2015-2017","Гордеева И.В.","Международный фестиваль-конкурс \"Tatar-Stars\"","май, 2025","г.Казань","Министерство культуры РТ","Лауреат II степени",1]
["художественная"," Студия современной хореографии «Мистерия», 10 человек "," (2008-2010)","Егорова Е.Е.","  Международный  конкурс   искусства и творчества «Арт Вызов»"," Январь2025"," КЦ  «Экият»","ГБУ ДО РЦВР. Международный  фестивальный центр ","  Лауреат 1 степени",1]
["художественная"," Студия современной хореографии «Мистерия», 10 человек"," (2012-2014)","Егорова Е.Е.","  Международный  конкурс танцевального  искусства «Казань в танцах»"," Март 2025","КЦ им. В.И.Ленина","при поддержке МОиН РТ, МК РТ; ГБУ ДО РЦВР","  Лауреат 1 степени",1]
["художественная"," Студия современной хореографии «Мистерия», 8 человек "," (2008-2010)","Егорова Е.Е."," Международный  конкурс танцевального  искусства «Казань в танцах","2025-03-01","КЦ им. В.И.Ленина","при поддержке МОиН РТ, МК РТ; ГБУ ДО РЦВР","Лауреат1 степени",1]
["художественная"," Студия современной хореографии «Мистерия», 10 человек"," (2008-2010)","Егорова Е.Е.","Международный  конкурс танцевального  искусства «Казань в танцах»","2025-03-01","КЦ им. В.И.Ленина","при поддержке МОиН РТ, МК РТ; ГБУ ДО РЦВР","Лауреат 1 степени",1]
["художественная"," Студия современной хореографии «Мистерия»,20человек "," (2008-2010) 9-12 лет (2012-2014)","Егорова Е.Е.","Международный  конкурс танцевального  искусства «Казань в танцах»","2025-03-01","КЦ им. В.И.Ленина","при поддержке МОиН РТ, МК РТ; ГБУ ДО РЦВР","Гран- При",1]
[" художественная"," Студия спортивно-бального танца «Фиеста», 4","2010-2011 ","  Сафина АлияИльдаровна"," Международный конкурс-фестиваль вокального, хореографического и театрального творчества «Содружество талантов»"," Январь, 2025"," ДК Ленина"," МОиН РТ, МК РТ"," Лауреат 2 степени",1]
[" Художественная"," Театр-студия «Ровесник», 20 человек","2010-2014"," Андреева Мария Юрьевна "," 6 Международный конкурс-фестиваль детского творчества «ArtFest–Казань»"," Март 2025 г."," Дом культуры «Юность» г. Казань","Центр поддержки и развития культурных традиций и инноваций РФ «АРТФЕСТ»","Лауреат 1 степени",1]
["Художественная","Танцевальный коллектив «Стихия»","2009-2011","Холмогорцева Ольга Викторовна","Международный конкурс-фестиваль \"Зимний марафон талантов\"","2025-01-01",null,"МК РФ","Лауреат 1 степени",1]
["Художественная","Танцевальный коллектив «Стихия»","2009-2011","Холмогорцева Ольга Викторовна","  Международный  конкурс танцевального  искусства «Казань в танцах»"," 2 марта 2025","КЦ им. В.И.Ленина","РБОФ при поддержке Министерства культуры РТ Управления культуры ИКМО г. Казани","Лауреат 3 степени",1]
["художественная","Театр \"Арт\", 17 чел.","2010-2015","Хасанова Р.Р."," Международный конкурс-фестиваль вокального, хореографического и театрального творчества «Christmas Time»","2025-02-01"," КЦ им. В.И.Ленина","МК РФ"," Лауреат  1 степени. Волшебник изумрудного города",1]
["художественная","Театр \"Арт\", 17 чел.","2010-2015","Хасанова Р.Р."," Международный конкурс-фестиваль вокального, хореографического и театрального творчества «Christmas Time»","2025-02-01"," КЦ им. В.И.Ленина","МК РФ"," Лауреат  1 степени, Айболит",1]
["художественная","Театр \"Арт\", 17 чел.","2010-2015","Хасанова Р.Р."," Международный конкурс-фестиваль вокального, хореографического и театрального творчества «Christmas Time»","2025-02-01"," КЦ им. В.И.Ленина","МК РФ","Лауреат  1 степени. Похититель Нового года",1]
["художественная","Карасева Вера Павловна, Карсева Елизавета Павловна","03.02.2010, 17.10.2012","Хасанова Р.Р.","Международный конкурс вокалистов и чтецов\"Голос Татарстана\"","ноябрь,2024"," КЦ им. В.И.Ленина","МК РФ","Лауреат  1 степени",1]
["художественная","Театр \"Арт\", 17 чел.","2010-2015","Хасанова Р.Р.","Международный конкурс фестиваль осенний «Марафон Талантов»","2024-10-31"," дистанционно","МК РФ","Лауреат 3 степени",1]
["художественная","Театр \"Арт\", 15 чел.","2010-2015","Хасанова Р.Р.","Международный конкурс вокалистов и чтецов \" \"Золотой голос Орфея\"","2025-03-02","ДК им.Гайдара","МК РФ","Лауреат 2 степени",1]
["художественная","Театр \"Арт\", 15 чел.","2010-2015","Хасанова Р.Р.","Международный конкурс вокалистов и чтецов \" \"Золотой голос Орфея\"","2025-03-02","ДК им.Гайдара","МК РФ","Лауреат 1 степени",1]
["художественная","Театр \"Арт\", 15 чел.","2010-2015","Хасанова Р.Р.","Международня музыкальная премия \"Сфорцандо\"","11мая 2025г","ДК им.Ленина","МК РФ","Лауреат  1 стнпени",1]
["художественная","Театр \"Арт\". 15 чел.","2010-2015","Хасанова Р.Р.","Международный конкурс-фестиваль \"Поколение 2024\"","2025-11-01"," г.Альметьевск","МК РФ","Лауреат  1 стнпени",1]
["художественная","Театр \"Арт\", 17 чел.","2014-2016","Хасанова Лия Ринатовна","Международный конкурс-фестиваль \"Шаг на сцену\"","26.01.2025г"," ДК им.Гайдара","МК РТ"," Лауреат 2 степени",1]
[{"$nulls":9},{"$f":"SUM(J79:J143)","v":66}]

{"sheet":"поощрения ПДО","index":2,"n_rows":163,"n_cols":5,"rows_kept":163,"merged":[[1,0,1,3],[4,0,4,3],[57,0,57,3],[87,0,87,3],[115,0,115,3],[117,0,117,3],[136,0,136,3]]}
[]
["Сведения о поощрениях педагогов дополнительного образования \nМБУДО \"Центр детского творчества\" Вахитовского района г. Казани \nза 2024-2025 учебный год "]
[]
["Фамилия, инициалы","вид поощрения, название мероприятия  (в соответствии с Положением)","дата получения (месяц, год)","Ведомство, награждающая организация (УО ИК МО г. Казани, Отдел УО ИК МО по Вах. и Прив. р-нам, МОиН РТ и т.д.) "]
["районный уровень"]
["Быстрова Л.М.","Почетная грамота за добросовестный труд","сентябрь, 2024","Отдел УО ИКМО по Вах. и Прив. Районам",1]
["Зеленцов Д.А.","Почетная грамота за добросовестный труд","сентябрь, 2024","Отдел УО ИКМО по Вах. и Прив. Районам",1]
["Камалова О.А.","Диплом за содействие в организации и проведении районного этапа городского шахматного турнира \"В гостях у шахматной королевы\"","октябрь, 2024","Отдел УО ИКМО по Вах. и Прив. Районам",1]
["Антипова И.С.","Почетная грамота за добросовестный труд","май, 2025","Отдел УО ИКМО по Вах. и Прив. Районам",1]
["Ибрагимова Э.Г.","Диплом за организацию и проведение районного этапа городского турнира по шахматам \"В гостях у Шахматной королевы\" в рамках Школьной Лиги города Казани среди учащихся 3-4 классов","октябрь, 2024","Отдел УО ИК МО по Вах. и Прив. р-нам",1]
["Минсафина Р.Р.","Диплом за организацию и проведение районного этапа городского турнира по шахматам \"В гостях у Шахматной королевы\" в рамках Школьной Лиги города Казани среди учащихся 3-4 классов","октябрь, 2024","Отдел УО ИК МО по Вах. и Прив. р-нам",1]
["Татьянушкина В.В.","Диплом за организацию и проведение районного этапа городского турнира по шахматам \"В гостях у Шахматной королевы\" в рамках Школьной Лиги города Казани среди учащихся 3-4 классов","октябрь, 2024","Отдел УО ИК МО по Вах. и Прив. р-нам",1]
["Фоменко Л.М.","Диплом за организацию и проведение районного этапа городского турнира по шахматам \"В гостях у Шахматной королевы\" в рамках Школьной Лиги города Казани среди учащихся 3-4 классов","октябрь, 2024","Отдел УО ИК МО по Вах. и Прив. р-нам",1]
["Фоменко Л.М.","Благодарственное письмо за организацию и проведение районного конкурса \"Сомбеля\"","ноябрь, 2024","Отдел УО ИК МО по Вах. и Прив. р-нам",1]
["Татьянушкина В.В.","Благодарственное письмо за организацию и проведение районного конкурса \"Сомбеля\"","ноябрь, 2024","Отдел УО ИК МО по Вах. и Прив. р-нам",1]
["Суханова М.В.","Благодарственное письмо за организацию и проведение районного конкурса \"Сомбеля\"","ноябрь, 2024","Отдел УО ИК МО по Вах. и Прив. р-нам",1]
["Кургузова-Холмогорцева Е.Е.","Благодарственное письмо за организацию и проведение районного конкурса \"Сомбеля\"","ноябрь, 2024","Отдел УО ИК МО по Вах. и Прив. р-нам",1]
["Ибрагимова Э.Г.","Благодарственное письмо за организацию и проведение районного конкурса \"Сомбеля\"","ноябрь, 2024","Отдел УО ИК МО по Вах. и Прив. р-нам",1]
["Абдуллина Э.А.","Благодарственное письмо за организацию и проведение районного конкурса \"Сомбеля\"","ноябрь, 2024","Отдел УО ИК МО по Вах. и Прив. р-нам",1]
["Мифтахова Л.Р.","Благодарственное письмо за организацию и проведение районного конкурса \"Сомбеля\"","ноябрь, 2024","Отдел УО ИК МО по Вах. и Прив. р-нам",1]
["Кургузова-Холмогорцева Е.Е.","Благодарственное письмо за организацию и проведение районного конкурса \"Татар кызы, татар егете - 2024\"","ноябрь, 2024","Отдел УО ИК МО по Вах. и Прив. р-нам",1]
["Мифтахова Л.Р.","Благодарственное письмо за организацию и проведение районного конкурса \"Татар кызы, татар егете - 2024\"","ноябрь, 2024","Отдел УО ИК МО по Вах. и Прив. р-нам",1]
["Абдуллина Э.А.","Благодарственное письмо за организацию и проведение районного конкурса \"Татар кызы, татар егете - 2024\"","ноябрь, 2024","Отдел УО ИК МО по Вах. и Прив. р-нам",1]
["Ибрагимова Э.Г.","Благодарственное письмо за организацию и проведение районного конкурса \"Татар кызы, татар егете - 2024\"","ноябрь, 2024","Отдел УО ИК МО по Вах. и Прив. р-нам",1]
["Суханова М.В.","Благодарственное письмо за организацию и проведение районного конкурса \"Татар кызы, татар егете - 2024\"","ноябрь, 2024","Отдел УО ИК МО по Вах. и Прив. р-нам",1]
["Татьянушкина В.В.","Благодарственное письмо за организацию и проведение районного конкурса \"Татар кызы, татар егете - 2024\"","ноябрь, 2024","Отдел УО ИК МО по Вах. и Прив. р-нам",1]
["Фоменко Л.М.","Благодарственное письмо за организацию и проведение районного конкурса \"Татар кызы, татар егете - 2024\"","ноябрь, 2024","Отдел УО ИК МО по Вах. и Прив. р-нам",1]
["Абдуллина Э.А.","Диплом за организацию и проведение турнира по шахматам \"Белая ладья\" среди учащихся общеобразовательных учреждений Приволжского района г. Казани","ноябрь, 2024","Администрация Вахитовского и Приволжского р-ов",1]
["Кургузова-Холмогорцева Е.Е.","Диплом за организацию и проведение турнира по шахматам \"Белая ладья\" среди учащихся общеобразовательных учреждений Приволжского района г. Казани","ноябрь, 2024","Администрация Вахитовского и Приволжского р-ов",1]
["Минсафина Р.Р.","Диплом за организацию и проведение турнира по шахматам \"Белая ладья\" среди учащихся общеобразовательных учреждений Приволжского района г. Казани","ноябрь, 2024","Администрация Вахитовского и Приволжского р-ов",1]
["Ибрагимова Э.Г.","Диплом за организацию и проведение турнира по шахматам \"Белая ладья\" среди учащихся общеобразовательных учреждений Приволжского района г. Казани","ноябрь, 2024","Администрация Вахитовского и Приволжского р-ов",1]
["Мифтахова Л.Р.","Диплом за организацию и проведение турнира по шахматам \"Белая ладья\" среди учащихся общеобразовательных учреждений Приволжского района г. Казани","ноябрь, 2024","Администрация Вахитовского и Приволжского р-ов",1]
["Петрова Е.Л.","Диплом за организацию и проведение турнира по шахматам \"Белая ладья\" среди учащихся общеобразовательных учреждений Приволжского района г. Казани","ноябрь, 2024","Администрация Вахитовского и Приволжского р-ов",1]
["Суханова М.В.","Диплом за организацию и проведение турнира по шахматам \"Белая ладья\" среди учащихся общеобразовательных учреждений Приволжского района г. Казани","ноябрь, 2024","Администрация Вахитовского и Приволжского р-ов",1]
["Татьянушкина В.В.","Диплом за организацию и проведение турнира по шахматам \"Белая ладья\" среди учащихся общеобразовательных учреждений Приволжского района г. Казани","ноябрь, 2024","Администрация Вахитовского и Приволжского р-ов",1]
["Мифтахова Л.Р.","Благодарственное письмо за организацию и проведение районного конкурса лидеров и руководителей детских/молодежных общественных объединений \"Лидер - 2024\"","декабрь, 2024","Отдел УО ИК МО по Вах. и Прив. р-нам",1]
["Фоменко Л.М.","Благодарственное письмо за организацию и проведение районного конкурса лидеров и руководителей детских/молодежных общественных объединений \"Лидер - 2024\"","декабрь, 2024","Отдел УО ИК МО по Вах. и Прив. р-нам",1]
["Суханова М.В.","Благодарственное письмо за организацию и проведение районного этапа городского конкурса вокалистов и вокальных коллективов \"Казан сандугачы - 2025\"","январь, 2025","Отдел УО ИК МО по Вах. и Прив. р-нам",1]
["Фоменко Л.М.","Благодарственное письмо за организацию и проведение районного этапа городского конкурса вокалистов и вокальных коллективов \"Казан сандугачы - 2025\"","январь, 2025","Отдел УО ИК МО по Вах. и Прив. р-нам",1]
["Абдуллина Э.А.","Благодарственное письмо за организацию и проведение районного этапа городского конкурса вокалистов и вокальных коллективов \"Казан сандугачы - 2025\"","январь, 2025","Отдел УО ИК МО по Вах. и Прив. р-нам",1]
["Ибрагимова Э.Г.","Благодарственное письмо за организацию и проведение районного этапа городского конкурса вокалистов и вокальных коллективов \"Казан сандугачы - 2025\"","январь, 2025","Отдел УО ИК МО по Вах. и Прив. р-нам",1]
["Мифтахова Л.Р.","Благодарственное письмо за организацию и проведение районного этапа городского конкурса вокалистов и вокальных коллективов \"Казан сандугачы - 2025\"","январь, 2025","Отдел УО ИК МО по Вах. и Прив. р-нам",1]
["Муниров А.Р.","Благодарственное письмо за организацию и проведение районного этапа городского конкурса вокалистов и вокальных коллективов \"Казан сандугачы - 2025\"","январь, 2025","Отдел УО ИК МО по Вах. и Прив. р-нам",1]
["Татьянушкина В.В.","Благодарственное письмо за организацию и проведение районного этапа городского конкурса вокалистов и вокальных коллективов \"Казан сандугачы - 2025\"","январь, 2025","Отдел УО ИК МО по Вах. и Прив. р-нам",1]
["Фоменко Л.М.","Благодарственное письмо за организацию и проведение районного этапа городского конкурса социальных проектов и добровольческих акций \"Город доброй воли\"","февраль, 2025","Отдел УО ИК МО по Вах. и Прив. р-нам",1]
["Мифтахова Л.Р.","Благодарственное письмо за организацию и проведение районного этапа городского конкурса социальных проектов и добровольческих акций \"Город доброй воли\"","февраль, 2025","Отдел УО ИК МО по Вах. и Прив. р-нам",1]
["Мифтахова Л.Р.","Благодарственное письмо за организацию и проведение районного этапа республиканского конкурса родительских комитетов \"Секреты дружного класса\"","февраль, 2025","Отдел УО ИК МО по Вах. и Прив. р-нам",1]
["Мифтахова Л.Р.","Благодарственное письмо за организацию и проведение заочного районного этапа республиканского конкурса реализованных социальных проектов \"Моя инициатива\"","февраль, 2025","Отдел УО ИК МО по Вах. и Прив. р-нам",1]
["Фоменко Л.М.","Благодарственное письмо за организацию и проведение заочного районного этапа республиканского конкурса реализованных социальных проектов \"Моя инициатива\"","февраль, 2025","Отдел УО ИК МО по Вах. и Прив. р-нам",1]
["Мифтахова Л.Р.","Благодарственное письмо за активное участие в празднике проводов зимы \"Масленица\" в парке \"Калейдоскоп\", высокое мастерство, вклад в сохранение народных традиций","март, 2025","Админ. Вах и Прив. р-ов г. Казани",1]
["Абдуллина Э.А.","Районный конкурс школьных театральных коллективов имени Марселя Салимжанова","март, 2025","Отдел УО ИК МО по Вах. и Прив. р-нам",1]
["Абдуллина Э.А.","Благодарственное письмо за ораганизацию и проведение районного этапа городского смотра-Конкурса детской и юношеской прессы \"Без права на ошибку\"","март, 2025","Отдел УО ИК МО по Вах. и Прив. р-нам",1]
["Мифтахова Л.Р.","Благодарственное письмо за ораганизацию и проведение районного этапа городского смотра-Конкурса детской и юношеской прессы \"Без права на ошибку\"","март, 2025","Отдел УО ИК МО по Вах. и Прив. р-нам",1]
["Мифтахова Л.Р.","Районный этап Республиканского фестиваля в рамках 27 Международного фестиваля \"Детство без границ\"","апрель, 2025","Отдел УО ИК МО по Вах. и Прив. р-нам",1]
["Фоменко Л.М.","Районный этап Республиканского фестиваля в рамках 27 Международного фестиваля \"Детство без границ\"","апрель, 2025","Отдел УО ИК МО по Вах. и Прив. р-нам",1]
["Новикова Н.А.","Благодарственное письмо районного конкурса \"Татар кызы-Татар егете\"","ноябрь, 2024","Отдел УО ИК МО по Вах. и Прив. р-нам",1]
["Новикова Н.А.","Благодарственное письмо районного конкурса \"Казан сандугачы\"","январь 25","Отдел УО ИК МО по Вах. и Прив. р-нам",1]
["городской уровень",{"$nulls":3},{"$f":"SUM(E6:E57)","v":52}]
["Камалова О.А.","Благодарственное письмо за активное участие в организации и проведении городского конкурса изобразительного и декоративно-прикладного творчества «Новый год в сказку добрую зовет!»","Январь, 2025"," УО ИК МО г.Казани",1]
["Камалова О.А.","Благодарственное письмо за активное участие в организации и проведении городского конкурса рисунков среди педагогов \"Автопортрет в образе шахматной фигуры\"","февраль, 2025"," УО ИК МО г.Казани",1]
["Камалова О.А.","Диплом за организацию и проведение  турнира по шахматам \"Белая ладья\"","ноябрь, 2024","Администрация Вах. и Прив. района г. Казани",1]
["Камалова О.А.","Диплом за организацию и проведение  городского шахматного турнира  \"Путешествие по шахматной стране\"","апрель, 2025","комитет физической культуры и спорта ИК г. Казани",1]
["Мифтахова Л.Р.","Диплом за организацию и проведение городского шахматного турнира \"В гостях у шахматной королевы\" в рамках Школьной Лиги г. Казани среди 3-4 классов","ноябрь, 2024","УО ИК МО г. Казани",1]
["Татьянушкина В.В.","Диплом за организацию и проведение городского шахматного турнира \"В гостях у шахматной королевы\" в рамках Школьной Лиги г. Казани среди 3-4 классов","ноябрь, 2024","УО ИК МО г. Казани",1]
["Фоменко Л.М.","Диплом за организацию и проведение городского шахматного турнира \"В гостях у шахматной королевы\" в рамках Школьной Лиги г. Казани среди 3-4 классов","ноябрь, 2024","УО ИК МО г. Казани",1]
["Кургузова-Холмогорцева Е.Е.","Хореографический конкурс-фестиваль \"Сказки на Неве\"","ноябрь, 2024","ООО \"4 сезона\"",1]
["Абдуллина Э.А.","Грамота за добросовестный труд и плодотворную антинаркотическую работу среди детей и подростков г. Казани","декабрь, 2024","УО ИК МО г. Казани",1]
["Абдуллина Э.А.","Благодарственное письмо за профессиональную работупо организации и проведению городского вокального Фестиваля-конкурса \"Казан сандугачы - 2025\"","январь, 2025","УО ИК МО г. Казани",1]
["Мифтахова Л.Р.","Городской конкурс изобразительного и декоративно-прикладного творчества \"Новый год в сказку добрую зовет!\"","январь, 2025","УО ИК МО г. Казани",1]
["Ибрагимова Э.Г.","Благодарственное письмо за активное участие в организациии проведении городского конкурса \"Мое Отечество\", посвященного 80-летию Победы в Великой Отечественной войне","январь, 2025","РИИ",1]
["Мифтахова Л.Р.","Благодарственное письмо за активное участие в организациии проведении городского конкурса \"Мое Отечество\", посвященного 80-летию Победы в Великой Отечественной войне","январь, 2025","РИИ",1]
["Петрова Е.Л.","Благодарственное письмо за активное участие в организациии проведении городского конкурса \"Мое Отечество\", посвященного 80-летию Победы в Великой Отечественной войне","январь, 2025","РИИ",1]
["Суханова М.В.","Благодарственное письмо за активное участие в организациии проведении городского конкурса \"Мое Отечество\", посвященного 80-летию Победы в Великой Отечественной войне","январь, 2025","РИИ",1]
["Ибрагимова Э.Г.","Благодарственное письмо за активное участие в организации и проведении городского конкурса рисунков среди педагогов \"Автопортрет в образе шахматной фигуры\" в рамках реализации проекта \"Шахтамы и я\"","февраль, 2025","УО ИК МО г. Казани",1]
["Мифтахова Л.Р.","Благодарственное письмо за активное участие в организации и проведении городского конкурса рисунков среди педагогов \"Автопортрет в образе шахматной фигуры\" в рамках реализации проекта \"Шахтамы и я\"","февраль, 2025","УО ИК МО г. Казани",1]
["Ибрагимова Э.Г.","Диплом за организацию и проведение городского шахматного турнира \"Путешествие по шахматной стране\", в рамках Школьной лиги г. Казани среди учащихся 1-2-х классов","апрель, 2025","УО ИК МО г. Казани",1]
["Мифтахова Л.Р.","Диплом за организацию и проведение городского шахматного турнира \"Путешествие по шахматной стране\", в рамках Школьной лиги г. Казани среди учащихся 1-2-х классов","апрель, 2025","УО ИК МО г. Казани",1]
["Петрова Е.Л.","Диплом за организацию и проведение городского шахматного турнира \"Путешествие по шахматной стране\", в рамках Школьной лиги г. Казани среди учащихся 1-2-х классов","апрель, 2025","УО ИК МО г. Казани",1]
["Татьянушкина В.В.","Диплом за организацию и проведение городского шахматного турнира \"Путешествие по шахматной стране\", в рамках Школьной лиги г. Казани среди учащихся 1-2-х классов","апрель, 2025","УО ИК МО г. Казани",1]
["Фоменко Л.М.","Грамота за активную гражданскую позицию и развитие детского движения г. Казани","апрель, 2025","УО ИК МО г. Казани",1]
["Абдуллина Э.А.","Грамота за активную гражданскую позицию и развитие городского движения по формированию здорового образа жизни и реализацию антинаркотического проекта \"Самрстоятельные дети\"","май, 2025","УО ИК МО г. Казани",1]
["Васильева К.З.","Благодарственное письмо за организацию и проведение Городского конкурса изобразительного и декоративно-прикладного творчества \"Новый год в сказку добрую зовет\"","январь, 2025","УО ИКМО г. Казани",1]
["Васильева К.З.","Благодарственное письмо за организацию и проведение городского конкурса рисунков \"Автопортрет в образе шахматной фигуры\"","февраль, 2025","УО ИКМО г. Казани",1]
["Андреева М.Ю., Борисова Л.Н.","Диплом Городской фестиваль театралных коллективов\"2Да здравствует театр\"","март, 2025","УО ИК МО г. Казани,",1]
["Холмогорцева О.В.","Благодарственное письмо за участие в мероприятии \"Маршрут памяти\"","март, 2026","МБУ \"Историческая среда\"  Старотатарская слобода",1]
["Холмогорцева О.В.","Благодарственное письмо за  активное и плодотворное участие в мероприятии \"Нурлы байрам\" в честь праздника Навруз","март, 2027","МБУ \"Историческая среда\"  Старотатарская слобода",1]
[{"$nulls":4},{"$f":"SUM(E59:E86)","v":28}]
["республиканский уровень"]
["Камалова О.А.","Благодарственное письмо за организацию и проведение Республиканского экологического конкурса детского и юношеского творчества «На планете голубой»","Декабрь, 2024","ГАОУ «РОЦ» МО и Н РТ",1]
["Камалова О.А.","Благодарность за активное участие в организации и проведении 7 Республиканского конкурса «Чудеса из ларца»"," Март, 2024","ГАОУ «РОЦ» МО и Н РТ",1]
["Камалова О.А.","Благодарственное письмо за организацию и проведение Республиканского фестиваля детского творчеств «Весенняя капель»","Апрель, 2025","ГАОУ «РОЦ» МО и Н РТ",1]
["Абдуллина Э.А.","Благодарственное письмо за активное участие в мероприятиях и профессионализм в своем деле","сентябрь, 2024","МОиН РТ",1]
["Абдуллина Э.А.","Благодарственное письмо за активное участие в организации и проведении 2 Республиканских Яруллинских педагогических чтений \"Гуманизация воспитательного пространства дополнительного образования\", посвященных Году семьи и 80-летию Победы в Великой Отечественной войне","ноябрь, 2024","МОиН РТ",1]
["Ибрагимова Э.Г.","Республиканский экологический конкурс детского и юношеского творчества \"На планете голубой\"","декабрь, 2024","ГАОУ \"РОЦ\"",1]
["Петрова Е.Л.","Благодарственное письмо за организацию и проведение Республиканского фестиваль-конкурса \"Браво - 2025. Одна на всех Великая Победа\", посвященный году 80-летия Победы в Великой Отечественной войне","март, 2025","ГАОУ \"РОЦ\"",1]
["Мифтахова Л.Р.","Благодарственное письмо за организацию и проведение Республиканского фестиваль-конкурса \"Браво - 2025. Одна на всех Великая Победа\", посвященный году 80-летия Победы в Великой Отечественной войне","март, 2025","ГАОУ \"РОЦ\"",1]
["Ибрагимова Э.Г.","Благодарственное письмо за организацию и проведение Республиканского фестиваль-конкурса \"Браво - 2025. Одна на всех Великая Победа\", посвященный году 80-летия Победы в Великой Отечественной войне","март, 2025","ГАОУ \"РОЦ\"",1]
["Ибрагимова Э.Г.","Благодарственное письмо за организацию и проведение Республиканского конкурса изобразительного и декоративно-прикладного творчества \"Чудеса из ларца\"","апрель, 2025","ГАОУ \"РОЦ\"",1]
["Мифтахова Л.Р.","Благодарственное письмо за организацию и проведение Республиканского конкурса изобразительного и декоративно-прикладного творчества \"Чудеса из ларца\"","апрель, 2025","ГАОУ \"РОЦ\"",1]
["Мифтахова Л.Р.","Благодарственное письмо за активное участие в организации и проведении Республиканского заочного фестиваля детского творчества детей с ограниченными возможностями \"Весенняя капель - 2025\"","апрель, 2025","ГАОУ \"РОЦ\"",1]
["Мифтахова Л.Р.","Благодарность за подготовку и проведение праздничного концерта, посвященного Международному дню освобождения узников нацистских лагерей","май, 2025","МТЗиСЗ РТ",1]
["Мифтахова Л.Р.","Благодарственное письмо за организацию и проведение Зонального этапа Республиканского конкурса семейного творчества \"Калейдоскоп\"","май, 2025","РЦВР",1]
["Фоменко Л.М.","Благодарственное письмо за организацию и проведение Зонального этапа Республиканского конкурса семейного творчества \"Калейдоскоп\"","май, 2025","РЦВР",1]
["Мифтахова Л.Р.","Благодарственное письмо за организацию и проведение Зонального этапа Республиканского конкурса реализованных социальных проектов \"Моя Инициатива\"","май, 2025","РЦВР",1]
["Фоменко Л.М.","Благодарственное письмо за организацию и проведение Зонального этапа Республиканского конкурса реализованных социальных проектов \"Моя Инициатива\"","май, 2025","РЦВР",1]
["Мифтахова Л.Р.","Благодарственное письмо за организацию и проведение Зонального этапа Республиканского конкурса семейного творчества \"Творчество без границ\"","май, 2025","РЦВР",1]
["Фоменко Л.М.","Благодарственное письмо за организацию и проведение Зонального этапа Республиканского конкурса семейного творчества \"Творчество без границ\"","май, 2025","РЦВР",1]
["Васильева К.З.","Благодарственное письмо члену жюри республиканского экологического конкурса \"На планете голубой\"","ноябрь, 2024","ГАОУ \"Республиканский экологический центр\" МОиНРТ",1]
["Гордеева И.В.","Грамота за подготовку победителя, Республиканский конкурс-фестиваль \"Патриоты России\"","ноябрь, 2024","РО Всероссийского военно-патриотического днтско-юношеского общественного движения \"ЮНАРМИЯ\" РТ",1]
["Каримова К.Р.","Благодарность за участие в организации мероприятия Казанский бал \"Код сердец\"","2024-12-01","Мнистерство по делам молодежи РТ",1]
["Гордеева И.В.","Благодарность за профессиональную подготовку лауреата 1 степени 9 республиканского творческого конкурса \"В созвездии А.С. Пушкина и Г. Тукая\"","апрель, 2025","УО ИКМО г. Казани",1]
["Андреева М.Ю.","Грамота за высокий профессионализм и значимый вклад в развитие патриотического воспитания подрастающего поколения, и подготовку Лауреатов Республиканского конкурса-фестиваля «Патриоты России!»","3 ноября 2024 г","РЦВР",1]
["Новикова Н.А.","Благодарственное письмо Республиканский фестиваль-конкурс «Браво – 2025.» , посвященный 80-летию Победы в Великой отечественной войне  ","2025-03-01","РОЦ",1]
["Новикова Н.А.","Благодарственное письмо Республиканский экологический конкурс детского и юношеского творчества \"На планете голубой\" ","ноябрь,  2023","РОЦ",1]
[{"$nulls":4},{"$f":"SUM(E89:E114)","v":26}]
["региональный уровень"]
["Сафина А.И.","Межрегиональный конкурс-фестиваль \"Момент Арта\" Диплом за профессиональное мастерство","март, 2025","МКРТ",1]
["российский уровень"]
["Быстровой Л.М.","Благодарствееное письмо за активное участие во III Всероссийском конкурсе \"Новогодний мандарин\"","январь, 2025","МКУ УО ИК ММР РТ",1]
["Антипова И.С.","Благодарствееное письмо за активное участие во II Всероссийском конкурсе \"Весна идет! Весне дорогу\"","апрель, 2025","МКУ УО ИК ММР РТ",1]
["Гиздатуллиной К.М.","Благодарствееное письмо за активное участие во II Всероссийском конкурсе \"Весна идет! Весне дорогу\"","апрель, 2025","МКУ УО ИК ММР РТ",1]
["Антипова И.С.","Благодарствееное письмо за активное участие во III Всероссийском конкурсе \"Чудесный день-8 марта!\"","март, 2025","МКУ УО ИК ММР РТ",1]
["Антипова И.С.","Благодарствееное письмо за активное участие во IV Всероссийском конкурсе \"Эхо Победы\"","май, 2025","МКУ УО ИК ММР РТ",1]
["Быстровой Л.М.","Благодарствееное письмо за активное участие во IV Всероссийском конкурсе \"Эхо Победы\"","май, 2025","МКУ УО ИК ММР РТ",1]
["Васильева К.З.","Почетная грамота Министерства Просвещения РФ","сентябрь, 2024","Министерство просвещения РФ",1]
["Туктаров В.А.","Благодарность за большой личный вклад в реализацию всероссийского проекта \"Футбол в школе\" в 2024-2025 уч.г.","май, 2025","Российский футбольный Союз",1]
["Каримова К.Р.","Благодарственное письмо за подготовку призеров всероссийского конкурса-фестиваля детского творчества \"Барсик\"","октябрь, 2024","Уполномоченный по провам ребенка в Республике Татарстан",1]
["Каримова К.Р.","Благодарственное письмо в рамках национальной премии в области творчества \"Лукоморье\"","ноябрь, 2024","Министерство Культуры РФ",1]
["Каримова К.Р.","Благодарственное письмо за вклад в развитие культуры России \"Наследие\"","ноябрь, 2024","Министерство Культуры РФ",1]
["Каримова К.Р.","Благодарность за подготовку участников Всероссийского фестиваля-конкурса \"Добрые традиции","март, 2025","Творческое объединение \"Happy time\"",1]
["Гордеева И.В. ","Диплом \"Лучший преподаватель\" , Всероссийский конкурс инструментального, вокального, хореографического, театрального и декоративно-прикладного искусства \"Смуглянка\"","май, 2025","Министерство Культуры РФ",1]
["Гордеева И.В. ","Благодарственное письмо куратору участника всероссийского нравственно-патриотического конкурса \"Память о Победе: читаем стихи и прозу о войне 1941-1945 годов\"","май, 2025","АНО \"Научно-образовательный центр педагогических проектов\" ",1]
["Гордеева И.В. ","Диплом куратору участника всероссийского нравственно-патриотического конкурса \"Память о Победе: читаем стихи и прозу о войне 1941-1945 годов\"","май, 2025","АНО \"Научно-образовательный центр педагогических проектов\" ",1]
["Хасанова Лия Ринатовна","Диплом за профессиональное мастерство Всероссийского конкурса инструментального вокалног, хореографического, театрального и декоративно-прикладного творчества \"Смуглянка\" ","2025-05-01","МК РТ",1]
["Холмогорцева Ольга Викторовна","Благодарственное письмо всероссийского хореографического конкурса -фестиваля \"Сказки на Неве\"","ноябрь, 2024","Спортивно-творческая организация \"4 сезона\"",1]
[{"$nulls":4},{"$f":"SUM(E119:E135)","v":17}]
["международный уровень"]
["Кургузова-Холмогорцева Е.Е.","Благодарственное письмо за высокий профессиональный уровень подготовки участников Международного конкурса танцевального искусства \"Казань в танцах\"","март, 2025","РБОФ РТ \"Sforzando\"",1]
["Кургузова-Холмогорцева Е.Е.","Благодарность за вклад в развитие творческих и открытых личностей, за участие в 18 Международном конкурсе хореографического искусства \"Собираем таланты\"","апрель, 2025","Творческое движение \"Вдохновение\"",1]
["Гордеева И.В. ","Сертификат куратора конкурсной работы в рамках Девятого международного конкурса, проходящего в формате ФМВДК \"Таланты России\"","октябрь, 2024","ТО ФМВДК \"Таланты России\"",1]
["Гордеева И.В. ","Благодарственное письмо призероав Международного фестиваля-конкурса искусства и творчества \"Вдохновение\" ","октябрь, 2024","Международный Арт-Центр \"Наследие\"",1]
["Гордеева И.В. ","Благодарность международного фестивального центра \"Ритм\" за подготовку лауреатов конкурса \"Арт Перспектива\"","ноябрь","Международный фестивальный центр \"Ритм\"",1]
["Гордеева И.В. ","Благодарность международного фестивального центра \"Ритм\" за подготовку лауреатов конкурса \"В ритме жизни\"","ноябрь","Международный фестивальный центр \"Ритм\"",1]
["Гордеева И.В. ","Благодарственное письмо за подготовку призеров, Международный фестиваль искусств \"Звездный путь\"","ноябрь, 2024","Международный Арт-Центр \"Твое искусство\"",1]
["Гордеева И.В. ","Благодарность комитета международного фестиваля-конкурса искусства и творчества \"Симфония творчества\" за подготовку победителя проекта","декабрь","Творческая лаборатория \"Колибри\"",1]
["Гордеева И.В. ","Благодарность за подготовку коллектива, Международный конкурс современного искусства \"Казань Stars\"","ноябрь, 2024","ГБУ \"Культурный центр имени А.С. Пушкина\" г. Казани\"",1]
["Гордеева И.В. ","Грамота за подготовку призеров Гран-при, Республиканский конкурс-фестиваль \"Патриоты России\" ","ноябрь, 2024","РО Всероссийского военно-патриотического днтско-юношеского общественного движения \"ЮНАРМИЯ\" РТ",1]
["Гордеева И.В. ","Грамота за подготовку лауреатов, Республиканский конкурс-фестиваль \"Патриоты России\" ","ноябрь, 2024","РО Всероссийского военно-патриотического днтско-юношеского общественного движения \"ЮНАРМИЯ\" РТ",1]
["Гордеева И.В. ","Благодарственное письмо за вклад в сохранение и развитие лучших традиций культуры нашей страны","март, 2025","Концертно-фестивальный центр \"Артфест\", Всероссийская асоциация учителей-предметников и ПДО  ",1]
["Гордеева И.В. ","Благодарность за профессиональное мастерство, педагогический талант, целеустремленность и кропотливый труд. 3 Международный фестиваль культурно-исторического наследия \"Дружба народов - единство России\"","апрель, 2025","Министерство Культуры РФ",1]
["Гордеева И.В. ","Благодарственное письмо за участие в подготовке побдитля международного кастинг-конкурса \"Сияние 2025\"","март, 2025","Концертно-продюсерский центр \"Мьюзик Медиа\"",1]
[" Андреева Мария Юрьевна"," Благодарственное письмо. Благотворительный фонд «Ингениум»  за плодотворную работу, сохранение национальных культур, подготовку участников конкурс-фестиваль «Ладинополетье»"," 23 сентября 2024"," Благотворительный фонд поддержки и сопровождения одаренных детей «Ингениум». Москва при поддержке Министерства культуры РФ",1]
[" Егорова Елена Евгеньевна","Благодарственное письмо Международного конкурса искусств и творчества «Арт Вызов»"," 16 февраля 2025"," при поддержке ГБУ ДО РЦВР ",1]
[" Егорова Елена Евгеньевна","Благодарственное письмо Международного конкурса танцевального искусства «Казань в танцах»","2 Марта 2025","при поддержке МОиН РТ, ",1]
["Хасанова Лия Ринатовна","Благодарственное письмо  V Международного конкурса фестивалядетского, юношеского и взрослого творчества \"Арт-Авеню\"","2025-03-01","Комитет Совета Федерации по науке, образованию и культуре",1]
["Борисова Лариса Николаевна","Благодарственное письмо Международного фестиваля конкурса вокального , хореографического и театрального творчества \"Содружество талантов\"","январь, 2025","МОиН РТ, МК РТ",1]
["Сафина Алия Ильдаровна","Благодарственное письмо Международного фестиваля конкурса вокального , хореографического и театрального творчества \"Содружество талантов\"","январь, 2025","МОиН РТ, МК РТ",1]
["Хасанова Лия Ринатовна","Диплом за профессиональное мастерство международного конкурса вокалистов и чтецов \"Голос Татарстана\"","ноябрь, 2024","МК РФ",1]
["Егорова Е.Е.","Благодарственное письмо международного конкурта танцевального искусства \"Казань в танцах\"","март, 2025","МК РФ",1]
["Хасанова Лия Ринатовна","Благодарственное письмо международного конкурса -фестиваля \"Осенний     Марафон талантов\"","2024-10-01","МКРФ",1]
["Хасанова Лия Ринатовна","Благодарственное письмо международного конкурса вокалистов и чтецов \"Золотой голос Орфея\"","март, 2025","МКРФ",1]
["Хасанова Лия Ринатовна"," Диплом за профессиональное мастерство                                   Международный конкурс-фестиваль \"Шаг на сцену\" ","январь, 2025","МК РТ",1]
[{"$nulls":4},{"$f":"SUM(E138:E162)","v":25}]

{"sheet":"конкурсы программ, метод разраб","index":3,"n_rows":25,"n_cols":6,"rows_kept":25,"merged":[[0,0,0,5],[2,0,2,5],[10,0,10,5],[17,0,17,5],[19,0,19,5],[24,0,24,5]]}
["УЧАСТИЕ ПЕДАГОГИЧЕСКИХ РАБОТНИКОВ  В КОНКУРСАХ  ИННОВАЦИОННЫХ  ПРОГРАММ, МЕТОДИЧЕСКИХ РАЗРАБОТОК, В  КОНКУРСАХ ПРОЕКТОВ"]
["№","Фамилия, инициалы","Название конкурса, проекта","Наименование работы ","Результат","Дата (месяц, год)"]
["городской уровень"]
[1,"Абдуллина Э.А.","Городской конкурс \"Мое Отечество\"","Проект \"Я. Моя семья. Мое Отечество\"","диплом","январь, 2025"]
[2,"Суханова М.В.","Городской конкурс \"Мое Отечество\"","Проект \"Я. Моя семья. Мое Отечество\"","диплом","январь, 2025"]
[3,"Фоменко Л.М.","Городской конкурс \"Мое Отечество\"","Проект \"Я. Моя семья. Мое Отечество\"","диплом","январь, 2025"]
[4,"Сафина А.И.","Городской конкурс \"Мое Отечество\"","Интерактивно-познавательная программа \"Единым духом мы сильны\"","диплом","январь, 2025"]
[5,"Суханова М.В.","Городской конкурс \"Мое Отечество\"","Интерактивно-познавательная программа \"Единым духом мы сильны\"","диплом","январь, 2025"]
[6,"Фоменко Л.М.","Городского конкурса социальных проектов и добровольческих акций \"Город доброй воли\"","Участник","сертификат","апрель, 2025"]
[7,"Андреева М.Ю. ","Городской конкурс «Мое Отечество», номинация «Воспитать гражданина»","Сценарий «Дневник Тани Савичевой»"," Диплом","январь, 2025"]
["республиканский уровень"]
[1,"Ибрагимова Э.Г.","Республиканский фестиваль-конкурс \"Браво - 2025. Одна на всех Великая Победа\", посвященный году 80-летия Победы в Великой Отечественной войне","Интерактивно-познавательная программа \"Единым духом мы сильны\"","лауреат 2 степени","март, 2025"]
[2,"Сафина А.И.","Республиканский фестиваль-конкурс \"Браво - 2025. Одна на всех Великая Победа\", посвященный году 80-летия Победы в Великой Отечественной войне","Интерактивно-познавательная программа \"Единым духом мы сильны\"","лауреат 2 степени","март, 2025"]
[3,"Суханова М.В.","Республиканский фестиваль-конкурс \"Браво - 2025. Одна на всех Великая Победа\", посвященный году 80-летия Победы в Великой Отечественной войне","Интерактивно-познавательная программа \"Единым духом мы сильны\"","лауреат 2 степени","март, 2025"]
[4,"Васильева К.З.","Республиканский фестиваль-конкурс \"Браво-2025. Одна на всех Великая Победа, посвященный году 80-летия Победы в Великой Отечественной войне\"","\"Патриотическое воспитание. Массовые мероприятия\""," Дипломант III степени","март, 2025"]
[5,"Андреева М.Ю. ","Конкурс методических разработок «Сценарий выступления агитбригады. Никто не забыт, ничто не забыто» в рамках II Республиканских Яруллинских педагогических чтений","Сценарий театрализованного представления «Дневник Тани Савичевой»","Диплом","2024-11-01"]
[6,"Андреева М.Ю.","Конкурс методических разработок «Браво – 2025» в номинации «Патриотическое воспитание» («Массовые мероприятия»)","Сценарий театрализованного представления «Дневник Тани Савичевой»","Диплом Лауреата 1 степени","2025-03-01"]
["региональный уровень"]
[]
["российский уровень"]
[1,"Камалова О.А.","Всероссийский профессиональный конкурс \"Методический калейдоскоп - 24\" ","Проект \"Творчесская мозаика\"","Диплом 1 степени","октябрь, 2024"]
[2,"Егорова Е.Е.","X Всероссийский конкурс профессионального мастерства \"Образование XXIвека\"","ДООП \"Завиток\"","Лауреат ","май, 2025"]
[3,"Камалова О.А.","X Всероссийский конкурс профессионального мастерства \"Образование XXI века\"","Проект \"Творчесская мозаика\"","Сертификат участника","май, 2025"]
[4,"Петрова Е.Л.","X Всероссийский конкурс профессионального мастерства \"Образование XXI века\"","проект \"Созвездие\"","Диплом ","май, 2025"]
["международный уровень"]

{"sheet":"НПК","index":4,"n_rows":31,"n_cols":5,"rows_kept":31,"merged":[[0,0,0,4],[2,0,2,4],[4,0,4,4],[6,0,6,4],[24,0,24,4],[26,0,26,4],[28,0,28,4]]}
["УЧАСТИЕ  ПЕДАГОГИЧЕСКИХ РАБОТНИКОВ В НАУЧНО-ПРАКТИЧЕСКИХ КОНФЕРЕНЦИЯХ (С ЛИЧНЫМ ВЫСТУПЛЕНИЕМ)"]
["№","Фамилия, инициалы","Название конференции","Тема  выступления","Дата (месяц, год)"]
["районный уровень"]
[]
["городской уровень"]
[]
["республиканский уровень"]
[1,"Антипова И.С.","Республиканские Яруллинские педагогические чтения \"Гуманизация воспитательного пространства дополнительного образования\", посвященного году семьи и 80-летию Победы в ВОВ","\"Сочетание традиционных и нетрадиционных техник рисования для развития творческих способностей детей\"","ноябрь, 2024"]
[2,"Егорова Е.Е.","Республиканские Яруллинские педагогические чтения \"Гуманизация воспитательного пространства дополнительного образования\", посвященного году семьи и 80-летию Победы в ВОВ","\"С чего начинается Родина\"","ноябрь, 2024"]
[3,"Камалова О.А.","Республиканские Яруллинские педагогические чтения \"Гуманизация воспитательного пространства дополнительного образования\", посвященного году семьи и 80-летию Победы в ВОВ","\"Создание единогообразовательно-воспитательного  пространства в объединениях декоративно-прикладного отдела ЦДТ\"","ноябрь, 2024"]
[4,"Сергеева М.В.","Республиканские Яруллинские педагогические чтения \"Гуманизация воспитательного пространства дополнительного образования\", посвященного году семьи и 80-летию Победы в ВОВ","\"Формирование у учащихся положительной творческой \"Я-концепции\" через создание ситуации успеха на занятии студии \"Созвездие\"","ноябрь, 2024"]
[5,"Гиздатуллина К.М.","Республиканские Яруллинские педагогические чтения \"Гуманизация воспитательного пространства дополнительного образования\", посвященного году семьи и 80-летию Победы в ВОВ","\"Эстетическое воспитание учащихся через использование различных форм взаимодействия с семьей в студии \"Озорные краски\"","ноябрь, 2024"]
[6,"Быстрова Л.М.","Республиканские Яруллинские педагогические чтения \"Гуманизация воспитательного пространства дополнительного образования\", посвященного году семьи и 80-летию Победы в ВОВ","\"Мастер-класс как эффективная форма гражданского патриотического воспитания учащихся\"","ноябрь, 2024"]
[7,"Петрова Е.Л.","II Республиканские Яруллинские педагогические чтения \"Гуманизация воспитательного пространства дополнительного образования\", посвященные году семьи и 80-летию Победы в Великой Отчественной войне","Повышение профессиональной компетентности педагогических работников через участие в конкурсах профессионального мастерства","ноябрь, 2024"]
[8,"Мифтахова Л.Р.","II Республиканские Яруллинские педагогические чтения \"Гуманизация воспитательного пространства дополнительного образования\", посвященные году семьи и 80-летию Победы в Великой Отчественной войне","Профессиональная ориентация учащихся в Центре детского творчества Вахитовского района","ноябрь, 2024"]
[9,"Абдуллина Э.А.","II Республиканские Яруллинские педагогические чтения \"Гуманизация воспитательного пространства дополнительного образования\", посвященные году семьи и 80-летию Победы в Великой Отчественной войне","\"Кусочек сердца отдавать кому-то…\"","ноябрь, 2024"]
[10,"Фоменко Л.М.","II Республиканские Яруллинские педагогические чтения \"Гуманизация воспитательного пространства дополнительного образования\", посвященные году семьи и 80-летию Победы в Великой Отчественной войне","Проектная деятельность как средство гражданско-патриотического воспитания подростков в дополнительном образовании","ноябрь, 2024"]
[11,"Суханова М.В.","II Республиканские Яруллинские педагогические чтения \"Гуманизация воспитательного пространства дополнительного образования\", посвященные году семьи и 80-летию Победы в Великой Отчественной войне","Культурно-досуговая деятельность как средство гражданско-патриотического воспитания подрастающего поколения","ноябрь, 2024"]
[12,"Сафина А.И.","II Республиканские Яруллинские педагогические чтения \"Гуманизация воспитательного пространства дополнительного образования\", посвященные году семьи и 80-летию Победы в Великой Отчественной войне","Культурно-досуговая деятельность как средство гражданско-патриотического воспитания подрастающего поколения","ноябрь, 2024"]
[13,"Бердникова М.Г.","Республиканские Яруллинские чтения \"Гуманизация воспитательного пространства дополнительного образования\" посвященных году семьи и 80-летию Победы в Великой Отечественной войне","\"Опыт работы педагога дополнительного образования по патриотическому воспитанию детей с ОВЗ и инвалидностью\"","ноябрь, 2024"]
[14,"Шигапова Г.Р.","Республиканские Яруллинские чтения \"Гуманизация воспитательного пространства дополнительного образования\" посвященных году семьи и 80-летию Победы в Великой Отечественной войне","\"Воспитание успешной личности через использование учебно-воспитательных ситуаций на занятиях обьединения \"Рукоделие. Терапия творчеством\" для детей с ограниченными возможностями\"","ноябрь, 2024"]
[15,"Гордеева И.В.","II республиканские педагогические Яруллинские чтения \"Гуманизация воспитательного пространства дополнительного образования\", посвященных Году семьи и 80-летию Победы в Великой Отечественной войне\"","Гражданско-патриотическое воспитание подрастающего поколения в контексте освещения наследия ВОВ 1941-1945 гг.","ноябрь, 2024"]
[16,"Андреева М.Ю. ","Республиканские Ярулинские педагогические чтения  «Гуманизация воспитательного пространства дополнительного образования, посвященные году семьи и 80-летию Победы в Великой Отечественной войне»","«Да здравствует театр!» Гражданско-патриотическое воспитаниедетей в театре-студии  «Ровесник»"," ноябрь, 2024 "]
[17,"Егорова Е.Е.  ","Республиканские Ярулинские педагогические чтения  «Гуманизация воспитательного пространства дополнительного образования, посвященные году семьи и 80-летию Победы в Великой Отечественной войне»","«С чего начинается Родина…»"," ноябрь, 2024 "]
["региональный уровень"]
[]
["российский уровень"]
[]
["международный уровень"]
[1]
[2]

{"sheet":"семинары","index":5,"n_rows":150,"n_cols":5,"rows_kept":150,"merged":[[0,0,0,4],[2,0,2,4],[5,0,5,4],[98,0,98,4],[102,0,102,4],[104,0,104,4],[149,0,149,4]]}
["УЧАСТИЕ  ПЕДАГОГИЧЕСКИХ РАБОТНИКОВ В  МЕТОДИЧЕСКИХ СЕМИНАРАХ (С ЛИЧНЫМ ВЫСТУПЛЕНИЕМ)"]
["№","Фамилия, инициалы","Название  семинара","Тема  выступления, мастер-класса","Дата (месяц, год)"]
["районный уровень"]
[]
[]
["городской уровень"]
[1,"Камалова О.А.","Игровые формы и методы работы на начальном обучении игры в шахматы","Организация выставки Городского конкурса рисунков среди педагогов \"Автопортрет в образе шахматной фигуры\"","2025-02-10"]
[2,"Камалова О.А.","Использование разнообразных форм работы для развития мотивации и интереса учащихся начальных классов к обучению игре в шахматы","Организация выставки Городского конкурса рисунков среди педагогов \"Автопортрет в образе шахматной фигуры\"","2025-02-11"]
[3,"Камалова О.А.","Использование разнообразных форм работы для развития мотивации и интереса учащихся начальных классов к обучению игре в шахматы","Организация выставки Городского конкурса рисунков среди педагогов \"Автопортрет в образе шахматной фигуры\"","2025-02-12"]
[4,"Камалова О.А.","Использование разнообразных форм работы для развития мотивации и интереса учащихся начальных классов к обучению игре в шахматы","Организация выставки Городского конкурса рисунков среди педагогов \"Автопортрет в образе шахматной фигуры\"","2025-02-13"]
[5,"Абдуллина Э.А.","Многопрофильное учреждение дополнительного образования: педагогическая поддержка самореализации детей и молодежи","Организация практики студентов в первом полугодии 2024-2025 учебного года","декабрь, 2024"]
[6,"Мифтахова Л.Р.","Многопрофильное учреждение дополнительного образования: педагогическая поддержка самореализации детей и молодежи","Многопрофильное учреждение дополнительного образования: педагогическая поддержка самореализации детей и молодежи","декабрь, 2024"]
[7,"Петрова Е.Л.","Многопрофильное учреждение дополнительного образования: педагогическая поддержка самореализации детей и молодежи","Организация практики студентов в первом полугодии 2024-2025 учебного года","декабрь, 2024"]
[8,"Суханова М.В.","Многопрофильное учреждение дополнительного образования: педагогическая поддержка самореализации детей и молодежи","Методический практикум по подготовке новогоднего праздника \"Змея-волшебница и Новый год\"","декабрь, 2024"]
[9,"Фоменко Л.М.","Многопрофильное учреждение дополнительного образования: педагогическая поддержка самореализации детей и молодежи","Воспитание гражданина и патриота через музейную практику. Экскурсия в Музей образования Вахитовского района","декабрь, 2024"]
[10,"Абдуллина Э.А.","Учреждение дополнительного образования в контексте современной практики","Учреждение дополнительного образования в контексте современной практики","декабрь, 2024"]
[11,"Абдуллина Э.А.","Учреждение дополнительного образования в контексте современной практики","Практикум: формы и методы создания детского коллектива ","декабрь, 2024"]
[12,"Мифтахова Л.Р.","Учреждение дополнительного образования в контексте современной практики","Роль и место Центра тедского творчества в образовательном пространстве г. Казани","декабрь, 2024"]
[13,"Петрова Е.Л.","Учреждение дополнительного образования в контексте современной практики","Учреждение дополнительного образования в контексте современной практики","декабрь, 2024"]
[14,"Суханова М.В.","Учреждение дополнительного образования в контексте современной практики","Индивидуальный профориетационный маршрут школьника","декабрь, 2024"]
[15,"Фоменко Л.М.","Учреждение дополнительного образования в контексте современной практики","Детовождение: единство педагогической науки и практики","декабрь, 2024"]
[16,"Абдуллина Э.А.","Городской обучающий семинар \"Игровые формы и методы работы на начальном этапе обучения в шахматы\" для пелагогов образовательных организаций г. Казани","Мастер-класс \"Блиц-опрос \"Что мы знаем о шахматах\", \"Шахматная доска. Шахматные фигуры. Расстановка шахматных фигур\", игра \"Стройся в ряд\"","февраль, 2025"]
[17,"Абдуллина Э.А.","Городской обучающий семинар \"Игровые формы и методы работы на начальном этапе обучения в шахматы\" для пелагогов образовательных организаций г. Казани","Мастер-класс \"Блиц-опрос \"Что мы знаем о шахматах\", \"Шахматная доска. Шахматные фигуры. Расстановка шахматных фигур\", игра \"Стройся в ряд\"","февраль, 2025"]
[18,"Абдуллина Э.А.","Городской обучающий семинар \"Игровые формы и методы работы на начальном этапе обучения в шахматы\" для пелагогов образовательных организаций г. Казани","Мастер-класс \"Блиц-опрос \"Что мы знаем о шахматах\", \"Шахматная доска. Шахматные фигуры. Расстановка шахматных фигур\", игра \"Стройся в ряд\"","февраль, 2025"]
[19,"Абдуллина Э.А.","Городской обучающий семинар \"Игровые формы и методы работы на начальном этапе обучения в шахматы\" для пелагогов образовательных организаций г. Казани","Мастер-класс \"Блиц-опрос \"Что мы знаем о шахматах\", \"Шахматная доска. Шахматные фигуры. Расстановка шахматных фигур\", игра \"Стройся в ряд\"","февраль, 2025"]
[20,"Фоменко Л.М.","Городской обучающий семинар \"Игровые формы и методы работы на начальном этапе обучения в шахматы\" для пелагогов образовательных организаций г. Казани","Экскурсия в музей образования Вахитовского района г. Казани","февраль, 2025"]
[21,"Фоменко Л.М.","Городской обучающий семинар \"Игровые формы и методы работы на начальном этапе обучения в шахматы\" для пелагогов образовательных организаций г. Казани","Экскурсия в музей образования Вахитовского района г. Казани","февраль, 2025"]
[22,"Фоменко Л.М.","Городской обучающий семинар \"Игровые формы и методы работы на начальном этапе обучения в шахматы\" для пелагогов образовательных организаций г. Казани","Экскурсия в музей образования Вахитовского района г. Казани","февраль, 2025"]
[23,"Фоменко Л.М.","Городской обучающий семинар \"Игровые формы и методы работы на начальном этапе обучения в шахматы\" для пелагогов образовательных организаций г. Казани","Экскурсия в музей образования Вахитовского района г. Казани","февраль, 2025"]
[24,"Минсафина Р.Р.","Городской обучающий семинар \"Игровые формы и методы работы на начальном этапе обучения в шахматы\" для пелагогов образовательных организаций г. Казани","Выставка городского фотоконкурса \"Шахматный мир\"","февраль, 2025"]
[25,"Минсафина Р.Р.","Городской обучающий семинар \"Игровые формы и методы работы на начальном этапе обучения в шахматы\" для пелагогов образовательных организаций г. Казани","Выставка городского фотоконкурса \"Шахматный мир\"","февраль, 2025"]
[26,"Минсафина Р.Р.","Городской обучающий семинар \"Игровые формы и методы работы на начальном этапе обучения в шахматы\" для пелагогов образовательных организаций г. Казани","Выставка городского фотоконкурса \"Шахматный мир\"","февраль, 2025"]
[27,"Минсафина Р.Р.","Городской обучающий семинар \"Игровые формы и методы работы на начальном этапе обучения в шахматы\" для пелагогов образовательных организаций г. Казани","Выставка городского фотоконкурса \"Шахматный мир\"","февраль, 2025"]
[28,"Татьянушкина В.В.","Городской обучающий семинар \"Игровые формы и методы работы на начальном этапе обучения в шахматы\" для пелагогов образовательных организаций г. Казани","Мастер-класс \"Физкультминутка \"Шахматная зарядка\", \"Шахматные головоломки\"","февраль, 2025"]
[29,"Татьянушкина В.В.","Городской обучающий семинар \"Игровые формы и методы работы на начальном этапе обучения в шахматы\" для пелагогов образовательных организаций г. Казани","Мастер-класс \"Физкультминутка \"Шахматная зарядка\", \"Шахматные головоломки\"","февраль, 2025"]
[30,"Татьянушкина В.В.","Городской обучающий семинар \"Игровые формы и методы работы на начальном этапе обучения в шахматы\" для пелагогов образовательных организаций г. Казани","Мастер-класс \"Физкультминутка \"Шахматная зарядка\", \"Шахматные головоломки\"","февраль, 2025"]
[31,"Татьянушкина В.В.","Городской обучающий семинар \"Игровые формы и методы работы на начальном этапе обучения в шахматы\" для пелагогов образовательных организаций г. Казани","Мастер-класс \"Физкультминутка \"Шахматная зарядка\", \"Шахматные головоломки\"","февраль, 2025"]
[32,"Мифтахова Л.Р.","Городской обучающий семинар \"Игровые формы и методы работы на начальном этапе обучения в шахматы\" для пелагогов образовательных организаций г. Казани","Выступление \"Роль и место Центра детского творчества в образовательном пространстве г. Казани\"","февраль, 2025"]
[33,"Мифтахова Л.Р.","Городской обучающий семинар \"Игровые формы и методы работы на начальном этапе обучения в шахматы\" для пелагогов образовательных организаций г. Казани","Выступление \"Роль и место Центра детского творчества в образовательном пространстве г. Казани\"","февраль, 2025"]
[34,"Мифтахова Л.Р.","Городской обучающий семинар \"Игровые формы и методы работы на начальном этапе обучения в шахматы\" для пелагогов образовательных организаций г. Казани","Выступление \"Роль и место Центра детского творчества в образовательном пространстве г. Казани\"","февраль, 2025"]
[35,"Мифтахова Л.Р.","Городской обучающий семинар \"Игровые формы и методы работы на начальном этапе обучения в шахматы\" для пелагогов образовательных организаций г. Казани","Выступление \"Роль и место Центра детского творчества в образовательном пространстве г. Казани\"","февраль, 2025"]
[36,"Суханова М.В.","Городской обучающий семинар \"Игровые формы и методы работы на начальном этапе обучения в шахматы\" для пелагогов образовательных организаций г. Казани","Мастер-класс \"Использование игровых технологий в оценке предметных компетенций юных шахматистов\"","февраль, 2025"]
[37,"Суханова М.В.","Городской обучающий семинар \"Игровые формы и методы работы на начальном этапе обучения в шахматы\" для пелагогов образовательных организаций г. Казани","Мастер-класс \"Использование игровых технологий в оценке предметных компетенций юных шахматистов\"","февраль, 2025"]
[38,"Суханова М.В.","Городской обучающий семинар \"Игровые формы и методы работы на начальном этапе обучения в шахматы\" для пелагогов образовательных организаций г. Казани","Мастер-класс \"Использование игровых технологий в оценке предметных компетенций юных шахматистов\"","февраль, 2025"]
[39,"Суханова М.В.","Городской обучающий семинар \"Игровые формы и методы работы на начальном этапе обучения в шахматы\" для пелагогов образовательных организаций г. Казани","Мастер-класс \"Использование игровых технологий в оценке предметных компетенций юных шахматистов\"","февраль, 2025"]
[40,"Сафина А.И.","Городской обучающий семинар \"Игровые формы и методы работы на начальном этапе обучения в шахматы\" для пелагогов образовательных организаций г. Казани","Мастер-класс \"Использование игровых технологий в оценке предметных компетенций юных шахматистов\"","февраль, 2025"]
[41,"Сафина А.И.","Городской обучающий семинар \"Игровые формы и методы работы на начальном этапе обучения в шахматы\" для пелагогов образовательных организаций г. Казани","Мастер-класс \"Использование игровых технологий в оценке предметных компетенций юных шахматистов\"","февраль, 2025"]
[42,"Сафина А.И.","Городской обучающий семинар \"Игровые формы и методы работы на начальном этапе обучения в шахматы\" для пелагогов образовательных организаций г. Казани","Мастер-класс \"Использование игровых технологий в оценке предметных компетенций юных шахматистов\"","февраль, 2025"]
[43,"Сафина А.И.","Городской обучающий семинар \"Игровые формы и методы работы на начальном этапе обучения в шахматы\" для пелагогов образовательных организаций г. Казани","Мастер-класс \"Использование игровых технологий в оценке предметных компетенций юных шахматистов\"","февраль, 2025"]
[44,"Петрова Е.Л.","Городской обучающий семинар \"Игровые формы и методы работы на начальном этапе обучения в шахматы\" для пелагогов образовательных организаций г. Казани","Выступление \"Игры в шахматы, как средство развития интеллектуальных способностей детей младшего возраста\"","февраль, 2025"]
[45,"Петрова Е.Л.","Городской обучающий семинар \"Игровые формы и методы работы на начальном этапе обучения в шахматы\" для пелагогов образовательных организаций г. Казани","Выступление \"Игры в шахматы, как средство развития интеллектуальных способностей детей младшего возраста\"","февраль, 2025"]
[46,"Петрова Е.Л.","Городской обучающий семинар \"Игровые формы и методы работы на начальном этапе обучения в шахматы\" для пелагогов образовательных организаций г. Казани","Выступление \"Игры в шахматы, как средство развития интеллектуальных способностей детей младшего возраста\"","февраль, 2025"]
[47,"Петрова Е.Л.","Городской обучающий семинар \"Игровые формы и методы работы на начальном этапе обучения в шахматы\" для пелагогов образовательных организаций г. Казани","Выступление \"Игры в шахматы, как средство развития интеллектуальных способностей детей младшего возраста\"","февраль, 2025"]
[48,"Кургузова-Холмогорцева Е.Е.","Городской обучающий семинар \"Игровые формы и методы работы на начальном этапе обучения в шахматы\" для пелагогов образовательных организаций г. Казани","Мастер-класс \"Физкультминутка \"Шахматная зарядка\", \"Шахматные головоломки\"","февраль, 2025"]
[49,"Кургузова-Холмогорцева Е.Е.","Городской обучающий семинар \"Игровые формы и методы работы на начальном этапе обучения в шахматы\" для пелагогов образовательных организаций г. Казани","Мастер-класс \"Физкультминутка \"Шахматная зарядка\", \"Шахматные головоломки\"","февраль, 2025"]
[50,"Кургузова-Холмогорцева Е.Е.","Городской обучающий семинар \"Игровые формы и методы работы на начальном этапе обучения в шахматы\" для пелагогов образовательных организаций г. Казани","Мастер-класс \"Физкультминутка \"Шахматная зарядка\", \"Шахматные головоломки\"","февраль, 2025"]
[51,"Кургузова-Холмогорцева Е.Е.","Городской обучающий семинар \"Игровые формы и методы работы на начальном этапе обучения в шахматы\" для пелагогов образовательных организаций г. Казани","Мастер-класс \"Физкультминутка \"Шахматная зарядка\", \"Шахматные головоломки\"","февраль, 2025"]
[52,"Ибрагимова Э.Г.","Городской обучающий семинар \"Игровые формы и методы работы на начальном этапе обучения в шахматы\" для пелагогов образовательных организаций г. Казани","Мастер-класс \"Шахматная нотация. Головоломки и ребусы. Как ходят фигуры\"","февраль, 2025"]
[53,"Ибрагимова Э.Г.","Городской обучающий семинар \"Игровые формы и методы работы на начальном этапе обучения в шахматы\" для пелагогов образовательных организаций г. Казани","Мастер-класс \"Шахматная нотация. Головоломки и ребусы. Как ходят фигуры\"","февраль, 2025"]
[54,"Ибрагимова Э.Г.","Городской обучающий семинар \"Игровые формы и методы работы на начальном этапе обучения в шахматы\" для пелагогов образовательных организаций г. Казани","Мастер-класс \"Шахматная нотация. Головоломки и ребусы. Как ходят фигуры\"","февраль, 2025"]
[55,"Ибрагимова Э.Г.","Городской обучающий семинар \"Игровые формы и методы работы на начальном этапе обучения в шахматы\" для пелагогов образовательных организаций г. Казани","Мастер-класс \"Шахматная нотация. Головоломки и ребусы. Как ходят фигуры\"","февраль, 2025"]
[56,"Мифтахова Л.Р.","Социально педагогические аспекты современной организации дополнительного образования","Социально педагогические аспекты современной организации дополнительного образования","май, 2025"]
[57,"Петрова Е.Л.","Социально педагогические аспекты современной организации дополнительного образования","Методический кейс «К вершинам мастерства» ","май, 2025"]
[58,"Абдуллина Э.А.","Социально педагогические аспекты современной организации дополнительного образования","Методический кейс «К вершинам мастерства» ","май, 2025"]
[59,"Кургузова-Холмогорцева Е.Е.","Социально педагогические аспекты современной организации дополнительного образования","Алгоритм подготовки мероприятия в УДО","май, 2025"]
[60,"Суханова М.В.","Социально педагогические аспекты современной организации дополнительного образования","Алгоритм подготовки мероприятия в УДО","май, 2025"]
[61,"Фоменко Л.М.","Социально педагогические аспекты современной организации дополнительного образования","Особенности детских общественных объединений и органов школьного ученического самоуправления. РДДМ – «Движение первых»","май, 2025"]
[62,"Мифтахова Л.Р.","Социально педагогические аспекты современной организации дополнительного образования","Круглый стол “Обмен мнениями: студенческая практика в учреждении дополнительного образования”. Оформление документации по итогам практики ","май, 2025"]
[63,"Петрова Е.Л.","Социально педагогические аспекты современной организации дополнительного образования","Круглый стол “Обмен мнениями: студенческая практика в учреждении дополнительного образования”. Оформление документации по итогам практики ","май, 2025"]
[64,"Абдуллина Э.А.","Социально педагогические аспекты современной организации дополнительного образования","Круглый стол “Обмен мнениями: студенческая практика в учреждении дополнительного образования”. Оформление документации по итогам практики ","май, 2025"]
[65,"Мифтахова Л.Р.","Всестороннее развитие личности ребенка через дополнительное образование","Формирование социально активной личности учащегося через творческую деятельность в объединениях учреждений дополнительного образования ","май, 2025"]
[66,"Абдуллина Э.А.","Всестороннее развитие личности ребенка через дополнительное образование","Командообразование или тимбилдинг: приемы и формы формирования команды ","май, 2025"]
[67,"Петрова Е.Л.","Всестороннее развитие личности ребенка через дополнительное образование","Роль интернет-ресурсов в создании единого образовательного пространства ЦДТ","май, 2025"]
[68,"Суханова М.В.","Всестороннее развитие личности ребенка через дополнительное образование","Массовое мероприятие: шаг за шагом","май, 2025"]
[69,"Сафина А.И.","Всестороннее развитие личности ребенка через дополнительное образование","Массовое мероприятие: шаг за шагом","май, 2025"]
[70,"Татьянушкина В.В.","Всестороннее развитие личности ребенка через дополнительное образование","Массовое мероприятие: шаг за шагом","май, 2025"]
[71,"Фоменко Л.М.","Всестороннее развитие личности ребенка через дополнительное образование","Развитие гражданской активности в детских общественных организациях как фактор формирования лидерских качеств школьников","май, 2025"]
[72,"Мифтахова Л.Р.","Всестороннее развитие личности ребенка через дополнительное образование","Круглый стол “Учреждение дополнительного образования в контексте современной практики”. Оформление документации по итогам практики ","май, 2025"]
[73,"Петрова Е.Л.","Всестороннее развитие личности ребенка через дополнительное образование","Круглый стол “Учреждение дополнительного образования в контексте современной практики”. Оформление документации по итогам практики ","май, 2025"]
[74,"Абдуллина Э.А.","Всестороннее развитие личности ребенка через дополнительное образование","Круглый стол “Учреждение дополнительного образования в контексте современной практики”. Оформление документации по итогам практики ","май, 2025"]
[75,"Васильева К.З.","Городской обучающий семинар \"Игровые формы и методы работы на начальном этапе обучения игре в шахматы\", Вахитовский и Приволжский районы","\"Использование игровых форм и методов на начальном этапе обучения игре в шахматы\"","февраль, 2025"]
[76,"Васильева К.З.","Городской обучающий семинар \"Игровые формы и методы работы на начальном этапе обучения игре в шахматы\", Авиастроительный и Новосавиновский районы","\"Использование игровых форм и методов на начальном этапе обучения игре в шахматы\"","февраль, 2025"]
[77,"Васильева К.З.","Городской обучающий семинар \"Игровые формы и методы работы на начальном этапе обучения игре в шахматы\", Кировский и Московский  районы","\"Использование игровых форм и методов на начальном этапе обучения игре в шахматы\"","февраль, 2025"]
[78,"Васильева К.З.","Городской обучающий семинар \"Игровые формы и методы работы на начальном этапе обучения игре в шахматы\",Советский район","\"Использование игровых форм и методов на начальном этапе обучения игре в шахматы\"","февраль, 2025"]
[79,"Васильева К.З.","\"Многопрофильное учреждение дополнительного образования: педагогическая поддержка самореализации детей и молодежи\", ГАОУ \"Казанский радиомеханический колледж\"","\"Особенности подготовки и проведения социокультурных мероприятий\"","декабрь, 2024"]
[80,"Васильева К.З.","\"Учреждение дополнительного образования в контексте современной практики\", ГАОУ \"Казанский радиомеханический колледж\"","\"ЦДТ - база практики студентов, обучающихся по специальности социально-культурная деятельность\"","декабрь, 2024"]
[81,"Васильева К.З.","\"Социально-педагогические аспекты современной организации дополнительного образования\", ГАОУ \"Казанский радиомеханический колледж\"","\"Роль тгровых и танцевальных физкультминуток на занятиях объединений ЦДТ в формировании здорового образа жизни\"","май, 2025"]
[82,"Борисова Л.Н."," Всероссийский семинар «Профессиональное становление начинающего педагога в системе дополнительного образования» ","Мастер-класс «Тренинг по созданию непринужденной атмосферы и полной свободы в общении»","2024-10-17"]
[83,"Андреева М.Ю."," Всероссийский семинар «Профессиональное становление начинающего педагога в системе дополнительного образования» ","Мастер-класс «Тренинг по созданию непринужденной атмосферы и полной свободы в общении»","2024-10-17"]
[84,"Андреева М.Ю.","Всероссийский семинар «Вызовы и перспективы современной системы дополнительного образования детей»","Мастер-класс «Игровые упражнения и задания по созданию творческого коллектива»","2024-09-09"]
[85,"Борисова Л.Н.","Всероссийский семинар «Вызовы и перспективы современной системы дополнительного образования детей»","Мастер-класс «Игровые упражнения и задания по созданию творческого коллектива»","2024-09-09"]
[86,"Новикова Н.А.","Всероссийский семинар \"Учреждения дополнительного образования от теории к практике\"","\"Теория и практика проведения конкурсов в ЦДТ","2025-03-12"]
[87,"Андрееваа М.Ю.","Всероссийский семинар \"Подготовка кадров  в системе дополнительного образования\"","Практическое занятие","2025-05-27"]
[88,"Борисова Л.Н.","Всероссийский семинар \"Подготовка кадров  в системе дополнительного образования\"","Практическое занятие","2025-05-27"]
[89,"Холмогорцева О.В.","Всероссийский семинар \"Подготовка кадров  в системе дополнительного образования\"","Практическое занятие","2025-05-27"]
[90,"Егорова Е.Е.","Всероссийский семинар \"Подготовка кадров  в системе дополнительного образования\"","Практическое занятие","2025-05-27"]
[]
[]
["республиканский уровень"]
[1,"Сафина А.И. ","Круглый стол \"Роль педагога-организатора в реализации задач воспитания в образовательной организации\"","Культурно-досуговая деятельность и медиаресурсы как средство гражданско-патриотического воспитания подрастающего поколения","ноябрь, 2024"]
[2,"Суханова М.В.","Круглый стол \"Роль педагога-организатора в реализации задач воспитания в образовательной организации\"","Культурно-досуговая деятельность и медиаресурсы как средство гражданско-патриотического воспитания подрастающего поколения","март, 2025"]
[]
["региональный уровень"]
[1,"Бердникова М.Г.","Межрегиональный семинар-практикум \"Успешность без границ\"","«Гражданско-патриотическое воспитание детей с ОВЗ и инвалидностью в работе педагога дополнительного образования» ","декабрь, 2024"]
["российский уровень"]
[1,"Зеленцов Д.А.","\"Подготовка кадров для системы дополнительного образования\"","\"Организация учебно-воспитательного процесса в объединении Юный дизайнер\"","2025-05-27"]
[2,"Гиздатуллина К.М.","\"Подготовка кадров для системы дополнительного образования\"","\"Организация учебно-воспитательного процесса в студии \"Озорные краски\"","2025-05-27"]
[3,"Егорова Е.Е.","\"Подготовка кадров для системы дополнительного образования\"","\"Организация учебно-воспитательного процесса в объединении Юный дизайнер\"","2025-05-27"]
[4,"Сергеева М.В.","\"Подготовка кадров для системы дополнительного образования\"","\"Организация учебно-воспитательного процесса в объединении Юный дизайнер\"","2025-05-27"]
[5,"Камалова О.А.","\"Формирование социальной активности личности учащегося через творческую деятельность в объединениях учреждений дополнительного образования\"","Интеллектуальная игра \"Эрудит\"","2025-04-18"]
[6,"Борисова Л.Н."," Всероссийский семинар «Профессиональное становление начинающего педагога в системе дополнительного образования» ","Мастер-класс «Тренинг по созданию непринужденной атмосферы и полной свободы в общении»","2024-10-17"]
[7,"Андреева М.Ю."," Всероссийский семинар «Профессиональное становление начинающего педагога в системе дополнительного образования» ","Мастер-класс «Тренинг по созданию непринужденной атмосферы и полной свободы в общении»","2024-10-17"]
[8,"Андреева М.Ю.","Всероссийский семинар «Вызовы и перспективы современной системы дополнительного образования детей»","Мастер-класс «Игровые упражнения и задания по созданию творческого коллектива»","2024-09-09"]
[9,"Борисова Л.Н.","Всероссийский семинар «Вызовы и перспективы современной системы дополнительного образования детей»","Мастер-класс «Игровые упражнения и задания по созданию творческого коллектива»","2024-09-09"]
[10,"Новикова Н.А.","Всероссийский семинар \"Учреждения дополнительного образования от теории к практике\"","\"Теория и практика проведения конкурсов в ЦДТ","2025-03-12"]
[11,"Андрееваа М.Ю.","Всероссийский семинар \"Подготовка кадров  в системе дополнительного образования\"","Практическое занятие","2025-05-27"]
[12,"Борисова Л.Н.","Всероссийский семинар \"Подготовка кадров  в системе дополнительного образования\"","Практическое занятие","2025-05-27"]
[13,"Холмогорцева О.В.","Всероссийский семинар \"Подготовка кадров  в системе дополнительного образования\"","Практическое занятие","2025-05-27"]
[14,"Егорова Е.Е.","Всероссийский семинар \"Подготовка кадров  в системе дополнительного образования\"","Практическое занятие","2025-05-27"]
[15,"Мифтахова Л.Р.","Вызовы и перспективы современной системы дополнительного образования детей","Круглый стол \"Путь к успеху: от практики до эффективного трудоустройства\"","сентябрь, 2024"]
[16,"Петрова Е.Л.","Вызовы и перспективы современной системы дополнительного образования детей","Интенсив \"Повышения эффективности образовательного процесса через формирование компетенций педагога дополнительного образования в области документационного обеспечения деятельности","сентябрь, 2024"]
[17,"Фоменко Л.М.","Вызовы и перспективы современной системы дополнительного образования детей","Практикум \"Детовождение","сентябрь, 2024"]
[18,"Абдуллина Э.А.","Профессиональное становление начинающего педагога в системе дополнительного образования","Роль Центра детского творчества в подготовке будущих кадров системы дополнительного образования","октябрь, 2024"]
[19,"Фоменко Л.М.","Профессиональное становление начинающего педагога в системе дополнительного образования","Деловая игра \"Формирование ключевых компетенций учащихся через проекную деятельность\"","октябрь, 2024"]
[20,"Петрова Е.Л.","Профессиональное становление начинающего педагога в системе дополнительного образования","КВИЗ \"Анализ педагогической деятельности: вопросы и ответы\"","октябрь, 2024"]
[21,"Мифтахова Л.Р.","Профессиональное становление начинающего педагога в системе дополнительного образования","Круглый стол \"Шаг в будущую профессию. Итоги педагогической практики\"","октябрь, 2024"]
[22,"Абдуллина Э.А.","Учреждения дополнительного образования детей: от теории к практике","Интерактивные формы знакомства. Приемы и упражнения на командообразование","март, 2025"]
[23,"Мифтахова Л.Р.","Учреждения дополнительного образования детей: от теории к практике","Роль и место Центра детского творчества в образовательном пространстве г. Казани","март, 2025"]
[24,"Петрова Е.Л.","Учреждения дополнительного образования детей: от теории к практике","Информационные ресурсы ЦДТ как необходимый компонент открытого взаимодействия учреждения и общественности","март, 2025"]
[25,"Суханова М.В.","Учреждения дополнительного образования детей: от теории к практике","Практическое занятие \"Активно-игровая программа \"23+8\"","март, 2025"]
[26,"Татьянушкина В.В.","Учреждения дополнительного образования детей: от теории к практике","Практическое занятие \"Активно-игровая программа \"23+8\"","март, 2025"]
[27,"Фоменко Л.М.","Формирование социально -активной личности учащегося в объединениях учреждений дополнительного образования","Методические приемы подготовки и проведения музейной экскурсии. Экскурсия в Музей образования Вахитовского района","апрель, 2025"]
[28,"Абдуллина Э.А.","Формирование социально -активной личности учащегося в объединениях учреждений дополнительного образования","Приемы и упражнения на командообразование. Интерактивные формы","апрель, 2025"]
[29,"Мифтахова Л.Р.","Формирование социально -активной личности учащегося в объединениях учреждений дополнительного образования","Формирование социально-активной личности учащегося через творческую деятельность в объединениях учреждений дополнительного образования","апрель, 2025"]
[30,"Петрова Е.Л.","Формирование социально -активной личности учащегося в объединениях учреждений дополнительного образования","Круглый стол \"Мониторинг педагогической практики студентов. Второе полугодие 2024-2025 учебного года\"","апрель, 2025"]
[31,"Суханова М.В.","Формирование социально -активной личности учащегося в объединениях учреждений дополнительного образования","Технология разработки массовых мероприятий","апрель, 2025"]
[32,"Сафина А.И.","Формирование социально -активной личности учащегося в объединениях учреждений дополнительного образования","Технология разработки массовых мероприятий","апрель, 2025"]
[33,"Абдуллина Э.А.","Подготовка кадров для системы дополнительного образования",null,"май, 2025"]
[34,"Мифтахова Л.Р.","Подготовка кадров для системы дополнительного образования",null,"май, 2025"]
[35,"Петрова Е.Л.","Подготовка кадров для системы дополнительного образования",null,"май, 2025"]
[36,"Шашина Т.Б.","Всероссийский семинар \"Формирование социально активной личности учащегося через творческую деятельность в объединениях учреждений дополнительного образования\"","«Использование игровых технологий в объединении \"Английский c нами\" для развития креативных способностей учащихся\"","апрель, 2025"]
[37,"Эминова Н.Г.","Всероссийский семинар \"Формирование социально активной личности учащегося через творческую деятельность в объединениях учреждений дополнительного образования\"","«Использование игровых технологий в объединении \"Английский c нами\" для развития креативных способностей учащихся\"","апрель, 2025"]
[38,"Эминова Н.Г.","Всероссийский семинар \"Подготовка кадров для системы дополнительного образования\"","«Использование игровых технологий в объединении \"Английский c нами\" для развития креативных способностей учащихся\"","май, 2025"]
[39,"Мансурова Т.И.","Всероссийский семинар \"Подготовка кадров для системы дополнительного образования\"","«Использование игровых технологий в объединении \"Английский, играя\"","май, 2026"]
[40,"Шашина Т.Б.","Всероссийский семинар \"Учреждения дополнительного образования детей: от теории к практике\" тв Институте психологии и образования\"","«Использование игровых технологий\"","май, 2027"]
[41,"Васильева К.З.","\"Формирование социально-активной личности учащегося через творческую деятельность в объединениях учреждений дополнительного образования\", КФУ ИПиО","Интеллектуальная игра \"Эрудит\"","апрель, 2025"]
[42,"Деваева Е.С.","\"Подготовка кадров для системы дополнительного образования\" в Институте психологии и образования (КФУ)","Организация учебно-воспитательного процесса в объединении \"Карате\"","май, 2025"]
[43,"Гордеева И.В.","\"Подготовка кадров для системы дополнительного образования\" в Институте психологии и образования (КФУ)","Организация учебно-воспитательного процесса в тТатре эстрады сатиры и юмора \"ЕрашОк\"","май, 2025"]
[]
["международный уровень"]

{"sheet":"участие в НПК, семин без выступ","index":6,"n_rows":33,"n_cols":4,"rows_kept":33,"merged":[[0,0,0,3],[2,0,2,3],[4,0,4,3],[19,0,19,3],[28,0,28,3],[30,0,30,3],[32,0,32,3]]}
["УЧАСТИЕ  ПЕДАГОГИЧЕСКИХ РАБОТНИКОВ В НАУЧНО-ПРАКТИЧЕСКИХ КОНФЕРЕНЦИЯХ, МЕТОДИЧЕСКИХ СЕМИНАРАХ (БЕЗ ЛИЧНОГО ВЫСТУПЛЕНИЯ)"]
["№","Фамилия, инициалы","Название конференции, семинара","Дата (месяц, год)"]
["районный уровень"]
[]
["городской уровень"]
[1,"Антипова И.С.","Городской семинар \"Современные методики развития творческих способностей учащихся в области изобразительного искусства\"","ноябрь, 2024"]
[2,"Быстрова Л.М.","Городской семинар \"Современные методики развития творческих способностей учащихся в области изобразительного искусства\"","ноябрь, 2024"]
[3,"Сергеева М.В.","Городской семинар \"Современные методики развития творческих способностей учащихся в области изобразительного искусства\"","ноябрь, 2024"]
[4,"Антипова И.С.","Городской семинар \"Традиции и инновации в реализации ДООП художественной направленности в дополнительном образовании\"","январь, 2025"]
[5,"Быстрова Л.М.","Городской семинар \"Традиции и инновации в реализации ДООП художественной направленности в дополнительном образовании\"","январь, 2025"]
[6,"Сергеева М.В.","Городской семинар \"Традиции и инновации в реализации ДООП художественной направленности в дополнительном образовании\"","январь, 2025"]
[7,"Антипова И.С.","Городской семинар \"Самоопределение обучающихся в системе дополнительного образования\"","февраль, 2025"]
[8,"Гиздатуллина К.М.","Городской семинар \"Самоопределение обучающихся в системе дополнительного образования\"","февраль, 2025"]
[9,"Иванова С.В.","\"Современные приемы обучения школьников в системе дополнительного образования\"","декабрь, 2024"]
[10,"Бердникова М.Г.","\"Современные приемы обучения школьников в системе дополнительного образования\"","декабрь, 2024"]
[11,"Шигапова Г.Р.","\"Дистанционная открытая творческая мастерская \"Развитие функциональной грамотности на занятиях ДПИ и ИЗО\"","апрель, 2025"]
[12,"Бердникова М.Г.","\"Дистанционная открытая творческая мастерская \"Развитие функциональной грамотности на занятиях ДПИ и ИЗО\"","апрель, 2025"]
[13,"Новикова Н.А.","Городской  практический семинар методистов учреждений дополнительного образования г.Казани","март, 2025"]
[14,"Мифтахова Л.Р.","Деятельность методической службы УДО по совершенствованию профессионального мастерства педагога. Программа развития профессионального мастерства","март, 2025"]
["республиканский уровень"]
[1,"Быстрова Л.М.","Республиканский практический семинар \"Освоение современных художественных приемов графики в реализации творческого потенциала учащихся в ДХШ\"","октябрь, 2024"]
[2,"Сафина А.И.","Проблемы реализации инклюзивного обучения в системе музыкально-эстетического образованияи воспитания детей","май, 2025"]
[3,"Ибрагимова Э.Г.","Проблемы реализации инклюзивного обучения в системе музыкально-эстетического образованияи воспитания детей","май, 2025"]
[4,"Суханова М.В,","Проблемы реализации инклюзивного обучения в системе музыкально-эстетического образованияи воспитания детей","май, 2025"]
[5,"Каримова К.Р.","Круглый стол \"Хореографическое искусство: обновление форм и содержания обучения в учреждениях дополнительного образования\", ИРО РТ","сентябрь, 2024"]
[6,"Каримова К.Р.","Интенсив-курс \"MOVE CREATE\", Санкт-Перербургский ГБП ОУ \"Колледж \"Звездный\"","сентябрь, 2024"]
[7,"Борисова Л.Н.","II Республиканские Яруллинские педагогические чтения \"Гуманзация воспитательного пространства дополнительного образования2, появященных Году семьи и 80-летиюПобеды в Великой отечественной войне","ноябрь, 2024"]
[8,"Садыкова А.Г.","II Республиканские Яруллинские педагогические чтения \"Гуманзация воспитательного пространства дополнительного образования2, появященных Году семьи и 80-летиюПобеды в Великой отечественной войне","ноябрь, 2024"]
["региональный уровень"]
[1,"Туктаров В.А.","Обучающий региональный семинар \"Методика организации и проведения занятий по футболу в общеобразовательных организациях в рамках проекта \"Футбол в школе\"","апрель, 2025"]
["российский уровень"]
[1,"Васильева К.З.","Учреждение дополнительного образования детей: от теории к практике\", ИРО РТ","март, 2025"]
["международный уровень"]

{"sheet":"стаж площадки","index":7,"n_rows":36,"n_cols":6,"rows_kept":36,"merged":[[0,0,0,5]]}
["УЧАСТИЕ ПЕДАГОГИЧЕСКИХ РАБОТНИКОВ  В СТАЖЕРСКИХ ПЛОЩАДКАХ\n ИДПО МК РТ,  РЦВР  МОиН РТ\n"]
["№","Фамилия, инициалы","Название стажерской площадки, организатор","Форма участия","Тема","Дата (число, месяц, год)"]
[1,"Андреева М.Ю.","«Формирование социально активной личности учащегося через творческую деятельность в объединениях ЦДТ» К(П)ФУ, Приволжский межрегиональный центр повышения квалификации и профессиональной переподготовки работников образования","Мастер-класс","Психофизический тренинг на занятиях в театре-студии «Ровесник\"","2025-02-18"]
[2,"Борисова Л.Н.","«Формирование социально активной личности учащегося через творческую деятельность в объединениях ЦДТ» К(П)ФУ, Приволжский межрегиональный центр повышения квалификации и профессиональной переподготовки работников образования","Мастер-класс","Психофизический тренинг на занятиях в театре-студии «Ровесник\"","2025-02-18"]
[3,"Васильева К.З.","\"Деятельность учителя предметной области \"Искусство\" по достижению планируемых результатов на основе межпредметной интеграции в контексте требований ФГОС, КФУ ИПиО ","Интеллектуальная игра ","\"Эрудит УДО\"","2025-02-18"]
[4,"Гиздатуллина К.М.","\"Деятельность учителя в предметной области \"Искусство\"","Мастер-класс","Открытка с сюрпризом","2025-02-18"]
[5,"Камалова О.А.","\"Деятельность учителя в предметной области \"Искусство\"","Мастер-класс","Открытка с сюрпризом","2025-02-18"]
[6,"Мифтахова Л.Р.","\"Искусство \"Деятельность учителя предметной области \"Искусство\" по достижению планируемых результатов на основе межпредметной интеграции в контексте требований ФГОС (в том числе \"Навыки оказания первой помощи\", 16 часов)\"","выступление",null,"2025-02-18"]
[7,"Новикова Н.А.","Деятельность учителя предметной области «Искусство» по достижению планируемых результатов на основе межпредметной интеграции в контексте требований ФГОС, КФУ ИПиО","интерактив","«Масленичный хоровод»","2025-02-18"]
[8,"Сафина А. И.","Деятельность учителя предметной области «Искусство» по достижению планируемых результатов на основе межпредметной интеграции в контексте требований ФГОС, КФУ ИПиО","интерактив","«Масленичный хоровод»","2025-02-18"]
[9,"Сергеева М.В.","\"Деятельность учителя в предметной области \"Искусство\"","Мастер-класс","Открытка с сюрпризом","2025-02-18"]
[10,"Туктаров В.А.","\"Деятельность учителя предметной области \"Искусство\" по достижению планируемых результатов на основе межпредметной интеграции в контексте требований ФГОС, КФУ ИПиО ","Мастер-класс","\"Физкультминутка, не вставая со стула\"","2025-02-18"]
[11,"Шашина Т.Б.","В рамках программы повышения квалификации учителей предметной области \"Искусство.\", \"Деятельность учителя предметной области \"Искусство\" по достижению планируемых результатов на основе межпредметной интеграии в контексте требований ФГОС\".","мастер-класс","\"Сенсорная коробка для дете с ОВ\"","2025-02-18"]
[12,"Шигапова Г.Р.","В рамках программы повышения квалификации учителей предметной области \"Искусство.\", \"Деятельность учителя предметной области \"Искусство\" по достижению планируемых результатов на основе межпредметной интеграии в контексте требований ФГОС\".","мастер-класс","\"Сенсорная коробка для дете с ОВ\"","2025-02-18"]
[13,"Фоменок Л.М.","В рамках программы повышения квалификации учителей предметной области \"Искусство.\", \"Деятельность учителя предметной области \"Искусство\" по достижению планируемых результатов на основе межпредметной интеграии в контексте требований ФГОС\".","выступление, экскурсия","Экскурсия - одна из форм духовно-нравственного развития учащихся","2025-02-18"]
[14,"Абдуллина Э.А. ","В рамках программы повышения квалификации учителей предметной области \"Искусство.\", \"Деятельность учителя предметной области \"Искусство\" по достижению планируемых результатов на основе межпредметной интеграии в контексте требований ФГОС\".","интерактив","Интерактивное знакомство с элементами командообразования","2025-02-18"]
[15,"Минсафина Р.Р.","В рамках программы повышения квалификации учителей предметной области \"Искусство.\", \"Деятельность учителя предметной области \"Искусство\" по достижению планируемых результатов на основе межпредметной интеграии в контексте требований ФГОС\".","Интеллектуальная игра ","\"Эрудит УДО\"","2025-02-18"]
[16,"Ибрагимова Э.Г.","В рамках программы повышения квалификации учителей предметной области \"Искусство.\", \"Деятельность учителя предметной области \"Искусство\" по достижению планируемых результатов на основе межпредметной интеграии в контексте требований ФГОС\".","Интеллектуальная игра ","\"Эрудит УДО\"","2025-02-18"]
[17,"Суханова М.В.","В рамках программы повышения квалификации учителей предметной области \"Искусство.\", \"Деятельность учителя предметной области \"Искусство\" по достижению планируемых результатов на основе межпредметной интеграии в контексте требований ФГОС\".","интерактив","«Масленичный хоровод»","2025-02-18"]
[18,"Кургузова-Холмогорцева Е.Е.","В рамках программы повышения квалификации учителей предметной области \"Искусство.\", \"Деятельность учителя предметной области \"Искусство\" по достижению планируемых результатов на основе межпредметной интеграии в контексте требований ФГОС\".","интерактив","«Масленичный хоровод»","2025-02-18"]
[19,"Татьянушкина В.В.","В рамках программы повышения квалификации учителей предметной области \"Искусство.\", \"Деятельность учителя предметной области \"Искусство\" по достижению планируемых результатов на основе межпредметной интеграии в контексте требований ФГОС\".","интерактив","«Масленичный хоровод»","2025-02-18"]
[20,"Петрова Е.Л.","В рамках программы повышения квалификации учителей предметной области \"Искусство.\", \"Деятельность учителя предметной области \"Искусство\" по достижению планируемых результатов на основе межпредметной интеграии в контексте требований ФГОС\".","рефлексия","Улыбнись!","2025-02-18"]
[21,"Камалова О.А.","\"Совершенствование деятельности педагога-организатора по формированию у школьников социальной активности в условиях реализации ФГОС\"","Интеллектуальная игра","Эрудит","2025-04-18"]
[22,"Абдуллина Э.А.","Совершенствование деятельности педагога-организатора по формированию у школьников социальной активности в условиях реализации ФГОС (в том числе \"Навыки оказания первой помощи\", 16 часов)","практикум","Интерактивные приемы командообразования","2025-04-18"]
[23,"Кургузова-Холмогорцева Е.Е.","Совершенствование деятельности педагога-организатора по формированию у школьников социальной активности в условиях реализации ФГОС (в том числе \"Навыки оказания первой помощи\", 16 часов)","мастер-класс","Алгоритм создания массового мероприятия","2025-04-18"]
[24,"Мифтахова Л.Р.","Совершенствование деятельности педагога-организатора по формированию у школьников социальной активности в условиях реализации ФГОС (в том числе \"Навыки оказания первой помощи\", 16 часов)","выступление","Роль Центра детского творчества в формировании и раскрытии творческого потенциала детей и подростков","2025-04-18"]
[25,"Петрова Е.Л.","Совершенствование деятельности педагога-организатора по формированию у школьников социальной активности в условиях реализации ФГОС (в том числе \"Навыки оказания первой помощи\", 16 часов)","выступление","Формирование социально активной личности учащегося через творческую деятельность в объединении ЦДТ","2025-04-18"]
[26,"Сафина А.И.","Совершенствование деятельности педагога-организатора по формированию у школьников социальной активности в условиях реализации ФГОС (в том числе \"Навыки оказания первой помощи\", 16 часов)","мастер-класс","Алгоритм создания массового мероприятия","2025-04-18"]
[27,"Суханова М.В.","Совершенствование деятельности педагога-организатора по формированию у школьников социальной активности в условиях реализации ФГОС (в том числе \"Навыки оказания первой помощи\", 16 часов)","мастер-класс","Алгоритм создания массового мероприятия","2025-04-18"]
[28,"Татьянушкина В.В.","Совершенствование деятельности педагога-организатора по формированию у школьников социальной активности в условиях реализации ФГОС (в том числе \"Навыки оказания первой помощи\", 16 часов)","игра","Эрудит","2025-04-18"]
[29,"Фоменко Л.М.","Совершенствование деятельности педагога-организатора по формированию у школьников социальной активности в условиях реализации ФГОС (в том числе \"Навыки оказания первой помощи\", 16 часов)","выступление","Методические приемы подготовки и проведения музейной экскурсии","2025-04-18"]
[30,"Фоменко Л.М.","Совершенствование деятельности педагога-организатора по формированию у школьников социальной активности в условиях реализации ФГОС (в том числе \"Навыки оказания первой помощи\", 16 часов)","выступление","Развитие лидерского потенциала школьников как результат взаимодействия детских общественных организаций и дополнительного образования","2025-04-18"]
[31,"Шашина Т.Б.","Стажировка педагогов-организаторов образовательных организаций \"Совершенствование деятельности педагога-организатора по формированию у школьников социальной активности в условия реализации ФГОС\"","мастер-класс","\"Использование игровых ртехнологий в обединении \"Английский с нами\" для развития креативных способностей учащихся\"","2025-04-18"]
[32,"Эминова Н.Г.","Стажировка педагогов-организаторов образовательных организаций \"Совершенствование деятельности педагога-организатора по формированию у школьников социальной активности в условия реализации ФГОС\"","мастер-класс","\"Использование игровых ртехнологий в обединении \"Английский с нами\" для развития креативных способностей учащихся\"","2025-04-18"]
[33,"Васильева К.З.","«Совершенствование деятельности педагога-организатора по формированию у школьников социальной активности в условиях реализации ФГОС, КФУ ИПиО ","Мастер-класс","Интеллектуальная игра  «Эрудит»","2025-04-18"]
[34,"Каримова К.Р.","\"Актуальные вопросы воспитательной работы в школе\", ФГАОУ ВО К(П)ФУ","Мастер-класс","Театрализованные постановки \"Щелкунчик\", \"Посвящение Победе в ВОВ 1941-1945 гг\"","2025-04-22"]

{"sheet":"публикации","index":8,"n_rows":31,"n_cols":5,"rows_kept":31,"merged":[[0,0,0,3],[2,0,2,4],[4,0,4,4],[22,0,22,4],[24,0,24,4],[26,0,26,4],[30,0,30,4]]}
["ПУБЛИКАЦИИ ПЕДАГОГИЧЕСКИХ РАБОТНИКОВ  В РАЙОННЫХ, ГОРОДСКИХ, РЕСПУБЛИКАНСКИХ, ВСЕРОССИЙСКИХ И МЕЖДУНАРОДНЫХ  СБОРНИКАХ"]
["№","Фамилия, инициалы","Название сборника, год издания","Тема публикации","Дата (месяц, год)"]
["районный уровень"]
[]
["городской уровень"]
[1,"Антипова И.С."," \"Гуманизация воспитательного пространства дополнительного образования\", Материалы II Республикнских Яруллинских чтений, посвященного году семьи и 80-летию Победы в ВОВ","\"Сочетание традиционных и нетрадиционных техник рисования для развития творческих способностей детей\"","май, 2025"]
[2,"Гиздатуллина К.М."," \"Гуманизация воспитательного пространства дополнительного образования\", Материалы II Республикнских Яруллинских чтений, посвященного году семьи и 80-летию Победы в ВОВ","Вместе-дружная семья!","май, 2025"]
[3,"Егорова Е.Е."," \"Гуманизация воспитательного пространства дополнительного образования\", Материалы II Республикнских Яруллинских чтений, посвященного году семьи и 80-летию Победы в ВОВ","\"С чего начинается Родина\"","май, 2025"]
[4,"Сафина А.И.","II Республиканские Яруллинские педагогические чтения \"Гуманизация воспитательного пространства дополнительного образования\", посвященные году семьи и 80-летию Победы в Великой Отчественной войне","Культурно-досуговая деятельность как средство гражданско-патриотического воспитания подрастающего поколения","ноябрь, 2024"]
[5,"Суханова М.В.","II Республиканские Яруллинские педагогические чтения \"Гуманизация воспитательного пространства дополнительного образования\", посвященные году семьи и 80-летию Победы в Великой Отчественной войне","Культурно-досуговая деятельность как средство гражданско-патриотического воспитания подрастающего поколения","ноябрь, 2024"]
[6,"Абдуллина Э.А.","II Республиканские Яруллинские педагогические чтения \"Гуманизация воспитательного пространства дополнительного образования\", посвященные году семьи и 80-летию Победы в Великой Отчественной войне","\"Кусочек сердца отдавать кому-то…\"","ноябрь, 2024"]
[7,"Мифтахова Л.Р.","II Республиканские Яруллинские педагогические чтения \"Гуманизация воспитательного пространства дополнительного образования\", посвященные году семьи и 80-летию Победы в Великой Отчественной войне","Профессиональная ориентация учащихся в Центре детского творчества Вахитовского района","ноябрь, 2024"]
[8,"Петрова Е.Л.","II Республиканские Яруллинские педагогические чтения \"Гуманизация воспитательного пространства дополнительного образования\", посвященные году семьи и 80-летию Победы в Великой Отчественной войне","Повышение профессиональной компетентности педагогических работников через участие в конкурсах профессионального мастерства","ноябрь, 2024"]
[9,"Кургузова-Холмогорцева Е.Е.","II Республиканские Яруллинские педагогические чтения \"Гуманизация воспитательного пространства дополнительного образования\", посвященные году семьи и 80-летию Победы в Великой Отчественной войне","Патриотизм и способы его формирования у нового поколения","ноябрь, 2024"]
[10,"Фоменко Л.М.","II Республиканские Яруллинские педагогические чтения \"Гуманизация воспитательного пространства дополнительного образования\", посвященные году семьи и 80-летию Победы в Великой Отчественной войне","Проектная деятельность как средство гражданско-патриотического воспитания подростков в дополнительном образовании","ноябрь, 2024"]
[11,"Шашина Т.Б.","Материалы II Респубиканских Ярулинских педагогических чтений, посвященных Году семьи и 80-летию Победы в Великой Отечественной войне \"Гуманизация воспитательного пространства дополнительного образования\"","Техноогии творчества на занятиях с детьми с ограниченными возможностями","ноябрь, 2024"]
[12,"Шигапова Г.Р.","Материалы II Респубиканских Ярулинских педагогических чтений, посвященных Году семьи и 80-летию Победы в Великой Отечественной войне \"Гуманизация воспитательного пространства дополнительного образования\"","Воспитание успешной личности через испоьзование учебно-воспитатеьных ситуаций на занятиях объединения Рукоделие. Терапия творчеством\" для детей ОВ","ноябрь, 2024"]
[13,"Бердникова М.Г.","Материалы II Респубиканских Ярулинских педагогических чтений, посвященных Году семьи и 80-летию Победы в Великой Отечественной войне \"Гуманизация воспитательного пространства дополнительного образования\"","Опыт работы педагога допонитеьного образования по патриотическому воспитанию детей ОВЗ и инвалидностью","ноябрь, 2024"]
[14,"Гордеева И.В.","Материалы II республиканских педагогических Яруллинских чтений \"Гуманизация воспитательного пространства дополнительного образования\", посвященных Году семьи и 80-летию Победы в Великой Отечественной войне\"","Гражданско-патриотическое воспитание подрастающего поколения в контексте освещения наследия ВОВ 1941-1945 гг.","ноябрь, 2024"]
[15,"Андреева М.Ю.","Сборник материалов «IIРеспубликанские Яруллинские педагогические чтения» ","«Да здравствует театр!» Гражданско-патриотическое воспитание детей в театре-студии «Ровесник» ","май,2025"]
[16,"Егорова Е.Е.","Сборник материалов «IIРеспубликанские Яруллинские педагогические чтения» ","«С чего начинается Родина…»","май,2025"]
[]
["республиканский уровень"]
[]
["региональный уровень"]
[1,"Бердникова М.Г.","Сборник материалов Межрегионального семинара-практикума \"Успешность без границ\"","«Гражданско-патриотическое воспитание детей с ОВЗ и инвалидностью в работе педагога дополнительного образования» ","декабрь, 2024"]
["российский уровень"]
[1,"Сафина А.И.","Сборник \"Социальное партнерство семьи и школы как основа дифференцированного обучения: подходы, механизмы и результаты\", 2025","Развитие социального партнерства в сфере дополнительного образования","май, 2025"]
[2,"Суханова М.В.","Сборник \"Социальное партнерство семьи и школы как основа дифференцированного обучения: подходы, механизмы и результаты\", 2025","Развитие социального партнерства в сфере дополнительного образования","май, 2025"]
[]
["международный уровень"]

{"sheet":"проф конкурсы","index":9,"n_rows":13,"n_cols":5,"rows_kept":13,"merged":[[0,0,0,4],[2,0,2,4],[4,0,4,4],[7,0,7,4],[9,0,9,4],[11,0,11,4],[12,0,12,4]]}
["УЧАСТИЕ ПЕДАГОГИЧЕСКИХ РАБОТНИКОВ  В КОНКУРСАХ ПРОФЕССИОНАЛЬНОГО МАСТЕРСТВА"]
["№","Фамилия, инициалы ","Название конкурса","Результаты","Дата (месяц, год)"]
["районный уровень"]
[]
["городской уровень"]
[1,"Абдуллина Э.А.","городская игра-конкурс методистов УДО \"Суперметодист\"","Гран-При","март, 2025"]
[2,"Петрова Е.Л.","городская игра-конкурс методистов УДО \"Суперметодист\"","Гран-При","март, 2025"]
["республиканский уровень"]
[]
["региональный уровень"]
[]
["российский уровень"]
["международный уровень"]

{"sheet":"конкурсы испол мастерства","index":10,"n_rows":86,"n_cols":5,"rows_kept":86,"merged":[[0,0,0,4],[2,0,2,4],[5,0,5,4],[18,0,18,4],[30,0,30,4],[77,0,77,4],[79,0,79,4],[85,0,85,4]]}
["УЧАСТИЕ ПЕДАГОГИЧЕСКИХ РАБОТНИКОВ  В КОНКУРСАХ ИСПОЛНИТЕЛЬСКОГО МАСТЕРСТВА"]
["№","Фамилия, инициалы ","Название конкурса","Результаты","Дата (месяц, год)"]
["учреждение"]
[]
[]
["районный уровень"]
[1,"Егорова Е.Е.","Районный конкурс \"Мама-ангел на Земле\", посвященного Году семьи и Дню матери","2 место","ноябрь, 2024"]
[2,"Ибрагимова Э.Г.","Районный конкурс \"Мама-ангел на Земле\", посвященного Году семьи и Дню матери","2 место","ноябрь, 2024"]
[3,"Минсафина Р.Р.","Районный конкурс \"Мама-ангел на Земле\", посвященного Году семьи и Дню матери","1 место","ноябрь, 2024"]
[4,"Минсафина Р.Р.","Районный конкурс \"Мама-ангел на Земле\", посвященного Году семьи и Дню матери","3 место","ноябрь, 2024"]
[5,"Минсафина Р.Р.","Районный конкурс \"Мама-ангел на Земле\", посвященного Году семьи и Дню матери","2 место","ноябрь, 2024"]
[6,"Фоменко Л.М.","Районный конкурс \"Мама-ангел на Земле\", посвященного Году семьи и Дню матери","1 место","ноябрь, 2024"]
[7,"Фоменко Л.М.","Районный конкурс \"Мама-ангел на Земле\", посвященного Году семьи и Дню матери","1 место","ноябрь, 2024"]
[8,"Бердникова М.Г.","Районный конкурс \"Мама-ангел на Земле\", посвященного Году семьи и Дню матери","3 место","ноябрь, 2024"]
[9,"Мифтахова Л.Р.","Районный конкурс \"Мама-ангел на Земле\", посвященного Году семьи и Дню матери","1 место","ноябрь, 2024"]
[10,"Мифтахова Л.Р.","Районный конкурс \"Мама-ангел на Земле\", посвященного Году семьи и Дню матери","2 место","ноябрь, 2024"]
[]
[]
["городской уровень"]
[1,"Быстрова Л.М.","Городской конкурс рисунков среди педагогов \"Автопортрет в образе шахматной фигуры\" в рамках реализации проекта \"Шахматы и я\".","Диплом за 1 место в номинации \"Классический портрет\"","февраль, 2025"]
[2,"Гиздатуллина К.М.","Городской конкурс рисунков среди педагогов \"Автопортрет в образе шахматной фигуры\" в рамках реализации проекта \"Шахматы и я\".","Диплом за 3 место в номинации \"Классический портрет\"","февраль, 2025"]
[3,"Зеленцов Д.А.","Городской конкурс рисунков среди педагогов \"Автопортрет в образе шахматной фигуры\" в рамках реализации проекта \"Шахматы и я\".","Гран-При","февраль, 2025"]
{"$rows_empty":8}
["республиканский уровень"]
[1,"Егорова Е.Е.","Республиканский конкурс изобразительного и декоративно прикладного творчества \"Чудеса из ларца\" среди педагогов","Лауреат 1 степени в номинации \"Разноцветные клубочки\"","апрель, 2025"]
[2,"Быстрова Л.М.","Республиканский конкурс изобразительного и декоративно прикладного творчества \"Чудеса из ларца\" среди педагогов","Дипломант 3 степени в номинации \"Волшебная роспись\"","апрель, 2025"]
[3,"Гиздатуллина К.М.","Республиканский конкурс изобразительного и декоративно прикладного творчества \"Чудеса из ларца\" среди педагогов","Дипломант 3 степени в номинации \"Вышивка\"","апрель, 2025"]
[4,"Гиздатуллина К.М.","Республиканский конкурс изобразительного и декоративно прикладного творчества \"Чудеса из ларца\" среди педагогов","Лауреат 2 степени в номинации \"Бумажный мир\"","апрель, 2025"]
[5,"Зеленцов Д.А.","Республиканский конкурс изобразительного и декоративно прикладного творчества \"Чудеса из ларца\" среди педагогов","Лауреат 2 степени в номинации \"Книжная миниатюра\"","апрель, 2025"]
[6,"Антипова И.С.","Республиканский конкурс изобразительного и декоративно прикладного творчества \"Чудеса из ларца\" среди педагогов","Лауреат 2 степени в номинации \"Карины-миниатюры\"","апрель, 2025"]
[7,"Егорова Е.Е.","Республиканский конкурс изобразительного и декоративно прикладного творчества \"Чудеса из ларца\" среди педагогов","Лауреат 1 степени в номинации \"Бумажный мир\"","апрель, 2025"]
[8,"Егорова Е.Е.","Республиканский конкурс изобразительного и декоративно прикладного творчества \"Чудеса из ларца\" среди педагогов","Лауреат 3 степени в номинации \"Бумажный мир. Моделирование\"","апрель, 2025"]
[9,"Сергеева М.В.","Республиканский конкурс изобразительного и декоративно прикладного творчества \"Чудеса из ларца\" среди педагогов","Лауреат 3 степени в номинации \"Картины-миниатюры\"","апрель, 2025"]
[10,"Быстрова Л.М.","Республиканский конкурс изобразительного и декоративно прикладного творчества \"Чудеса из ларца\" среди педагогов","Лауреат 1 степени в номинации \"Книжная миниатюра\"","апрель, 2025"]
[11,"Антипова И.С.","Республиканский конкурс изобразительного и декоративно прикладного творчества \"Чудеса из ларца\" среди педагогов","Лауреат 3 степени в номинации \"Книжная миниатюра\"","апрель, 2025"]
[12,"Гиздатуллина К.М.","Республиканский конкурс изобразительного и декоративно прикладного творчества \"Чудеса из ларца\" среди педагогов","Дипломант 2 степени в номинации \"Книжная миниатюра\"","апрель, 2025"]
[13,"Сергеева М.В.","Республиканский конкурс изобразительного и декоративно прикладного творчества \"Чудеса из ларца\" среди педагогов","Дипломант 1 степени в номинации \"Книжная миниатюра\"","апрель, 2025"]
[14,"Антипова И.С.","Республиканский конкурс изобразительного и декоративно прикладного творчества \"Чудеса из ларца\" среди педагогов","Лауреат 1 степени в номинации \"Картина-миниатюра. Портрет\"","апрель, 2025"]
[15,"Кургузова-Холмогорцева Е.Е.","Республиканский конкурс изобразительного и декоративно-прикладного творчества среди педагогов \"Чудеса из ларца\"","2 место","апрель, 2025"]
[16,"Кургузова-Холмогорцева Е.Е.","Республиканский конкурс изобразительного и декоративно-прикладного творчества среди педагогов \"Чудеса из ларца\"","1 место","апрель, 2025"]
[17,"Ибрагимова Э.Г.","Республиканский конкурс изобразительного и декоративно-прикладного творчества среди педагогов \"Чудеса из ларца\"","3 место","апрель, 2025"]
[18,"Сафина А.И.","Республиканский конкурс изобразительного и декоративно-прикладного творчества среди педагогов \"Чудеса из ларца\"","3 место","апрель, 2025"]
[19,"Ибрагимова Э.Г.","Республиканский конкурс изобразительного и декоративно-прикладного творчества среди педагогов \"Чудеса из ларца\"","1 место","апрель, 2025"]
[20,"Мифтахова Л.Р.","Республиканский конкурс изобразительного и декоративно-прикладного творчества среди педагогов \"Чудеса из ларца\"","3 место","апрель, 2025"]
[21,"Мифтахова Л.Р.","Республиканский конкурс изобразительного и декоративно-прикладного творчества среди педагогов \"Чудеса из ларца\"","1 место","апрель, 2025"]
[22,"Сафина А.И.","Республиканский конкурс изобразительного и декоративно-прикладного творчества среди педагогов \"Чудеса из ларца\"","1 место","апрель, 2025"]
[23,"Сафина А.И.","Республиканский конкурс изобразительного и декоративно-прикладного творчества среди педагогов \"Чудеса из ларца\"","3 место","апрель, 2025"]
[24,"Суханова М.В.","Республиканский конкурс изобразительного и декоративно-прикладного творчества среди педагогов \"Чудеса из ларца\"","2 место","апрель, 2025"]
[25,"Татьянушкина В.В.","Республиканский конкурс изобразительного и декоративно-прикладного творчества среди педагогов \"Чудеса из ларца\"","2 место","апрель, 2025"]
[26,"Татьянушкина В.В.","Республиканский конкурс изобразительного и декоративно-прикладного творчества среди педагогов \"Чудеса из ларца\"","1 место","апрель, 2025"]
[27,"Татьянушкина В.В.","Республиканский фестиваль-конкурс \"Браво - 2025. Одна на всех Великая Победа\", посвященный году 80-летия Победы в Великой Отечественной войне","лауреат 3 степени","март, 2025"]
[28,"Фоменко Л.М.","Республиканский фестиваль-конкурс \"Браво - 2025. Одна на всех Великая Победа\", посвященный году 80-летия Победы в Великой Отечественной войне","лауреат 2 степени","март, 2025"]
[29,"Фоменко Л.М.","Республиканский фестиваль-конкурс \"Браво - 2025. Одна на всех Великая Победа\", посвященный году 80-летия Победы в Великой Отечественной войне","лауреат 1 степени","март, 2025"]
[30,"Бердникова М.Г.","Республиканский конкурс изобразительного и декоративно-прикладного творчества \"Чудеса из ларца»","Дипломант  I степени","апрель, 2025"]
[31,"Иванова С.В.","Республиканский конкурс изобразительного и декоративно-прикладного творчества \"Чудеса из ларца»","Лауреат II  степени","апрель, 2025"]
[32,"Корсакова И.В.","Республиканский конкурс изобразительного и декоративно-прикладного творчества \"Чудеса из ларца»","Дипломант  II степени","апрель, 2025"]
[33,"Шашина Т.Б.","Республиканский конкурс изобразительного и декоративно-прикладного творчества \"Чудеса из ларца»","Лауреат  III степени","апрель, 2025"]
[34,"Шашина Т.Б.","Республиканский конкурс изобразительного и декоративно-прикладного творчества \"Чудеса из ларца»","Лауреат I  степени","апрель, 2025"]
[35,"Шигапова Г.Р.","Республиканский конкурс изобразительного и декоративно-прикладного творчества \"Чудеса из ларца»","Лауреат  III степени","апрель, 2025"]
[36,"Шигапова Г.Р.","Республиканский конкурс изобразительного и декоративно-прикладного творчества \"Чудеса из ларца»","Лауреат  III степени","апрель, 2025"]
[37,"Деваева Е.С.","Ремпубликанский конкурс изобразительного и декоративно-прикладного творчества \"Чудеса из ларца\", Картины миниатюры","Лауреат II степени","апрель, 2025"]
[38,"Деваева Е.С.","Ремпубликанский конкурс изобразительного и декоративно-прикладного творчества \"Чудеса из ларца\", Книжная миниатюра","Лауреат III степени","апрель, 2025"]
[39,"Васильева К.З.","Ремпубликанский конкурс изобразительного и декоративно-прикладного творчества \"Чудеса из ларца\"","Лауреат III степени","апрель, 2025"]
[40,"Татьянушкина В.В.","Конкурс творческих и исследовательских работ учащихся и педагогов \"Помним. Гордимся\", в рамках 2 Республиканских Яруллинских педагогических чтений \"Гуманизация воспитательного пространства дополнительного образования\", посвященные году семьи и 80-летию Победы в Великой Отчественной войне","диплом","ноябрь, 2024"]
[41,"Абдуллина Э.А.","Конкурс творческих и исследовательских работ учащихся и педагогов \"Помним. Гордимся\", в рамках 2 Республиканских Яруллинских педагогических чтений \"Гуманизация воспитательного пространства дополнительного образования\", посвященные году семьи и 80-летию Победы в Великой Отчественной войне","диплом 3 место","ноябрь, 2024"]
[42,"Абдуллина Э.А.","Республиканский фестиваль-конкурс \"Браво - 2025. Одна на всех Великая Победа\", посвященный году 80-летия Победы в Великой Отечественной войне","лауреат 3 степени","март, 2025"]
[43,"Абдуллина Э.А.","Республиканский фестиваль-конкурс \"Браво - 2025. Одна на всех Великая Победа\", посвященный году 80-летия Победы в Великой Отечественной войне","лауреат 1 степени","март, 2025"]
[44,"Ибрагимова Э.Г.","Республиканский фестиваль-конкурс \"Браво - 2025. Одна на всех Великая Победа\", посвященный году 80-летия Победы в Великой Отечественной войне","лауреат 2 степени","март, 2025"]
[null,"Васильева К.З.","Конкурс творческих и исследовательских работ учащихся и педагогов \"Помним, гордимся\" в рамках II республиканских педагогических Яруллинских чтений \"Гуманизация воспитательного пространства дополнительного образования\", посвященных Году семьи и 80-летию Победы в Великой Отечественной войне\"","Диплом \"За активное участие\"","ноябрь, 2024"]
[null,"Деваева Е.С.","Республиканский фестиваль-конкурс \"Браво-2025. Одна на всех Великая Победа, посвященный году 80-летия Победы в Великой Отечественной войне\"","Лауреат III степени","март, 2025"]
["региональный уровень"]
[]
["российский уровень"]
[1,"Антипова И.С.","3 Всероссийский конкурс \"Новогодний мандарин\"","Лауреат 1 степени","январь, 2025"]
[2,"Антипова И.С.","3 всероссийский конкуос \"Наши Zащитники\"","Лауреат 1 степени","февраль, 2025"]
[3,"Гиздатуллина К.М.","4 Всероссийский конкурс \"Эхо Победы\"","Лауреат 1 степени","май, 2025"]
[4,"Туктаров В.А.","Диджитал конкурс Российского футбольного Союза \"Самая футбольная елочка 2025\"","Сертификат \"За проявленный художественный талант\" ","январь, 2025"]
[]
["международный уровень"]

{"sheet":"жюри","index":11,"n_rows":110,"n_cols":4,"rows_kept":110,"merged":[[0,0,0,2],[2,0,2,3],[4,0,4,3],[42,0,42,3],[75,0,75,3],[103,0,103,3],[106,0,106,3],[109,0,109,3]]}
["УЧАСТИЕ В РАБОТЕ ЖЮРИ, СУДЕЙСТВЕ"]
["№","Фамилия, инициалы","Название конкурса, соревнования, выставки, НПК","Дата (месяц, год)"]
["учреждение"]
[]
["районный уровень"]
[1,"Камалова О.А.","Районный конкурс \"Мама-ангел на Земле\"","ноябрь, 2024"]
[2,"Суханова М.В.","Районный этап городского турнира по шахматам \"В гостях у Шахматной королевы\" в рамках Школьной Лиги города Казани среди учащихся 3-4 классов","октябрь, 2024"]
[3,"Сафина А.И.","Районный этап городского турнира по шахматам \"В гостях у Шахматной королевы\" в рамках Школьной Лиги города Казани среди учащихся 3-4 классов","октябрь, 2024"]
[4,"Абдуллина Э.А.","Районный конкурс \"Сомбеля\"","ноябрь, 2024"]
[5,"Мифтахова Л.Р.","Районный конкурс \"Сомбеля\"","ноябрь, 2024"]
[6,"Суханова М.В.","Турнир по шахматам \"Белая ладья\" среди учащихся общеобразовательных учреждений Приволжского района г. Казани","ноябрь, 2024"]
[7,"Мифтахова Л.Р.","Районный конкурс \"Татар кызы, татар егете - 2024\"","ноябрь, 2024"]
[8,"Абдуллина Э.А.","Конкурс творческих и исследовательских работ учащихся и педагогов \"Помним. Гордимся\", в рамках 2 Республиканских Яруллинских педагогических чтений \"Гуманизация воспитательного пространства дополнительного образования\", посвященные году семьи и 80-летию Победы в Великой Отчественной войне","ноябрь, 2024"]
[9,"Мифтахова Л.Р.","Районный этап городского конкурса \"Көз сылуы Сөмбелә\"","ноябрь, 2024"]
[10,"Фоменко Л.М.","Районный конкурс лидеров и руководителей детских/молодежных общественных объединений \"Лидер - 2024\"","декабрь, 2024"]
[11,"Абдуллина Э.А.","Районный конкурс лидеров и руководителей детских/молодежных общественных объединений \"Лидер - 2024\"","декабрь, 2024"]
[12,"Петрова Е.Л.","Районный этап республиканского конкурса реализованных социальных проектов \"Моя инициатива\"","февраль, 2025"]
[13,"Абдуллина Э.А.","Районный этап республиканского конкурса реализованных социальных проектов \"Моя инициатива\"","февраль, 2025"]
[14,"Фоменко Л.М.","Районный этап Республиканского конкурса родительских комитетов \"Секреты дружного класса\"","февраль, 2025"]
[15,"Абдуллина Э.А.","Районный этап городского конкурса социальных проектов и добровольческих акций \"Город доброй воли\"","февраль, 2025"]
[16,"Петрова Е.Л.","Районный этап городского конкурса социальных проектов и добровольческих акций \"Город доброй воли\"","февраль, 2025"]
[17,"Фоменко Л.М.","Районный этап городского конкурса социальных проектов и добровольческих акций \"Город доброй воли\"","февраль, 2025"]
[18,"Петрова Е.Л.","Районный этап городского конкурса \"Ученик года - 2025\"","март, 2025"]
[19,"Абдуллина Э.А.","Районный этап городского конкурса \"Ученик года - 2025\"","март, 2025"]
[20,"Фоменко Л.М.","Районный этап городского смотра-конкурса детской и юношеской прессы \"Без права на ошибку\"","март, 2025"]
[21,"Абдуллина Э.А.","Районный этап городского смотра-конкурса детской и юношеской прессы \"Без права на ошибку\"","март, 2025"]
[22,"Фоменко Л.М.","Районный этап Республиканского фестиваля в рамках 27 Международного фестиваля \"Детство без границ\"","апрель, 2025"]
[23,"Суханова М.В.","Районный этап Республиканского фестиваля в рамках 27 Международного фестиваля \"Детство без границ\"","апрель, 2025"]
[24,"Абдуллина Э.А.","Районный этап Республиканского фестиваля в рамках 27 Международного фестиваля \"Детство без границ\"","апрель, 2025"]
[25,"Петрова Е.Л.","Районный этап Республиканского фестиваля в рамках 27 Международного фестиваля \"Детство без границ\"","апрель, 2025"]
[26,"Фоменко Л.М.","Районный этап республиканского конкурса \"Замечательный вожатый\"","апрель, 2025"]
[27,"Фоменко Л.М.","Районный этап республиканского конкурса социальных проектов \"Моя инициатива\"","апрель, 2025"]
[28,"Шашина Т.Б."," Районный конкурс \"Мама-ангел на Земле\"","ноябрь, 2024"]
[29,"Васильева К.З.","Районный этап городского шахматного турнира \"Путешествие по шахматной стране\"","март, 2025"]
[30,"Васильева К.З.","Районный этап городского конкурса проектов по здоровому образу жизни \"Планета молодых\"","март, 2025"]
[31,"Васильева К.З.","Районный этап городского смотра-конкурса детской и юношеской прессы \"Без права на ошибку\"","март, 2025"]
[32,"Новикова Н.А.","Районный этап XXVII международного фестиваля «Детство без границ»","апрель, 2025"]
[33,"Новикова Н.А.","Районный этап городского конкурса социальных проектов и добровольческих акций \"Город доброй воли\"","февраль, 2025"]
[34,"Новикова Н.А.","Районный этап республиканского конкурса реализованных социальных проектов \"Моя инициатива\"","февраль, 2025"]
[35,"Новикова Н.А.","Районный конкурс \"Мама-ангел на Земле\"","ноябрь, 2024"]
[]
[]
["городской уровень"]
[1,"Ионова Е.В.","Городской конкурс изобразительного и декоративно-прикладного творчества \"Новый год в сказку добрую зовет\"","январь, 2025"]
[2,"Камалова О.А.","Городской конкурс изобразительного и декоративно-прикладного творчества \"Новый год в сказку добрую зовет\"","январь, 2025"]
[3,"Ионова Е.В.","Городской конкурс рисунков среди педагогов \"Автопортрет в образе шахматной фигуры\"","февраль, 2025"]
[4,"Камалова О.А.","Городской конкурс рисунков среди педагогов \"Автопортрет в образе шахматной фигуры\"","февраль, 2025"]
[5,"Камалова О.А.","Городской конкурс \"Мое Отечество\" , посвященный 80 летию Победы","март, 2025"]
[6,"Кургузова-Холмогорцева Е.Е.","Городской шахматный турнир \"В гостях у шахматной королевы\" в рамках Школьной лиги г. Казани","ноябрь, 2024"]
[7,"Мифтахова Л.Р.","Городской шахматный турнир \"В гостях у шахматной королевы\" в рамках Школьной лиги г. Казани","ноябрь, 2024"]
[8,"Абдуллина Э.А.","Городской шахматный турнир \"В гостях у шахматной королевы\" в рамках Школьной лиги г. Казани","ноябрь, 2024"]
[9,"Ибрагимова Э.Г. ","Городской шахматный турнир \"В гостях у шахматной королевы\" в рамках Школьной лиги г. Казани","ноябрь, 2024"]
[10,"Минсафина Р.Р.","Городской шахматный турнир \"В гостях у шахматной королевы\" в рамках Школьной лиги г. Казани","ноябрь, 2024"]
[11,"Суханова М.В.","Городской шахматный турнир \"В гостях у шахматной королевы\" в рамках Школьной лиги г. Казани","ноябрь, 2024"]
[12]
[13,"Мифтахова Л.Р.","Городской конкурс изобразительного и декоративно-прикладного творчества \"Новый год в сказку добрую зовет!\"","январь, 2025"]
[14,"Суханова М.В.","Городской конкурс \"Мое Отечество\", посвященный 80-летию Победы в Великой Отечественной войне","январь, 2025"]
[15,"Фоменко Л.М.","Городской конкурс \"Мое Отечество\", посвященный 80-летию Победы в Великой Отечественной войне","январь, 2025"]
[16,"Абдуллина Э.А.","Городской конкурс \"Мое Отечество\", посвященный 80-летию Победы в Великой Отечественной войне","январь, 2025"]
[17,"Мифтахова Л.Р.","Городской конкурс \"Мое Отечество\", посвященный 80-летию Победы в Великой Отечественной войне","январь, 2025"]
[18,"Петрова Е.Л.","Городской конкурс \"Мое Отечество\", посвященный 80-летию Победы в Великой Отечественной войне","январь, 2025"]
[19,"Мифтахова Л.Р.","Городской конкурс рисунков среди педагогов \"Автопортрет в образе шахматной фигуры\" в рамках реализации проекта \"Шахтамы и я\"","февраль, 2025"]
[20,"Абдуллина Э.А.","Городской шахматный турнир \"Путешествие по шахматной стране\" в рамках Школьной Лиги г. Казани среди учащихся 1-2-х классов ","апрель, 2025"]
[21,"Суханова М.В.","Городской шахматный турнир \"Путешествие по шахматной стране\" в рамках Школьной Лиги г. Казани среди учащихся 1-2-х классов ","апрель, 2025"]
[22,"Шашина Т.Б.","Республиканский фестиваль -конкурс \"Браво 2025. Одна на всех Победа»","март, 2025"]
[23,"Шашина Т.Б.","Республиканский заочный фестиваль детского творчества детей с ограниченными возможностями«Весенняя капель 2025»","апрель, 2025"]
[24,"Васильева К.З.","Городской конкурс изобразительного и декоративно-прикладного творчества \"Новый год в сказку добрую зовет\"","январь, 2025"]
[25,"Шигапова Л.А.","Городской конкурс изобразительного и декоративно-прикладного творчества \"Новый год в сказку добрую зовет\"","январь, 2025"]
[26,"Васильева К.З.","Городской конкурс рисунков \"Автопортрет в образе шахматной фигуры\"","февраль, 2025"]
[27,"Васильева К.З.","Городской шахматный турнир \"Путешествие по шахматной стране\" в рамках Школьной Лиги г. Казани среди учащихся 1-2 классов","апрель, 2025"]
[28,"Новикова Н.А.","Городской конкурс \"Мое Отечество\", посвященный 80-летию Победы в Великой Отечественной войне","январь, 2025"]
[29,"Абдуллина Э.А.","Муниципальный (отборочный) этап конкурсов в рамках Парламентского урока-2025 \"Святое дело - Родине служить!\"","май, 2025"]
[30,"Мифтахова Л.Р.","Муниципальный (отборочный) этап конкурсов в рамках Парламентского урока-2025 \"Святое дело - Родине служить!\"","май, 2025"]
[31,"Петрова Е.Л.","Муниципальный (отборочный) этап конкурсов в рамках Парламентского урока-2025 \"Святое дело - Родине служить!\"","май, 2025"]
[32,"Фоменко Л.М.","Муниципальный (отборочный) этап конкурсов в рамках Парламентского урока-2025 \"Святое дело - Родине служить!\"","май, 2025"]
["республиканский уровень"]
[1,"Камалова О.А.","Республиканский экологический конкурс детского и юношеского творчества \"На планете голубой\"","декабрь, 2024"]
[2,"Ионова Е.В.","Республиканский экологический конкурс детского и юношеского творчества \"На планете голубой\"","декабрь, 2024"]
[3,"Камалова О.А.","VIРеспубликанский конкурс изобразительного и декоративно-прикладного творчества \"Чудеса из ларца\"","апрель, 2025"]
[4,"Камалова О.А.","Республиканский фестиваль конкурс \"Браво-2025. Одна на всех Победа\"","Март, 2025"]
[5,"Камалова О.А.","Республиканский фестиваль с ограниченными возможностями \"Весенняя капель - 2025\"","Апрель, 2025"]
[6,"Абдуллина Э.А.","Конкурс творческих и исследовательских работ учащихся и педагогов \"Помним. Гордимся\", в рамках 2 Республиканских Яруллинских педагогических чтений \"Гуманизация воспитательного пространства дополнительного образования\", посвященные году семьи и 80-летию Победы в Великой Отчественной войне","ноябрь, 2024"]
[7,"Ибрагимова Э.Г.","Республиканский экологический конкурс детского и юношеского творчества \"На планете голубой\"","декабрь, 2024"]
[8,"Мифтахова Л.Р.","Республиканский экологический конкурс детского и юношеского творчества \"На планете голубой\"","декабрь, 2024"]
[9,"Фоменко Л.М.","Республиканский фестиваль-конкурс \"Браво - 2025. Одна на всех Великая Победа\", посвященный году 80-летия Победы в Великой Отечественной войне","март, 2025"]
[10,"Суханова М.В.","Республиканский фестиваль-конкурс \"Браво - 2025. Одна на всех Великая Победа\", посвященный году 80-летия Победы в Великой Отечественной войне","март, 2025"]
[11,"Петрова Е.Л.","Республиканский фестиваль-конкурс \"Браво - 2025. Одна на всех Великая Победа\", посвященный году 80-летия Победы в Великой Отечественной войне","март, 2025"]
[12,"Мифтахова Л.Р.","Республиканский фестиваль-конкурс \"Браво - 2025. Одна на всех Великая Победа\", посвященный году 80-летия Победы в Великой Отечественной войне","март, 2025"]
[13,"Ибрагимова Э.Г.","Республиканский фестиваль-конкурс \"Браво - 2025. Одна на всех Великая Победа\", посвященный году 80-летия Победы в Великой Отечественной войне","март, 2025"]
[14,"Абдуллина Э.А.","Республиканский конкурс-фестиваль \"Браво 2025. Одна на всех Победа\", посвященного 80-летию Победы в Великой Отечественной войне","март, 2025"]
[15,"Абдуллина Э.А.","Республиканский заочный фестиваль детскиго творчества детей с ограниченными возможностями \"Весенняя капель - 2025\"","апрель, 2025"]
[16,"Мифтахова Л.Р.","Республиканский заочный фестиваль детскиго творчества детей с ограниченными возможностями \"Весенняя капель - 2025\"","апрель, 2025"]
[17,"Фоменко Л.М.","Республиканский заочный фестиваль детскиго творчества детей с ограниченными возможностями \"Весенняя капель - 2025\"","апрель, 2025"]
[18,"Мифтахова Л.Р.","Республиканский конкурс изобразительного и декоративно-прикладного творчества \"Чудеса из ларца\"","апрель, 2025"]
[19,"Васильева К.З."," Республиканский экологический конкурс детского и юношеского творчества \"На планете голубой\"","ноябрь, 2024"]
[20,"Васильева К.З.","Республиканский конкурс изобразительного и декоративно-прикладного творчества \"Чудеса из ларца\"","апрель, 2025"]
[21,"Новикова Н.А.","Республиканский  конкурс- фестиваль «Браво – 2025, посвященный 80-летию Победы в Великой Отечественной войне\"»","февраль-март 2025"]
[22,"Андреева М.Ю.","Республиканский  конкурс- фестиваль «Браво – 2025, посвященный 80-летию Победы в Великой Отечественной войне\"»","февраль-март 2025"]
[23,"Сафина А.И.","Открытыйреспубликанский фестиваль по бальным танцам \"Осенний кубок 2024\"","ноябрь, 2024"]
[24,"Сафина А.И.","Открытый республиканский фестиваль по бальным танцам \"Метелица 2025\"","февраль, 2025"]
[25,"Сафина А.И.","Открытый республиканский фестиваль по бальным танцам \"Весенний вальс\"","апрель, 2025"]
[26,"Новикова Н.А."," Республиканский экологический конкурс детского и юношеского творчества \"На планете голубой\" ","ноябрь, 2024"]
[27,"Новикова Н.А.","Республиканский заочный фестиваль детского творчества детей с ограниченными возможностями здоровья \"Весенняя капель 2025\"","март, 2025"]
["региональный уровень"]
[]
[]
["российский уровень"]
[]
[]
["международный уровень"]

{"sheet":"орган конк меропр","index":12,"n_rows":44,"n_cols":7,"rows_kept":44,"merged":[[0,0,0,5],[2,0,2,5],[7,0,7,5],[25,0,25,5],[35,0,35,5],[43,0,43,5]]}
["Организация и проведение отделом конкурсов, соревнований, выставок"]
["Дата проведения","Форма и тема конкурсного мероприятия","Место проведения","Контингент участников","Количество участников","Ответственный"]
["учреждение"]
["2024-12-22","Выставка изобразительного и декоративно-прикладного творчества «Новый год в сказку добрую зовет».","ЦДТ","учащиеся объединений ЦДТ, дети с ограниченными возможностями с родителями, педагоги объединений",60,"Камалова О.А.",1]
["2025-12-30","Футбольный турнир \"Волшебный футбол\"","Гимназия № 27","Учащиеся объединения \"Футбол\"",40,"Туктаров В.А.",1]
["2025-12-30","Открытый семейный футбольный матч \"Цюрих-Москва-Казань\"","Манеж \"Физра\"","Учащиеся объединения \"Футбол\"",30,"Васильева К.З.",1]
["2025-02-22","Футбольный турнир \"Армейский футбол\"","Гимназия № 27","Учащиеся объединения \"Футбол\"",40,"Туктаров В.А.",1]
["районный уровень",{"$nulls":5},{"$f":"SUM(G4:G7)","v":4}]
[]
["2024-10-01","Районный этап городского конкурса \"Татар кызы\" \"Татар егете-2024\"","Гим.№16","Учащиеся ОУ Вах. и Прив. р-ов",120,"Абдуллина Э.А.",1]
["2024-10-01","Районный этап городского конкурса \"Сомбэля\"","СОШ №69","Учащиеся ОУ Вах. и Прив. р-ов",120,"Абдуллина Э.А.",1]
["2024-10-17","Районный этап городского шахматного турнира \"В гостях у шахматной королевы\"","ЦДТ","Учащиеся ОУ Вахитовского района г. Казани",45,"Васильева К.З.",1]
["2024-11-01","Районный этап городского конкурса образовательных организаций. Развивающих ученическое самоуправление (Заочный)","ЦДТ","3 ШУС, СОШ №13, Лиц. Им.Лобачевского, Лиц.№5, СОШ №1,Гим.№27, СОШ №14",26,"Фоменко Л.М.",1]
["2024-11-01","Районный этап городского конкурса видеороликов детских общественных объединений и организаций \"Лидер и его команда\" (Заочный)","ЦДТ","Представители ДОО ОУ: СОШ №98,Лиц.№5, СОШ №14,Лиц. КФУ,Гим.№3 Вах. р-на",40,"Фоменко Л.М.",1]
["2024-11-12","Районный этап шахматного турнира \"Белая ладья\"","ЦДТ","Учащиеся ОУ Вахитовского и Приволжского  районов г. Казани",80,"Васильева К.З.",1]
["2024-12-01","Районный конкурс \"Лидер-2024\"","ЦДТ","Активисты ДОО ОУ Вах. р-на ",14,"Фоменко Л.М.",1]
["2025-01-01","Районный этап городского конкурса \"Казан Сандугачы-2025\"","Шк.№73","Учащиеся ОУ муниципального района",150,"Абдуллина Э.А.",1]
["2025-02-01","Районный этап Республиканского конкурса \"Секреты дружного класса\"","Лиц.№133","Учащиеся и родительские комитеты ОУ Вах. и Прив. р-ов",300,"Суханова М.В.",1]
["2025-02-01","Районный конкурссоциально-значимых проектов \"Город доброй воли\"для представителей ДОО","ЦДТ","(СОШ №14, СОШ №13 (2 участника)),СОШ №3,Лиц.№116,СОШ №98, Гим.№27,СОШ 12,Лиц.КФУ и др.",55,"Фоменко Л.М.",1]
["2025-02-01","Районный конкурс социально-значимых проектов \"Инициатива\"для представителей ДОО","ЦДТ","(СОШ №14, СОШ №13 (2 участника)),СОШ №3,Лиц.№116, Гим.№27,,Лиц.КФУ им. Н.И. Лобачевского,СОШ №12",55,"Фоменко Л.М.",1]
["2025-03-01","Районный конкурсстеатральных коллективов им. М.Салимжанова","Гим.№19","Школьные театры ОУ Вах. и Прив. Р-ов",150,"Абдуллина Э.А.",1]
["2025-03-01","Городской этап \"Парламентский урок\"","ЦДТ","Учащиеся ОУ г.Казани",70,"Фоменко Л.М.",1]
["2025-03-10","Районный этап городского шахматного турнира \"Путешествие по шахматной стране\" в рамках Школьной Лиги г.Казани","ЦДТ","Учащиеся ОУ Вахитовского района г. Казани",null,"Васильева К.З.",1]
["АПРЕЛЬ-ИЮНЬ 2025","Конкурс \"Семейный калейдоскоп\" в Рамках ХХVII Международный фестиваль \"Детство без границ\" (Заочный)","ЦДТ","Активисты ДОО ОО Вах. р-на ",40,"Фоменко Л.М.",1]
["АПРЕЛЬ-ИЮНЬ 2025","Конкурс изобразительного искусства и художественно-прикладнового творчества \"Творчество без границ\" в рамках ХХVII Международный фестиваль \"Детство без границ\" (Заочный)","ЦДТ","Активисты ДОО ОО Вах. р-на ",60,"Фоменко Л.М.",1]
["городской уровень",{"$nulls":5},{"$f":"SUM(G10:G25)","v":16}]
["2025-01-15","Конкурс изобразительного и декоративно-прикладного творчества «Новый год в сказку добрую зовет»","ЦДТ","Учащиеся ОО",317,"Камалова О.А.",1]
["10.02.24-13.02.24","Выставка  рисунков среди педагогов города \"Автопортрет в образе шахматной фигуры\"","ЦДТ","Участники семинаров (учителя нач.классов)",178,"Камалова О.А.",1]
["2025-02-13","Городской конкурс рисунков среди педагогов \"Автопортрет в образе шахматной фигуры\"","ЦДТ","Педагоги ОО",49,"Камалова О.А.",1]
["2025-11-19","Городской шахматный турнир \"В гостях у шахматной королевы\"","ЦДТ","Учащиеся ОУ г. Казани",64,"Васильева К.З.",1]
["2025-04-15","Городской шахматный турнир \"Путешествие по шахматной стране\" в рамках Школьной Лиги г.Казани","ЦДТ","Учащиеся ОУ г. Казани",64,"Васильева К.З.",1]
["2024-10-01","Городской конкурс правоохранительных отрядов \"Служить закону-честь имею\". Портфолио","ГДДТ им. А.Алиша","Правоохранительные отряды: Лиц.№51,СОШ №98",30,"Фоменко Л.М.",1]
["2024-11-01","Городской конкурс образовательных организаций,развивающих ученическое самоуправление","ГДДТ им. А.Алиша","Совет старшеклассников Лиц. Им. Н.И.Лобачевского,при КФУ, Шк.№13,Гим.№14,Лиц.№5,Гим.27",75,"Фоменко Л.М.",1]
["2024-12-01","Городской конкурс видеороликов ДОО \"Лидер и его Команда\"","МБУДО \"ЦДОД\" \"Заречье\" Кировского р-на г.Казани","ДОО \"Мишпахтейну\" ,СОШ №12, ДОО \"Форум\",Лиц.№5,Гим.№3, СОШ №14",20,"Фоменко Л.М.",1]
["2025-04-01","Городской конкурс социальных проектов и добровольческих акций \"Добрый город\"","Общественная палата\"Единая Россия\"","Представители ДОО",18,"Фоменко Л.М.",1]
["республиканский уровень",{"$nulls":5},{"$f":"SUM(G27:G35)","v":9}]
[]
["2024-12-02","Республиканский экологический конкурс детского и юношеского творчества «На планете голубой»","ЦДТ","Учащиеся ОО",375,"Камалова О.А.",1]
["2024-09-01","Респбликанский конкурс \"Лидер 2024\"","Волга","Представители ДОО",2,"Фоменко Л.М.",1]
["2025-03-22","Фестиваль детского творчества детей с ограниченными возможностями \"Весенняя капель 2025\"","ЦДТ Вахитовского района","Учащиеся с ОВ",386,"Шашина Т.Б.",1]
["2025-04-18","VII Республиканский конкурс изобразительного и декоративно-прикладного творчества «Чудеса из ларца»","ЦДТ","Учащиеся и педагоги ОО",456,"Камалова О.А.",1]
["01.01.2024 – 30.03.2025  ","Республиканский фестиваль-конкурс  «Браво – 2025, посвященный 80-летию Победы в Великой Отечественной войне.","ЦДТ, онлайн","Учащиеся, педагоги ОО РТ","452 школьников, 50 педагогов","Новикова Н.А.",1]
["01-30.11.2024","Республиканский заочный экологический конкурс детского и юношеского творчества«На планете голубой»","ЦДТ, онлайн","Учащиеся ОО РТ",800,"Новикова Н.А.",1]
["региональный уровень",{"$nulls":5},{"$f":"SUM(G38:G43)","v":6}]

{"sheet":"орган мас меропр","index":13,"n_rows":87,"n_cols":7,"rows_kept":87,"merged":[[0,0,0,5],[2,0,2,5],[58,0,58,5],[73,0,73,5],[76,0,77,0],[76,1,77,1],[76,2,77,2],[76,3,77,3],[76,4,77,4],[76,5,77,5],[79,0,79,5],[83,0,83,5],[85,0,85,5]]}
["Организация и проведение отделом массовых мероприятий"]
["Дата проведения","Форма и тема массового мероприятия","Место проведения","Контингент участников","Количество участников","Ответственный"]
["учреждение"]
[]
["2024-09-05","День открытых дверей","ЦДТ","Родители, учащиеся",20,"педагоги"]
["2024-09-05","День открытых дверей","ЦДТ","Учащиеся обьединения \"Карате\"",30,"Васильева К.З.",1]
["2024-09-26","Выставка \"Золотая осень\"","ЦДТ","учащиеся изостудии",28,"Гиздатуллина К.М.",1]
["2024-10-04","акция \"Поздравь учителя\"","ЦДТ","Учащиеся ЦДТ",40,"Суханова М.В.",1]
["2024-10-18","Он-лайн программа \"Золотая осень\"","По месту жительства учащихся ОВ","Учащиеся ОВ отдела",22,"Шашина Т.Б.",1]
["2024-10-28","Мастер-класс \"Светильник\"","Творческий центр братьев Васильевых","учащиеся студии \"Рукоделие\"",25,"Хабибуллина Ю.А.",1]
["2024-11-12","Выставка \"Уж небо осенью дышало\"","ЦДТ","учащиеся изостудии",30,"Сергеева М.В.",1]
["2024-11-22","Выставка открыток \"День матери\"","ЦДТ","Учащиеся студии \"Озорные крски\"",30,"Гиздатуллина К.М.",1]
["2024-11-22","Он-лайн программа посвященная Дню матери \"Вместе с мамой\"","По месту жительства учащихся ОВ","Учащиеся ОВ отдела",22,"Шашина Т.Б.",1]
["2024-11-22","Акция \"Открытка маме\"","ЦДТ","Учащиеся ЦДТ",30,"Суханова М.В.",1]
["2024-11-30","Просмотр фильма \"Гадкий Я\"","Кинотеатр Синема 5","учащиеся \"Творческой мастерской\"",28,"Вафина Л.А.",1]
["2024-12-22","Выставка \"Новый год в сказку добрую зовет\"","ЦДТ","учащиеся объединений ЦДТ, дети с ограниченными возможностями с родителями, педагоги объединений",60,"Камалова О.А.",1]
["2024-12-23","Благотворительная акция \"Покормите птиц зимой\"","Скверы г. Казани","Учащиеся обьединения \"Футбол\"\"",20,"Туктаров В.А.",1]
["2024-12-23","Активно-игровая программа «Змее-Party»","ЦДТ","Учащиеся студии спортивно-бального танца «Фиеста»",20,"Суханова М.В.",1]
["2024-12-26","Мастер-класс \"Леденец-трость\"","ЦДТ","учашиеся и родители студии \"Завиток\"",15,"Егорова Е.Е.",1]
["2024-12-27","Мастер-класс \"Новогодний барельеф\"","ЦДТ","учащиеся студии \"Юный дизайнер\"",15,"Зеленцов Д.А.",1]
["2024-12-27","Марафон \"2025 ударов и 25 поединков\"","ЦДТ","Учащиеся обьединения \"Карате\"",40,"Деваева Е.С.",1]
["2024-12-27","новогодняя экскурсия \"Я шагаю по Казани\"","Парки и скверы Казани\"","Учащиеся обьединения \"Футбол\"\"",20,"Туктаров В.А.",1]
["2024-12-28","Творческая мастерская","Музей Шоколада","учащиеся \"Творческой мастерской\"",25,"Вафина Л.А.",1]
["2024-12-28","Новогодняя программа для детей ЦДТ","ЦДТ","Театр эстрады сатиры и юмора \"ЕрашОк\"",30,"Гордеева И.В.",1]
["2024-12-28","\"Зимняя история\"","ЦДТ","Учащиеся ЦДТ",60,"Суханова М. В.",1]
["2024-12-29","Мастер-класс по изготовлению пиццы","Пиццерия Папа Джонс","учащиеся студии \"Рукоделие\"",20,"Хабибуллина Ю.А.",1]
["2025-01-10","Активно-игровая программа «Змее-Party»","ЦДТ","Учащиеся объединения «Карате» ",20,"Суханова М.В.",1]
["11.02-13.02.2025","Акция «С любовью к детям»","ЦДТ","Учащиеся ЦДТ",30,"Суханова М. В.",1]
["2025-02-20","Выставка работ \"День защитника Отечества\"","ЦДТ, СОШ № 13","учащиеся изостудии",25,"Гиздатуллина К.М.",1]
["2025-02-20","Выставка работ \"День защитника Отечества\"","Гимназия № 21","учащиеся студии \"Радуга творчества\"",40,"Быстрова Л.М.",1]
["2025-02-20","Выставка работ \"День защитника Отечества\"","ЦДТ","учащиеся изостудии",27,"Сергеева М.В.",1]
["20-22.02.2025","Турнир по мини-футболу \"Армейский футбол\"","Гимназия № 27","Объединение \"Футбол\"",36,"Туктаров В.А.",1]
["2025-02-21","АИП \"Папа, мама и я -  спортивная семья!\"","ЦДТ","Объединение \"Общая физическая подготовка\"",6,"Плешаков Л.В.",1]
["2025-02-22","Выставка работ \"День защитника Отечества\"","Гимназия № 27","учащиеся студии \"Палитра\"",28,"Антипова И.С.",1]
["2025-02-22","Он-лайн программа \"Веселый калейдоскоп. Масленица\"","По месту жительства учащихся ОВ","Учащиеся ОВ отдела",22,"Шашина Т.Б.",1]
["2025-03-01","Мастер-класс \"Весенние первоцветы\"","ЦДТ","учащиеся и родители студии \"Озорные краски\"",20,"Гиздатуллина К.М.",1]
["2025-03-01","АИП \"Широкая Масленица\"","ЦДТ","Театр эстрады сатиры и юмора \"ЕрашОк\"",30,"Гордеева И.В.",1]
["2025-03-04","Мастер-класс \"Теплые волны воспоминаний\"","ЦДТ","учащиеся и родители студии \"Созвездие\"",20,"Сергеева М.В.",1]
["2025-03-07","Выставка рисунков к 8 марта","ЦДТ","учащиеся и родители студии \"Озорные краски\"",30,"Гиздатуллина К.М.",1]
["22-29.03.2025","Турнир по мини-футболу \"Футбольная капель\"","Гимназия № 27","Объединение \"Футбол\"",46,"Туктаров В.А.",1]
["2025-03-26","Мастер-класс \"Весенние цветы\"","СОШ № 13","учащиеся пришкольных лагерей",18,"Ионова Е.В.",1]
["2025-03-26","Экскурсия в зоологический музей","Зоологический музей","Объединение \"Карате\"",16,"Деваева Е.С.",1]
["2025-03-27","Экскурсия по Центру Казани и  парку \"Черное озеро\"","Центр Казани","Объединение \"Карате\"",16,"Деваева Е.С.",1]
["2025-03-27","Прогулка в школьном дворе и конкурс рисунков на асфальте \"Здравствуй, Весна\"","Школа № 1","Объединение \"Спортивные игры\"",30,"Абдуллаева Д.Х., Шигапова Л.А.",1]
["2025-03-28","Выставка \"День космонавтики\"","СОШ № 13","учащиеся пришкольных лагерей",18,"Ионова Е.В.",1]
["2025-03-29","Культпоход в кино \"Царевна Лягушка\"","КЦ \"Родина\"","Объединение \"Карате\"",16,"Деваева Е.С.",1]
["2025-03-30","Экскурсия \"Любимая Казань\"","Парки и скверы Казани\"","Объединение \"Футбол\"",16,"Туктаров В.А.",1]
["2025-03-31","Мастер-класс \"Чак-чак\"","Дом-музей \"Бик Матур\"","учащиеся студии \"Творческая мастерская\"",25,"Вафина Л.А.",1]
["2025-04-11","Выставка рисунков ко Дню космонавтики","Гимназия № 21","учащиеся студии \"Радуга творчества\"",30,"Быстрова Л.М.",1]
["2025-04-11","Акция \"Если очень захотеть, можно в космос полететь\"","ЦДТ","Учащиеся ЦДТ",30,"Суханова М. В.",1]
["2025-04-13","Экскурссия \"Я познаю мир. Казань-","Музей РТ","Учащиеся ОВ отдела",22,"Шашина Т.Б.",1]
["1925-04-22","Итоговый отчетный концерт \"Пусть всегда будет солнце\"","ЦДТ","Учащиеся ЦДТ",150,"Абдуллина Э.А.",1]
["2025-04-24","Итоговая выставка творческих работ \"Пусть всегда будет солнце\"","ЦДТ","учащиеся объединений ЦДТ, дети с ограниченными возможностями с родителями, педагоги объединений",80,"Камалова О.А. Шашина Т.Б.",1]
["2025-04-24","Отчетные выставки","ЦДТ Вахитовского района","Учащиеся ОВ отдела",22,"Шашина Т.Б.",1]
["2025-05-07","Выставка работ ко 80-летию Победы","ЦДТ","Учащиеся ЦДТ",40,"Камалова О.А.",1]
["2025-05-19","Квест-игра \"По следам Алисы\"","ЦДТ","Учащиеся ЦДТ",26,"Суханова М. В.",1]
["2025-05-22","АИП \"Папа, мама и я -  спортивная семья!\"","ЦДТ","Объединение \"Общая физическая подготовка\"",6,"Плешаков Л.В.",1]
["2025-05-29","Юбилейный концерт студии эстрадного танца \"Дежавю\"","ДК \"Сайдаш\"","студия эстрадного танца \"Дежавю\"",75,"Каримова К.Р.",1]
["районный уровень",{"$nulls":5},{"$f":"SUM(G6:G58)","v":53}]
["2024-06-23","Детский Сабантуй","Березовая роща п. Мирный","жители города",500,"Суханова М.В.",1]
["2024-08-23","Акция \"Помоги собраться в школу\"","КЦ \"Чулпан\"","первоклассники, родители",400,"Суханова М.В.",1]
["2024-08-30","Праздник двора","Двор по ул.Зорге","жители района",500,"Суханова М.В.",1]
["2024-12-01","Районный праздник посвященный декаде инвалидов \"Волшебная страна\"","ЦДТ Вахитовского района","Учащиеся ОВ и родители",42,"Шашина Т.Б. Суханова М.В.",1]
["2024-12-17","Новогодняя программа \"Змея волшебница и Новый год\"","КЦ \"Чулпан\"","жители района",500,"Суханова М.В.",1]
["2024-12-23","Активно-игровая программа «Змее-Party»","ЦДТ","Ученики школы № 13",30,"Суханова М. В.",1]
["2025-03-02","Спортивные эстафеты на праздничном мероприятии \"Гуляй, Масленица\"","Парк \"Калейдоскоп\"","Жители микрорайона \"Горки\"",500,"Васильева К.З. Суханова М.В.",1]
["2025-05-07","Акция \"Окна Победы\"","ЦДТ","гости города",20,"Зеленцов Д.А.",1]
["2025-05-09","Концерт для ветеранов","Казанская усадьба","ветераны боевх действий, дети ВОВ",30,"Абдуллина Э.А.",1]
["2025-05-15","Мастер-класс выдающего театрального деятеля Рустема Галича (г. Нью-Йорк)","ЦДТ","Театр эстрады сатиры и юмора \"ЕрашОк\"",40,"Гордеева И.В.",1]
["19.05-26.05.2025","Квест-игра \"По следам Алисы\"","ЦДТ","Учащиеся ОО",150,"Суханова М. В.",1]
["2025-05-30","Мастер-класс \"Значок Ромашка с логотипом\"","Парк Калейдоскоп","жители района",80,"Гиздатуллина К.М. Антипова И.С. Быстрова Л.М.",1]
["2025-05-30","Спортивная эстафета \"Звездный десант\"","Парк \"Калейдоскоп\"","Учащиеся Приволжского района",60,"Васильева К.З., Деваева Е.С., Плешаков Л.В., Туктаров В.А.",1]
["02.06 -25.06.25","ИПП «Путешествие по планете детства»","ОО района","Пришкольные лагеря",1200,"Суханова М. В.",1]
["городской уровень",{"$nulls":5},{"$f":"SUM(G60:G73)","v":14}]
["20.12-28.12.2024","Активно-игровая программа «Змее-Party»","ЦДТ Вахитовского района","Учащиеся ОО",360,"Суханова М. В.",1]
["20.02-10.03.25","«23+8»","ЦДТ Вахитовского района","Учащиеся ОО",160,"Суханова М. В.",1]
["2025-05-09","Помним! Гордимся! ","Ул. Баумана","Учащиеся и родители, жители г. Казани",500,"Абдуллина Э.А.",1]
[{"$nulls":6},1]
["2025-05-09","Мастер-классы ","Парк Победы","гости праздника",30,"Гиздатуллина К.М.",1]
["республиканский уровень",{"$nulls":5},{"$f":"SUM(G75:G79)","v":5}]
["2024-09-18","Открытая тренировка по национальной борьбе","Школа № 80","Учащиеся объединения \"Национальная борьба\"",40,"Фаткуллин Ф.Т.",1]
["2024-11-08","2 Республиканские Яруллинские педагогические чтения","ЦДТ Вахитовского района","педагогические работники",300,"Абдуллина Э. А.",1]
["2025-04-11","Праздничная программа, посвященная годовщине освобождения узников нацистких концлагерей","Ресторанный комплекс на Астрономической","Узники нацистких концлагерей РТ",30,"Васильева К.З.",1]
["региональный уровень",{"$nulls":5},{"$f":"SUM(G81:G83)","v":3}]
[]
["всероссийский уровень"]
["январь, 20025","Благотворитльный сбор гуманитарной помощи для детей села Первозванка Луганской Народной Республики","ЦДТ","Учащиеся, родители и педагоги ЦДТ",30,"Гордеева И.В.",1]

{"sheet":"участ в меропр","index":14,"n_rows":37,"n_cols":6,"rows_kept":37,"merged":[[0,0,0,5],[3,0,3,5],[8,0,8,5],[19,0,19,5],[26,0,26,5],[29,0,29,5],[34,0,34,5]]}
["Участие в массовых мероприятиях (фестивалях, выставках) (кроме конкурсных мероприятий и соревнований)"]
[]
["Дата проведения","Название мероприятия","Место проведения","Название объединения","Количество участников","Фамилия, инициалы   педагога"]
["районный уровень"]
["2025-09-02","Открытие лицея № 133","Лицей № 133","Студия танца \"Дежавю\"",20,"Каримова К.Р."]
["2024-12-19","Участие в концерте посвящённого «Году Защитника Отечества»","КЦ «Чулпан»","Студия современной хореографии «Мистерия»",10,"Егорова Е.Е."]
["2025-02-24","Фестиваль УДО Вахитовского и Приволжского районов","МБОУ лицей №186","Студия современной хореографии «Мистерия» Театр-студия «Ровесник»","15                15"," Егорова Е.Е. Андреева М.Ю."]
["2025-05-05","Участие чтецов в поэтическом десанте «И помнит мир спасенный»","Площадь 1 мая у памятника Мусы Джалиля","Театр-студия «Ровесник»",7,"Андреева М.Ю"]
["городской уровень"]
["2024-11-29"," Спортивная встреча \" Академия футзала\" Ассоциации мини-футбола России\"","г. Казань","Объединение \"Футбол\"",20,"Туктаров В.А."]
["2025-01-07","Выставка \"Россия - моя история\"","г. Казань","Театр эстрады сатиры и юмора \"ЕрашОк\"",30,"Гордеева И.В."]
["2025-03-31","Мастер-классы по актерскому мастерству","КазГИК","Театр эстрады сатиры и юмора \"ЕрашОк\"",30,"Гордеева И.В."]
["2025-04-07","Праздничный концерт \"Защитников Отечества славим\"","КЦ \"Сайдаш\"","Театр эстрады сатиры и юмора \"ЕрашОк\"",30,"Гордеева И.В."]
["2025-04-25","Патриотический митинг ","пос. Первомайский","Театр эстрады сатиры и юмора \"ЕрашОк\"",30,"Гордеева И.В."]
["2025-04-04","Участие в группе поддержки \"Булак чудес\" на Казанском марафоне 2025\"","ул. Лево-Булачная",null,null,"Деваева Е.С."]
["2025-05-08","Праздничная программа, посвященная 80-й годовщине Победы в ВОВ 1941-1945 гг.","ул. К. Насыри","Театр эстрады сатиры и юмора \"ЕрашОк\"",30,"Гордеева И.В."]
["2025-05-09","Концертная программа для ветеранов и тружеников тыла","НКЦ \"Туган авылым\"",null,null,"Васильева К.З."]
["2025-05-09","Праздничная программа, посвященная 80-й годовщине Победы в ВОВ 1941-1945 гг.","ул. Баумана","Театр эстрады сатиры и юмора \"ЕрашОк\"",30,"Гордеева И.В."]
["2025-05-09","Бессмертный полк","Город Казань","Живое слово",17,"Шайдуллина Р.Х."]
["республиканский уровень"]
["2024-07-15","Национальный праздник кряшен \"Питрэу\"",null,"Студия танца \"Дежавю\"",20,"Каримова К.Р."]
["2024-09-21","Фестиваль по регби","СК \"Тулпар\" ","Объединение \"Регби",15,"Антонов М.Н."]
["2024-12-07","Открытие международных соревнований Гран-При по самбо \"Кубок Раиса Республики Татарстан\"","ДЕ \"Ак Барс\"","Студия танца \"Дежавю\"",40,"Каримова К.Р."]
["2024-12-13","Церемония награждения республиканского форума \"О самом главном\"","КазГИК","Студия танца \"Дежавю\"",40,"Каримова К.Р."]
["2024-12-01"," Участие в церемонии награждения IXРеспубликанского  Конкурса современного искусства «Прорыв»","КЦ.им. В.И.Ленина","Студия современной хореографии «Мистерия»","\\20"," Егорова Е.Е."]
["2025-04-25","Участие в XIРеспубликанском Гала концерте «Радужная сцена»","ГДЭБЦ","Театр-студия «Ровесник»",15,"Андреева М.Ю."]
["региональный уровень"]
[]
[]
["федеральный"]
[" 6.11.2024"," Участие в церемонии награждения V Всероссийского патриотического фестиваля конкурса «Орлята учатся летать».","КЗ «Экият»","Студия современной хореографии «Мистерия»",8," Егорова Е.Е."]
["2025-02-28","Гала-концерт межрегионального фестиваля патриотической песни и стихов \"Нам этот мир завещано беречь\"","г. Казань","Театр эстрады сатиры и юмора \"ЕрашОк\"",24,"Гордеева И.В."]
[" 25.03.2025","Всероссийский Фестиваль  театрального творчества «Беренче театр», церемония награждения"," КаГИК .г.Казань Приволжский р-н "," Театр Арт Театр-студия «Ровесник»"," 30               15"," Хасанова.Л.Р. Андреева М.Ю."]
[]
["международный"]
["2025-01-26"," Фестиваль «Шаг на  сцену», церемония награждения"," ДК Гайдара"," Театр Арт"," 11"," Хасанова.Л.Р"]
[" 16.03.2025"," Участие в Гала-концерте VI Международном фестивале детского творчества «АrtFest–Казань»"," Казань Дом культуры «Юность»"," Театр-студия «Ровесник»"," 8"," Андреева М.Ю."]

{"sheet":"метод неделя","index":15,"n_rows":39,"n_cols":7,"rows_kept":39,"merged":[[0,0,0,5]]}
["Открытые занятия, мероприятия, мастер-классы в рамках методической недели"]
[]
["Дата проведения (число, месяц, год)","Фамилия,  инициалы педагогического работника","Объединение","Форма мероприятия","Тема мероприятия","Место проведения"]
["2024-10-30","Салимуллина А.М.","Занимательная экология","Открытое занятие ","«Луг. Биоценоз  луга. Пищевые цепочки. Ролевая игра «Кто самый важный на лугу?»","СОШ № 80",1]
["2024-10-30","Сафина А.И.","Студия спортивного бального танца «Фиеста»","Открытое занятие ","«Техника работы ног. Базовая вариация ча-ча-ча.»","ЦДТ",1]
["2024-10-30"," Шайдуллина Р.Х.","«Живое слово» ","Открытое занятие ","«В гостях у сказки» ","СОШ № 80",1]
["2024-10-31","Садыкова А.Г.","«Непоседы»","Открытое занятие ","« Сценическая речь. Речевой тренинг» (элемент разминки)","СОШ № 80",1]
["2024-10-31"," Егорова Е.Е."," Студия современной хореографии «Мистерия» ","Мастер класс","«Танцевальная акробатика- как составляющая современной хореографии»","ЦДТ ",1]
["2024-11-01","Андреева М.Ю.","Театр -студия \"Ровесник\"","Открытое занятие ","«Тренинг актерской психотехники на занятии по актерскому мастерству» ","ЦДТ",1]
["2024-11-01","Хасанова Л.Р. ","Театр «Арт»","Открытое занятие ","«Вариации с мячом»","Гимназия № 21",1]
["2024-11-02","Холмогорцева О.В.","Сценическое движение","Открытое занятие ","Хореография к спектаклю «Волшебник Изумрудного города». Развивающий тренинг»","ЦДТ",1]
["2024-11-05","Ибрагимова Э.Г.",null,"Памятка для педагогов","«Работа в навигаторе дополнительного образования Республики Татарстан: журнал посещаемости (КТП)»","ЦДТ",1]
["2024-11-05","Хабибуллина Р.Х.","«Юный геолог»","Открытое занятие","«Что изучает палеонтология? Методы изучения ископаемых растений и животных . Ученые палеонтологи. Формы сохранения ископаемых органических остатков»","Гимназия 27",1]
["2024-11-05","Холмогорцева О.В.","Танцевальный коллектив «Стихия»","Открытое занятие","«Начало и окончание движения в соответствии с началом и окончанием музыкального предложения, фразы»","Гимназия 27",1]
["2024-11-08","Абдуллина Э.А.",null,"Выступление на Яруллинских педагогических чтениях","«Гуманизация воспитательного пространства дополнительного образования» посвященных Году семьи и 80-летию Победы в Великой Отечественной войне","ЦДТ",1]
["2024-11-15","Минсафина Р.Р. Татьянушкина В.В. Кургузова-Холмогорцева Е.Е.",null,"Активно-познавательная программа ","«Знатоки ПДД»","Школа 80",1]
["2024-11-19","Суханова М.В. Сафина А.И.",null,"Выступление","Городской шахматный турнир «В гостях у шахматной королевы» (работа в программе Swiss)","ЦДТ",1]
["2024-11-20","Фоменко Л.М.",null,"Выступление","«Проектная деятельность, как эффективная форма работы в детской организации. Основы социального проектирования. Проектная идея и способы ее оформления. Разработка и защита проектных работ»","ЦДТ",1]
["2024-12-01","Шашина Т.Б.","отдел","Районный праздник в рамках декады инвалидов","«Волшебная страна»","ЦДТ",1]
["2024-12-02","Бердникова М.Г.","В мире знаний и творчества","Открытое занятие","«Мой Татарстан»","По месту проживания учащегося",1]
["2024-12-04","Корсакова И.В.","Декоративно-прикладное искусство","Открытое занятие","«Распыление через трафарет «Зимняя ночь»","По месту проживания учащегося",1]
["2024-12-05","Шигапова Г.Р.","Рукоделие. Терапия твореством","Открытое занятие","«Пошив подушки из «пуфиков»","По месту проживания учащегося",1]
["2024-12-06","Иванова С.В.","Декор","Открытое занятие","«Аппликация из фетра. Четыре времени года ","По месту проживания учащегося",1]
["2024-12-10","Мансурова Т.И.","Английский, играя","Открытое занятие","«Счастливого Рождества»","ЦДТ",1]
["2024-12-11","Буянова Л.С.","Английский, играя","Открытое занятие","«Эмоции и чувства»","Гимназия №21",1]
["2024-12-18","Каргалов О.А.","Юный политолог","Открытое занятие","«Конфликт лидера и элиты»","Школа №1",1]
["2024-12-18","Соломатина Э.Д.","Английский с увлечением","Открытое занятие","«Времена года, месяцы»","Школа №1",1]
["2025-02-17","Плешаков Л.В.","Флорбол","Учебно-тренировочное занятие","«Техника ведения мяча через стойки»","Лицей № 116",1]
["2025-02-20","Туктаров В.А.","Футбол","Учебно-тренировочное занятие","«Совершенствование индивидуальных и групповых навыков игры в обороне и в атаке» ","Гимназия № 27",1]
["2025-02-20","Каримова К.Р.","Студия танца «Дежавю», 1 группа 2 г.о","Открытое занятие для родителей","«Подготовка танцевального коллектива к концертным выступлениям»","Гимназия № 21",1]
["2025-02-21","Плешаков Л.В.","Общая физическая подготовка","Активно-игровая программа ","«Папа, мама и я – спортивная семья», посвященная Году защитника Отечества","ЦДТ",1]
["2025-03-01","Гиздатуллина К.М.","Озорные краски","Мастер-класс","Весеннее настроение","ЦДТ",1]
["2025-03-04","Быстрова Л.М.","Радуга творчества","Открытое занятие","Первоцветы","Гимназия № 21",1]
["2025-03-04","Вафина Л.А.","Творческая мастерская","Открытое занятие","Открытка для мамы","СОШ № 80",1]
["2025-03-04","Сергеева М.В.","Созвездие","Мастер-класс","Теплые волны воспоминаний","ЦДТ",1]
["2025-03-05","Хабибуллина Л.А.","Рукоделие","Открытое занятие","Бабочка","СОШ № 80",1]
["2025-03-06","Антипова И.С.","Палитра","Открытое занятие","Силуэт","Гимназия № 27",1]
["2025-03-06","Зеленцов Д.А.","Юный дизайнер","Мастер-класс","Открытка на 8 марта","ЦДТ",1]
[{"$nulls":6},{"$f":"SUM(G4:G38)","v":35}]

{"sheet":"откр зан","index":16,"n_rows":108,"n_cols":7,"rows_kept":108,"merged":[[0,0,0,5]]}
["Открытые занятия, мероприятия, мастер-классы (помимо мероприятий в рамках методической недели), организованные и проведенные педагогами ЦДТ"]
[]
["Дата проведения (число, месяц, год)","Фамилия,  инициалы педагогического работника","Объединение","Форма мероприятия","Тема мероприятия","Место проведения"]
["2024-02-01","Шигапова Г.Р.","«Рукоделие. Терапия творчеством»","Открытое занятие ","«Приметывание орнамента на нижнюю часть фартука»","По месту жительства учащегося",1]
["2024-05-16","Андреева М.Ю.","Театр-студия «Ровесник»","Итоговый творческий отчет перед родителями","Отчетный концерт «Искусство сильнее зла»","ЦДТ",1]
["2024-09-27","Зеленцов Д.А.","Юный дизайнер","Виртуальная экскурсия","Знакомство с нейросетью","ЦДТ",1]
["2024-10-01"," Хасанова Л.Р","Театр \"Арт\" ","Концерт","«День знаний!»","Гимназия 21",1]
["2024-10-04","Сафина А. И.","Студия спортивного бального танца \"Фиеста\"","Концерт","День учителя","СОШ № 51",1]
["2024-10-11","Корсакова И.В.","«Декоративно-прикладное искусство»","Открытое занятие ","\"Лесная фея\" аппликация из листьев","По месту жительства учащегося",1]
["2024-10-15","Ионова Е.В.","Мастерица","Игра-путешествие","В стране вежливости","СОШ № 13",1]
["2024-10-24","Шигапова Г.Р.","«Рукоделие. Терапия творчеством»","Открытое занятие ","\"Пошив подушки \"конфета\" в лоскутной технике\"","По месту жительства учащегося",1]
["2024-10-26","Туктаров В.А.","Футбол","Открытое занятие","Техника удара по мячу внутренней стороной стопы","Гимназия № 27",1]
["2024-10-28","Хабибуллина Ю.А.","Рукоделие","Мастер-класс ","Светильник","Творческий центр братьев Васильевых",1]
["2024-10-30","Мансурова Т.И.","Английский, играя","Открытое занятие ","«Halloween»","ЦДТ",1]
["2024-11-12","Шигапова Г.Р.","«Рукоделие. Терапия творчеством»","Открытое занятие ","\"Аппликация из шнурков \"Рыбка\"","По месту жительства учащегося",1]
["2024-11-20"," Холмогорцева О.В.","Танцевальный коллектив «Стихия» ","концерт","«День матери»","Гимназия 27",1]
["2024-11-20","Корсакова И.В.","«Декоративно-прикладное искусство»","Открытое занятие ","\"Обемная работа из пластилина \"Букет роз\"","По месту жительства учащегося",1]
["2024-11-21","Сергеева М.В.","Созвездие","Выставка ","Красота внешнего вида","ЦДТ",1]
["2024-11-22","Гиздатуллина К.М.","Озорные краски","Выставка работ","День матери","ЦДТ ",1]
["2024-11-24","Быстрова Л.М.","Радуга творчества","Выставка работ","День матери","Гимназия № 21",1]
["2024-11-24","Вафина Л.А.","Творческая мастерская","Выставка работ","День матери","СОШ № 80",1]
["2024-11-27","Ионова Е.В.","Мастерица","Выставка работ","День матери","СОШ № 13",1]
["2024-11-28","Хабибуллина Ю.А.","Рукоделие","Выставка работ","День матери","СОШ № 80",1]
["2024-11-28","Сергеева М.В.","Созвездие","Выставка работ","День матери","ЦДТ",1]
["2024-11-28","Егорова Е.Е.","Завиток","Выставка работ","День матери","ЦДТ",1]
["2024-11-28","Антипова И.С.","Палитра","Выставка работ","День матери","Гимназия № 27",1]
["2024-11-29"," Хасанова Л.Р","Театр \"Арт\" ","Сбор -батареек","Экология","Гимназия 21",1]
["2024-11-30","Вафина Л.А.","Творческая мастерская","Просмотр фильма ","Гадкий Я","Кинотеатр Синема 5",1]
["2024-12-13","Егорова Е.Е.","Завиток","Викторина","Внешкольный этикет","ЦДТ",1]
["2024-12-17","Туктаров В.А.","Футбол","Открытое занятие","Отработка навыка удара головой по мячу","Гимназия № 27",1]
["2024-12-18","Сафина А. И.","Студия спортивного бального танца \"Фиеста\"","Открытое занятие для родителей","Итоги полугодия","ЦДТ Вахитовского района",1]
["2024-12-20","Андреева М.Ю.","Театр-студия «Ровесник» ","Полугодовой творческий отчет перед родителями ","Показ Новогоднего спектакля «Вышли Бяки погулять»  ","ЦДТ, сцена зрительного зала ",1]
["2024-12-20"," Хасанова Л.Р","Театр \"Арт\" ","Концерт школьный","Творческий вечер » Театр зеркало мира»","Гимназия 21",1]
["2024-12-22","Плешаков Л.В.","Флорбол","Открытое занятие","Отработка передачи мяча в комбинации с завершением удара по воротам","Лицей № 116",1]
["2024-12-24","Андреева М.Ю.","Театр-студия «Ровесник»","Праздник - полугодовой творческий отчет перед родителями","Новогодний праздник «Новый год в стране «Мульти-пульти»","Лицей № 116",1]
["2024-12-24","Деваева Е.С.","Карате","Открытое занятие","Марафон «2025 ударов и 25 поединков»","ЦДТ",1]
["2024-12-26","Егорова Е.Е.","Завиток","Мастер-класс ","Леденец","ЦДТ",1]
["2024-12-26","Андреева М.Ю.","Театр-студия «Ровесник»","Праздник - полугодовой творческий отчет перед родителями","Новогодний праздник «Новый год в стране «Мульти-пульти»","Лицей № 116",1]
["2024-12-26","Бердникова М.Г.","«В мире знаний и творчества»","Открытое занятие "," «Новогодняя открытка». Рисование.","По месту жительства учащегося",1]
["2024-12-27","Зеленцов Д.А.","Юный дизайнер","Мастер-класс ","Новогодний барельеф","ЦДТ",1]
["2024-12-28","Вафина Л.А.","Творческая мастерская","Мастер-класс ","Изготовление шоколада","Музей шоколада",1]
["2024-12-29","Хабибуллина Ю.А.","Рукоделие","Мастер-класс ","Пицца","Пиццерия Папа Джонс",1]
["декабрь"," Холмогорцева О.В.","«Сценическое движение» ","Спектакль «Осенняя история»","Новый год","ЦДТ",1]
["2025-01-06"," Хасанова Л.Р","Театр \"Арт\" ","Культ- Поход","Каникулы на Булаке","Театр имени Качалова",1]
["2025-01-11"," Хасанова Л.Р","Театр \"Арт\" "," Открытое занятие","«В здоровом теле- здоровый дух» ","Гимназия 21",1]
["2025-02-13","Корсакова И.В.","«Декоративно-прикладное искусство»","Открытое занятие "," «Роспись деревянного изделия татарским орнаментом»","По месту жительства учащегося",1]
["2025-02-20","Гиздатуллина К.М.","Озорные краски","Выставка работ","День защитника отечества","ЦДТ, ",1]
["2025-02-20","Плешаков Л.В.","ОФП (ОВЗ)","АИП","Папа, мама и я – спортивная семья","ЦДТ",1]
["2025-02-21","Ионова Е.В.","Мастерица","Выставка работ","День защитника отечества","СОШ № 13",1]
["2025-02-21","Сергеева М.В.","Созвездие","Выставка работ","День защитника отечества","ЦДТ",1]
["2025-02-21","Антипова И.С.","Палитра","Выставка работ","День защитника отечества","Гимназия № 27",1]
["2025-02-22","Быстрова Л.М.","Радуга творчества","Выставка работ","День защитника отечества","Гимназия № 21",1]
["2025-02-22","Плешаков Л.В.","ОФП (ОВЗ)","АИП","\"Папа, мама и я - спортивная семья\"","ЦДТ",1]
["2025-02-27","Антипова И.С.","Палитра","Игра","Путешествие в город вежливость","Гимназия № 27",1]
["2025-03-01","Гиздатуллина К.М.","Озорные краски","Мастер-класс ","Весенние первоцветы","ЦДТ",1]
["2025-03-04","Сергеева М.В.","Созвездие","Мастер-класс ","Теплые волны воспоминаний","ЦДТ",1]
["2025-03-04","Гиздатуллина К.М.","Озорные краски","Выставка работ","Бал цветов к 8 Марта","ЦДТ",1]
["2025-03-04","Бердникова М.Г.","«В мире знаний и творчества»","Открытое занятие ","\"Открытка для мамы\"","По месту жительства учащегося",1]
["2025-03-05","Ионова Е.В.","Мастерица","Выставка работ","Бал цветов к 8 Марта","СОШ № 13",1]
["2025-03-05","Быстрова Л.М.","Радуга творчества","Выставка работ","Портрет любимой мамы","Гимназия № 21",1]
["2025-03-05","Сергеева М.В.","Созвездие","Выставка работ","Бал цветов к 8 Марта","ЦДТ",1]
["2025-03-05","Егорова Е.Е.","Завиток","Выставка работ","Для любимой мамы","ЦДТ",1]
["2025-03-05","Антипова И.С.","Палитра","Выставка работ","Бал цветов к 8 Марта","Гимназия № 27",1]
["2025-03-06","Зеленцов Д.А.","Юный дизайнер","Выставка работ","Открытки, созданные своими руками","ЦДТ",1]
["2025-03-07","Корсакова И.В.","«Декоративно-прикладное искусство»","Открытое занятие ","\"Изготовление игрушки из глины \"Петушок\"","По месту жительства учащегося",1]
["2025-03-14","Антипова И.С.","Территория творчества","Выставка ","Украшения из бисера","Гимназия № 27",1]
["2025-03-20","Быстрова Л.М.","Радуга творчества","Выставка ","Первоцветы","Гимназия № 21",1]
["2025-03-20","Шигапова Г.Р.","«Рукоделие. Терапия творчеством»","Открытое занятие ","\"Подготовка футболки к первой примерке\"","По месту жительства учащегося",1]
["2025-03-22","Антипова И.С.","Палитра","Выставка ","Голоса весеннего леса","Гимназия № 27",1]
["2025-03-26","Ионова Е.В.","Мастерица","Мастер-класс ","Весенние цветы","СОШ 13",1]
["2025-03-28","Ионова Е.В.","Мастерица","Мастер-класс ","День космонавтики","СОШ 13",1]
["2025-03-31","Вафина Л.А.","Творческая мастерская","Мастер-класс ","Чак-чак","Дом-музей \"Бик Матур\"",1]
["2025-04-11","Быстрова Л.М.","Радуга творчества","Выставка рисунков","День космонавтики","Гимназия 21",1]
["2025-04-23","Иванова С.В.","«Декор»","Открытое занятие ","\"Хохлома. Приемы построения орнаментов\"","По месту жительства учащегося",1]
["2025-04-24","пдо","все объединения","Итоговая выставка работ","Пусть всегда будет солнце","ЦДТ",1]
["2025-04-24","Сафина А. И.","Студия спортивного бального танца \"Фиеста\"","Традиционный весенний фестиваль детского творчества, посвящённый Году Защитника Отечества","Пусть всегда будет солнце!","ЦДТ Вахитовского района",1]
["2025-04-24"," Холмогорцева О.В.","Танцевальный коллектив «Стихия» ","Итоговый творческий отчет ","«Пусть всегда будет солнце»","ЦДТ",1]
["2025-04-24"," Холмогорцева О.В.","«Сценическое движение» ","Итоговый творческий отчет ","«Пусть всегда будет солнце»","ЦДТ",1]
["2025-04-24","Туктаров В.А.","Футбол","Открытое занятие","Комплекс по основной физической подготовке»","Гимназия № 27",1]
["2025-04-29","Егорова Е.Е.","Студия современной хореографии «Мистерия» ","Открытое занятие","Итоговое занятие, практика и реализация полученных знаний","ЦДТ",1]
["2025-05-06","Андреева М.Ю.","Театр-студия «Ровесник»","Итоговый творческий отчет перед родителями","Итоговый творческий отчет. Урок Мужества. «Девочка – Звезда»","Лицей № 116",1]
["2025-05-07","пдо","все объединения"," выставка работ","К 80 летию Победы","ЦДТ",1]
["2025-05-07","Хаснова.Л.Р","Театр \"Арт\" ","Концерт школьный","Школьный концерт «День Победы 80лет»","Гимназия 21",1]
["2025-05-09","Сафина А. И.","Студия спортивного бального танца \"Фиеста\"","Концертная площадка","Помним! Гордимся!","Улица Баумана",1]
["2025-05-09"," Холмогорцева О.В.","«Сценическое движение» ","Концерт ","«День Победы»  ","Ул. Баумана",1]
["2025-05-15","Хабибуллина Ю.А.","Рукоделие","Выставка ","Люблю березку белую","СОШ 80",1]
["2025-05-19","Хабибуллина Р.Х.","«Юный геолог","Итоговое –открытое занятие-выставка","Защита собственных коллекций горных пород","Гимназия 27",1]
["2025-05-19","Салимуллина А.М.","Занимательная экология","Итоговое занятие","Творческие выступления.Экологический капустник\"","СОШ №80",1]
["2025-05-20","Хабибуллина Р.Х.","«Юный геолог","Итоговое –открытое занятие","Защита полевых дневников ","Гимназия 27",1]
["2025-05-20","Салимуллина А.М.","\"Непоседы\"","Итоговое занятие","Сценическое действие.Работа над словом \"Если бы…\"","СОШ №80",1]
["2025-05-20","Шигапова Л.А.","Спортивные игры","Эстафета","Эстафеты с различными предметами, эстафеты парами","Школа № 1",1]
["2025-05-21","Абдуллаева Д.Х.","Спортивные игры","Эстафета","Эстафета «Мы команда»","Школа № 1",1]
["2025-05-22","Шайдуллина Р.Х.","Живое слово","Итоговое занятие","«Где мы были. Ч то узнали\"","СОШ № 80",1]
["2025-05-22","Файзуллин Э.З.","Карате","Аттестация","Аттестация на ученические пояса","ЦДТ",1]
["2025-05-23","Сафина А. И.","Студия спортивного бального танца \"Фиеста\"","Открытое занятие","«Весенний бал»","ЦДТ Вахитовского района",1]
["2025-05-23"," Хасанова Л.Р","Театр \"Арт\" ","Открытое занятие","«В театре было все,кроме меня»»","Гимназия 21",1]
["2025-05-23","Антонов М.Н.","Регби","Открытое занятие","Передача мяча в движении","Школа № 51",1]
["2025-05-23","Деваева Е.С.","Карате","Открытое занятие","Технические комплексы ката и бункай с оружием и без","ЦДТ",1]
["2025-05-24","Фаткуллин Ф.Т.","Национальная борьба","Открытое занятие","Работа в парах для отражения атак соперника","Школа № 80",1]
["2025-05-25","Плешаков Л.В.","Флорбол","Открытое занятие","Совершенствование ведения и передачи мяча клюшкой в парах","Лицей № 116",1]
[" 24.05.2025","Шайдуллина Р.Х.","Живое слово","Мастер-класс","Эчпочмак","Музей Татарская слобода",1]
[" 07.05.2025"," Холмогорцева О.В.","«Сценическое движение» ","Концерт","«День Победы»  ","Старо-татарская слобода",1]
[" 12.11.2024","Сергеева М.В.","Созвездие","Выставка работ","Уж небо осенью дышало","ЦДТ",1]
[" 18.05.25"," Егорова Е.Е.","Студия современной хореографии «Мистерия» ","Экскурсия","Итоги года","Озеро Лебяжье",1]
[" 25.12.2024"," Холмогорцева О.В.","Танцевальный коллектив «Стихия» ","Концерт","«Посвящение в танцоры»  ","ЦДТ, фойе",1]
[" 25.12.2024 "," Садыкова А.Г.","«Непоседы» ","концерт ","Новый год ","СОШ №80",1]
[" 26.09.2024","Гиздатуллина К.М.","Озорные краски","Выставка работ","Золотая осень","ЦДТ",1]
[{"$nulls":6},{"$f":"SUM(G4:G107)","v":104}]

{"sheet":"КПК","index":17,"n_rows":17,"n_cols":5,"rows_kept":17,"merged":[[0,0,0,4]]}
["Педагогические работники, прошедшие курсы повышения квалификации в 2024-2025 учебном году"]
["№","ФИО","Тема, количество часов)","Период","Место"]
[1,"Антипова И.С.","\"Деятельность педагога дополнительного образования по реализации программ художественной направленности: живопись, графика, дизайн, декоративно-прикладное искусство\", 56 час","25.03.2025-03.04.2025","ФГБОУ ВО \"КГИК\""]
[2,"Быстрова Л.М.","\"Деятельность педагога дополнительного образования по реализации программ художественной направленности: живопись, графика, дизайн, декоративно-прикладное искусство\", 56 час","25.03.2025-03.04.2025","ФГБОУ ВО \"КГИК\""]
[3,"Сафина А.И.","Роль педагога-организатора в реализации задач воспитания в образовательной организации","12.11.24-21.11.24","РЦВР"]
[4,"Суханова М.В.","Воспитательный потенциал дополнительного образования детей","19.11.24-29.11.24","РЦВР"]
[5,"Суханова М.В.","Роль педагога-организатора в реализации задач воспитания в образовательной организации, 56 часов","11.03.25-20.03.25","РЦВР"]
[6,"Татьянушкина В.В.","Роль педагога-организатора в реализации задач воспитания в образовательной организации, 56 часов","11.03.25-20.03.25","РЦВР"]
[7,"Кургузова- Холмогорцева Е.Е.","Совершенствование деятельности педагога-организатора по формированию у школьников социальной активности в условиях реализации ФГОС (в том числе «Навыки оказания первой помощи», 16 часов)","14.04.25-26.04.25","К(П)ФУ"]
[8,"Корсакова И.В.","Консультирование как технология псиолого-педагогиеского сопровождения участников образовательного проесса, в том числе детей с ОВЗ, 56 часов    ","21.01.25– 31.01.25","ГАОУ ДПО «ИРО РТ» г. Казань, ул. Б.Красная, д. 68"]
[9,"Шигапова Г.Р.","Консультирование как технология псиолого-педагогиеского сопровождения участников образовательного проесса, в том числе детей с ОВЗ, 56 часов    ","21.01.25– 31.01.25","ГАОУ ДПО «ИРО РТ» г. Казань, ул. Б.Красная, д. 68"]
[10,"Шашина Т.Б.","Профессиональная компетентность педагога дополнительного образовани в организаии деятельности обучающихся с учетом их интересов и потребностей (в том числе \"Навыки оказания первой помощи\", 16 часов), 72 часа","27.01.25-07.02.25","Приволжский межрегиональный центр повышения квалификации и переподготовки работников образования института психологии и образования Казанского (Приволжского) Федерального Университета, г. Казань,             ул. Оренбургский тракт, д. 4а"]
[11,"Эминова Н.Г.","Профессиональная компетентность педагога дополнительного образовани в организаии деятельности обучающихся с учетом их интересов и потребностей (в том числе \"Навыки оказания первой помощи\", 16 часов), 72 часа","27.01.25-07.02.25","Приволжский межрегиональный центр повышения квалификации и переподготовки работников образования института психологии и образования Казанского (Приволжского) Федерального Университета, г. Казань,             ул. Оренбургский тракт, д. 4а"]
[12,"Деваева .С.","Развитие коммуникативной компетентности педагога: взаимодействие с участниками образовательного процесса в дополнительном образовании детей","11.02.2025- 20.02.2025","НОУ ДПО «Центр социально-гуманитарного образования»"]
[13,"Егорова Е.Е.","Активные формы обучения хореографии в современном российском образовании детей.","19.05.2025-29.052025","ФГБОУ ВО «Казанский государственный институт культуры»"]
[14,"Сафина А.И.","Активные формы обучения хореографии в современном российском образовании детей.","19.05.2025-29.052025","ФГБОУ ВО «Казанский государственный институт культуры»"]
[15,"Холмогорцева  О.В.","Активные формы обучения хореографии в современном российском образовании детей.","19.05.2025-29.052025","ФГБОУ ВО «Казанский государственный институт культуры»"]

{"sheet":"награды","index":18,"n_rows":123,"n_cols":3,"rows_kept":123,"merged":[[0,0,0,2],[10,0,15,0],[16,0,26,0],[27,0,34,0],[36,0,60,0],[61,0,65,0],[66,0,70,0],[71,0,73,0],[74,0,87,0],[88,0,113,0],[117,0,118,0],[119,0,121,0]]}
["Награды педагогических работников"]
["Звание","Фамилия, инициалы","Год"]
["Почетный работник сферы образования РФ","Новикова Н.А."]
["Заслуженный учитель РТ","Андреева М.Ю.",2021]
["Заслуженный работник сферы молодежной политики РТ","Абдуллина Э.А.",2022]
["Награды","Фамилия, инициалы","Год"]
["Медаль «В память 1000-летия Казани»","Бердникова М.Г.",2005]
[null,"Фоменко Л.М.",2005]
[null,"Абдуллина Э.А.",2005]
["Медаль «За верность профессии»","Абдуллина Э.А.",2017]
["Почетная грамота МОиН РФ (Министерства просвещения РФ)","Новикова Н.А.",2009]
[null,"Абдуллина Э.А.",2013]
[null,"Андреева М.Ю.",2018]
[null,"Шашина Т.Б.",2021]
[null,"Шигапова Г.Р.",2023]
[null,"Мифтахова Л.Р.",2022]
["Почетная грамота МОиН РТ ","Абдуллина Э.А.",2010]
[null,"Фоменко Л.М.",2012]
[null,"Шашина Т.Б.",2014]
[null,"Васильева К.З.",2018]
[null,"Егорова Е.Е.",2018]
[null," Ионова Е.В."," 2017"]
[null," Камалова О.А."," 2018"]
[null,"Мифтахова Л.Р.",2010]
[null,"Гордеева И.В.",2023]
[null,"Петрова Е.Л.",2021]
[null,"Шигапова Г.Р.",2016]
["Нагрудный знак «За заслуги в образовании»","Абдуллина Э.А.",2001]
[null,"Андреева М.Ю.",2013]
[null,"Васильева К.З.",2020]
[null,"Новикова Н.А.",2018]
[null,"Мифтахова Л.Р.",2016]
[null,"Фоменко Л.М.",2015]
[null,"Шигапова Г.Р.",2019]
[null,"Шашина Т.Б.",2016]
["Знак отличия \"Отличник сферы образования и науки РТ\"","Камалова О.А.",2023]
["Почетная грамота УО ИК МО г. Казани","Васильева К.З.",2014]
[null,"Плешаков Л.В.",2015]
[null,"Егорова Е.Е.",2016]
[null," Камалова О.А."," 2017"]
[null," Фоменко А.Р."," 2016"]
[null,"Фалзянова Л.Г.",2023]
[null,"Гиздатуллина К.М.",2024]
[null,"Сергеева М.В.",2024]
[null,"Иванова С.В.",2020]
[null,"Бердникова М.Г.",2016]
[null,"Корсакова И.В.",2016]
[null,"Шигапова Г.Р.",2013]
[null,"Шашина Т.Б.",2012]
[null,"Сафина А.И.",2022]
[null,"Туктаров В.А.",2018]
[null,"Абдуллина Э.А.",2016]
[null,"Петрова Е.Л. ",2013]
[null,"Минсафина Р.Р.",2016]
[null,"Суханова М.В.",2015]
[null,"Хасанова Л.Р.",2024]
[null,"Камалова О.А.",2017]
[null,"Гордеева И.В.",2019]
[null,"Каримова К.Р.",2023]
[null,"Ибрагимова Э.Г.",2022]
[null,"Фоменко Л.М.",2013]
["Благодарность Мэра","Мифтахова Л.Р.",2018]
[null,"Петрова Е.Л.",2020]
[null,"Фоменко Л.М.",2016]
[null,"Камалова О.А.",2020]
[null,"Егорова Е.Е.",2017]
["Почетная грамота Казани","Васильева К.З.",2020]
[null," Фоменко А.Р."," 2021"]
[null,"Бердникова М.Г.",2022]
[null,"Шигапова Г.Р.",2021]
[null,"Шашина Т.Б.",2021]
["Почетная грамота ИК МО","Абдуллина Э.А.",2018]
[null,"Егорова Е.Е.",2020]
[null,"Туктаров В.А.",2021]
["Почетная грамота Администрации Вахитовского и Приволжского района","Васильева К.З.",2022]
[null,"Туктаров В.А.",2020]
[null,"Деваева Е.С.",2023]
[null," Камалова О.А."," 2022"]
[null,"Егорова Е.Е."," 2022"]
[null,"Корсакова И.В.",2022]
[null,"Бердникова М.Г.",2018]
[null,"Шигапова Г.Р.",2018]
[null,"Иванова С.В.",2019]
[null,"Шашина Т.Б.",2021]
[null,"Абдуллина Э.А.",2023]
[null,"Гордеева И.В.",2022]
[null,"Каримова К.Р.",2022]
[null,"Суханова М.В.",2020]
["Почетная грамота отдела УО ИК МО г. Казани по Вахитовскому и Приволжскому району","Васильева К.З.",2014]
[null,"Туктаров В.А.",2017]
[null,"Плешаков Л.В.","?"]
[null,"Корсакова И.В.",2013]
[null,"Шигапова Г.Р.",2013]
[null,"Бердникова М.Г.",2013]
[null,"Шашина Т.Б.",2009]
[null,"Гиздатуллина К.М.",2023]
[null,"Васильева К.З.",2017]
[null,"Сергеева М.В. ",2023]
[null,"Абдуллина Э.А.",2023]
[null,"Ибрагимова Э.Г.",2018]
[null,"Сафина А.И.",2020]
[null,"Суханова М.В. ",2010]
[null,"Минсафина Р.Р.",2016]
[null,"Камалова О.А.",2016]
[null,"Фоменко Л.М.",2023]
[null,"Быстрова Л.М.",2024]
[null,"Зеленцов Д.А.",2024]
[null,"Антипова И.С.",2025]
[null,"Кургузова-Холмогорцева Е.Е.",2025]
[null,"Гордеева И.В.",2018]
[null,"Каримова К.Р.",2021]
[null,"Хасанова Л.Р.",2022]
[null,"Иванова С.В.",2018]
[null,"Фалзянова Л.Г.",2022]
["Нагрудный знак \"Отличник физической культуры и спорта Республики Татарстан\"","Плешаков Л.В.",2018]
["Мастер Спорта России","Деваева Е.С.",2017]
["Почетная грамота Комитета физической культуры и спорта ИКМО г. Казани ","Деваева Е.С.",2019]
["Грамота Министерства по делам молодежи и спорту Республики Татарстан","Деваева Е.С.",2017]
[null,"Абдуллина Э.А.",2019]
["Знак отличия РТ «Почетный наставник»","Туктаров В.А.",2023]
[null,"Плешаков Л.В.",2023]
[null,"Шигапова Л.А.",2023]
["Нагрудный знак РТ «Молодой педагог. Яшь могаллим»","Деваева Е.С.",2023]